Workbook

Sheet BUPA CARE PRODUCTS
AB1: Franja Fronteriza Norte | AC1: Asegurados totales | AD1: =COUNTA(C14:C16) -> 1 | AG1: =IF(OR(C11="Cancún",C11=AB1,C12="Si"),0.16,0.16)*IF(D8="",1,"Error") -> 0.16
B2: SEGURO DE GASTOS MEDICOS MAYORES: PRODUCTOS BUPA CARE -- MÉXICO | AB2: Aguascalientes | AC2: adultos | AD2: =COUNTIF(C14:C16,">17") -> 1
AB3: Baja California Norte
B4: Cotización para: | C4: Juan Vidal | AB4: Baja California Sur | AC4: RPF
AB5: Campeche | AC5: Anual | AD5: 0 | AE5: 1
AB6: Cancún | AC6: Semestral | AD6: =IF(P13="Si",0,4.5%) -> 0 | AE6: 2
AB7: Coahuila | AC7: Trimestral | AD7: =IF(P14="Si",0,7.5%) -> 0 | AE7: 4
AB8: Colima | AC8: Mensual | AD8: 0.09 | AE8: 12
AB9: Chiapas | AD9: =VLOOKUP($C$17,$AC$5:$AE$8,2,FALSE) -> 0 | AE9: =VLOOKUP($C$17,$AC$5:$AE$8,3,FALSE) -> 1
AB10: Chihuahua
B11: Estado | C11: Distrito Federal | E11: =VLOOKUP(C11,'Fórmulas Cotización'!AV3:AX39,2,FALSE) -> Zona 1 | G11: OTROS DEPENDIENTES | J11: COBERTURAS ADICIONALES | N11: DESCUENTO PAGO FRACCIONADO | AB11: Distrito Federal
B12: IVA Franja fronteriza? | C12: No | AB12: Durango
G13: ID | H13: Edad | J13: Trasplante de órganos | L13: No Contratada | N13: Descuento por pago fraccionado semestral: | P13: Si | AB13: Guanajuato
B14: Edad Titular | C14: 30 | G14: 1 | J14: Complicaciones del embarazo | L14: No Contratada | N14: Descuento por pago fraccionado trimestral: | P14: Si | AB14: Guerrero (solo Acapulco y Zihuatanejo)
B15: Edad Cónyuge | G15: 2 | J15: Padecimientos Congénitos | L15: Contratada | AB15: Guerrero (excepto Acapulco y Zihuatanejo)
B16: No. de dependientes | G16: 3 | AB16: Hidalgo
B17: Forma de pago | C17: Anual | G17: 4 | J17: COBERTURAS ADICIONALES | AB17: Jalisco
G18: 5 | J18: USAMED (625) | L18: =IF(C14<>0,625,0)+IF(C15<>0,625,0) -> 625 | AB18: Edo. Mexico (solo área metropolitana)
P19: Prima fraccionada | AB19: Edo. Mexico (excepto área metropolitana)
B20: Producto | C20: Deducible (dentro/fuera país) | E20: Titular | F20: Cónyuge | G20: Dependientes | H20: Otros dependientes | I20: Cob. Adicionales | J20: Tarifa Total | K20: Derecho Póliza | L20: RPF +USAMED | M20: Prima neta | N20: IVA | O20: Prima Anual | P20: 1er. Recibo | Q20: Recibos Subsecuentes | AB20: Michoacán
B21: Diamond | C21: 1000 | D21: 2000 | E21: =TRANSPOSE('Fórmulas Cotización'!P6:T7) -> 304087.5 | F21: 0 | G21: =TRANSPOSE('Fórmulas Cotización'!P13:T13) -> 0 | H21: ='Fórmulas Cotización'!P39 -> 0 | I21: =(IF($L$13="Contratada",'Fórmulas Cotización'!$F$25,0)+IF($L$14="Contratada",'Fórmulas Cotización'!$E$25,0)+IF($L$15="Contratada",'Fórmulas Cotización'!$G$23,0)) -> 0 | J21: =SUM(E21:I21) -> 304087.5 | K21: 937.5 | L21: =IF($AD$9=0,$L$18,((J21+IF($C$14<>0,$L$18,0))*$AD$9)+$L$18) -> 625 | M21: =J21+K21+L21 -> 305650 | N21: =M21*$AG$1 -> 48904 | O21: =M21+N21 -> 354554 | P21: =(((J21 + (IF($C$14<>0,$L$18,0)))/$AE$9)*(1+$AD$9)+K21)*(1+$AG$1) -> 354554 | Q21: =IF($C$17="Anual",0,(((J21+(IF($C$14<>0,$L$18,0)))/$AE$9)*(1+$AD$9))*(1+$AG$1)) -> 0 | AB21: Morelos
C22: 2000 | D22: 3000 | E22: 235300 | F22: 0 | G22: 0 | H22: ='Fórmulas Cotización'!Q39 -> 0 | I22: =(IF($L$13="Contratada",'Fórmulas Cotización'!$F$25,0)+IF($L$14="Contratada",'Fórmulas Cotización'!$E$25,0)+IF($L$15="Contratada",'Fórmulas Cotización'!$G$23,0)) -> 0 | J22: =SUM(E22:I22) -> 235300 | K22: 937.5 | L22: =IF($AD$9=0,$L$18,((J22+IF($C$14<>0,$L$18,0))*$AD$9)+$L$18) -> 625 | M22: =J22+K22+L22 -> 236862.5 | N22: =M22*$AG$1 -> 37898 | O22: =M22+N22 -> 274760.5 | P22: =(((J22 + (IF($C$14<>0,$L$18,0)))/$AE$9)*(1+$AD$9)+K22)*(1+$AG$1) -> 274760.5 | Q22: =IF($C$17="Anual",0,(((J22+(IF($C$14<>0,$L$18,0)))/$AE$9)*(1+$AD$9))*(1+$AG$1)) -> 0 | AB22: Nayarit
C23: 5000 | D23: 5000 | E23: 167637.5 | F23: 0 | G23: 0 | H23: ='Fórmulas Cotización'!R39 -> 0 | I23: =(IF($L$13="Contratada",'Fórmulas Cotización'!$F$25,0)+IF($L$14="Contratada",'Fórmulas Cotización'!$E$25,0)+IF($L$15="Contratada",'Fórmulas Cotización'!$G$23,0)) -> 0 | J23: 167637.5 | K23: 937.5 | L23: 625 | M23: =J23+K23+L23 -> 169200 | N23: =M23*$AG$1 -> 27072 | O23: =M23+N23 -> 196272 | P23: 196272 | Q23: 0 | AB23: Nuevo León
C24: 10000 | D24: 10000 | E24: 129712.5 | F24: 0 | G24: 0 | H24: ='Fórmulas Cotización'!S39 -> 0 | I24: =(IF($L$13="Contratada",'Fórmulas Cotización'!$F$25,0)+IF($L$14="Contratada",'Fórmulas Cotización'!$E$25,0)+IF($L$15="Contratada",'Fórmulas Cotización'!$G$23,0)) -> 0 | J24: 129712.5 | K24: 937.5 | L24: 625 | M24: =J24+K24+L24 -> 131275 | N24: =M24*$AG$1 -> 21004 | O24: =M24+N24 -> 152279 | P24: 152279 | Q24: 0 | AB24: Oaxaca
C25: 20000 | D25: 20000 | E25: 100375 | F25: 0 | G25: 0 | H25: ='Fórmulas Cotización'!T39 -> 0 | I25: =(IF($L$13="Contratada",'Fórmulas Cotización'!$F$25,0)+IF($L$14="Contratada",'Fórmulas Cotización'!$E$25,0)+IF($L$15="Contratada",'Fórmulas Cotización'!$G$23,0)) -> 0 | J25: 100375 | K25: 937.5 | L25: 625 | M25: =J25+K25+L25 -> 101937.5 | N25: =M25*$AG$1 -> 16310 | O25: =M25+N25 -> 118247.5 | P25: 118247.5 | Q25: 0 | AB25: Puebla
AB26: Querétaro
P27: Prima fraccionada | AB27: Quintana Roo
C28: Deducible (dentro/fuera país) | E28: Titular | F28: Cónyuge | G28: Dependientes | H28: Otros dependientes | I28: Cob. Adicionales | J28: Tarifa Total | K28: Derecho Póliza | L28: RPF +USAMED | M28: Prima neta | N28: IVA | O28: Prima Anual | P28: 1er. Recibo | Q28: Recibos Subsecuentes | AB28: San Luis Potosí
B29: Complete | C29: 1000 | D29: 2000 | E29: =TRANSPOSE('Fórmulas Cotización'!J6:N7) -> 279050 | F29: 0 | G29: =TRANSPOSE('Fórmulas Cotización'!J13:N13) -> 0 | H29: ='Fórmulas Cotización'!J39 -> 0 | I29: =(IF($L$13="Contratada",'Fórmulas Cotización'!$F$25,0)+IF($L$14="Contratada",'Fórmulas Cotización'!$E$25,0)+IF($L$15="Contratada",'Fórmulas Cotización'!$G$25,0)) -> 3300 | J29: =SUM(E29:I29) -> 282350 | K29: 937.5 | L29: =IF($AD$9=0,$L$18,((J29+IF($C$14<>0,$L$18,0))*$AD$9)+$L$18) -> 625 | M29: =J29+K29+L29 -> 283912.5 | N29: =M29*$AG$1 -> 45426 | O29: =M29+N29 -> 329338.5 | P29: =(((J29 + (IF($C$14<>0,$L$18,0)))/$AE$9)*(1+$AD$9)+K29)*(1+$AG$1) -> 329338.5 | Q29: =IF($C$17="Anual",0,(((J29+(IF($C$14<>0,$L$18,0)))/$AE$9)*(1+$AD$9))*(1+$AG$1)) -> 0 | AB29: Sinaloa
C30: 2000 | D30: 3000 | E30: 217275 | F30: 0 | G30: 0 | H30: ='Fórmulas Cotización'!K39 -> 0 | I30: =(IF($L$13="Contratada",'Fórmulas Cotización'!$F$25,0)+IF($L$14="Contratada",'Fórmulas Cotización'!$E$25,0)+IF($L$15="Contratada",'Fórmulas Cotización'!$G$25,0)) -> 3300 | J30: =SUM(E30:I30) -> 220575 | K30: 937.5 | L30: =IF($AD$9=0,$L$18,((J30+IF($C$14<>0,$L$18,0))*$AD$9)+$L$18) -> 625 | M30: =J30+K30+L30 -> 222137.5 | N30: =M30*$AG$1 -> 35542 | O30: =M30+N30 -> 257679.5 | P30: =(((J30 + (IF($C$14<>0,$L$18,0)))/$AE$9)*(1+$AD$9)+K30)*(1+$AG$1) -> 257679.5 | Q30: =IF($C$17="Anual",0,(((J30+(IF($C$14<>0,$L$18,0)))/$AE$9)*(1+$AD$9))*(1+$AG$1)) -> 0 | AB30: Sonora
C31: 5000 | D31: 5000 | E31: 156087.5 | F31: 0 | G31: 0 | H31: ='Fórmulas Cotización'!L39 -> 0 | I31: =(IF($L$13="Contratada",'Fórmulas Cotización'!$F$25,0)+IF($L$14="Contratada",'Fórmulas Cotización'!$E$25,0)+IF($L$15="Contratada",'Fórmulas Cotización'!$G$25,0)) -> 3300 | J31: 159387.5 | K31: 937.5 | L31: 625 | M31: =J31+K31+L31 -> 160950 | N31: =M31*$AG$1 -> 25752 | O31: =M31+N31 -> 186702 | P31: 186702 | Q31: 0 | AB31: Tabasco
C32: 10000 | D32: 10000 | E32: 121525 | F32: 0 | G32: 0 | H32: ='Fórmulas Cotización'!M39 -> 0 | I32: =(IF($L$13="Contratada",'Fórmulas Cotización'!$F$25,0)+IF($L$14="Contratada",'Fórmulas Cotización'!$E$25,0)+IF($L$15="Contratada",'Fórmulas Cotización'!$G$25,0)) -> 3300 | J32: 124825 | K32: 937.5 | L32: 625 | M32: =J32+K32+L32 -> 126387.5 | N32: =M32*$AG$1 -> 20222 | O32: =M32+N32 -> 146609.5 | P32: 146609.5 | Q32: 0 | AB32: Tamaulipas
C33: 20000 | D33: 20000 | E33: 94625 | F33: 0 | G33: 0 | H33: ='Fórmulas Cotización'!N39 -> 0 | I33: =(IF($L$13="Contratada",'Fórmulas Cotización'!$F$25,0)+IF($L$14="Contratada",'Fórmulas Cotización'!$E$25,0)+IF($L$15="Contratada",'Fórmulas Cotización'!$G$25,0)) -> 3300 | J33: 97925 | K33: 937.5 | L33: 625 | M33: =J33+K33+L33 -> 99487.5 | N33: =M33*$AG$1 -> 15918 | O33: =M33+N33 -> 115405.5 | P33: 115405.5 | Q33: 0 | AB33: Tlaxcala
AB34: Veracruz
P35: Prima fraccionada | AB35: Yucatán
C36: Deducible (dentro/fuera país) | E36: Titular | F36: Cónyuge | G36: Dependientes | H36: Otros dependientes | I36: Cob. Adicionales | J36: Tarifa Total | K36: Derecho Póliza | L36: RPF +USAMED | M36: Prima neta | N36: IVA | O36: Prima Anual | P36: 1er. Recibo | Q36: Recibos Subsecuentes | AB36: Zacatecas
B37: Advantage | C37: 1000 | D37: 2000 | E37: =TRANSPOSE('Fórmulas Cotización'!D6:H7) -> 227625 | F37: 0 | G37: =TRANSPOSE('Fórmulas Cotización'!D13:H13) -> 0 | H37: ='Fórmulas Cotización'!D39 -> 0 | I37: =(IF($L$13="Contratada",'Fórmulas Cotización'!$F$25,0)+IF($L$14="Contratada",'Fórmulas Cotización'!$E$25,0)+IF($L$15="Contratada",'Fórmulas Cotización'!$G$25,0)) -> 3300 | J37: =SUM(E37:I37) -> 230925 | K37: 937.5 | L37: =IF($AD$9=0,$L$18,((J37+IF($C$14<>0,$L$18,0))*$AD$9)+$L$18) -> 625 | M37: =J37+K37+L37 -> 232487.5 | N37: =M37*$AG$1 -> 37198 | O37: =M37+N37 -> 269685.5 | P37: =(((J37 + (IF($C$14<>0,$L$18,0)))/$AE$9)*(1+$AD$9)+K37)*(1+$AG$1) -> 269685.5 | Q37: =IF($C$17="Anual",0,(((J37+(IF($C$14<>0,$L$18,0)))/$AE$9)*(1+$AD$9))*(1+$AG$1)) -> 0
C38: 2000 | D38: 3000 | E38: 182975 | F38: 0 | G38: 0 | H38: ='Fórmulas Cotización'!E39 -> 0 | I38: =(IF($L$13="Contratada",'Fórmulas Cotización'!$F$25,0)+IF($L$14="Contratada",'Fórmulas Cotización'!$E$25,0)+IF($L$15="Contratada",'Fórmulas Cotización'!$G$25,0)) -> 3300 | J38: =SUM(E38:I38) -> 186275 | K38: 937.5 | L38: =IF($AD$9=0,$L$18,((J38+IF($C$14<>0,$L$18,0))*$AD$9)+$L$18) -> 625 | M38: =J38+K38+L38 -> 187837.5 | N38: =M38*$AG$1 -> 30054 | O38: =M38+N38 -> 217891.5 | P38: =(((J38 + (IF($C$14<>0,$L$18,0)))/$AE$9)*(1+$AD$9)+K38)*(1+$AG$1) -> 217891.5 | Q38: =IF($C$17="Anual",0,(((J38+(IF($C$14<>0,$L$18,0)))/$AE$9)*(1+$AD$9))*(1+$AG$1)) -> 0
C39: 5000 | D39: 5000 | E39: 137100 | F39: 0 | G39: 0 | H39: ='Fórmulas Cotización'!F39 -> 0 | I39: =(IF($L$13="Contratada",'Fórmulas Cotización'!$F$25,0)+IF($L$14="Contratada",'Fórmulas Cotización'!$E$25,0)+IF($L$15="Contratada",'Fórmulas Cotización'!$G$25,0)) -> 3300 | J39: 140400 | K39: 937.5 | L39: 625 | M39: =J39+K39+L39 -> 141962.5 | N39: =M39*$AG$1 -> 22714 | O39: =M39+N39 -> 164676.5 | P39: 164676.5 | Q39: 0
C40: 10000 | D40: 10000 | E40: 106312.5 | F40: 0 | G40: 0 | H40: ='Fórmulas Cotización'!G39 -> 0 | I40: =(IF($L$13="Contratada",'Fórmulas Cotización'!$F$25,0)+IF($L$14="Contratada",'Fórmulas Cotización'!$E$25,0)+IF($L$15="Contratada",'Fórmulas Cotización'!$G$25,0)) -> 3300 | J40: 109612.5 | K40: 937.5 | L40: 625 | M40: =J40+K40+L40 -> 111175 | N40: =M40*$AG$1 -> 17788 | O40: =M40+N40 -> 128963 | P40: 128963 | Q40: 0
C41: 20000 | D41: 20000 | E41: 84112.5 | F41: 0 | G41: 0 | H41: ='Fórmulas Cotización'!H39 -> 0 | I41: =(IF($L$13="Contratada",'Fórmulas Cotización'!$F$25,0)+IF($L$14="Contratada",'Fórmulas Cotización'!$E$25,0)+IF($L$15="Contratada",'Fórmulas Cotización'!$G$25,0)) -> 3300 | J41: 87412.5 | K41: 937.5 | L41: 625 | M41: =J41+K41+L41 -> 88975 | N41: =M41*$AG$1 -> 14236 | O41: =M41+N41 -> 103211 | P41: 103211 | Q41: 0
P43: Prima fraccionada
C44: Deducible (dentro/fuera país) | E44: Titular | F44: Cónyuge | G44: Dependientes | H44: Otros dependientes | I44: Cob. Adicionales | J44: Tarifa Total | K44: Derecho Póliza | L44: RPF +USAMED | M44: Prima neta | N44: IVA | O44: Prima Anual | P44: 1er. Recibo | Q44: Recibos Subsecuentes
B45: Secure | C45: 1000 | D45: 2000 | E45: =TRANSPOSE('Fórmulas Cotización'!AB6:AF7) -> 174062.5 | F45: 0 | G45: =TRANSPOSE('Fórmulas Cotización'!AB13:AF13) -> 0 | H45: ='Fórmulas Cotización'!AB39 -> 0 | I45: =(IF($L$13="Contratada",'Fórmulas Cotización'!$F$26,0)+IF($L$14="Contratada",'Fórmulas Cotización'!$E$26,0)+IF($L$15="Contratada",'Fórmulas Cotización'!$G$26,0)) -> 3300 | J45: =SUM(E45:I45) -> 177362.5 | K45: 937.5 | L45: =IF($AD$9=0,$L$18,((J45+IF($C$14<>0,$L$18,0))*$AD$9)+$L$18) -> 625 | M45: =J45+K45+L45 -> 178925 | N45: =M45*$AG$1 -> 28628 | O45: =M45+N45 -> 207553 | P45: =(((J45 + (IF($C$14<>0,$L$18,0)))/$AE$9)*(1+$AD$9)+K45)*(1+$AG$1) -> 207553 | Q45: =IF($C$17="Anual",0,(((J45+(IF($C$14<>0,$L$18,0)))/$AE$9)*(1+$AD$9))*(1+$AG$1)) -> 0
C46: 2000 | D46: 3000 | E46: 131000 | F46: 0 | G46: 0 | H46: ='Fórmulas Cotización'!AC39 -> 0 | I46: =(IF($L$13="Contratada",'Fórmulas Cotización'!$F$26,0)+IF($L$14="Contratada",'Fórmulas Cotización'!$E$26,0)+IF($L$15="Contratada",'Fórmulas Cotización'!$G$26,0)) -> 3300 | J46: =SUM(E46:I46) -> 134300 | K46: 937.5 | L46: =IF($AD$9=0,$L$18,((J46+IF($C$14<>0,$L$18,0))*$AD$9)+$L$18) -> 625 | M46: =J46+K46+L46 -> 135862.5 | N46: =M46*$AG$1 -> 21738 | O46: =M46+N46 -> 157600.5 | P46: =(((J46 + (IF($C$14<>0,$L$18,0)))/$AE$9)*(1+$AD$9)+K46)*(1+$AG$1) -> 157600.5 | Q46: =IF($C$17="Anual",0,(((J46+(IF($C$14<>0,$L$18,0)))/$AE$9)*(1+$AD$9))*(1+$AG$1)) -> 0
C47: 5000 | D47: 5000 | E47: 88575 | F47: 0 | G47: 0 | H47: ='Fórmulas Cotización'!AD39 -> 0 | I47: =(IF($L$13="Contratada",'Fórmulas Cotización'!$F$26,0)+IF($L$14="Contratada",'Fórmulas Cotización'!$E$26,0)+IF($L$15="Contratada",'Fórmulas Cotización'!$G$26,0)) -> 3300 | J47: 91875 | K47: 937.5 | L47: 625 | M47: =J47+K47+L47 -> 93437.5 | N47: =M47*$AG$1 -> 14950 | O47: =M47+N47 -> 108387.5 | P47: 108387.5 | Q47: 0
C48: 10000 | D48: 10000 | E48: 73050 | F48: 0 | G48: 0 | H48: ='Fórmulas Cotización'!AE39 -> 0 | I48: =(IF($L$13="Contratada",'Fórmulas Cotización'!$F$26,0)+IF($L$14="Contratada",'Fórmulas Cotización'!$E$26,0)+IF($L$15="Contratada",'Fórmulas Cotización'!$G$26,0)) -> 3300 | J48: 76350 | K48: 937.5 | L48: 625 | M48: =J48+K48+L48 -> 77912.5 | N48: =M48*$AG$1 -> 12466 | O48: =M48+N48 -> 90378.5 | P48: 90378.5 | Q48: 0
C49: 20000 | D49: 20000 | E49: 60237.5 | F49: 0 | G49: 0 | H49: ='Fórmulas Cotización'!AF39 -> 0 | I49: =(IF($L$13="Contratada",'Fórmulas Cotización'!$F$26,0)+IF($L$14="Contratada",'Fórmulas Cotización'!$E$26,0)+IF($L$15="Contratada",'Fórmulas Cotización'!$G$26,0)) -> 3300 | J49: 63537.5 | K49: 937.5 | L49: 625 | M49: =J49+K49+L49 -> 65100 | N49: =M49*$AG$1 -> 10416 | O49: =M49+N49 -> 75516 | P49: 75516 | Q49: 0
P51: Prima fraccionada
C52: Deducible (dentro/fuera país) | E52: Titular | F52: Cónyuge | G52: Dependientes | H52: Otros dependientes | I52: Cob. Adicionales | J52: Tarifa Total | K52: Derecho Póliza | L52: RPF +USAMED | M52: Prima neta | N52: IVA | O52: Prima Anual | P52: 1er. Recibo | Q52: Recibos Subsecuentes
B53: Essential | C53: 1000 | D53: 2000 | E53: =TRANSPOSE('Fórmulas Cotización'!V6:Z7) -> 133825 | F53: 0 | G53: =TRANSPOSE('Fórmulas Cotización'!V13:Z13) -> 0 | H53: ='Fórmulas Cotización'!V39 -> 0 | I53: =(IF($L$13="Contratada",'Fórmulas Cotización'!$F$27,0)+IF($L$14="Contratada",'Fórmulas Cotización'!$E$27,0)+IF($L$15="Contratada",'Fórmulas Cotización'!$G$27,0)) -> 3300 | J53: =SUM(E53:I53) -> 137125 | K53: 937.5 | L53: =IF($AD$9=0,$L$18,((J53+IF($C$14<>0,$L$18,0))*$AD$9)+$L$18) -> 625 | M53: =J53+K53+L53 -> 138687.5 | N53: =M53*$AG$1 -> 22190 | O53: =M53+N53 -> 160877.5 | P53: =(((J53 + (IF($C$14<>0,$L$18,0)))/$AE$9)*(1+$AD$9)+K53)*(1+$AG$1) -> 160877.5 | Q53: =IF($C$17="Anual",0,(((J53+(IF($C$14<>0,$L$18,0)))/$AE$9)*(1+$AD$9))*(1+$AG$1)) -> 0
C54: 2000 | D54: 3000 | E54: 100712.5 | F54: 0 | G54: 0 | H54: ='Fórmulas Cotización'!W39 -> 0 | I54: =(IF($L$13="Contratada",'Fórmulas Cotización'!$F$27,0)+IF($L$14="Contratada",'Fórmulas Cotización'!$E$27,0)+IF($L$15="Contratada",'Fórmulas Cotización'!$G$27,0)) -> 3300 | J54: =SUM(E54:I54) -> 104012.5 | K54: 937.5 | L54: =IF($AD$9=0,$L$18,((J54+IF($C$14<>0,$L$18,0))*$AD$9)+$L$18) -> 625 | M54: =J54+K54+L54 -> 105575 | N54: =M54*$AG$1 -> 16892 | O54: =M54+N54 -> 122467 | P54: =(((J54 + (IF($C$14<>0,$L$18,0)))/$AE$9)*(1+$AD$9)+K54)*(1+$AG$1) -> 122467 | Q54: =IF($C$17="Anual",0,(((J54+(IF($C$14<>0,$L$18,0)))/$AE$9)*(1+$AD$9))*(1+$AG$1)) -> 0
C55: 5000 | D55: 5000 | E55: 68087.5 | F55: 0 | G55: 0 | H55: ='Fórmulas Cotización'!X39 -> 0 | I55: =(IF($L$13="Contratada",'Fórmulas Cotización'!$F$27,0)+IF($L$14="Contratada",'Fórmulas Cotización'!$E$27,0)+IF($L$15="Contratada",'Fórmulas Cotización'!$G$27,0)) -> 3300 | J55: =SUM(E55:I55) -> 71387.5 | K55: 937.5 | L55: =IF($AD$9=0,$L$18,((J55+IF($C$14<>0,$L$18,0))*$AD$9)+$L$18) -> 625 | M55: =J55+K55+L55 -> 72950 | N55: =M55*$AG$1 -> 11672 | O55: =M55+N55 -> 84622 | P55: =(((J55 + (IF($C$14<>0,$L$18,0)))/$AE$9)*(1+$AD$9)+K55)*(1+$AG$1) -> 84622 | Q55: 0
C56: 10000 | D56: 10000 | E56: 56162.5 | F56: 0 | G56: 0 | H56: ='Fórmulas Cotización'!Y39 -> 0 | I56: =(IF($L$13="Contratada",'Fórmulas Cotización'!$F$27,0)+IF($L$14="Contratada",'Fórmulas Cotización'!$E$27,0)+IF($L$15="Contratada",'Fórmulas Cotización'!$G$27,0)) -> 3300 | J56: =SUM(E56:I56) -> 59462.5 | K56: 937.5 | L56: 625 | M56: =J56+K56+L56 -> 61025 | N56: =M56*$AG$1 -> 9764 | O56: =M56+N56 -> 70789 | P56: 70789 | Q56: 0
C57: 20000 | D57: 20000 | E57: 46312.5 | F57: 0 | G57: 0 | H57: ='Fórmulas Cotización'!Z39 -> 0 | I57: =(IF($L$13="Contratada",'Fórmulas Cotización'!$F$27,0)+IF($L$14="Contratada",'Fórmulas Cotización'!$E$27,0)+IF($L$15="Contratada",'Fórmulas Cotización'!$G$27,0)) -> 3300 | J57: =SUM(E57:I57) -> 49612.5 | K57: 937.5 | L57: 625 | M57: =J57+K57+L57 -> 51175 | N57: =M57*$AG$1 -> 8188 | O57: =M57+N57 -> 59363 | P57: 59363 | Q57: 0
C60: Deducible (dentro/fuera país) | E60: Titular | F60: Cónyuge | G60: Dependientes | H60: Otros dependientes | I60: Cob. Adicionales | J60: Tarifa Total | K60: Derecho Póliza | L60: RPF +USAMED | M60: Prima neta | N60: IVA | O60: Prima Anual | P60: 1er. Recibo | Q60: Recibos Subsecuentes
B61: Total | C61: 1000 | D61: 2000 | E61: =TRANSPOSE('Fórmulas Cotización'!AH6:AL7) -> 143387.5 | F61: 0 | G61: =TRANSPOSE('Fórmulas Cotización'!AH13:AL13) -> 0 | H61: ='Fórmulas Cotización'!AH39 -> 0 | I61: =(IF($L$13="Contratada",'Fórmulas Cotización'!$F$28,0)+IF($L$14="Contratada",'Fórmulas Cotización'!$E$28,0)+IF($L$15="Contratada",'Fórmulas Cotización'!$G$28,0)) -> 3300 | J61: =SUM(E61:I61) -> 146687.5 | K61: 937.5 | L61: =IF($AD$9=0,$L$18,((J61+IF($C$14<>0,$L$18,0))*$AD$9)+$L$18) -> 625 | M61: =J61+K61+L61 -> 148250 | N61: =M61*$AG$1 -> 23720 | O61: =M61+N61 -> 171970 | P61: =(((J61 + (IF($C$14<>0,$L$18,0)))/$AE$9)*(1+$AD$9)+K61)*(1+$AG$1) -> 171970 | Q61: =IF($C$17="Anual",0,(((J61+(IF($C$14<>0,$L$18,0)))/$AE$9)*(1+$AD$9))*(1+$AG$1)) -> 0
C62: 2000 | D62: 3000 | E62: 107912.5 | F62: 0 | G62: 0 | H62: ='Fórmulas Cotización'!AI39 -> 0 | I62: =(IF($L$13="Contratada",'Fórmulas Cotización'!$F$28,0)+IF($L$14="Contratada",'Fórmulas Cotización'!$E$28,0)+IF($L$15="Contratada",'Fórmulas Cotización'!$G$28,0)) -> 3300 | J62: =SUM(E62:I62) -> 111212.5 | K62: 937.5 | L62: =IF($AD$9=0,$L$18,((J62+IF($C$14<>0,$L$18,0))*$AD$9)+$L$18) -> 625 | M62: =J62+K62+L62 -> 112775 | N62: =M62*$AG$1 -> 18044 | O62: =M62+N62 -> 130819 | P62: =(((J62 + (IF($C$14<>0,$L$18,0)))/$AE$9)*(1+$AD$9)+K62)*(1+$AG$1) -> 130819 | Q62: =IF($C$17="Anual",0,(((J62+(IF($C$14<>0,$L$18,0)))/$AE$9)*(1+$AD$9))*(1+$AG$1)) -> 0
C63: 5000 | D63: 5000 | E63: 72962.5 | F63: 0 | G63: 0 | H63: ='Fórmulas Cotización'!AJ39 -> 0 | I63: =(IF($L$13="Contratada",'Fórmulas Cotización'!$F$28,0)+IF($L$14="Contratada",'Fórmulas Cotización'!$E$28,0)+IF($L$15="Contratada",'Fórmulas Cotización'!$G$28,0)) -> 3300 | J63: 76262.5 | K63: 937.5 | L63: 625 | M63: =J63+K63+L63 -> 77825 | N63: =M63*$AG$1 -> 12452 | O63: =M63+N63 -> 90277 | P63: 90277 | Q63: 0
C64: 10000 | D64: 10000 | E64: 60175 | F64: 0 | G64: 0 | H64: ='Fórmulas Cotización'!AK39 -> 0 | I64: =(IF($L$13="Contratada",'Fórmulas Cotización'!$F$28,0)+IF($L$14="Contratada",'Fórmulas Cotización'!$E$28,0)+IF($L$15="Contratada",'Fórmulas Cotización'!$G$28,0)) -> 3300 | J64: 63475 | K64: 937.5 | L64: 625 | M64: =J64+K64+L64 -> 65037.5 | N64: =M64*$AG$1 -> 10406 | O64: =M64+N64 -> 75443.5 | P64: 75443.5 | Q64: 0
C65: 20000 | D65: 20000 | E65: 49625 | F65: 0 | G65: 0 | H65: ='Fórmulas Cotización'!AL39 -> 0 | I65: =(IF($L$13="Contratada",'Fórmulas Cotización'!$F$28,0)+IF($L$14="Contratada",'Fórmulas Cotización'!$E$28,0)+IF($L$15="Contratada",'Fórmulas Cotización'!$G$28,0)) -> 3300 | J65: 52925 | K65: 937.5 | L65: 625 | M65: =J65+K65+L65 -> 54487.5 | N65: =M65*$AG$1 -> 8718 | O65: =M65+N65 -> 63205.5 | P65: 63205.5 | Q65: 0
B67: Los costos presentados son anuales y en pesos mexicanos.
B68: Se aplicarán los recargos por pagos fraccionados de acuerdo a la forma de pago elegida.
B69: Esta cotización tiene una vigencia de 30 días naturales a partir de la fecha de elaboración.
B70: La cobertura de Transplante de órganos está incluida en los planes Diamond y Complete como cobertura básica.
B71: La cobertura de Complicaciones de Maternidad no se ofrece para los planes Diamond y Complete en opciones de deducible 1,000/2,000 y 2,000/3,000
B73: La presente cotización es de carácter informativo, no constituye una solicitud de seguro y/o el monto de la prima definitiva y/o las condiciones de la misma y/o una oferta de aseguramiento en términos del artículo 5to de la Ley Sobre el Contrato de Seguro. La emisión de la póliza así como posibles cambios en la tarifa están sujetos a valoración del riesgo de acuerdo con las políticas de Suscripción de Bupa México y es susceptible de modificaciones, por lo que Bupa podrá aceptar o negar el aseguramiento del riesgo propuesto. Este cotizador es válido del 1 de Marzo del 2025 al 31 de Diciembre del 2025
B81: Actualización - 2025

Sheet Versión
A1: Última actualización: 06 Marzo 2025
A2: Se incluye "Tarífas 2025"

Sheet Fórmulas Cotización
D2: Advantage | J2: Complete | P2: Diamond | V2: Essential | AB2: Secure | AH2: Total | AV2: Estado | AW2: Zona | AX2: Num | AY2: % Descuento | AZ2: % Secure
A3: Variables | D3: 2 | E3: =D3+1 -> 3 | F3: =E3+1 -> 4 | G3: =F3+1 -> 5 | H3: =G3+1 -> 6 | J3: 2 | K3: =J3+1 -> 3 | L3: =K3+1 -> 4 | M3: =L3+1 -> 5 | N3: =M3+1 -> 6 | P3: 2 | Q3: =P3+1 -> 3 | R3: =Q3+1 -> 4 | S3: =R3+1 -> 5 | T3: =S3+1 -> 6 | V3: 2 | W3: =V3+1 -> 3 | X3: =W3+1 -> 4 | Y3: =X3+1 -> 5 | Z3: =Y3+1 -> 6 | AB3: 2 | AC3: =AB3+1 -> 3 | AD3: =AC3+1 -> 4 | AE3: =AD3+1 -> 5 | AF3: =AE3+1 -> 6 | AH3: 2 | AI3: =AH3+1 -> 3 | AJ3: =AI3+1 -> 4 | AK3: =AJ3+1 -> 5 | AL3: =AK3+1 -> 6 | AV3: Franja Fronteriza Norte | AW3: Zona 1 | AX3: =MID(AW3,6,1) -> 1 | AY3: 0 | AZ3: =IF(TODAY()<DATE(2013,7,1),5%,0) -> 0
A4: Estado | B4: ='BUPA CARE PRODUCTS'!C11 -> Distrito Federal | C4: =(VALUE(VLOOKUP(B4,$AV$3:$AX$39,3,FALSE))-1)*7 -> 0 | AV4: Aguascalientes | AW4: Zona 5 | AX4: 5 | AY4: 0 | AZ4: =IF(TODAY()<DATE(2013,7,1),5%,0) -> 0
A5: Franja fronteriza | B5: ='BUPA CARE PRODUCTS'!C12 -> No | D5: 1000 | E5: 2000 | F5: 5000 | G5: 10000 | H5: 20000 | J5: 1000 | K5: 2000 | L5: 5000 | M5: 10000 | N5: 20000 | P5: 1000 | Q5: 2000 | R5: 5000 | S5: 10000 | T5: 20000 | V5: 1000 | W5: 2000 | X5: 5000 | Y5: 10000 | Z5: 20000 | AB5: 1000 | AC5: 2000 | AD5: 5000 | AE5: 10000 | AF5: 20000 | AH5: 1000 | AI5: 2000 | AJ5: 5000 | AK5: 10000 | AL5: 20000 | AV5: Baja California Norte | AW5: Zona 2 | AX5: 2 | AY5: 0 | AZ5: 0
A6: Edad Titular | B6: ='BUPA CARE PRODUCTS'!C14 -> 30 | C6: =B6 -> 30 | D6: =VLOOKUP($C6,'Tarifas Advantage'!$A$105:$AH$174,'Fórmulas Cotización'!$C$4+'Fórmulas Cotización'!D$3,FALSE)-((VLOOKUP($C6,'Tarifas Advantage'!$A$105:$AH$174,'Fórmulas Cotización'!$C$4+'Fórmulas Cotización'!D$3,FALSE))*(VLOOKUP($B$4,$AV$3:$AY$39,4,0)))+($B$15) -> 227625 | E6: =VLOOKUP($C6,'Tarifas Advantage'!$A$105:$AH$174,'Fórmulas Cotización'!$C$4+'Fórmulas Cotización'!E$3,FALSE)-((VLOOKUP($C6,'Tarifas Advantage'!$A$105:$AH$174,'Fórmulas Cotización'!$C$4+'Fórmulas Cotización'!E$3,FALSE))*(VLOOKUP($B$4,$AV$3:$AY$39,4,0)))+($B$15) -> 182975 | F6: =VLOOKUP($C6,'Tarifas Advantage'!$A$105:$AH$174,'Fórmulas Cotización'!$C$4+'Fórmulas Cotización'!F$3,FALSE)-((VLOOKUP($C6,'Tarifas Advantage'!$A$105:$AH$174,'Fórmulas Cotización'!$C$4+'Fórmulas Cotización'!F$3,FALSE))*(VLOOKUP($B$4,$AV$3:$AY$39,4,0)))+($B$15) -> 137100 | G6: =VLOOKUP($C6,'Tarifas Advantage'!$A$105:$AH$174,'Fórmulas Cotización'!$C$4+'Fórmulas Cotización'!G$3,FALSE)-((VLOOKUP($C6,'Tarifas Advantage'!$A$105:$AH$174,'Fórmulas Cotización'!$C$4+'Fórmulas Cotización'!G$3,FALSE))*(VLOOKUP($B$4,$AV$3:$AY$39,4,0)))+($B$15) -> 106312.5 | H6: =VLOOKUP($C6,'Tarifas Advantage'!$A$105:$AH$174,'Fórmulas Cotización'!$C$4+'Fórmulas Cotización'!H$3,FALSE)-((VLOOKUP($C6,'Tarifas Advantage'!$A$105:$AH$174,'Fórmulas Cotización'!$C$4+'Fórmulas Cotización'!H$3,FALSE))*(VLOOKUP($B$4,$AV$3:$AY$39,4,0)))+($B$15) -> 84112.5 | J6: =VLOOKUP($C6,'Tarifas Complete'!$A$105:$AH$174,'Fórmulas Cotización'!$C$4+'Fórmulas Cotización'!J$3,FALSE)-((VLOOKUP($C6,'Tarifas Complete'!$A$105:$AH$174,'Fórmulas Cotización'!$C$4+'Fórmulas Cotización'!J$3,FALSE))*VLOOKUP($B$4,$AV$3:$AY$39,4,0))+($B$15) -> 279050 | K6: =VLOOKUP($C6,'Tarifas Complete'!$A$105:$AH$174,'Fórmulas Cotización'!$C$4+'Fórmulas Cotización'!K$3,FALSE)-((VLOOKUP($C6,'Tarifas Complete'!$A$105:$AH$174,'Fórmulas Cotización'!$C$4+'Fórmulas Cotización'!K$3,FALSE))*VLOOKUP($B$4,$AV$3:$AY$39,4,0))+($B$15) -> 217275 | L6: =VLOOKUP($C6,'Tarifas Complete'!$A$105:$AH$174,'Fórmulas Cotización'!$C$4+'Fórmulas Cotización'!L$3,FALSE)-((VLOOKUP($C6,'Tarifas Complete'!$A$105:$AH$174,'Fórmulas Cotización'!$C$4+'Fórmulas Cotización'!L$3,FALSE))*VLOOKUP($B$4,$AV$3:$AY$39,4,0))+($B$15) -> 156087.5 | M6: =VLOOKUP($C6,'Tarifas Complete'!$A$105:$AH$174,'Fórmulas Cotización'!$C$4+'Fórmulas Cotización'!M$3,FALSE)-((VLOOKUP($C6,'Tarifas Complete'!$A$105:$AH$174,'Fórmulas Cotización'!$C$4+'Fórmulas Cotización'!M$3,FALSE))*VLOOKUP($B$4,$AV$3:$AY$39,4,0))+($B$15) -> 121525 | N6: =VLOOKUP($C6,'Tarifas Complete'!$A$105:$AH$174,'Fórmulas Cotización'!$C$4+'Fórmulas Cotización'!N$3,FALSE)-((VLOOKUP($C6,'Tarifas Complete'!$A$105:$AH$174,'Fórmulas Cotización'!$C$4+'Fórmulas Cotización'!N$3,FALSE))*VLOOKUP($B$4,$AV$3:$AY$39,4,0))+($B$15) -> 94625 | P6: =VLOOKUP($C6,'Tarifas Diamond'!$A$105:$AH$174,'Fórmulas Cotización'!$C$4+'Fórmulas Cotización'!P$3,FALSE)-((VLOOKUP($C6,'Tarifas Diamond'!$A$105:$AH$174,'Fórmulas Cotización'!$C$4+'Fórmulas Cotización'!P$3,FALSE))*VLOOKUP($B$4,$AV$3:$AY$39,4,0))+($B$15) -> 304087.5 | Q6: =VLOOKUP($C6,'Tarifas Diamond'!$A$105:$AH$174,'Fórmulas Cotización'!$C$4+'Fórmulas Cotización'!Q$3,FALSE)-((VLOOKUP($C6,'Tarifas Diamond'!$A$105:$AH$174,'Fórmulas Cotización'!$C$4+'Fórmulas Cotización'!Q$3,FALSE))*VLOOKUP($B$4,$AV$3:$AY$39,4,0))+($B$15) -> 235300 | R6: =VLOOKUP($C6,'Tarifas Diamond'!$A$105:$AH$174,'Fórmulas Cotización'!$C$4+'Fórmulas Cotización'!R$3,FALSE)-((VLOOKUP($C6,'Tarifas Diamond'!$A$105:$AH$174,'Fórmulas Cotización'!$C$4+'Fórmulas Cotización'!R$3,FALSE))*VLOOKUP($B$4,$AV$3:$AY$39,4,0))+($B$15) -> 167637.5 | S6: =VLOOKUP($C6,'Tarifas Diamond'!$A$105:$AH$174,'Fórmulas Cotización'!$C$4+'Fórmulas Cotización'!S$3,FALSE)-((VLOOKUP($C6,'Tarifas Diamond'!$A$105:$AH$174,'Fórmulas Cotización'!$C$4+'Fórmulas Cotización'!S$3,FALSE))*VLOOKUP($B$4,$AV$3:$AY$39,4,0))+($B$15) -> 129712.5 | T6: =VLOOKUP($C6,'Tarifas Diamond'!$A$105:$AH$174,'Fórmulas Cotización'!$C$4+'Fórmulas Cotización'!T$3,FALSE)-((VLOOKUP($C6,'Tarifas Diamond'!$A$105:$AH$174,'Fórmulas Cotización'!$C$4+'Fórmulas Cotización'!T$3,FALSE))*VLOOKUP($B$4,$AV$3:$AY$39,4,0))+($B$15) -> 100375 | V6: =VLOOKUP($C6,'Tarifas Essential'!$A$105:$AH$174,'Fórmulas Cotización'!$C$4+'Fórmulas Cotización'!V$3,FALSE)-((VLOOKUP($C6,'Tarifas Essential'!$A$105:$AH$174,'Fórmulas Cotización'!$C$4+'Fórmulas Cotización'!V$3,FALSE))*VLOOKUP($B$4,$AV$3:$AY$39,4,0))+($B$15) -> 133825 | W6: =VLOOKUP($C6,'Tarifas Essential'!$A$105:$AH$174,'Fórmulas Cotización'!$C$4+'Fórmulas Cotización'!W$3,FALSE)-((VLOOKUP($C6,'Tarifas Essential'!$A$105:$AH$174,'Fórmulas Cotización'!$C$4+'Fórmulas Cotización'!W$3,FALSE))*VLOOKUP($B$4,$AV$3:$AY$39,4,0))+($B$15) -> 100712.5 | X6: =VLOOKUP($C6,'Tarifas Essential'!$A$105:$AH$174,'Fórmulas Cotización'!$C$4+'Fórmulas Cotización'!X$3,FALSE)-((VLOOKUP($C6,'Tarifas Essential'!$A$105:$AH$174,'Fórmulas Cotización'!$C$4+'Fórmulas Cotización'!X$3,FALSE))*VLOOKUP($B$4,$AV$3:$AY$39,4,0))+($B$15) -> 68087.5 | Y6: =VLOOKUP($C6,'Tarifas Essential'!$A$105:$AH$174,'Fórmulas Cotización'!$C$4+'Fórmulas Cotización'!Y$3,FALSE)-((VLOOKUP($C6,'Tarifas Essential'!$A$105:$AH$174,'Fórmulas Cotización'!$C$4+'Fórmulas Cotización'!Y$3,FALSE))*VLOOKUP($B$4,$AV$3:$AY$39,4,0))+($B$15) -> 56162.5 | Z6: =VLOOKUP($C6,'Tarifas Essential'!$A$105:$AH$174,'Fórmulas Cotización'!$C$4+'Fórmulas Cotización'!Z$3,FALSE)-((VLOOKUP($C6,'Tarifas Essential'!$A$105:$AH$174,'Fórmulas Cotización'!$C$4+'Fórmulas Cotización'!Z$3,FALSE))*VLOOKUP($B$4,$AV$3:$AY$39,4,0))+($B$15) -> 46312.5 | AB6: =VLOOKUP($C6,'Tarifas Secure'!$A$105:$AH$174,'Fórmulas Cotización'!$C$4+'Fórmulas Cotización'!AB$3,FALSE)-((VLOOKUP($C6,'Tarifas Secure'!$A$105:$AH$174,'Fórmulas Cotización'!$C$4+'Fórmulas Cotización'!AB$3,FALSE))*VLOOKUP($B$4,$AV$3:$AZ$39,5,0))+($B$15) -> 174062.5 | AC6: =VLOOKUP($C6,'Tarifas Secure'!$A$105:$AH$174,'Fórmulas Cotización'!$C$4+'Fórmulas Cotización'!AC$3,FALSE)-((VLOOKUP($C6,'Tarifas Secure'!$A$105:$AH$174,'Fórmulas Cotización'!$C$4+'Fórmulas Cotización'!AC$3,FALSE))*VLOOKUP($B$4,$AV$3:$AZ$39,5,0))+($B$15) -> 131000 | AD6: =VLOOKUP($C6,'Tarifas Secure'!$A$105:$AH$174,'Fórmulas Cotización'!$C$4+'Fórmulas Cotización'!AD$3,FALSE)-((VLOOKUP($C6,'Tarifas Secure'!$A$105:$AH$174,'Fórmulas Cotización'!$C$4+'Fórmulas Cotización'!AD$3,FALSE))*VLOOKUP($B$4,$AV$3:$AZ$39,5,0))+($B$15) -> 88575 | AE6: =VLOOKUP($C6,'Tarifas Secure'!$A$105:$AH$174,'Fórmulas Cotización'!$C$4+'Fórmulas Cotización'!AE$3,FALSE)-((VLOOKUP($C6,'Tarifas Secure'!$A$105:$AH$174,'Fórmulas Cotización'!$C$4+'Fórmulas Cotización'!AE$3,FALSE))*VLOOKUP($B$4,$AV$3:$AZ$39,5,0))+($B$15) -> 73050 | AF6: =VLOOKUP($C6,'Tarifas Secure'!$A$105:$AH$174,'Fórmulas Cotización'!$C$4+'Fórmulas Cotización'!AF$3,FALSE)-((VLOOKUP($C6,'Tarifas Secure'!$A$105:$AH$174,'Fórmulas Cotización'!$C$4+'Fórmulas Cotización'!AF$3,FALSE))*VLOOKUP($B$4,$AV$3:$AZ$39,5,0))+($B$15) -> 60237.5 | AH6: =VLOOKUP($C6,'Bupa Total'!$A$105:$AH$174,'Fórmulas Cotización'!$C$4+'Fórmulas Cotización'!AH$3,FALSE)-((VLOOKUP($C6,'Bupa Total'!$A$105:$AH$174,'Fórmulas Cotización'!$C$4+'Fórmulas Cotización'!AH$3,FALSE))*VLOOKUP($B$4,$AV$3:$AY$39,4,0))+($B$15) -> 143387.5 | AI6: =VLOOKUP($C6,'Bupa Total'!$A$105:$AH$174,'Fórmulas Cotización'!$C$4+'Fórmulas Cotización'!AI$3,FALSE)-((VLOOKUP($C6,'Bupa Total'!$A$105:$AH$174,'Fórmulas Cotización'!$C$4+'Fórmulas Cotización'!AI$3,FALSE))*VLOOKUP($B$4,$AV$3:$AY$39,4,0))+($B$15) -> 107912.5 | AJ6: =VLOOKUP($C6,'Bupa Total'!$A$105:$AH$174,'Fórmulas Cotización'!$C$4+'Fórmulas Cotización'!AJ$3,FALSE)-((VLOOKUP($C6,'Bupa Total'!$A$105:$AH$174,'Fórmulas Cotización'!$C$4+'Fórmulas Cotización'!AJ$3,FALSE))*VLOOKUP($B$4,$AV$3:$AY$39,4,0))+($B$15) -> 72962.5 | AK6: =VLOOKUP($C6,'Bupa Total'!$A$105:$AH$174,'Fórmulas Cotización'!$C$4+'Fórmulas Cotización'!AK$3,FALSE)-((VLOOKUP($C6,'Bupa Total'!$A$105:$AH$174,'Fórmulas Cotización'!$C$4+'Fórmulas Cotización'!AK$3,FALSE))*VLOOKUP($B$4,$AV$3:$AY$39,4,0))+($B$15) -> 60175 | AL6: =VLOOKUP($C6,'Bupa Total'!$A$105:$AH$174,'Fórmulas Cotización'!$C$4+'Fórmulas Cotización'!AL$3,FALSE)-((VLOOKUP($C6,'Bupa Total'!$A$105:$AH$174,'Fórmulas Cotización'!$C$4+'Fórmulas Cotización'!AL$3,FALSE))*VLOOKUP($B$4,$AV$3:$AY$39,4,0))+($B$15) -> 49625 | AV6: Baja California Sur | AW6: Zona 2 | AX6: 2 | AY6: 0 | AZ6: 0
A7: Edad Cónyuge | B7: =IF('BUPA CARE PRODUCTS'!C15="","",'BUPA CARE PRODUCTS'!C15) ->  | C7: =B7 ->  | D7: =IF(ISERROR(VLOOKUP($C7,'Tarifas Advantage'!$A$105:$AH$174,'Fórmulas Cotización'!$C$4+'Fórmulas Cotización'!D$3,FALSE)),0,VLOOKUP($C7,'Tarifas Advantage'!$A$105:$AH$174,'Fórmulas Cotización'!$C$4+'Fórmulas Cotización'!D$3,FALSE))-(IF(ISERROR(VLOOKUP($C7,'Tarifas Advantage'!$A$105:$AH$174,'Fórmulas Cotización'!$C$4+'Fórmulas Cotización'!D$3,FALSE)),0,VLOOKUP($C7,'Tarifas Advantage'!$A$105:$AH$174,'Fórmulas Cotización'!$C$4+'Fórmulas Cotización'!D$3,FALSE)-625)*(VLOOKUP($B$4,$AV$3:$AY$39,4,0)))+($B$15) -> 0 | E7: =IF(ISERROR(VLOOKUP($C7,'Tarifas Advantage'!$A$105:$AH$174,'Fórmulas Cotización'!$C$4+'Fórmulas Cotización'!E$3,FALSE)),0,VLOOKUP($C7,'Tarifas Advantage'!$A$105:$AH$174,'Fórmulas Cotización'!$C$4+'Fórmulas Cotización'!E$3,FALSE))-(IF(ISERROR(VLOOKUP($C7,'Tarifas Advantage'!$A$105:$AH$174,'Fórmulas Cotización'!$C$4+'Fórmulas Cotización'!E$3,FALSE)),0,VLOOKUP($C7,'Tarifas Advantage'!$A$105:$AH$174,'Fórmulas Cotización'!$C$4+'Fórmulas Cotización'!E$3,FALSE)-625)*(VLOOKUP($B$4,$AV$3:$AY$39,4,0)))+($B$15) -> 0 | F7: =IF(ISERROR(VLOOKUP($C7,'Tarifas Advantage'!$A$105:$AH$174,'Fórmulas Cotización'!$C$4+'Fórmulas Cotización'!F$3,FALSE)),0,VLOOKUP($C7,'Tarifas Advantage'!$A$105:$AH$174,'Fórmulas Cotización'!$C$4+'Fórmulas Cotización'!F$3,FALSE))-(IF(ISERROR(VLOOKUP($C7,'Tarifas Advantage'!$A$105:$AH$174,'Fórmulas Cotización'!$C$4+'Fórmulas Cotización'!F$3,FALSE)),0,VLOOKUP($C7,'Tarifas Advantage'!$A$105:$AH$174,'Fórmulas Cotización'!$C$4+'Fórmulas Cotización'!F$3,FALSE)-625)*(VLOOKUP($B$4,$AV$3:$AY$39,4,0)))+($B$15) -> 0 | G7: =IF(ISERROR(VLOOKUP($C7,'Tarifas Advantage'!$A$105:$AH$174,'Fórmulas Cotización'!$C$4+'Fórmulas Cotización'!G$3,FALSE)),0,VLOOKUP($C7,'Tarifas Advantage'!$A$105:$AH$174,'Fórmulas Cotización'!$C$4+'Fórmulas Cotización'!G$3,FALSE))-(IF(ISERROR(VLOOKUP($C7,'Tarifas Advantage'!$A$105:$AH$174,'Fórmulas Cotización'!$C$4+'Fórmulas Cotización'!G$3,FALSE)),0,VLOOKUP($C7,'Tarifas Advantage'!$A$105:$AH$174,'Fórmulas Cotización'!$C$4+'Fórmulas Cotización'!G$3,FALSE)-625)*(VLOOKUP($B$4,$AV$3:$AY$39,4,0)))+($B$15) -> 0 | H7: =IF(ISERROR(VLOOKUP($C7,'Tarifas Advantage'!$A$105:$AH$174,'Fórmulas Cotización'!$C$4+'Fórmulas Cotización'!H$3,FALSE)),0,VLOOKUP($C7,'Tarifas Advantage'!$A$105:$AH$174,'Fórmulas Cotización'!$C$4+'Fórmulas Cotización'!H$3,FALSE))-(IF(ISERROR(VLOOKUP($C7,'Tarifas Advantage'!$A$105:$AH$174,'Fórmulas Cotización'!$C$4+'Fórmulas Cotización'!H$3,FALSE)),0,VLOOKUP($C7,'Tarifas Advantage'!$A$105:$AH$174,'Fórmulas Cotización'!$C$4+'Fórmulas Cotización'!H$3,FALSE)-625)*(VLOOKUP($B$4,$AV$3:$AY$39,4,0)))+($B$15) -> 0 | J7: =IF(ISERROR(VLOOKUP($C7,'Tarifas Complete'!$A$105:$AH$174,'Fórmulas Cotización'!$C$4+'Fórmulas Cotización'!J$3,FALSE)),0,VLOOKUP($C7,'Tarifas Complete'!$A$105:$AH$174,'Fórmulas Cotización'!$C$4+'Fórmulas Cotización'!J$3,FALSE))-(IF(ISERROR(VLOOKUP($C7,'Tarifas Complete'!$A$105:$AH$174,'Fórmulas Cotización'!$C$4+'Fórmulas Cotización'!J$3,FALSE)),0,VLOOKUP($C7,'Tarifas Complete'!$A$105:$AH$174,'Fórmulas Cotización'!$C$4+'Fórmulas Cotización'!J$3,FALSE)-625)*VLOOKUP($B$4,$AV$3:$AY$39,4,0))+($B$15) -> 0 | K7: =IF(ISERROR(VLOOKUP($C7,'Tarifas Complete'!$A$105:$AH$174,'Fórmulas Cotización'!$C$4+'Fórmulas Cotización'!K$3,FALSE)),0,VLOOKUP($C7,'Tarifas Complete'!$A$105:$AH$174,'Fórmulas Cotización'!$C$4+'Fórmulas Cotización'!K$3,FALSE))-(IF(ISERROR(VLOOKUP($C7,'Tarifas Complete'!$A$105:$AH$174,'Fórmulas Cotización'!$C$4+'Fórmulas Cotización'!K$3,FALSE)),0,VLOOKUP($C7,'Tarifas Complete'!$A$105:$AH$174,'Fórmulas Cotización'!$C$4+'Fórmulas Cotización'!K$3,FALSE)-625)*VLOOKUP($B$4,$AV$3:$AY$39,4,0))+($B$15) -> 0 | L7: =IF(ISERROR(VLOOKUP($C7,'Tarifas Complete'!$A$105:$AH$174,'Fórmulas Cotización'!$C$4+'Fórmulas Cotización'!L$3,FALSE)),0,VLOOKUP($C7,'Tarifas Complete'!$A$105:$AH$174,'Fórmulas Cotización'!$C$4+'Fórmulas Cotización'!L$3,FALSE))-(IF(ISERROR(VLOOKUP($C7,'Tarifas Complete'!$A$105:$AH$174,'Fórmulas Cotización'!$C$4+'Fórmulas Cotización'!L$3,FALSE)),0,VLOOKUP($C7,'Tarifas Complete'!$A$105:$AH$174,'Fórmulas Cotización'!$C$4+'Fórmulas Cotización'!L$3,FALSE)-625)*VLOOKUP($B$4,$AV$3:$AY$39,4,0))+($B$15) -> 0 | M7: =IF(ISERROR(VLOOKUP($C7,'Tarifas Complete'!$A$105:$AH$174,'Fórmulas Cotización'!$C$4+'Fórmulas Cotización'!M$3,FALSE)),0,VLOOKUP($C7,'Tarifas Complete'!$A$105:$AH$174,'Fórmulas Cotización'!$C$4+'Fórmulas Cotización'!M$3,FALSE))-(IF(ISERROR(VLOOKUP($C7,'Tarifas Complete'!$A$105:$AH$174,'Fórmulas Cotización'!$C$4+'Fórmulas Cotización'!M$3,FALSE)),0,VLOOKUP($C7,'Tarifas Complete'!$A$105:$AH$174,'Fórmulas Cotización'!$C$4+'Fórmulas Cotización'!M$3,FALSE)-625)*VLOOKUP($B$4,$AV$3:$AY$39,4,0))+($B$15) -> 0 | N7: =IF(ISERROR(VLOOKUP($C7,'Tarifas Complete'!$A$105:$AH$174,'Fórmulas Cotización'!$C$4+'Fórmulas Cotización'!N$3,FALSE)),0,VLOOKUP($C7,'Tarifas Complete'!$A$105:$AH$174,'Fórmulas Cotización'!$C$4+'Fórmulas Cotización'!N$3,FALSE))-(IF(ISERROR(VLOOKUP($C7,'Tarifas Complete'!$A$105:$AH$174,'Fórmulas Cotización'!$C$4+'Fórmulas Cotización'!N$3,FALSE)),0,VLOOKUP($C7,'Tarifas Complete'!$A$105:$AH$174,'Fórmulas Cotización'!$C$4+'Fórmulas Cotización'!N$3,FALSE)-625)*VLOOKUP($B$4,$AV$3:$AY$39,4,0))+($B$15) -> 0 | P7: =IF(ISERROR(VLOOKUP($C7,'Tarifas Diamond'!$A$105:$AH$174,'Fórmulas Cotización'!$C$4+'Fórmulas Cotización'!P$3,FALSE)),0,VLOOKUP($C7,'Tarifas Diamond'!$A$105:$AH$174,'Fórmulas Cotización'!$C$4+'Fórmulas Cotización'!P$3,FALSE))-(IF(ISERROR(VLOOKUP($C7,'Tarifas Diamond'!$A$105:$AH$174,'Fórmulas Cotización'!$C$4+'Fórmulas Cotización'!P$3,FALSE)),0,VLOOKUP($C7,'Tarifas Diamond'!$A$105:$AH$174,'Fórmulas Cotización'!$C$4+'Fórmulas Cotización'!P$3,FALSE)-625)*VLOOKUP($B$4,$AV$3:$AY$39,4,0))+($B$15) -> 0 | Q7: =IF(ISERROR(VLOOKUP($C7,'Tarifas Diamond'!$A$105:$AH$174,'Fórmulas Cotización'!$C$4+'Fórmulas Cotización'!Q$3,FALSE)),0,VLOOKUP($C7,'Tarifas Diamond'!$A$105:$AH$174,'Fórmulas Cotización'!$C$4+'Fórmulas Cotización'!Q$3,FALSE))-(IF(ISERROR(VLOOKUP($C7,'Tarifas Diamond'!$A$105:$AH$174,'Fórmulas Cotización'!$C$4+'Fórmulas Cotización'!Q$3,FALSE)),0,VLOOKUP($C7,'Tarifas Diamond'!$A$105:$AH$174,'Fórmulas Cotización'!$C$4+'Fórmulas Cotización'!Q$3,FALSE)-625)*VLOOKUP($B$4,$AV$3:$AY$39,4,0))+($B$15) -> 0 | R7: =IF(ISERROR(VLOOKUP($C7,'Tarifas Diamond'!$A$105:$AH$174,'Fórmulas Cotización'!$C$4+'Fórmulas Cotización'!R$3,FALSE)),0,VLOOKUP($C7,'Tarifas Diamond'!$A$105:$AH$174,'Fórmulas Cotización'!$C$4+'Fórmulas Cotización'!R$3,FALSE))-(IF(ISERROR(VLOOKUP($C7,'Tarifas Diamond'!$A$105:$AH$174,'Fórmulas Cotización'!$C$4+'Fórmulas Cotización'!R$3,FALSE)),0,VLOOKUP($C7,'Tarifas Diamond'!$A$105:$AH$174,'Fórmulas Cotización'!$C$4+'Fórmulas Cotización'!R$3,FALSE)-625)*VLOOKUP($B$4,$AV$3:$AY$39,4,0))+($B$15) -> 0 | S7: =IF(ISERROR(VLOOKUP($C7,'Tarifas Diamond'!$A$105:$AH$174,'Fórmulas Cotización'!$C$4+'Fórmulas Cotización'!S$3,FALSE)),0,VLOOKUP($C7,'Tarifas Diamond'!$A$105:$AH$174,'Fórmulas Cotización'!$C$4+'Fórmulas Cotización'!S$3,FALSE))-(IF(ISERROR(VLOOKUP($C7,'Tarifas Diamond'!$A$105:$AH$174,'Fórmulas Cotización'!$C$4+'Fórmulas Cotización'!S$3,FALSE)),0,VLOOKUP($C7,'Tarifas Diamond'!$A$105:$AH$174,'Fórmulas Cotización'!$C$4+'Fórmulas Cotización'!S$3,FALSE)-625)*VLOOKUP($B$4,$AV$3:$AY$39,4,0))+($B$15) -> 0 | T7: =IF(ISERROR(VLOOKUP($C7,'Tarifas Diamond'!$A$105:$AH$174,'Fórmulas Cotización'!$C$4+'Fórmulas Cotización'!T$3,FALSE)),0,VLOOKUP($C7,'Tarifas Diamond'!$A$105:$AH$174,'Fórmulas Cotización'!$C$4+'Fórmulas Cotización'!T$3,FALSE))-(IF(ISERROR(VLOOKUP($C7,'Tarifas Diamond'!$A$105:$AH$174,'Fórmulas Cotización'!$C$4+'Fórmulas Cotización'!T$3,FALSE)),0,VLOOKUP($C7,'Tarifas Diamond'!$A$105:$AH$174,'Fórmulas Cotización'!$C$4+'Fórmulas Cotización'!T$3,FALSE)-625)*VLOOKUP($B$4,$AV$3:$AY$39,4,0))+($B$15) -> 0 | V7: =IF(ISERROR(VLOOKUP($C7,'Tarifas Essential'!$A$105:$AH$174,'Fórmulas Cotización'!$C$4+'Fórmulas Cotización'!V$3,FALSE)),0,VLOOKUP($C7,'Tarifas Essential'!$A$105:$AH$174,'Fórmulas Cotización'!$C$4+'Fórmulas Cotización'!V$3,FALSE))-(IF(ISERROR(VLOOKUP($C7,'Tarifas Essential'!$A$105:$AH$174,'Fórmulas Cotización'!$C$4+'Fórmulas Cotización'!V$3,FALSE)),0,VLOOKUP($C7,'Tarifas Essential'!$A$105:$AH$174,'Fórmulas Cotización'!$C$4+'Fórmulas Cotización'!V$3,FALSE)-625)*VLOOKUP($B$4,$AV$3:$AY$39,4,0))+($B$15) -> 0 | W7: =IF(ISERROR(VLOOKUP($C7,'Tarifas Essential'!$A$105:$AH$174,'Fórmulas Cotización'!$C$4+'Fórmulas Cotización'!W$3,FALSE)),0,VLOOKUP($C7,'Tarifas Essential'!$A$105:$AH$174,'Fórmulas Cotización'!$C$4+'Fórmulas Cotización'!W$3,FALSE))-(IF(ISERROR(VLOOKUP($C7,'Tarifas Essential'!$A$105:$AH$174,'Fórmulas Cotización'!$C$4+'Fórmulas Cotización'!W$3,FALSE)),0,VLOOKUP($C7,'Tarifas Essential'!$A$105:$AH$174,'Fórmulas Cotización'!$C$4+'Fórmulas Cotización'!W$3,FALSE)-625)*VLOOKUP($B$4,$AV$3:$AY$39,4,0))+($B$15) -> 0 | X7: =IF(ISERROR(VLOOKUP($C7,'Tarifas Essential'!$A$105:$AH$174,'Fórmulas Cotización'!$C$4+'Fórmulas Cotización'!X$3,FALSE)),0,VLOOKUP($C7,'Tarifas Essential'!$A$105:$AH$174,'Fórmulas Cotización'!$C$4+'Fórmulas Cotización'!X$3,FALSE))-(IF(ISERROR(VLOOKUP($C7,'Tarifas Essential'!$A$105:$AH$174,'Fórmulas Cotización'!$C$4+'Fórmulas Cotización'!X$3,FALSE)),0,VLOOKUP($C7,'Tarifas Essential'!$A$105:$AH$174,'Fórmulas Cotización'!$C$4+'Fórmulas Cotización'!X$3,FALSE)-625)*VLOOKUP($B$4,$AV$3:$AY$39,4,0))+($B$15) -> 0 | Y7: =IF(ISERROR(VLOOKUP($C7,'Tarifas Essential'!$A$105:$AH$174,'Fórmulas Cotización'!$C$4+'Fórmulas Cotización'!Y$3,FALSE)),0,VLOOKUP($C7,'Tarifas Essential'!$A$105:$AH$174,'Fórmulas Cotización'!$C$4+'Fórmulas Cotización'!Y$3,FALSE))-(IF(ISERROR(VLOOKUP($C7,'Tarifas Essential'!$A$105:$AH$174,'Fórmulas Cotización'!$C$4+'Fórmulas Cotización'!Y$3,FALSE)),0,VLOOKUP($C7,'Tarifas Essential'!$A$105:$AH$174,'Fórmulas Cotización'!$C$4+'Fórmulas Cotización'!Y$3,FALSE)-625)*VLOOKUP($B$4,$AV$3:$AY$39,4,0))+($B$15) -> 0 | Z7: =IF(ISERROR(VLOOKUP($C7,'Tarifas Essential'!$A$105:$AH$174,'Fórmulas Cotización'!$C$4+'Fórmulas Cotización'!Z$3,FALSE)),0,VLOOKUP($C7,'Tarifas Essential'!$A$105:$AH$174,'Fórmulas Cotización'!$C$4+'Fórmulas Cotización'!Z$3,FALSE))-(IF(ISERROR(VLOOKUP($C7,'Tarifas Essential'!$A$105:$AH$174,'Fórmulas Cotización'!$C$4+'Fórmulas Cotización'!Z$3,FALSE)),0,VLOOKUP($C7,'Tarifas Essential'!$A$105:$AH$174,'Fórmulas Cotización'!$C$4+'Fórmulas Cotización'!Z$3,FALSE)-625)*VLOOKUP($B$4,$AV$3:$AY$39,4,0))+($B$15) -> 0 | AB7: =IF(ISERROR(VLOOKUP($C7,'Tarifas Secure'!$A$105:$AH$174,'Fórmulas Cotización'!$C$4+'Fórmulas Cotización'!AB$3,FALSE)),0,VLOOKUP($C7,'Tarifas Secure'!$A$105:$AH$174,'Fórmulas Cotización'!$C$4+'Fórmulas Cotización'!AB$3,FALSE))-(IF(ISERROR(VLOOKUP($C7,'Tarifas Secure'!$A$105:$AH$174,'Fórmulas Cotización'!$C$4+'Fórmulas Cotización'!AB$3,FALSE)),0,VLOOKUP($C7,'Tarifas Secure'!$A$105:$AH$174,'Fórmulas Cotización'!$C$4+'Fórmulas Cotización'!AB$3,FALSE)-625)*VLOOKUP($B$4,$AV$3:$AZ$39,5,0))+($B$15) -> 0 | AC7: =IF(ISERROR(VLOOKUP($C7,'Tarifas Secure'!$A$105:$AH$174,'Fórmulas Cotización'!$C$4+'Fórmulas Cotización'!AC$3,FALSE)),0,VLOOKUP($C7,'Tarifas Secure'!$A$105:$AH$174,'Fórmulas Cotización'!$C$4+'Fórmulas Cotización'!AC$3,FALSE))-(IF(ISERROR(VLOOKUP($C7,'Tarifas Secure'!$A$105:$AH$174,'Fórmulas Cotización'!$C$4+'Fórmulas Cotización'!AC$3,FALSE)),0,VLOOKUP($C7,'Tarifas Secure'!$A$105:$AH$174,'Fórmulas Cotización'!$C$4+'Fórmulas Cotización'!AC$3,FALSE)-625)*VLOOKUP($B$4,$AV$3:$AZ$39,5,0))+($B$15) -> 0 | AD7: =IF(ISERROR(VLOOKUP($C7,'Tarifas Secure'!$A$105:$AH$174,'Fórmulas Cotización'!$C$4+'Fórmulas Cotización'!AD$3,FALSE)),0,VLOOKUP($C7,'Tarifas Secure'!$A$105:$AH$174,'Fórmulas Cotización'!$C$4+'Fórmulas Cotización'!AD$3,FALSE))-(IF(ISERROR(VLOOKUP($C7,'Tarifas Secure'!$A$105:$AH$174,'Fórmulas Cotización'!$C$4+'Fórmulas Cotización'!AD$3,FALSE)),0,VLOOKUP($C7,'Tarifas Secure'!$A$105:$AH$174,'Fórmulas Cotización'!$C$4+'Fórmulas Cotización'!AD$3,FALSE)-625)*VLOOKUP($B$4,$AV$3:$AZ$39,5,0))+($B$15) -> 0 | AE7: =IF(ISERROR(VLOOKUP($C7,'Tarifas Secure'!$A$105:$AH$174,'Fórmulas Cotización'!$C$4+'Fórmulas Cotización'!AE$3,FALSE)),0,VLOOKUP($C7,'Tarifas Secure'!$A$105:$AH$174,'Fórmulas Cotización'!$C$4+'Fórmulas Cotización'!AE$3,FALSE))-(IF(ISERROR(VLOOKUP($C7,'Tarifas Secure'!$A$105:$AH$174,'Fórmulas Cotización'!$C$4+'Fórmulas Cotización'!AE$3,FALSE)),0,VLOOKUP($C7,'Tarifas Secure'!$A$105:$AH$174,'Fórmulas Cotización'!$C$4+'Fórmulas Cotización'!AE$3,FALSE)-625)*VLOOKUP($B$4,$AV$3:$AZ$39,5,0))+($B$15) -> 0 | AF7: =IF(ISERROR(VLOOKUP($C7,'Tarifas Secure'!$A$105:$AH$174,'Fórmulas Cotización'!$C$4+'Fórmulas Cotización'!AF$3,FALSE)),0,VLOOKUP($C7,'Tarifas Secure'!$A$105:$AH$174,'Fórmulas Cotización'!$C$4+'Fórmulas Cotización'!AF$3,FALSE))-(IF(ISERROR(VLOOKUP($C7,'Tarifas Secure'!$A$105:$AH$174,'Fórmulas Cotización'!$C$4+'Fórmulas Cotización'!AF$3,FALSE)),0,VLOOKUP($C7,'Tarifas Secure'!$A$105:$AH$174,'Fórmulas Cotización'!$C$4+'Fórmulas Cotización'!AF$3,FALSE)-625)*VLOOKUP($B$4,$AV$3:$AZ$39,5,0))+($B$15) -> 0 | AH7: =IF(ISERROR(VLOOKUP($C7,'Bupa Total'!$A$105:$AH$174,'Fórmulas Cotización'!$C$4+'Fórmulas Cotización'!AH$3,FALSE)),0,VLOOKUP($C7,'Bupa Total'!$A$105:$AH$174,'Fórmulas Cotización'!$C$4+'Fórmulas Cotización'!AH$3,FALSE))-(IF(ISERROR(VLOOKUP($C7,'Bupa Total'!$A$105:$AH$174,'Fórmulas Cotización'!$C$4+'Fórmulas Cotización'!AH$3,FALSE)),0,VLOOKUP($C7,'Bupa Total'!$A$105:$AH$174,'Fórmulas Cotización'!$C$4+'Fórmulas Cotización'!AH$3,FALSE)-625)*VLOOKUP($B$4,$AV$3:$AY$39,4,0))+($B$15) -> 0 | AI7: =IF(ISERROR(VLOOKUP($C7,'Bupa Total'!$A$105:$AH$174,'Fórmulas Cotización'!$C$4+'Fórmulas Cotización'!AI$3,FALSE)),0,VLOOKUP($C7,'Bupa Total'!$A$105:$AH$174,'Fórmulas Cotización'!$C$4+'Fórmulas Cotización'!AI$3,FALSE))-(IF(ISERROR(VLOOKUP($C7,'Bupa Total'!$A$105:$AH$174,'Fórmulas Cotización'!$C$4+'Fórmulas Cotización'!AI$3,FALSE)),0,VLOOKUP($C7,'Bupa Total'!$A$105:$AH$174,'Fórmulas Cotización'!$C$4+'Fórmulas Cotización'!AI$3,FALSE)-625)*VLOOKUP($B$4,$AV$3:$AY$39,4,0))+($B$15) -> 0 | AJ7: =IF(ISERROR(VLOOKUP($C7,'Bupa Total'!$A$105:$AH$174,'Fórmulas Cotización'!$C$4+'Fórmulas Cotización'!AJ$3,FALSE)),0,VLOOKUP($C7,'Bupa Total'!$A$105:$AH$174,'Fórmulas Cotización'!$C$4+'Fórmulas Cotización'!AJ$3,FALSE))-(IF(ISERROR(VLOOKUP($C7,'Bupa Total'!$A$105:$AH$174,'Fórmulas Cotización'!$C$4+'Fórmulas Cotización'!AJ$3,FALSE)),0,VLOOKUP($C7,'Bupa Total'!$A$105:$AH$174,'Fórmulas Cotización'!$C$4+'Fórmulas Cotización'!AJ$3,FALSE)-625)*VLOOKUP($B$4,$AV$3:$AY$39,4,0))+($B$15) -> 0 | AK7: =IF(ISERROR(VLOOKUP($C7,'Bupa Total'!$A$105:$AH$174,'Fórmulas Cotización'!$C$4+'Fórmulas Cotización'!AK$3,FALSE)),0,VLOOKUP($C7,'Bupa Total'!$A$105:$AH$174,'Fórmulas Cotización'!$C$4+'Fórmulas Cotización'!AK$3,FALSE))-(IF(ISERROR(VLOOKUP($C7,'Bupa Total'!$A$105:$AH$174,'Fórmulas Cotización'!$C$4+'Fórmulas Cotización'!AK$3,FALSE)),0,VLOOKUP($C7,'Bupa Total'!$A$105:$AH$174,'Fórmulas Cotización'!$C$4+'Fórmulas Cotización'!AK$3,FALSE)-625)*VLOOKUP($B$4,$AV$3:$AY$39,4,0))+($B$15) -> 0 | AL7: =IF(ISERROR(VLOOKUP($C7,'Bupa Total'!$A$105:$AH$174,'Fórmulas Cotización'!$C$4+'Fórmulas Cotización'!AL$3,FALSE)),0,VLOOKUP($C7,'Bupa Total'!$A$105:$AH$174,'Fórmulas Cotización'!$C$4+'Fórmulas Cotización'!AL$3,FALSE))-(IF(ISERROR(VLOOKUP($C7,'Bupa Total'!$A$105:$AH$174,'Fórmulas Cotización'!$C$4+'Fórmulas Cotización'!AL$3,FALSE)),0,VLOOKUP($C7,'Bupa Total'!$A$105:$AH$174,'Fórmulas Cotización'!$C$4+'Fórmulas Cotización'!AL$3,FALSE)-625)*VLOOKUP($B$4,$AV$3:$AY$39,4,0))+($B$15) -> 0 | AV7: Campeche | AW7: Zona 5 | AX7: 5 | AY7: 0 | AZ7: 0
A8: Edad hijo1 | B8: =IF('BUPA CARE PRODUCTS'!C16="","",'BUPA CARE PRODUCTS'!C16) ->  | C8: =VLOOKUP(B8,$B$23:$C$25,2) ->  | D8: =IF(ISERROR(VLOOKUP($C8,'Tarifas Advantage'!$A$105:$AH$174,'Fórmulas Cotización'!$C$4+'Fórmulas Cotización'!D$3,FALSE)),0,VLOOKUP($C8,'Tarifas Advantage'!$A$105:$AH$174,'Fórmulas Cotización'!$C$4+'Fórmulas Cotización'!D$3,FALSE))-(IF(ISERROR(VLOOKUP($C8,'Tarifas Advantage'!$A$105:$AH$174,'Fórmulas Cotización'!$C$4+'Fórmulas Cotización'!D$3,FALSE)),0,VLOOKUP($C8,'Tarifas Advantage'!$A$105:$AH$174,'Fórmulas Cotización'!$C$4+'Fórmulas Cotización'!D$3,FALSE))*(VLOOKUP($B$4,$AV$3:$AY$39,4,0))) -> 0 | E8: =IF(ISERROR(VLOOKUP($C8,'Tarifas Advantage'!$A$105:$AH$174,'Fórmulas Cotización'!$C$4+'Fórmulas Cotización'!E$3,FALSE)),0,VLOOKUP($C8,'Tarifas Advantage'!$A$105:$AH$174,'Fórmulas Cotización'!$C$4+'Fórmulas Cotización'!E$3,FALSE))-(IF(ISERROR(VLOOKUP($C8,'Tarifas Advantage'!$A$105:$AH$174,'Fórmulas Cotización'!$C$4+'Fórmulas Cotización'!E$3,FALSE)),0,VLOOKUP($C8,'Tarifas Advantage'!$A$105:$AH$174,'Fórmulas Cotización'!$C$4+'Fórmulas Cotización'!E$3,FALSE))*(VLOOKUP($B$4,$AV$3:$AY$39,4,0))) -> 0 | F8: =IF(ISERROR(VLOOKUP($C8,'Tarifas Advantage'!$A$105:$AH$174,'Fórmulas Cotización'!$C$4+'Fórmulas Cotización'!F$3,FALSE)),0,VLOOKUP($C8,'Tarifas Advantage'!$A$105:$AH$174,'Fórmulas Cotización'!$C$4+'Fórmulas Cotización'!F$3,FALSE))-(IF(ISERROR(VLOOKUP($C8,'Tarifas Advantage'!$A$105:$AH$174,'Fórmulas Cotización'!$C$4+'Fórmulas Cotización'!F$3,FALSE)),0,VLOOKUP($C8,'Tarifas Advantage'!$A$105:$AH$174,'Fórmulas Cotización'!$C$4+'Fórmulas Cotización'!F$3,FALSE))*(VLOOKUP($B$4,$AV$3:$AY$39,4,0))) -> 0 | G8: =IF(ISERROR(VLOOKUP($C8,'Tarifas Advantage'!$A$105:$AH$174,'Fórmulas Cotización'!$C$4+'Fórmulas Cotización'!G$3,FALSE)),0,VLOOKUP($C8,'Tarifas Advantage'!$A$105:$AH$174,'Fórmulas Cotización'!$C$4+'Fórmulas Cotización'!G$3,FALSE))-(IF(ISERROR(VLOOKUP($C8,'Tarifas Advantage'!$A$105:$AH$174,'Fórmulas Cotización'!$C$4+'Fórmulas Cotización'!G$3,FALSE)),0,VLOOKUP($C8,'Tarifas Advantage'!$A$105:$AH$174,'Fórmulas Cotización'!$C$4+'Fórmulas Cotización'!G$3,FALSE))*(VLOOKUP($B$4,$AV$3:$AY$39,4,0))) -> 0 | H8: =IF(ISERROR(VLOOKUP($C8,'Tarifas Advantage'!$A$105:$AH$174,'Fórmulas Cotización'!$C$4+'Fórmulas Cotización'!H$3,FALSE)),0,VLOOKUP($C8,'Tarifas Advantage'!$A$105:$AH$174,'Fórmulas Cotización'!$C$4+'Fórmulas Cotización'!H$3,FALSE))-(IF(ISERROR(VLOOKUP($C8,'Tarifas Advantage'!$A$105:$AH$174,'Fórmulas Cotización'!$C$4+'Fórmulas Cotización'!H$3,FALSE)),0,VLOOKUP($C8,'Tarifas Advantage'!$A$105:$AH$174,'Fórmulas Cotización'!$C$4+'Fórmulas Cotización'!H$3,FALSE))*(VLOOKUP($B$4,$AV$3:$AY$39,4,0))) -> 0 | J8: =IF(ISERROR(VLOOKUP($C8,'Tarifas Complete'!$A$105:$AH$174,'Fórmulas Cotización'!$C$4+'Fórmulas Cotización'!J$3,FALSE)),0,VLOOKUP($C8,'Tarifas Complete'!$A$105:$AH$174,'Fórmulas Cotización'!$C$4+'Fórmulas Cotización'!J$3,FALSE))-(IF(ISERROR(VLOOKUP($C8,'Tarifas Complete'!$A$105:$AH$174,'Fórmulas Cotización'!$C$4+'Fórmulas Cotización'!J$3,FALSE)),0,VLOOKUP($C8,'Tarifas Complete'!$A$105:$AH$174,'Fórmulas Cotización'!$C$4+'Fórmulas Cotización'!J$3,FALSE))*VLOOKUP($B$4,$AV$3:$AY$39,4,0)) -> 0 | K8: =IF(ISERROR(VLOOKUP($C8,'Tarifas Complete'!$A$105:$AH$174,'Fórmulas Cotización'!$C$4+'Fórmulas Cotización'!K$3,FALSE)),0,VLOOKUP($C8,'Tarifas Complete'!$A$105:$AH$174,'Fórmulas Cotización'!$C$4+'Fórmulas Cotización'!K$3,FALSE))-(IF(ISERROR(VLOOKUP($C8,'Tarifas Complete'!$A$105:$AH$174,'Fórmulas Cotización'!$C$4+'Fórmulas Cotización'!K$3,FALSE)),0,VLOOKUP($C8,'Tarifas Complete'!$A$105:$AH$174,'Fórmulas Cotización'!$C$4+'Fórmulas Cotización'!K$3,FALSE))*VLOOKUP($B$4,$AV$3:$AY$39,4,0)) -> 0 | L8: =IF(ISERROR(VLOOKUP($C8,'Tarifas Complete'!$A$105:$AH$174,'Fórmulas Cotización'!$C$4+'Fórmulas Cotización'!L$3,FALSE)),0,VLOOKUP($C8,'Tarifas Complete'!$A$105:$AH$174,'Fórmulas Cotización'!$C$4+'Fórmulas Cotización'!L$3,FALSE))-(IF(ISERROR(VLOOKUP($C8,'Tarifas Complete'!$A$105:$AH$174,'Fórmulas Cotización'!$C$4+'Fórmulas Cotización'!L$3,FALSE)),0,VLOOKUP($C8,'Tarifas Complete'!$A$105:$AH$174,'Fórmulas Cotización'!$C$4+'Fórmulas Cotización'!L$3,FALSE))*VLOOKUP($B$4,$AV$3:$AY$39,4,0)) -> 0 | M8: =IF(ISERROR(VLOOKUP($C8,'Tarifas Complete'!$A$105:$AH$174,'Fórmulas Cotización'!$C$4+'Fórmulas Cotización'!M$3,FALSE)),0,VLOOKUP($C8,'Tarifas Complete'!$A$105:$AH$174,'Fórmulas Cotización'!$C$4+'Fórmulas Cotización'!M$3,FALSE))-(IF(ISERROR(VLOOKUP($C8,'Tarifas Complete'!$A$105:$AH$174,'Fórmulas Cotización'!$C$4+'Fórmulas Cotización'!M$3,FALSE)),0,VLOOKUP($C8,'Tarifas Complete'!$A$105:$AH$174,'Fórmulas Cotización'!$C$4+'Fórmulas Cotización'!M$3,FALSE))*VLOOKUP($B$4,$AV$3:$AY$39,4,0)) -> 0 | N8: =IF(ISERROR(VLOOKUP($C8,'Tarifas Complete'!$A$105:$AH$174,'Fórmulas Cotización'!$C$4+'Fórmulas Cotización'!N$3,FALSE)),0,VLOOKUP($C8,'Tarifas Complete'!$A$105:$AH$174,'Fórmulas Cotización'!$C$4+'Fórmulas Cotización'!N$3,FALSE))-(IF(ISERROR(VLOOKUP($C8,'Tarifas Complete'!$A$105:$AH$174,'Fórmulas Cotización'!$C$4+'Fórmulas Cotización'!N$3,FALSE)),0,VLOOKUP($C8,'Tarifas Complete'!$A$105:$AH$174,'Fórmulas Cotización'!$C$4+'Fórmulas Cotización'!N$3,FALSE))*VLOOKUP($B$4,$AV$3:$AY$39,4,0)) -> 0 | P8: =IF(ISERROR(VLOOKUP($C8,'Tarifas Diamond'!$A$105:$AH$174,'Fórmulas Cotización'!$C$4+'Fórmulas Cotización'!P$3,FALSE)),0,VLOOKUP($C8,'Tarifas Diamond'!$A$105:$AH$174,'Fórmulas Cotización'!$C$4+'Fórmulas Cotización'!P$3,FALSE))-(IF(ISERROR(VLOOKUP($C8,'Tarifas Diamond'!$A$105:$AH$174,'Fórmulas Cotización'!$C$4+'Fórmulas Cotización'!P$3,FALSE)),0,VLOOKUP($C8,'Tarifas Diamond'!$A$105:$AH$174,'Fórmulas Cotización'!$C$4+'Fórmulas Cotización'!P$3,FALSE))*VLOOKUP($B$4,$AV$3:$AY$39,4,0)) -> 0 | Q8: =IF(ISERROR(VLOOKUP($C8,'Tarifas Diamond'!$A$105:$AH$174,'Fórmulas Cotización'!$C$4+'Fórmulas Cotización'!Q$3,FALSE)),0,VLOOKUP($C8,'Tarifas Diamond'!$A$105:$AH$174,'Fórmulas Cotización'!$C$4+'Fórmulas Cotización'!Q$3,FALSE))-(IF(ISERROR(VLOOKUP($C8,'Tarifas Diamond'!$A$105:$AH$174,'Fórmulas Cotización'!$C$4+'Fórmulas Cotización'!Q$3,FALSE)),0,VLOOKUP($C8,'Tarifas Diamond'!$A$105:$AH$174,'Fórmulas Cotización'!$C$4+'Fórmulas Cotización'!Q$3,FALSE))*VLOOKUP($B$4,$AV$3:$AY$39,4,0)) -> 0 | R8: =IF(ISERROR(VLOOKUP($C8,'Tarifas Diamond'!$A$105:$AH$174,'Fórmulas Cotización'!$C$4+'Fórmulas Cotización'!R$3,FALSE)),0,VLOOKUP($C8,'Tarifas Diamond'!$A$105:$AH$174,'Fórmulas Cotización'!$C$4+'Fórmulas Cotización'!R$3,FALSE))-(IF(ISERROR(VLOOKUP($C8,'Tarifas Diamond'!$A$105:$AH$174,'Fórmulas Cotización'!$C$4+'Fórmulas Cotización'!R$3,FALSE)),0,VLOOKUP($C8,'Tarifas Diamond'!$A$105:$AH$174,'Fórmulas Cotización'!$C$4+'Fórmulas Cotización'!R$3,FALSE))*VLOOKUP($B$4,$AV$3:$AY$39,4,0)) -> 0 | S8: =IF(ISERROR(VLOOKUP($C8,'Tarifas Diamond'!$A$105:$AH$174,'Fórmulas Cotización'!$C$4+'Fórmulas Cotización'!S$3,FALSE)),0,VLOOKUP($C8,'Tarifas Diamond'!$A$105:$AH$174,'Fórmulas Cotización'!$C$4+'Fórmulas Cotización'!S$3,FALSE))-(IF(ISERROR(VLOOKUP($C8,'Tarifas Diamond'!$A$105:$AH$174,'Fórmulas Cotización'!$C$4+'Fórmulas Cotización'!S$3,FALSE)),0,VLOOKUP($C8,'Tarifas Diamond'!$A$105:$AH$174,'Fórmulas Cotización'!$C$4+'Fórmulas Cotización'!S$3,FALSE))*VLOOKUP($B$4,$AV$3:$AY$39,4,0)) -> 0 | T8: =IF(ISERROR(VLOOKUP($C8,'Tarifas Diamond'!$A$105:$AH$174,'Fórmulas Cotización'!$C$4+'Fórmulas Cotización'!T$3,FALSE)),0,VLOOKUP($C8,'Tarifas Diamond'!$A$105:$AH$174,'Fórmulas Cotización'!$C$4+'Fórmulas Cotización'!T$3,FALSE))-(IF(ISERROR(VLOOKUP($C8,'Tarifas Diamond'!$A$105:$AH$174,'Fórmulas Cotización'!$C$4+'Fórmulas Cotización'!T$3,FALSE)),0,VLOOKUP($C8,'Tarifas Diamond'!$A$105:$AH$174,'Fórmulas Cotización'!$C$4+'Fórmulas Cotización'!T$3,FALSE))*VLOOKUP($B$4,$AV$3:$AY$39,4,0)) -> 0 | V8: =IF(ISERROR(VLOOKUP($C8,'Tarifas Essential'!$A$105:$AH$174,'Fórmulas Cotización'!$C$4+'Fórmulas Cotización'!V$3,FALSE)),0,VLOOKUP($C8,'Tarifas Essential'!$A$105:$AH$174,'Fórmulas Cotización'!$C$4+'Fórmulas Cotización'!V$3,FALSE))-(IF(ISERROR(VLOOKUP($C8,'Tarifas Essential'!$A$105:$AH$174,'Fórmulas Cotización'!$C$4+'Fórmulas Cotización'!V$3,FALSE)),0,VLOOKUP($C8,'Tarifas Essential'!$A$105:$AH$174,'Fórmulas Cotización'!$C$4+'Fórmulas Cotización'!V$3,FALSE))*VLOOKUP($B$4,$AV$3:$AY$39,4,0)) -> 0 | W8: =IF(ISERROR(VLOOKUP($C8,'Tarifas Essential'!$A$105:$AH$174,'Fórmulas Cotización'!$C$4+'Fórmulas Cotización'!W$3,FALSE)),0,VLOOKUP($C8,'Tarifas Essential'!$A$105:$AH$174,'Fórmulas Cotización'!$C$4+'Fórmulas Cotización'!W$3,FALSE))-(IF(ISERROR(VLOOKUP($C8,'Tarifas Essential'!$A$105:$AH$174,'Fórmulas Cotización'!$C$4+'Fórmulas Cotización'!W$3,FALSE)),0,VLOOKUP($C8,'Tarifas Essential'!$A$105:$AH$174,'Fórmulas Cotización'!$C$4+'Fórmulas Cotización'!W$3,FALSE))*VLOOKUP($B$4,$AV$3:$AY$39,4,0)) -> 0 | X8: =IF(ISERROR(VLOOKUP($C8,'Tarifas Essential'!$A$105:$AH$174,'Fórmulas Cotización'!$C$4+'Fórmulas Cotización'!X$3,FALSE)),0,VLOOKUP($C8,'Tarifas Essential'!$A$105:$AH$174,'Fórmulas Cotización'!$C$4+'Fórmulas Cotización'!X$3,FALSE))-(IF(ISERROR(VLOOKUP($C8,'Tarifas Essential'!$A$105:$AH$174,'Fórmulas Cotización'!$C$4+'Fórmulas Cotización'!X$3,FALSE)),0,VLOOKUP($C8,'Tarifas Essential'!$A$105:$AH$174,'Fórmulas Cotización'!$C$4+'Fórmulas Cotización'!X$3,FALSE))*VLOOKUP($B$4,$AV$3:$AY$39,4,0)) -> 0 | Y8: =IF(ISERROR(VLOOKUP($C8,'Tarifas Essential'!$A$105:$AH$174,'Fórmulas Cotización'!$C$4+'Fórmulas Cotización'!Y$3,FALSE)),0,VLOOKUP($C8,'Tarifas Essential'!$A$105:$AH$174,'Fórmulas Cotización'!$C$4+'Fórmulas Cotización'!Y$3,FALSE))-(IF(ISERROR(VLOOKUP($C8,'Tarifas Essential'!$A$105:$AH$174,'Fórmulas Cotización'!$C$4+'Fórmulas Cotización'!Y$3,FALSE)),0,VLOOKUP($C8,'Tarifas Essential'!$A$105:$AH$174,'Fórmulas Cotización'!$C$4+'Fórmulas Cotización'!Y$3,FALSE))*VLOOKUP($B$4,$AV$3:$AY$39,4,0)) -> 0 | Z8: =IF(ISERROR(VLOOKUP($C8,'Tarifas Essential'!$A$105:$AH$174,'Fórmulas Cotización'!$C$4+'Fórmulas Cotización'!Z$3,FALSE)),0,VLOOKUP($C8,'Tarifas Essential'!$A$105:$AH$174,'Fórmulas Cotización'!$C$4+'Fórmulas Cotización'!Z$3,FALSE))-(IF(ISERROR(VLOOKUP($C8,'Tarifas Essential'!$A$105:$AH$174,'Fórmulas Cotización'!$C$4+'Fórmulas Cotización'!Z$3,FALSE)),0,VLOOKUP($C8,'Tarifas Essential'!$A$105:$AH$174,'Fórmulas Cotización'!$C$4+'Fórmulas Cotización'!Z$3,FALSE))*VLOOKUP($B$4,$AV$3:$AY$39,4,0)) -> 0 | AB8: =IF(ISERROR(VLOOKUP($C8,'Tarifas Secure'!$A$105:$AH$174,'Fórmulas Cotización'!$C$4+'Fórmulas Cotización'!AB$3,FALSE)),0,VLOOKUP($C8,'Tarifas Secure'!$A$105:$AH$174,'Fórmulas Cotización'!$C$4+'Fórmulas Cotización'!AB$3,FALSE))-(IF(ISERROR(VLOOKUP($C8,'Tarifas Secure'!$A$105:$AH$174,'Fórmulas Cotización'!$C$4+'Fórmulas Cotización'!AB$3,FALSE)),0,VLOOKUP($C8,'Tarifas Secure'!$A$105:$AH$174,'Fórmulas Cotización'!$C$4+'Fórmulas Cotización'!AB$3,FALSE))*VLOOKUP($B$4,$AV$3:$AZ$39,5,0)) -> 0 | AC8: =IF(ISERROR(VLOOKUP($C8,'Tarifas Secure'!$A$105:$AH$174,'Fórmulas Cotización'!$C$4+'Fórmulas Cotización'!AC$3,FALSE)),0,VLOOKUP($C8,'Tarifas Secure'!$A$105:$AH$174,'Fórmulas Cotización'!$C$4+'Fórmulas Cotización'!AC$3,FALSE))-IF(ISERROR(VLOOKUP($C8,'Tarifas Secure'!$A$105:$AH$174,'Fórmulas Cotización'!$C$4+'Fórmulas Cotización'!AC$3,FALSE)),0,VLOOKUP($C8,'Tarifas Secure'!$A$105:$AH$174,'Fórmulas Cotización'!$C$4+'Fórmulas Cotización'!AC$3,FALSE)*VLOOKUP($B$4,$AV$3:$AZ$39,5,0)) -> 0 | AD8: =IF(ISERROR(VLOOKUP($C8,'Tarifas Secure'!$A$105:$AH$174,'Fórmulas Cotización'!$C$4+'Fórmulas Cotización'!AD$3,FALSE)),0,VLOOKUP($C8,'Tarifas Secure'!$A$105:$AH$174,'Fórmulas Cotización'!$C$4+'Fórmulas Cotización'!AD$3,FALSE))-(IF(ISERROR(VLOOKUP($C8,'Tarifas Secure'!$A$105:$AH$174,'Fórmulas Cotización'!$C$4+'Fórmulas Cotización'!AD$3,FALSE)),0,VLOOKUP($C8,'Tarifas Secure'!$A$105:$AH$174,'Fórmulas Cotización'!$C$4+'Fórmulas Cotización'!AD$3,FALSE))*VLOOKUP($B$4,$AV$3:$AZ$39,5,0)) -> 0 | AE8: =IF(ISERROR(VLOOKUP($C8,'Tarifas Secure'!$A$105:$AH$174,'Fórmulas Cotización'!$C$4+'Fórmulas Cotización'!AE$3,FALSE)),0,VLOOKUP($C8,'Tarifas Secure'!$A$105:$AH$174,'Fórmulas Cotización'!$C$4+'Fórmulas Cotización'!AE$3,FALSE))-(IF(ISERROR(VLOOKUP($C8,'Tarifas Secure'!$A$105:$AH$174,'Fórmulas Cotización'!$C$4+'Fórmulas Cotización'!AE$3,FALSE)),0,VLOOKUP($C8,'Tarifas Secure'!$A$105:$AH$174,'Fórmulas Cotización'!$C$4+'Fórmulas Cotización'!AE$3,FALSE))*VLOOKUP($B$4,$AV$3:$AZ$39,5,0)) -> 0 | AF8: =IF(ISERROR(VLOOKUP($C8,'Tarifas Secure'!$A$105:$AH$174,'Fórmulas Cotización'!$C$4+'Fórmulas Cotización'!AF$3,FALSE)),0,VLOOKUP($C8,'Tarifas Secure'!$A$105:$AH$174,'Fórmulas Cotización'!$C$4+'Fórmulas Cotización'!AF$3,FALSE))-(IF(ISERROR(VLOOKUP($C8,'Tarifas Secure'!$A$105:$AH$174,'Fórmulas Cotización'!$C$4+'Fórmulas Cotización'!AF$3,FALSE)),0,VLOOKUP($C8,'Tarifas Secure'!$A$105:$AH$174,'Fórmulas Cotización'!$C$4+'Fórmulas Cotización'!AF$3,FALSE))*VLOOKUP($B$4,$AV$3:$AZ$39,5,0)) -> 0 | AH8: =IF(ISERROR(VLOOKUP($C8,'Bupa Total'!$A$105:$AH$174,'Fórmulas Cotización'!$C$4+'Fórmulas Cotización'!AH$3,FALSE)),0,VLOOKUP($C8,'Bupa Total'!$A$105:$AH$174,'Fórmulas Cotización'!$C$4+'Fórmulas Cotización'!AH$3,FALSE))-(IF(ISERROR(VLOOKUP($C8,'Bupa Total'!$A$105:$AH$174,'Fórmulas Cotización'!$C$4+'Fórmulas Cotización'!AH$3,FALSE)),0,VLOOKUP($C8,'Bupa Total'!$A$105:$AH$174,'Fórmulas Cotización'!$C$4+'Fórmulas Cotización'!AH$3,FALSE))*VLOOKUP($B$4,$AV$3:$AY$39,4,0)) -> 0 | AI8: =IF(ISERROR(VLOOKUP($C8,'Bupa Total'!$A$105:$AH$174,'Fórmulas Cotización'!$C$4+'Fórmulas Cotización'!AI$3,FALSE)),0,VLOOKUP($C8,'Bupa Total'!$A$105:$AH$174,'Fórmulas Cotización'!$C$4+'Fórmulas Cotización'!AI$3,FALSE))-(IF(ISERROR(VLOOKUP($C8,'Bupa Total'!$A$105:$AH$174,'Fórmulas Cotización'!$C$4+'Fórmulas Cotización'!AI$3,FALSE)),0,VLOOKUP($C8,'Bupa Total'!$A$105:$AH$174,'Fórmulas Cotización'!$C$4+'Fórmulas Cotización'!AI$3,FALSE))*VLOOKUP($B$4,$AV$3:$AY$39,4,0)) -> 0 | AJ8: =IF(ISERROR(VLOOKUP($C8,'Bupa Total'!$A$105:$AH$174,'Fórmulas Cotización'!$C$4+'Fórmulas Cotización'!AJ$3,FALSE)),0,VLOOKUP($C8,'Bupa Total'!$A$105:$AH$174,'Fórmulas Cotización'!$C$4+'Fórmulas Cotización'!AJ$3,FALSE))-(IF(ISERROR(VLOOKUP($C8,'Bupa Total'!$A$105:$AH$174,'Fórmulas Cotización'!$C$4+'Fórmulas Cotización'!AJ$3,FALSE)),0,VLOOKUP($C8,'Bupa Total'!$A$105:$AH$174,'Fórmulas Cotización'!$C$4+'Fórmulas Cotización'!AJ$3,FALSE))*VLOOKUP($B$4,$AV$3:$AY$39,4,0)) -> 0 | AK8: =IF(ISERROR(VLOOKUP($C8,'Bupa Total'!$A$105:$AH$174,'Fórmulas Cotización'!$C$4+'Fórmulas Cotización'!AK$3,FALSE)),0,VLOOKUP($C8,'Bupa Total'!$A$105:$AH$174,'Fórmulas Cotización'!$C$4+'Fórmulas Cotización'!AK$3,FALSE))-(IF(ISERROR(VLOOKUP($C8,'Bupa Total'!$A$105:$AH$174,'Fórmulas Cotización'!$C$4+'Fórmulas Cotización'!AK$3,FALSE)),0,VLOOKUP($C8,'Bupa Total'!$A$105:$AH$174,'Fórmulas Cotización'!$C$4+'Fórmulas Cotización'!AK$3,FALSE))*VLOOKUP($B$4,$AV$3:$AY$39,4,0)) -> 0 | AL8: =IF(ISERROR(VLOOKUP($C8,'Bupa Total'!$A$105:$AH$174,'Fórmulas Cotización'!$C$4+'Fórmulas Cotización'!AL$3,FALSE)),0,VLOOKUP($C8,'Bupa Total'!$A$105:$AH$174,'Fórmulas Cotización'!$C$4+'Fórmulas Cotización'!AL$3,FALSE))-(IF(ISERROR(VLOOKUP($C8,'Bupa Total'!$A$105:$AH$174,'Fórmulas Cotización'!$C$4+'Fórmulas Cotización'!AL$3,FALSE)),0,VLOOKUP($C8,'Bupa Total'!$A$105:$AH$174,'Fórmulas Cotización'!$C$4+'Fórmulas Cotización'!AL$3,FALSE))*VLOOKUP($B$4,$AV$3:$AY$39,4,0)) -> 0 | AV8: Cancún | AW8: Zona 4 | AX8: 4 | AY8: 0 | AZ8: 0
A9: Edad hijo2 | B9: =IF('BUPA CARE PRODUCTS'!#REF!="","",'BUPA CARE PRODUCTS'!#REF!) ->  | C9: =IF(B9<>"",IF(B9<18,$B$14&" Menor",B9),"") ->  | D9: =IF(ISERROR(VLOOKUP($C9,'Tarifas Advantage'!$A$105:$AH$174,'Fórmulas Cotización'!$C$4+'Fórmulas Cotización'!D$3,FALSE)),0,VLOOKUP($C9,'Tarifas Advantage'!$A$105:$AH$174,'Fórmulas Cotización'!$C$4+'Fórmulas Cotización'!D$3,FALSE)) -> 0 | E9: =IF(ISERROR(VLOOKUP($C9,'Tarifas Advantage'!$A$105:$AH$174,'Fórmulas Cotización'!$C$4+'Fórmulas Cotización'!E$3,FALSE)),0,VLOOKUP($C9,'Tarifas Advantage'!$A$105:$AH$174,'Fórmulas Cotización'!$C$4+'Fórmulas Cotización'!E$3,FALSE)) -> 0 | F9: =IF(ISERROR(VLOOKUP($C9,'Tarifas Advantage'!$A$105:$AH$174,'Fórmulas Cotización'!$C$4+'Fórmulas Cotización'!F$3,FALSE)),0,VLOOKUP($C9,'Tarifas Advantage'!$A$105:$AH$174,'Fórmulas Cotización'!$C$4+'Fórmulas Cotización'!F$3,FALSE)) -> 0 | G9: =IF(ISERROR(VLOOKUP($C9,'Tarifas Advantage'!$A$105:$AH$174,'Fórmulas Cotización'!$C$4+'Fórmulas Cotización'!G$3,FALSE)),0,VLOOKUP($C9,'Tarifas Advantage'!$A$105:$AH$174,'Fórmulas Cotización'!$C$4+'Fórmulas Cotización'!G$3,FALSE)) -> 0 | H9: =IF(ISERROR(VLOOKUP($C9,'Tarifas Advantage'!$A$105:$AH$174,'Fórmulas Cotización'!$C$4+'Fórmulas Cotización'!H$3,FALSE)),0,VLOOKUP($C9,'Tarifas Advantage'!$A$105:$AH$174,'Fórmulas Cotización'!$C$4+'Fórmulas Cotización'!H$3,FALSE)) -> 0 | J9: =IF(ISERROR(VLOOKUP($C9,'Tarifas Complete'!$A$105:$AH$174,'Fórmulas Cotización'!$C$4+'Fórmulas Cotización'!J$3,FALSE)),0,VLOOKUP($C9,'Tarifas Complete'!$A$105:$AH$174,'Fórmulas Cotización'!$C$4+'Fórmulas Cotización'!J$3,FALSE)) -> 0 | K9: =IF(ISERROR(VLOOKUP($C9,'Tarifas Complete'!$A$105:$AH$174,'Fórmulas Cotización'!$C$4+'Fórmulas Cotización'!K$3,FALSE)),0,VLOOKUP($C9,'Tarifas Complete'!$A$105:$AH$174,'Fórmulas Cotización'!$C$4+'Fórmulas Cotización'!K$3,FALSE)) -> 0 | L9: =IF(ISERROR(VLOOKUP($C9,'Tarifas Complete'!$A$105:$AH$174,'Fórmulas Cotización'!$C$4+'Fórmulas Cotización'!L$3,FALSE)),0,VLOOKUP($C9,'Tarifas Complete'!$A$105:$AH$174,'Fórmulas Cotización'!$C$4+'Fórmulas Cotización'!L$3,FALSE)) -> 0 | M9: =IF(ISERROR(VLOOKUP($C9,'Tarifas Complete'!$A$105:$AH$174,'Fórmulas Cotización'!$C$4+'Fórmulas Cotización'!M$3,FALSE)),0,VLOOKUP($C9,'Tarifas Complete'!$A$105:$AH$174,'Fórmulas Cotización'!$C$4+'Fórmulas Cotización'!M$3,FALSE)) -> 0 | N9: =IF(ISERROR(VLOOKUP($C9,'Tarifas Complete'!$A$105:$AH$174,'Fórmulas Cotización'!$C$4+'Fórmulas Cotización'!N$3,FALSE)),0,VLOOKUP($C9,'Tarifas Complete'!$A$105:$AH$174,'Fórmulas Cotización'!$C$4+'Fórmulas Cotización'!N$3,FALSE)) -> 0 | P9: =IF(ISERROR(VLOOKUP($C9,'Tarifas Diamond'!$A$105:$AH$174,'Fórmulas Cotización'!$C$4+'Fórmulas Cotización'!P$3,FALSE)),0,VLOOKUP($C9,'Tarifas Diamond'!$A$105:$AH$174,'Fórmulas Cotización'!$C$4+'Fórmulas Cotización'!P$3,FALSE)) -> 0 | Q9: =IF(ISERROR(VLOOKUP($C9,'Tarifas Diamond'!$A$105:$AH$174,'Fórmulas Cotización'!$C$4+'Fórmulas Cotización'!Q$3,FALSE)),0,VLOOKUP($C9,'Tarifas Diamond'!$A$105:$AH$174,'Fórmulas Cotización'!$C$4+'Fórmulas Cotización'!Q$3,FALSE)) -> 0 | R9: =IF(ISERROR(VLOOKUP($C9,'Tarifas Diamond'!$A$105:$AH$174,'Fórmulas Cotización'!$C$4+'Fórmulas Cotización'!R$3,FALSE)),0,VLOOKUP($C9,'Tarifas Diamond'!$A$105:$AH$174,'Fórmulas Cotización'!$C$4+'Fórmulas Cotización'!R$3,FALSE)) -> 0 | S9: =IF(ISERROR(VLOOKUP($C9,'Tarifas Diamond'!$A$105:$AH$174,'Fórmulas Cotización'!$C$4+'Fórmulas Cotización'!S$3,FALSE)),0,VLOOKUP($C9,'Tarifas Diamond'!$A$105:$AH$174,'Fórmulas Cotización'!$C$4+'Fórmulas Cotización'!S$3,FALSE)) -> 0 | T9: =IF(ISERROR(VLOOKUP($C9,'Tarifas Diamond'!$A$105:$AH$174,'Fórmulas Cotización'!$C$4+'Fórmulas Cotización'!T$3,FALSE)),0,VLOOKUP($C9,'Tarifas Diamond'!$A$105:$AH$174,'Fórmulas Cotización'!$C$4+'Fórmulas Cotización'!T$3,FALSE)) -> 0 | V9: =IF(ISERROR(VLOOKUP($C9,'Tarifas Essential'!$A$105:$AH$174,'Fórmulas Cotización'!$C$4+'Fórmulas Cotización'!V$3,FALSE)),0,VLOOKUP($C9,'Tarifas Essential'!$A$105:$AH$174,'Fórmulas Cotización'!$C$4+'Fórmulas Cotización'!V$3,FALSE)) -> 0 | W9: =IF(ISERROR(VLOOKUP($C9,'Tarifas Essential'!$A$105:$AH$174,'Fórmulas Cotización'!$C$4+'Fórmulas Cotización'!W$3,FALSE)),0,VLOOKUP($C9,'Tarifas Essential'!$A$105:$AH$174,'Fórmulas Cotización'!$C$4+'Fórmulas Cotización'!W$3,FALSE)) -> 0 | X9: =IF(ISERROR(VLOOKUP($C9,'Tarifas Essential'!$A$105:$AH$174,'Fórmulas Cotización'!$C$4+'Fórmulas Cotización'!X$3,FALSE)),0,VLOOKUP($C9,'Tarifas Essential'!$A$105:$AH$174,'Fórmulas Cotización'!$C$4+'Fórmulas Cotización'!X$3,FALSE)) -> 0 | Y9: =IF(ISERROR(VLOOKUP($C9,'Tarifas Essential'!$A$105:$AH$174,'Fórmulas Cotización'!$C$4+'Fórmulas Cotización'!Y$3,FALSE)),0,VLOOKUP($C9,'Tarifas Essential'!$A$105:$AH$174,'Fórmulas Cotización'!$C$4+'Fórmulas Cotización'!Y$3,FALSE)) -> 0 | Z9: =IF(ISERROR(VLOOKUP($C9,'Tarifas Essential'!$A$105:$AH$174,'Fórmulas Cotización'!$C$4+'Fórmulas Cotización'!Z$3,FALSE)),0,VLOOKUP($C9,'Tarifas Essential'!$A$105:$AH$174,'Fórmulas Cotización'!$C$4+'Fórmulas Cotización'!Z$3,FALSE)) -> 0 | AB9: =IF(ISERROR(VLOOKUP($C9,'Tarifas Secure'!$A$105:$AH$174,'Fórmulas Cotización'!$C$4+'Fórmulas Cotización'!AB$3,FALSE)),0,VLOOKUP($C9,'Tarifas Secure'!$A$105:$AH$174,'Fórmulas Cotización'!$C$4+'Fórmulas Cotización'!AB$3,FALSE)) -> 0 | AC9: =IF(ISERROR(VLOOKUP($C9,'Tarifas Secure'!$A$105:$AH$174,'Fórmulas Cotización'!$C$4+'Fórmulas Cotización'!AC$3,FALSE)),0,VLOOKUP($C9,'Tarifas Secure'!$A$105:$AH$174,'Fórmulas Cotización'!$C$4+'Fórmulas Cotización'!AC$3,FALSE)) -> 0 | AD9: =IF(ISERROR(VLOOKUP($C9,'Tarifas Secure'!$A$105:$AH$174,'Fórmulas Cotización'!$C$4+'Fórmulas Cotización'!AD$3,FALSE)),0,VLOOKUP($C9,'Tarifas Secure'!$A$105:$AH$174,'Fórmulas Cotización'!$C$4+'Fórmulas Cotización'!AD$3,FALSE)) -> 0 | AE9: =IF(ISERROR(VLOOKUP($C9,'Tarifas Secure'!$A$105:$AH$174,'Fórmulas Cotización'!$C$4+'Fórmulas Cotización'!AE$3,FALSE)),0,VLOOKUP($C9,'Tarifas Secure'!$A$105:$AH$174,'Fórmulas Cotización'!$C$4+'Fórmulas Cotización'!AE$3,FALSE)) -> 0 | AF9: =IF(ISERROR(VLOOKUP($C9,'Tarifas Secure'!$A$105:$AH$174,'Fórmulas Cotización'!$C$4+'Fórmulas Cotización'!AF$3,FALSE)),0,VLOOKUP($C9,'Tarifas Secure'!$A$105:$AH$174,'Fórmulas Cotización'!$C$4+'Fórmulas Cotización'!AF$3,FALSE)) -> 0 | AH9: =IF(ISERROR(VLOOKUP($C9,'Bupa Total'!$A$105:$AH$174,'Fórmulas Cotización'!$C$4+'Fórmulas Cotización'!AH$3,FALSE)),0,VLOOKUP($C9,'Bupa Total'!$A$105:$AH$174,'Fórmulas Cotización'!$C$4+'Fórmulas Cotización'!AH$3,FALSE)) -> 0 | AI9: =IF(ISERROR(VLOOKUP($C9,'Bupa Total'!$A$105:$AH$174,'Fórmulas Cotización'!$C$4+'Fórmulas Cotización'!AI$3,FALSE)),0,VLOOKUP($C9,'Bupa Total'!$A$105:$AH$174,'Fórmulas Cotización'!$C$4+'Fórmulas Cotización'!AI$3,FALSE)) -> 0 | AJ9: =IF(ISERROR(VLOOKUP($C9,'Bupa Total'!$A$105:$AH$174,'Fórmulas Cotización'!$C$4+'Fórmulas Cotización'!AJ$3,FALSE)),0,VLOOKUP($C9,'Bupa Total'!$A$105:$AH$174,'Fórmulas Cotización'!$C$4+'Fórmulas Cotización'!AJ$3,FALSE)) -> 0 | AK9: =IF(ISERROR(VLOOKUP($C9,'Bupa Total'!$A$105:$AH$174,'Fórmulas Cotización'!$C$4+'Fórmulas Cotización'!AK$3,FALSE)),0,VLOOKUP($C9,'Bupa Total'!$A$105:$AH$174,'Fórmulas Cotización'!$C$4+'Fórmulas Cotización'!AK$3,FALSE)) -> 0 | AL9: =IF(ISERROR(VLOOKUP($C9,'Bupa Total'!$A$105:$AH$174,'Fórmulas Cotización'!$C$4+'Fórmulas Cotización'!AL$3,FALSE)),0,VLOOKUP($C9,'Bupa Total'!$A$105:$AH$174,'Fórmulas Cotización'!$C$4+'Fórmulas Cotización'!AL$3,FALSE)) -> 0 | AV9: Coahuila | AW9: Zona 3 | AX9: =MID(AW9,6,1) -> 3 | AY9: 0 | AZ9: 0
A10: Edad hijo3 | B10: =IF('BUPA CARE PRODUCTS'!#REF!="","",'BUPA CARE PRODUCTS'!#REF!) ->  | C10: =IF(B10<>"",IF(B10<18,$B$14&" Menor",B10),"") ->  | D10: =IF(ISERROR(VLOOKUP($C10,'Tarifas Advantage'!$A$105:$AH$174,'Fórmulas Cotización'!$C$4+'Fórmulas Cotización'!D$3,FALSE)),0,VLOOKUP($C10,'Tarifas Advantage'!$A$105:$AH$174,'Fórmulas Cotización'!$C$4+'Fórmulas Cotización'!D$3,FALSE)) -> 0 | E10: =IF(ISERROR(VLOOKUP($C10,'Tarifas Advantage'!$A$105:$AH$174,'Fórmulas Cotización'!$C$4+'Fórmulas Cotización'!E$3,FALSE)),0,VLOOKUP($C10,'Tarifas Advantage'!$A$105:$AH$174,'Fórmulas Cotización'!$C$4+'Fórmulas Cotización'!E$3,FALSE)) -> 0 | F10: =IF(ISERROR(VLOOKUP($C10,'Tarifas Advantage'!$A$105:$AH$174,'Fórmulas Cotización'!$C$4+'Fórmulas Cotización'!F$3,FALSE)),0,VLOOKUP($C10,'Tarifas Advantage'!$A$105:$AH$174,'Fórmulas Cotización'!$C$4+'Fórmulas Cotización'!F$3,FALSE)) -> 0 | G10: =IF(ISERROR(VLOOKUP($C10,'Tarifas Advantage'!$A$105:$AH$174,'Fórmulas Cotización'!$C$4+'Fórmulas Cotización'!G$3,FALSE)),0,VLOOKUP($C10,'Tarifas Advantage'!$A$105:$AH$174,'Fórmulas Cotización'!$C$4+'Fórmulas Cotización'!G$3,FALSE)) -> 0 | H10: =IF(ISERROR(VLOOKUP($C10,'Tarifas Advantage'!$A$105:$AH$174,'Fórmulas Cotización'!$C$4+'Fórmulas Cotización'!H$3,FALSE)),0,VLOOKUP($C10,'Tarifas Advantage'!$A$105:$AH$174,'Fórmulas Cotización'!$C$4+'Fórmulas Cotización'!H$3,FALSE)) -> 0 | J10: =IF(ISERROR(VLOOKUP($C10,'Tarifas Complete'!$A$105:$AH$174,'Fórmulas Cotización'!$C$4+'Fórmulas Cotización'!J$3,FALSE)),0,VLOOKUP($C10,'Tarifas Complete'!$A$105:$AH$174,'Fórmulas Cotización'!$C$4+'Fórmulas Cotización'!J$3,FALSE)) -> 0 | K10: =IF(ISERROR(VLOOKUP($C10,'Tarifas Complete'!$A$105:$AH$174,'Fórmulas Cotización'!$C$4+'Fórmulas Cotización'!K$3,FALSE)),0,VLOOKUP($C10,'Tarifas Complete'!$A$105:$AH$174,'Fórmulas Cotización'!$C$4+'Fórmulas Cotización'!K$3,FALSE)) -> 0 | L10: =IF(ISERROR(VLOOKUP($C10,'Tarifas Complete'!$A$105:$AH$174,'Fórmulas Cotización'!$C$4+'Fórmulas Cotización'!L$3,FALSE)),0,VLOOKUP($C10,'Tarifas Complete'!$A$105:$AH$174,'Fórmulas Cotización'!$C$4+'Fórmulas Cotización'!L$3,FALSE)) -> 0 | M10: =IF(ISERROR(VLOOKUP($C10,'Tarifas Complete'!$A$105:$AH$174,'Fórmulas Cotización'!$C$4+'Fórmulas Cotización'!M$3,FALSE)),0,VLOOKUP($C10,'Tarifas Complete'!$A$105:$AH$174,'Fórmulas Cotización'!$C$4+'Fórmulas Cotización'!M$3,FALSE)) -> 0 | N10: =IF(ISERROR(VLOOKUP($C10,'Tarifas Complete'!$A$105:$AH$174,'Fórmulas Cotización'!$C$4+'Fórmulas Cotización'!N$3,FALSE)),0,VLOOKUP($C10,'Tarifas Complete'!$A$105:$AH$174,'Fórmulas Cotización'!$C$4+'Fórmulas Cotización'!N$3,FALSE)) -> 0 | P10: =IF(ISERROR(VLOOKUP($C10,'Tarifas Diamond'!$A$105:$AH$174,'Fórmulas Cotización'!$C$4+'Fórmulas Cotización'!P$3,FALSE)),0,VLOOKUP($C10,'Tarifas Diamond'!$A$105:$AH$174,'Fórmulas Cotización'!$C$4+'Fórmulas Cotización'!P$3,FALSE)) -> 0 | Q10: =IF(ISERROR(VLOOKUP($C10,'Tarifas Diamond'!$A$105:$AH$174,'Fórmulas Cotización'!$C$4+'Fórmulas Cotización'!Q$3,FALSE)),0,VLOOKUP($C10,'Tarifas Diamond'!$A$105:$AH$174,'Fórmulas Cotización'!$C$4+'Fórmulas Cotización'!Q$3,FALSE)) -> 0 | R10: =IF(ISERROR(VLOOKUP($C10,'Tarifas Diamond'!$A$105:$AH$174,'Fórmulas Cotización'!$C$4+'Fórmulas Cotización'!R$3,FALSE)),0,VLOOKUP($C10,'Tarifas Diamond'!$A$105:$AH$174,'Fórmulas Cotización'!$C$4+'Fórmulas Cotización'!R$3,FALSE)) -> 0 | S10: =IF(ISERROR(VLOOKUP($C10,'Tarifas Diamond'!$A$105:$AH$174,'Fórmulas Cotización'!$C$4+'Fórmulas Cotización'!S$3,FALSE)),0,VLOOKUP($C10,'Tarifas Diamond'!$A$105:$AH$174,'Fórmulas Cotización'!$C$4+'Fórmulas Cotización'!S$3,FALSE)) -> 0 | T10: =IF(ISERROR(VLOOKUP($C10,'Tarifas Diamond'!$A$105:$AH$174,'Fórmulas Cotización'!$C$4+'Fórmulas Cotización'!T$3,FALSE)),0,VLOOKUP($C10,'Tarifas Diamond'!$A$105:$AH$174,'Fórmulas Cotización'!$C$4+'Fórmulas Cotización'!T$3,FALSE)) -> 0 | V10: =IF(ISERROR(VLOOKUP($C10,'Tarifas Essential'!$A$105:$AH$174,'Fórmulas Cotización'!$C$4+'Fórmulas Cotización'!V$3,FALSE)),0,VLOOKUP($C10,'Tarifas Essential'!$A$105:$AH$174,'Fórmulas Cotización'!$C$4+'Fórmulas Cotización'!V$3,FALSE)) -> 0 | W10: =IF(ISERROR(VLOOKUP($C10,'Tarifas Essential'!$A$105:$AH$174,'Fórmulas Cotización'!$C$4+'Fórmulas Cotización'!W$3,FALSE)),0,VLOOKUP($C10,'Tarifas Essential'!$A$105:$AH$174,'Fórmulas Cotización'!$C$4+'Fórmulas Cotización'!W$3,FALSE)) -> 0 | X10: =IF(ISERROR(VLOOKUP($C10,'Tarifas Essential'!$A$105:$AH$174,'Fórmulas Cotización'!$C$4+'Fórmulas Cotización'!X$3,FALSE)),0,VLOOKUP($C10,'Tarifas Essential'!$A$105:$AH$174,'Fórmulas Cotización'!$C$4+'Fórmulas Cotización'!X$3,FALSE)) -> 0 | Y10: =IF(ISERROR(VLOOKUP($C10,'Tarifas Essential'!$A$105:$AH$174,'Fórmulas Cotización'!$C$4+'Fórmulas Cotización'!Y$3,FALSE)),0,VLOOKUP($C10,'Tarifas Essential'!$A$105:$AH$174,'Fórmulas Cotización'!$C$4+'Fórmulas Cotización'!Y$3,FALSE)) -> 0 | Z10: =IF(ISERROR(VLOOKUP($C10,'Tarifas Essential'!$A$105:$AH$174,'Fórmulas Cotización'!$C$4+'Fórmulas Cotización'!Z$3,FALSE)),0,VLOOKUP($C10,'Tarifas Essential'!$A$105:$AH$174,'Fórmulas Cotización'!$C$4+'Fórmulas Cotización'!Z$3,FALSE)) -> 0 | AB10: =IF(ISERROR(VLOOKUP($C10,'Tarifas Secure'!$A$105:$AH$174,'Fórmulas Cotización'!$C$4+'Fórmulas Cotización'!AB$3,FALSE)),0,VLOOKUP($C10,'Tarifas Secure'!$A$105:$AH$174,'Fórmulas Cotización'!$C$4+'Fórmulas Cotización'!AB$3,FALSE)) -> 0 | AC10: =IF(ISERROR(VLOOKUP($C10,'Tarifas Secure'!$A$105:$AH$174,'Fórmulas Cotización'!$C$4+'Fórmulas Cotización'!AC$3,FALSE)),0,VLOOKUP($C10,'Tarifas Secure'!$A$105:$AH$174,'Fórmulas Cotización'!$C$4+'Fórmulas Cotización'!AC$3,FALSE)) -> 0 | AD10: =IF(ISERROR(VLOOKUP($C10,'Tarifas Secure'!$A$105:$AH$174,'Fórmulas Cotización'!$C$4+'Fórmulas Cotización'!AD$3,FALSE)),0,VLOOKUP($C10,'Tarifas Secure'!$A$105:$AH$174,'Fórmulas Cotización'!$C$4+'Fórmulas Cotización'!AD$3,FALSE)) -> 0 | AE10: =IF(ISERROR(VLOOKUP($C10,'Tarifas Secure'!$A$105:$AH$174,'Fórmulas Cotización'!$C$4+'Fórmulas Cotización'!AE$3,FALSE)),0,VLOOKUP($C10,'Tarifas Secure'!$A$105:$AH$174,'Fórmulas Cotización'!$C$4+'Fórmulas Cotización'!AE$3,FALSE)) -> 0 | AF10: =IF(ISERROR(VLOOKUP($C10,'Tarifas Secure'!$A$105:$AH$174,'Fórmulas Cotización'!$C$4+'Fórmulas Cotización'!AF$3,FALSE)),0,VLOOKUP($C10,'Tarifas Secure'!$A$105:$AH$174,'Fórmulas Cotización'!$C$4+'Fórmulas Cotización'!AF$3,FALSE)) -> 0 | AH10: =IF(ISERROR(VLOOKUP($C10,'Bupa Total'!$A$105:$AH$174,'Fórmulas Cotización'!$C$4+'Fórmulas Cotización'!AH$3,FALSE)),0,VLOOKUP($C10,'Bupa Total'!$A$105:$AH$174,'Fórmulas Cotización'!$C$4+'Fórmulas Cotización'!AH$3,FALSE)) -> 0 | AI10: =IF(ISERROR(VLOOKUP($C10,'Bupa Total'!$A$105:$AH$174,'Fórmulas Cotización'!$C$4+'Fórmulas Cotización'!AI$3,FALSE)),0,VLOOKUP($C10,'Bupa Total'!$A$105:$AH$174,'Fórmulas Cotización'!$C$4+'Fórmulas Cotización'!AI$3,FALSE)) -> 0 | AJ10: =IF(ISERROR(VLOOKUP($C10,'Bupa Total'!$A$105:$AH$174,'Fórmulas Cotización'!$C$4+'Fórmulas Cotización'!AJ$3,FALSE)),0,VLOOKUP($C10,'Bupa Total'!$A$105:$AH$174,'Fórmulas Cotización'!$C$4+'Fórmulas Cotización'!AJ$3,FALSE)) -> 0 | AK10: =IF(ISERROR(VLOOKUP($C10,'Bupa Total'!$A$105:$AH$174,'Fórmulas Cotización'!$C$4+'Fórmulas Cotización'!AK$3,FALSE)),0,VLOOKUP($C10,'Bupa Total'!$A$105:$AH$174,'Fórmulas Cotización'!$C$4+'Fórmulas Cotización'!AK$3,FALSE)) -> 0 | AL10: =IF(ISERROR(VLOOKUP($C10,'Bupa Total'!$A$105:$AH$174,'Fórmulas Cotización'!$C$4+'Fórmulas Cotización'!AL$3,FALSE)),0,VLOOKUP($C10,'Bupa Total'!$A$105:$AH$174,'Fórmulas Cotización'!$C$4+'Fórmulas Cotización'!AL$3,FALSE)) -> 0 | AV10: Colima | AW10: Zona 4 | AX10: =MID(AW10,6,1) -> 4 | AY10: 0 | AZ10: 0
A11: Edad hijo4 | B11: =IF('BUPA CARE PRODUCTS'!#REF!="","",'BUPA CARE PRODUCTS'!#REF!) ->  | C11: =IF(B11<>"",IF(B11<18,$B$14&" Menor",B11),"") ->  | D11: =IF(ISERROR(VLOOKUP($C11,'Tarifas Advantage'!$A$105:$AH$174,'Fórmulas Cotización'!$C$4+'Fórmulas Cotización'!D$3,FALSE)),0,VLOOKUP($C11,'Tarifas Advantage'!$A$105:$AH$174,'Fórmulas Cotización'!$C$4+'Fórmulas Cotización'!D$3,FALSE)) -> 0 | E11: =IF(ISERROR(VLOOKUP($C11,'Tarifas Advantage'!$A$105:$AH$174,'Fórmulas Cotización'!$C$4+'Fórmulas Cotización'!E$3,FALSE)),0,VLOOKUP($C11,'Tarifas Advantage'!$A$105:$AH$174,'Fórmulas Cotización'!$C$4+'Fórmulas Cotización'!E$3,FALSE)) -> 0 | F11: =IF(ISERROR(VLOOKUP($C11,'Tarifas Advantage'!$A$105:$AH$174,'Fórmulas Cotización'!$C$4+'Fórmulas Cotización'!F$3,FALSE)),0,VLOOKUP($C11,'Tarifas Advantage'!$A$105:$AH$174,'Fórmulas Cotización'!$C$4+'Fórmulas Cotización'!F$3,FALSE)) -> 0 | G11: =IF(ISERROR(VLOOKUP($C11,'Tarifas Advantage'!$A$105:$AH$174,'Fórmulas Cotización'!$C$4+'Fórmulas Cotización'!G$3,FALSE)),0,VLOOKUP($C11,'Tarifas Advantage'!$A$105:$AH$174,'Fórmulas Cotización'!$C$4+'Fórmulas Cotización'!G$3,FALSE)) -> 0 | H11: =IF(ISERROR(VLOOKUP($C11,'Tarifas Advantage'!$A$105:$AH$174,'Fórmulas Cotización'!$C$4+'Fórmulas Cotización'!H$3,FALSE)),0,VLOOKUP($C11,'Tarifas Advantage'!$A$105:$AH$174,'Fórmulas Cotización'!$C$4+'Fórmulas Cotización'!H$3,FALSE)) -> 0 | J11: =IF(ISERROR(VLOOKUP($C11,'Tarifas Complete'!$A$105:$AH$174,'Fórmulas Cotización'!$C$4+'Fórmulas Cotización'!J$3,FALSE)),0,VLOOKUP($C11,'Tarifas Complete'!$A$105:$AH$174,'Fórmulas Cotización'!$C$4+'Fórmulas Cotización'!J$3,FALSE)) -> 0 | K11: =IF(ISERROR(VLOOKUP($C11,'Tarifas Complete'!$A$105:$AH$174,'Fórmulas Cotización'!$C$4+'Fórmulas Cotización'!K$3,FALSE)),0,VLOOKUP($C11,'Tarifas Complete'!$A$105:$AH$174,'Fórmulas Cotización'!$C$4+'Fórmulas Cotización'!K$3,FALSE)) -> 0 | L11: =IF(ISERROR(VLOOKUP($C11,'Tarifas Complete'!$A$105:$AH$174,'Fórmulas Cotización'!$C$4+'Fórmulas Cotización'!L$3,FALSE)),0,VLOOKUP($C11,'Tarifas Complete'!$A$105:$AH$174,'Fórmulas Cotización'!$C$4+'Fórmulas Cotización'!L$3,FALSE)) -> 0 | M11: =IF(ISERROR(VLOOKUP($C11,'Tarifas Complete'!$A$105:$AH$174,'Fórmulas Cotización'!$C$4+'Fórmulas Cotización'!M$3,FALSE)),0,VLOOKUP($C11,'Tarifas Complete'!$A$105:$AH$174,'Fórmulas Cotización'!$C$4+'Fórmulas Cotización'!M$3,FALSE)) -> 0 | N11: =IF(ISERROR(VLOOKUP($C11,'Tarifas Complete'!$A$105:$AH$174,'Fórmulas Cotización'!$C$4+'Fórmulas Cotización'!N$3,FALSE)),0,VLOOKUP($C11,'Tarifas Complete'!$A$105:$AH$174,'Fórmulas Cotización'!$C$4+'Fórmulas Cotización'!N$3,FALSE)) -> 0 | P11: =IF(ISERROR(VLOOKUP($C11,'Tarifas Diamond'!$A$105:$AH$174,'Fórmulas Cotización'!$C$4+'Fórmulas Cotización'!P$3,FALSE)),0,VLOOKUP($C11,'Tarifas Diamond'!$A$105:$AH$174,'Fórmulas Cotización'!$C$4+'Fórmulas Cotización'!P$3,FALSE)) -> 0 | Q11: =IF(ISERROR(VLOOKUP($C11,'Tarifas Diamond'!$A$105:$AH$174,'Fórmulas Cotización'!$C$4+'Fórmulas Cotización'!Q$3,FALSE)),0,VLOOKUP($C11,'Tarifas Diamond'!$A$105:$AH$174,'Fórmulas Cotización'!$C$4+'Fórmulas Cotización'!Q$3,FALSE)) -> 0 | R11: =IF(ISERROR(VLOOKUP($C11,'Tarifas Diamond'!$A$105:$AH$174,'Fórmulas Cotización'!$C$4+'Fórmulas Cotización'!R$3,FALSE)),0,VLOOKUP($C11,'Tarifas Diamond'!$A$105:$AH$174,'Fórmulas Cotización'!$C$4+'Fórmulas Cotización'!R$3,FALSE)) -> 0 | S11: =IF(ISERROR(VLOOKUP($C11,'Tarifas Diamond'!$A$105:$AH$174,'Fórmulas Cotización'!$C$4+'Fórmulas Cotización'!S$3,FALSE)),0,VLOOKUP($C11,'Tarifas Diamond'!$A$105:$AH$174,'Fórmulas Cotización'!$C$4+'Fórmulas Cotización'!S$3,FALSE)) -> 0 | T11: =IF(ISERROR(VLOOKUP($C11,'Tarifas Diamond'!$A$105:$AH$174,'Fórmulas Cotización'!$C$4+'Fórmulas Cotización'!T$3,FALSE)),0,VLOOKUP($C11,'Tarifas Diamond'!$A$105:$AH$174,'Fórmulas Cotización'!$C$4+'Fórmulas Cotización'!T$3,FALSE)) -> 0 | V11: =IF(ISERROR(VLOOKUP($C11,'Tarifas Essential'!$A$105:$AH$174,'Fórmulas Cotización'!$C$4+'Fórmulas Cotización'!V$3,FALSE)),0,VLOOKUP($C11,'Tarifas Essential'!$A$105:$AH$174,'Fórmulas Cotización'!$C$4+'Fórmulas Cotización'!V$3,FALSE)) -> 0 | W11: =IF(ISERROR(VLOOKUP($C11,'Tarifas Essential'!$A$105:$AH$174,'Fórmulas Cotización'!$C$4+'Fórmulas Cotización'!W$3,FALSE)),0,VLOOKUP($C11,'Tarifas Essential'!$A$105:$AH$174,'Fórmulas Cotización'!$C$4+'Fórmulas Cotización'!W$3,FALSE)) -> 0 | X11: =IF(ISERROR(VLOOKUP($C11,'Tarifas Essential'!$A$105:$AH$174,'Fórmulas Cotización'!$C$4+'Fórmulas Cotización'!X$3,FALSE)),0,VLOOKUP($C11,'Tarifas Essential'!$A$105:$AH$174,'Fórmulas Cotización'!$C$4+'Fórmulas Cotización'!X$3,FALSE)) -> 0 | Y11: =IF(ISERROR(VLOOKUP($C11,'Tarifas Essential'!$A$105:$AH$174,'Fórmulas Cotización'!$C$4+'Fórmulas Cotización'!Y$3,FALSE)),0,VLOOKUP($C11,'Tarifas Essential'!$A$105:$AH$174,'Fórmulas Cotización'!$C$4+'Fórmulas Cotización'!Y$3,FALSE)) -> 0 | Z11: =IF(ISERROR(VLOOKUP($C11,'Tarifas Essential'!$A$105:$AH$174,'Fórmulas Cotización'!$C$4+'Fórmulas Cotización'!Z$3,FALSE)),0,VLOOKUP($C11,'Tarifas Essential'!$A$105:$AH$174,'Fórmulas Cotización'!$C$4+'Fórmulas Cotización'!Z$3,FALSE)) -> 0 | AB11: =IF(ISERROR(VLOOKUP($C11,'Tarifas Secure'!$A$105:$AH$174,'Fórmulas Cotización'!$C$4+'Fórmulas Cotización'!AB$3,FALSE)),0,VLOOKUP($C11,'Tarifas Secure'!$A$105:$AH$174,'Fórmulas Cotización'!$C$4+'Fórmulas Cotización'!AB$3,FALSE)) -> 0 | AC11: =IF(ISERROR(VLOOKUP($C11,'Tarifas Secure'!$A$105:$AH$174,'Fórmulas Cotización'!$C$4+'Fórmulas Cotización'!AC$3,FALSE)),0,VLOOKUP($C11,'Tarifas Secure'!$A$105:$AH$174,'Fórmulas Cotización'!$C$4+'Fórmulas Cotización'!AC$3,FALSE)) -> 0 | AD11: =IF(ISERROR(VLOOKUP($C11,'Tarifas Secure'!$A$105:$AH$174,'Fórmulas Cotización'!$C$4+'Fórmulas Cotización'!AD$3,FALSE)),0,VLOOKUP($C11,'Tarifas Secure'!$A$105:$AH$174,'Fórmulas Cotización'!$C$4+'Fórmulas Cotización'!AD$3,FALSE)) -> 0 | AE11: =IF(ISERROR(VLOOKUP($C11,'Tarifas Secure'!$A$105:$AH$174,'Fórmulas Cotización'!$C$4+'Fórmulas Cotización'!AE$3,FALSE)),0,VLOOKUP($C11,'Tarifas Secure'!$A$105:$AH$174,'Fórmulas Cotización'!$C$4+'Fórmulas Cotización'!AE$3,FALSE)) -> 0 | AF11: =IF(ISERROR(VLOOKUP($C11,'Tarifas Secure'!$A$105:$AH$174,'Fórmulas Cotización'!$C$4+'Fórmulas Cotización'!AF$3,FALSE)),0,VLOOKUP($C11,'Tarifas Secure'!$A$105:$AH$174,'Fórmulas Cotización'!$C$4+'Fórmulas Cotización'!AF$3,FALSE)) -> 0 | AH11: =IF(ISERROR(VLOOKUP($C11,'Bupa Total'!$A$105:$AH$174,'Fórmulas Cotización'!$C$4+'Fórmulas Cotización'!AH$3,FALSE)),0,VLOOKUP($C11,'Bupa Total'!$A$105:$AH$174,'Fórmulas Cotización'!$C$4+'Fórmulas Cotización'!AH$3,FALSE)) -> 0 | AI11: =IF(ISERROR(VLOOKUP($C11,'Bupa Total'!$A$105:$AH$174,'Fórmulas Cotización'!$C$4+'Fórmulas Cotización'!AI$3,FALSE)),0,VLOOKUP($C11,'Bupa Total'!$A$105:$AH$174,'Fórmulas Cotización'!$C$4+'Fórmulas Cotización'!AI$3,FALSE)) -> 0 | AJ11: =IF(ISERROR(VLOOKUP($C11,'Bupa Total'!$A$105:$AH$174,'Fórmulas Cotización'!$C$4+'Fórmulas Cotización'!AJ$3,FALSE)),0,VLOOKUP($C11,'Bupa Total'!$A$105:$AH$174,'Fórmulas Cotización'!$C$4+'Fórmulas Cotización'!AJ$3,FALSE)) -> 0 | AK11: =IF(ISERROR(VLOOKUP($C11,'Bupa Total'!$A$105:$AH$174,'Fórmulas Cotización'!$C$4+'Fórmulas Cotización'!AK$3,FALSE)),0,VLOOKUP($C11,'Bupa Total'!$A$105:$AH$174,'Fórmulas Cotización'!$C$4+'Fórmulas Cotización'!AK$3,FALSE)) -> 0 | AL11: =IF(ISERROR(VLOOKUP($C11,'Bupa Total'!$A$105:$AH$174,'Fórmulas Cotización'!$C$4+'Fórmulas Cotización'!AL$3,FALSE)),0,VLOOKUP($C11,'Bupa Total'!$A$105:$AH$174,'Fórmulas Cotización'!$C$4+'Fórmulas Cotización'!AL$3,FALSE)) -> 0 | AV11: Chiapas | AW11: Zona 5 | AX11: 5 | AY11: 0 | AZ11: 0
A12: Edad hijo5 | B12: =IF('BUPA CARE PRODUCTS'!#REF!="","",'BUPA CARE PRODUCTS'!#REF!) ->  | C12: =IF(B12<>"",IF(B12<18,$B$14&" Menor",B12),"") ->  | D12: =IF(ISERROR(VLOOKUP($C12,'Tarifas Advantage'!$A$105:$AH$174,'Fórmulas Cotización'!$C$4+'Fórmulas Cotización'!D$3,FALSE)),0,VLOOKUP($C12,'Tarifas Advantage'!$A$105:$AH$174,'Fórmulas Cotización'!$C$4+'Fórmulas Cotización'!D$3,FALSE)) -> 0 | E12: =IF(ISERROR(VLOOKUP($C12,'Tarifas Advantage'!$A$105:$AH$174,'Fórmulas Cotización'!$C$4+'Fórmulas Cotización'!E$3,FALSE)),0,VLOOKUP($C12,'Tarifas Advantage'!$A$105:$AH$174,'Fórmulas Cotización'!$C$4+'Fórmulas Cotización'!E$3,FALSE)) -> 0 | F12: =IF(ISERROR(VLOOKUP($C12,'Tarifas Advantage'!$A$105:$AH$174,'Fórmulas Cotización'!$C$4+'Fórmulas Cotización'!F$3,FALSE)),0,VLOOKUP($C12,'Tarifas Advantage'!$A$105:$AH$174,'Fórmulas Cotización'!$C$4+'Fórmulas Cotización'!F$3,FALSE)) -> 0 | G12: =IF(ISERROR(VLOOKUP($C12,'Tarifas Advantage'!$A$105:$AH$174,'Fórmulas Cotización'!$C$4+'Fórmulas Cotización'!G$3,FALSE)),0,VLOOKUP($C12,'Tarifas Advantage'!$A$105:$AH$174,'Fórmulas Cotización'!$C$4+'Fórmulas Cotización'!G$3,FALSE)) -> 0 | H12: =IF(ISERROR(VLOOKUP($C12,'Tarifas Advantage'!$A$105:$AH$174,'Fórmulas Cotización'!$C$4+'Fórmulas Cotización'!H$3,FALSE)),0,VLOOKUP($C12,'Tarifas Advantage'!$A$105:$AH$174,'Fórmulas Cotización'!$C$4+'Fórmulas Cotización'!H$3,FALSE)) -> 0 | J12: =IF(ISERROR(VLOOKUP($C12,'Tarifas Complete'!$A$105:$AH$174,'Fórmulas Cotización'!$C$4+'Fórmulas Cotización'!J$3,FALSE)),0,VLOOKUP($C12,'Tarifas Complete'!$A$105:$AH$174,'Fórmulas Cotización'!$C$4+'Fórmulas Cotización'!J$3,FALSE)) -> 0 | K12: =IF(ISERROR(VLOOKUP($C12,'Tarifas Complete'!$A$105:$AH$174,'Fórmulas Cotización'!$C$4+'Fórmulas Cotización'!K$3,FALSE)),0,VLOOKUP($C12,'Tarifas Complete'!$A$105:$AH$174,'Fórmulas Cotización'!$C$4+'Fórmulas Cotización'!K$3,FALSE)) -> 0 | L12: =IF(ISERROR(VLOOKUP($C12,'Tarifas Complete'!$A$105:$AH$174,'Fórmulas Cotización'!$C$4+'Fórmulas Cotización'!L$3,FALSE)),0,VLOOKUP($C12,'Tarifas Complete'!$A$105:$AH$174,'Fórmulas Cotización'!$C$4+'Fórmulas Cotización'!L$3,FALSE)) -> 0 | M12: =IF(ISERROR(VLOOKUP($C12,'Tarifas Complete'!$A$105:$AH$174,'Fórmulas Cotización'!$C$4+'Fórmulas Cotización'!M$3,FALSE)),0,VLOOKUP($C12,'Tarifas Complete'!$A$105:$AH$174,'Fórmulas Cotización'!$C$4+'Fórmulas Cotización'!M$3,FALSE)) -> 0 | N12: =IF(ISERROR(VLOOKUP($C12,'Tarifas Complete'!$A$105:$AH$174,'Fórmulas Cotización'!$C$4+'Fórmulas Cotización'!N$3,FALSE)),0,VLOOKUP($C12,'Tarifas Complete'!$A$105:$AH$174,'Fórmulas Cotización'!$C$4+'Fórmulas Cotización'!N$3,FALSE)) -> 0 | P12: =IF(ISERROR(VLOOKUP($C12,'Tarifas Diamond'!$A$105:$AH$174,'Fórmulas Cotización'!$C$4+'Fórmulas Cotización'!P$3,FALSE)),0,VLOOKUP($C12,'Tarifas Diamond'!$A$105:$AH$174,'Fórmulas Cotización'!$C$4+'Fórmulas Cotización'!P$3,FALSE)) -> 0 | Q12: =IF(ISERROR(VLOOKUP($C12,'Tarifas Diamond'!$A$105:$AH$174,'Fórmulas Cotización'!$C$4+'Fórmulas Cotización'!Q$3,FALSE)),0,VLOOKUP($C12,'Tarifas Diamond'!$A$105:$AH$174,'Fórmulas Cotización'!$C$4+'Fórmulas Cotización'!Q$3,FALSE)) -> 0 | R12: =IF(ISERROR(VLOOKUP($C12,'Tarifas Diamond'!$A$105:$AH$174,'Fórmulas Cotización'!$C$4+'Fórmulas Cotización'!R$3,FALSE)),0,VLOOKUP($C12,'Tarifas Diamond'!$A$105:$AH$174,'Fórmulas Cotización'!$C$4+'Fórmulas Cotización'!R$3,FALSE)) -> 0 | S12: =IF(ISERROR(VLOOKUP($C12,'Tarifas Diamond'!$A$105:$AH$174,'Fórmulas Cotización'!$C$4+'Fórmulas Cotización'!S$3,FALSE)),0,VLOOKUP($C12,'Tarifas Diamond'!$A$105:$AH$174,'Fórmulas Cotización'!$C$4+'Fórmulas Cotización'!S$3,FALSE)) -> 0 | T12: =IF(ISERROR(VLOOKUP($C12,'Tarifas Diamond'!$A$105:$AH$174,'Fórmulas Cotización'!$C$4+'Fórmulas Cotización'!T$3,FALSE)),0,VLOOKUP($C12,'Tarifas Diamond'!$A$105:$AH$174,'Fórmulas Cotización'!$C$4+'Fórmulas Cotización'!T$3,FALSE)) -> 0 | V12: =IF(ISERROR(VLOOKUP($C12,'Tarifas Essential'!$A$105:$AH$174,'Fórmulas Cotización'!$C$4+'Fórmulas Cotización'!V$3,FALSE)),0,VLOOKUP($C12,'Tarifas Essential'!$A$105:$AH$174,'Fórmulas Cotización'!$C$4+'Fórmulas Cotización'!V$3,FALSE)) -> 0 | W12: =IF(ISERROR(VLOOKUP($C12,'Tarifas Essential'!$A$105:$AH$174,'Fórmulas Cotización'!$C$4+'Fórmulas Cotización'!W$3,FALSE)),0,VLOOKUP($C12,'Tarifas Essential'!$A$105:$AH$174,'Fórmulas Cotización'!$C$4+'Fórmulas Cotización'!W$3,FALSE)) -> 0 | X12: =IF(ISERROR(VLOOKUP($C12,'Tarifas Essential'!$A$105:$AH$174,'Fórmulas Cotización'!$C$4+'Fórmulas Cotización'!X$3,FALSE)),0,VLOOKUP($C12,'Tarifas Essential'!$A$105:$AH$174,'Fórmulas Cotización'!$C$4+'Fórmulas Cotización'!X$3,FALSE)) -> 0 | Y12: =IF(ISERROR(VLOOKUP($C12,'Tarifas Essential'!$A$105:$AH$174,'Fórmulas Cotización'!$C$4+'Fórmulas Cotización'!Y$3,FALSE)),0,VLOOKUP($C12,'Tarifas Essential'!$A$105:$AH$174,'Fórmulas Cotización'!$C$4+'Fórmulas Cotización'!Y$3,FALSE)) -> 0 | Z12: =IF(ISERROR(VLOOKUP($C12,'Tarifas Essential'!$A$105:$AH$174,'Fórmulas Cotización'!$C$4+'Fórmulas Cotización'!Z$3,FALSE)),0,VLOOKUP($C12,'Tarifas Essential'!$A$105:$AH$174,'Fórmulas Cotización'!$C$4+'Fórmulas Cotización'!Z$3,FALSE)) -> 0 | AB12: =IF(ISERROR(VLOOKUP($C12,'Tarifas Secure'!$A$105:$AH$174,'Fórmulas Cotización'!$C$4+'Fórmulas Cotización'!AB$3,FALSE)),0,VLOOKUP($C12,'Tarifas Secure'!$A$105:$AH$174,'Fórmulas Cotización'!$C$4+'Fórmulas Cotización'!AB$3,FALSE)) -> 0 | AC12: =IF(ISERROR(VLOOKUP($C12,'Tarifas Secure'!$A$105:$AH$174,'Fórmulas Cotización'!$C$4+'Fórmulas Cotización'!AC$3,FALSE)),0,VLOOKUP($C12,'Tarifas Secure'!$A$105:$AH$174,'Fórmulas Cotización'!$C$4+'Fórmulas Cotización'!AC$3,FALSE)) -> 0 | AD12: =IF(ISERROR(VLOOKUP($C12,'Tarifas Secure'!$A$105:$AH$174,'Fórmulas Cotización'!$C$4+'Fórmulas Cotización'!AD$3,FALSE)),0,VLOOKUP($C12,'Tarifas Secure'!$A$105:$AH$174,'Fórmulas Cotización'!$C$4+'Fórmulas Cotización'!AD$3,FALSE)) -> 0 | AE12: =IF(ISERROR(VLOOKUP($C12,'Tarifas Secure'!$A$105:$AH$174,'Fórmulas Cotización'!$C$4+'Fórmulas Cotización'!AE$3,FALSE)),0,VLOOKUP($C12,'Tarifas Secure'!$A$105:$AH$174,'Fórmulas Cotización'!$C$4+'Fórmulas Cotización'!AE$3,FALSE)) -> 0 | AF12: =IF(ISERROR(VLOOKUP($C12,'Tarifas Secure'!$A$105:$AH$174,'Fórmulas Cotización'!$C$4+'Fórmulas Cotización'!AF$3,FALSE)),0,VLOOKUP($C12,'Tarifas Secure'!$A$105:$AH$174,'Fórmulas Cotización'!$C$4+'Fórmulas Cotización'!AF$3,FALSE)) -> 0 | AH12: =IF(ISERROR(VLOOKUP($C12,'Bupa Total'!$A$105:$AH$174,'Fórmulas Cotización'!$C$4+'Fórmulas Cotización'!AH$3,FALSE)),0,VLOOKUP($C12,'Bupa Total'!$A$105:$AH$174,'Fórmulas Cotización'!$C$4+'Fórmulas Cotización'!AH$3,FALSE)) -> 0 | AI12: =IF(ISERROR(VLOOKUP($C12,'Bupa Total'!$A$105:$AH$174,'Fórmulas Cotización'!$C$4+'Fórmulas Cotización'!AI$3,FALSE)),0,VLOOKUP($C12,'Bupa Total'!$A$105:$AH$174,'Fórmulas Cotización'!$C$4+'Fórmulas Cotización'!AI$3,FALSE)) -> 0 | AJ12: =IF(ISERROR(VLOOKUP($C12,'Bupa Total'!$A$105:$AH$174,'Fórmulas Cotización'!$C$4+'Fórmulas Cotización'!AJ$3,FALSE)),0,VLOOKUP($C12,'Bupa Total'!$A$105:$AH$174,'Fórmulas Cotización'!$C$4+'Fórmulas Cotización'!AJ$3,FALSE)) -> 0 | AK12: =IF(ISERROR(VLOOKUP($C12,'Bupa Total'!$A$105:$AH$174,'Fórmulas Cotización'!$C$4+'Fórmulas Cotización'!AK$3,FALSE)),0,VLOOKUP($C12,'Bupa Total'!$A$105:$AH$174,'Fórmulas Cotización'!$C$4+'Fórmulas Cotización'!AK$3,FALSE)) -> 0 | AL12: =IF(ISERROR(VLOOKUP($C12,'Bupa Total'!$A$105:$AH$174,'Fórmulas Cotización'!$C$4+'Fórmulas Cotización'!AL$3,FALSE)),0,VLOOKUP($C12,'Bupa Total'!$A$105:$AH$174,'Fórmulas Cotización'!$C$4+'Fórmulas Cotización'!AL$3,FALSE)) -> 0 | AV12: Chihuahua | AW12: Zona 3 | AX12: 3 | AY12: 0 | AZ12: 0
D13: =SUM(D8:D12) -> 0 | E13: =SUM(E8:E12) -> 0 | F13: =SUM(F8:F12) -> 0 | G13: =SUM(G8:G12) -> 0 | H13: =SUM(H8:H12) -> 0 | J13: =SUM(J8:J12) -> 0 | K13: =SUM(K8:K12) -> 0 | L13: =SUM(L8:L12) -> 0 | M13: =SUM(M8:M12) -> 0 | N13: =SUM(N8:N12) -> 0 | P13: =SUM(P8:P12) -> 0 | Q13: =SUM(Q8:Q12) -> 0 | R13: =SUM(R8:R12) -> 0 | S13: =SUM(S8:S12) -> 0 | T13: =SUM(T8:T12) -> 0 | V13: =SUM(V8:V12) -> 0 | W13: =SUM(W8:W12) -> 0 | X13: =SUM(X8:X12) -> 0 | Y13: =SUM(Y8:Y12) -> 0 | Z13: =SUM(Z8:Z12) -> 0 | AB13: =SUM(AB8:AB12) -> 0 | AC13: =SUM(AC8:AC12) -> 0 | AD13: =SUM(AD8:AD12) -> 0 | AE13: =SUM(AE8:AE12) -> 0 | AF13: =SUM(AF8:AF12) -> 0 | AH13: =SUM(AH8:AH12) -> 0 | AI13: =SUM(AI8:AI12) -> 0 | AJ13: =SUM(AJ8:AJ12) -> 0 | AK13: =SUM(AK8:AK12) -> 0 | AL13: =SUM(AL8:AL12) -> 0 | AV13: Distrito Federal | AW13: Zona 1 | AX13: 1 | AY13: 0 | AZ13: 0
A14: Cantidad hijos | B14: =COUNTIF(B8:B12,"<18") -> 0 | AV14: Durango | AW14: Zona 4 | AX14: 4 | AY14: 0 | AZ14: 0
A15: Derechos póliza | B15: 0 | AV15: Guanajuato | AW15: Zona 4 | AX15: 4 | AY15: 0 | AZ15: 0
AV16: Guerrero (solo Acapulco y Zihuatanejo) | AW16: Zona 3 | AX16: =MID(AW16,6,1) -> 3 | AY16: 0 | AZ16: 0
AV17: Guerrero (excepto Acapulco y Zihuatanejo) | AW17: Zona 5 | AX17: 5 | AY17: 0 | AZ17: 0
AF18: =VLOOKUP($B$4,$AV$3:$AZ$39,5,0) -> 0 | AV18: Hidalgo | AW18: Zona 3 | AX18: 3 | AY18: 0 | AZ18: 0
C19: Complicaciones | D19: 2813 | V19: =VLOOKUP($B$4,$AV$3:$AY$39,4,0) -> 0 | AV19: Jalisco | AW19: Zona 3 | AX19: 3 | AY19: 0 | AZ19: 0
C20: Trasplantes | D20: 3525 | AV20: Edo. Mexico (solo área metropolitana) | AW20: Zona 1 | AX20: 1 | AY20: 0 | AZ20: 0
C21: Congénitos | D21: 3000 | F21: =MID(B4,1,16) -> Distrito Federal | AV21: Edo. Mexico (excepto área metropolitana) | AW21: Zona 3 | AX21: 3 | AY21: 0 | AZ21: 0
E22: complicaciones | F22: trans | G22: congenitas | AV22: Michoacán | AW22: Zona 5 | AX22: 5 | AY22: 0 | AZ22: 0
B23: 1 | C23: 1 Menor | D23: Diamond | E23: 3100 | F23: 3875 | G23: 0 | AV23: Morelos | AW23: Zona 3 | AX23: 3 | AY23: 0 | AZ23: 0
B24: 2 | C24: 2 Menor | D24: complete | E24: 3100 | F24: 3875 | G24: 3300 | AV24: Nayarit | AW24: Zona 4 | AX24: 4 | AY24: 0 | AZ24: 0
B25: 3 | C25: 3 Menor | D25: advantage | E25: 3100 | F25: 3875 | G25: 3300 | AV25: Nuevo León | AW25: Zona 2 | AX25: 2 | AY25: 0 | AZ25: 0
D26: secure | E26: 3100 | F26: 3875 | G26: 3300 | AV26: Oaxaca | AW26: Zona 5 | AX26: 5 | AY26: 0 | AZ26: 0
D27: essential | E27: 3100 | F27: 3875 | G27: 3300 | AV27: Puebla | AW27: Zona 3 | AX27: 3 | AY27: 0 | AZ27: 0
D28: total | E28: 3100 | F28: 3875 | G28: 3300 | AV28: Querétaro | AW28: Zona 4 | AX28: 4 | AY28: 0 | AZ28: 0
AV29: Quintana Roo | AW29: Zona 4 | AX29: 4 | AY29: 0 | AZ29: 0
A31: Zona selecionada | B31: =VLOOKUP(B4,AV3:AX39,3,FALSE) -> 1 | D31: Advantage | J31: Complete | P31: Diamond | V31: Essential | AB31: Secure | AH31: Total | AV31: San Luis Potosí | AW31: Zona 5 | AX31: =MID(AW31,6,1) -> 5 | AY31: 0 | AZ31: 0
A32: Formulacion otros dependientes | D32: 2 | E32: =D32+1 -> 3 | F32: =E32+1 -> 4 | G32: =F32+1 -> 5 | H32: =G32+1 -> 6 | J32: 2 | K32: =J32+1 -> 3 | L32: =K32+1 -> 4 | M32: =L32+1 -> 5 | N32: =M32+1 -> 6 | P32: 2 | Q32: =P32+1 -> 3 | R32: =Q32+1 -> 4 | S32: =R32+1 -> 5 | T32: =S32+1 -> 6 | V32: 2 | W32: =V32+1 -> 3 | X32: =W32+1 -> 4 | Y32: =X32+1 -> 5 | Z32: =Y32+1 -> 6 | AB32: 2 | AC32: =AB32+1 -> 3 | AD32: =AC32+1 -> 4 | AE32: =AD32+1 -> 5 | AF32: =AE32+1 -> 6 | AH32: 2 | AI32: =AH32+1 -> 3 | AJ32: =AI32+1 -> 4 | AK32: =AJ32+1 -> 5 | AL32: =AK32+1 -> 6 | AV32: Sinaloa | AW32: Zona 4 | AX32: 4 | AY32: 0 | AZ32: 0
A33: ID | B33: EDAD | C33: Deducibles | D33: 1000 | E33: 2000 | F33: 5000 | G33: 10000 | H33: 20000 | J33: 1000 | K33: 2000 | L33: 5000 | M33: 10000 | N33: 20000 | P33: 1000 | Q33: 2000 | R33: 5000 | S33: 10000 | T33: 20000 | V33: 1000 | W33: 2000 | X33: 5000 | Y33: 10000 | Z33: 20000 | AB33: 1000 | AC33: 2000 | AD33: 5000 | AE33: 10000 | AF33: 20000 | AH33: 1000 | AI33: 2000 | AJ33: 5000 | AK33: 10000 | AL33: 20000 | AV33: Sonora | AW33: Zona 2 | AX33: 2 | AY33: 0 | AZ33: 0
A34: 1 | B34: ='BUPA CARE PRODUCTS'!H14 -> 0 | D34: =IF(B34>0,IF($B$32=1,IF($B34<18,'Tarifas Advantage'!$B$108,VLOOKUP('Fórmulas Cotización'!$B34,'Tarifas Advantage'!$A$108:$F$174,2)), IF($B$32=2,IF($B34<18,'Tarifas Advantage'!$I$108,VLOOKUP('Fórmulas Cotización'!$B34,'Tarifas Advantage'!$H$108:$M$174,2)), IF($B$32=3,IF($B34<18,'Tarifas Advantage'!$P$108,VLOOKUP('Fórmulas Cotización'!$B34,'Tarifas Advantage'!$O$108:$T$174,2)), IF($B$32=4,IF($B34<18,'Tarifas Advantage'!$W$108,VLOOKUP('Fórmulas Cotización'!$B34,'Tarifas Advantage'!$V$108:$AA$174,2)), IF($B34<18,'Tarifas Advantage'!$AD$108,VLOOKUP('Fórmulas Cotización'!$B34,'Tarifas Advantage'!$AC$108:$AH$174,2)))))),0) -> 0 | E34: =IF(B34>0,IF($B$32=1,IF($B34<18,'Tarifas Advantage'!$B$108,VLOOKUP('Fórmulas Cotización'!$B34,'Tarifas Advantage'!$A$108:$F$174,3)), IF($B$32=2,IF($B34<18,'Tarifas Advantage'!$I$108,VLOOKUP('Fórmulas Cotización'!$B34,'Tarifas Advantage'!$H$108:$M$174,3)), IF($B$32=3,IF($B34<18,'Tarifas Advantage'!$P$108,VLOOKUP('Fórmulas Cotización'!$B34,'Tarifas Advantage'!$O$108:$T$174,3)), IF($B$32=4,IF($B34<18,'Tarifas Advantage'!$W$108,VLOOKUP('Fórmulas Cotización'!$B34,'Tarifas Advantage'!$V$108:$AA$174,3)), IF($B34<18,'Tarifas Advantage'!$AE$108,VLOOKUP('Fórmulas Cotización'!$B34,'Tarifas Advantage'!$AC$108:$AH$174,3)))))),0) -> 0 | F34: =IF(B34>0,IF($B$32=1,IF($B34<18,'Tarifas Advantage'!$B$108,VLOOKUP('Fórmulas Cotización'!$B34,'Tarifas Advantage'!$A$108:$F$174,4)), IF($B$32=2,IF($B34<18,'Tarifas Advantage'!$I$108,VLOOKUP('Fórmulas Cotización'!$B34,'Tarifas Advantage'!$H$108:$M$174,4)), IF($B$32=3,IF($B34<18,'Tarifas Advantage'!$P$108,VLOOKUP('Fórmulas Cotización'!$B34,'Tarifas Advantage'!$O$108:$T$174,4)), IF($B$32=4,IF($B34<18,'Tarifas Advantage'!$W$108,VLOOKUP('Fórmulas Cotización'!$B34,'Tarifas Advantage'!$V$108:$AA$174,4)), IF($B34<18,'Tarifas Advantage'!$AF$108,VLOOKUP('Fórmulas Cotización'!$B34,'Tarifas Advantage'!$AC$108:$AH$174,4)))))),0) -> 0 | G34: =IF(B34>0,IF($B$32=1,IF($B34<18,'Tarifas Advantage'!$B$108,VLOOKUP('Fórmulas Cotización'!$B34,'Tarifas Advantage'!$A$108:$F$174,5)), IF($B$32=2,IF($B34<18,'Tarifas Advantage'!$I$108,VLOOKUP('Fórmulas Cotización'!$B34,'Tarifas Advantage'!$H$108:$M$174,5)), IF($B$32=3,IF($B34<18,'Tarifas Advantage'!$P$108,VLOOKUP('Fórmulas Cotización'!$B34,'Tarifas Advantage'!$O$108:$T$174,5)), IF($B$32=4,IF($B34<18,'Tarifas Advantage'!$W$108,VLOOKUP('Fórmulas Cotización'!$B34,'Tarifas Advantage'!$V$108:$AA$174,5)), IF($B34<18,'Tarifas Advantage'!$AG$108,VLOOKUP('Fórmulas Cotización'!$B34,'Tarifas Advantage'!$AC$108:$AH$174,5)))))),0) -> 0 | H34: =IF(B34>0,IF($B$32=1,IF($B34<18,'Tarifas Advantage'!$B$108,VLOOKUP('Fórmulas Cotización'!$B34,'Tarifas Advantage'!$A$108:$F$174,6)), IF($B$32=2,IF($B34<18,'Tarifas Advantage'!$I$108,VLOOKUP('Fórmulas Cotización'!$B34,'Tarifas Advantage'!$H$108:$M$174,6)), IF($B$32=3,IF($B34<18,'Tarifas Advantage'!$P$108,VLOOKUP('Fórmulas Cotización'!$B34,'Tarifas Advantage'!$O$108:$T$174,6)), IF($B$32=4,IF($B34<18,'Tarifas Advantage'!$W$108,VLOOKUP('Fórmulas Cotización'!$B34,'Tarifas Advantage'!$V$108:$AA$174,6)), IF($B34<18,'Tarifas Advantage'!$AH$108,VLOOKUP('Fórmulas Cotización'!$B34,'Tarifas Advantage'!$AC$108:$AH$174,6)))))),0) -> 0 | J34: =IF(B34>0,IF($B$32=1,IF($B34<18,'Tarifas Complete'!$B$108,VLOOKUP('Fórmulas Cotización'!$B34,'Tarifas Complete'!$A$108:$F$174,2)), IF($B$32=2,IF($B34<18,'Tarifas Complete'!$I$108,VLOOKUP('Fórmulas Cotización'!$B34,'Tarifas Complete'!$H$108:$M$174,2)), IF($B$32=3,IF($B34<18,'Tarifas Complete'!$P$108,VLOOKUP('Fórmulas Cotización'!$B34,'Tarifas Complete'!$O$108:$T$174,2)), IF($B$32=4,IF($B34<18,'Tarifas Complete'!$W$108,VLOOKUP('Fórmulas Cotización'!$B34,'Tarifas Complete'!$V$108:$AA$174,2)), IF($B34<18,'Tarifas Complete'!$AD$108,VLOOKUP('Fórmulas Cotización'!$B34,'Tarifas Complete'!$AC$108:$AH$174,2)))))),0) -> 0 | K34: =IF(B34>0,IF($B$32=1,IF($B34<18,'Tarifas Complete'!$B$108,VLOOKUP('Fórmulas Cotización'!$B34,'Tarifas Complete'!$A$108:$F$174,3)), IF($B$32=2,IF($B34<18,'Tarifas Complete'!$I$108,VLOOKUP('Fórmulas Cotización'!$B34,'Tarifas Complete'!$H$108:$M$174,3)), IF($B$32=3,IF($B34<18,'Tarifas Complete'!$P$108,VLOOKUP('Fórmulas Cotización'!$B34,'Tarifas Complete'!$O$108:$T$174,3)), IF($B$32=4,IF($B34<18,'Tarifas Complete'!$W$108,VLOOKUP('Fórmulas Cotización'!$B34,'Tarifas Complete'!$V$108:$AA$174,3)), IF($B34<18,'Tarifas Complete'!$AE$108,VLOOKUP('Fórmulas Cotización'!$B34,'Tarifas Complete'!$AC$108:$AH$174,3)))))),0) -> 0 | L34: =IF(B34>0,IF($B$32=1,IF($B34<18,'Tarifas Complete'!$B$108,VLOOKUP('Fórmulas Cotización'!$B34,'Tarifas Complete'!$A$108:$F$174,4)), IF($B$32=2,IF($B34<18,'Tarifas Complete'!$I$108,VLOOKUP('Fórmulas Cotización'!$B34,'Tarifas Complete'!$H$108:$M$174,4)), IF($B$32=3,IF($B34<18,'Tarifas Complete'!$P$108,VLOOKUP('Fórmulas Cotización'!$B34,'Tarifas Complete'!$O$108:$T$174,4)), IF($B$32=4,IF($B34<18,'Tarifas Complete'!$W$108,VLOOKUP('Fórmulas Cotización'!$B34,'Tarifas Complete'!$V$108:$AA$174,4)), IF($B34<18,'Tarifas Complete'!$AF$108,VLOOKUP('Fórmulas Cotización'!$B34,'Tarifas Complete'!$AC$108:$AH$174,4)))))),0) -> 0 | M34: =IF(B34>0,IF($B$32=1,IF($B34<18,'Tarifas Complete'!$B$108,VLOOKUP('Fórmulas Cotización'!$B34,'Tarifas Complete'!$A$108:$F$174,5)), IF($B$32=2,IF($B34<18,'Tarifas Complete'!$I$108,VLOOKUP('Fórmulas Cotización'!$B34,'Tarifas Complete'!$H$108:$M$174,5)), IF($B$32=3,IF($B34<18,'Tarifas Complete'!$P$108,VLOOKUP('Fórmulas Cotización'!$B34,'Tarifas Complete'!$O$108:$T$174,5)), IF($B$32=4,IF($B34<18,'Tarifas Complete'!$W$108,VLOOKUP('Fórmulas Cotización'!$B34,'Tarifas Complete'!$V$108:$AA$174,5)), IF($B34<18,'Tarifas Complete'!$AG$108,VLOOKUP('Fórmulas Cotización'!$B34,'Tarifas Complete'!$AC$108:$AH$174,5)))))),0) -> 0 | N34: =IF(B34>0,IF($B$32=1,IF($B34<18,'Tarifas Complete'!$B$108,VLOOKUP('Fórmulas Cotización'!$B34,'Tarifas Complete'!$A$108:$F$174,6)), IF($B$32=2,IF($B34<18,'Tarifas Complete'!$I$108,VLOOKUP('Fórmulas Cotización'!$B34,'Tarifas Complete'!$H$108:$M$174,6)), IF($B$32=3,IF($B34<18,'Tarifas Complete'!$P$108,VLOOKUP('Fórmulas Cotización'!$B34,'Tarifas Complete'!$O$108:$T$174,6)), IF($B$32=4,IF($B34<18,'Tarifas Complete'!$W$108,VLOOKUP('Fórmulas Cotización'!$B34,'Tarifas Complete'!$V$108:$AA$174,6)), IF($B34<18,'Tarifas Complete'!$AH$108,VLOOKUP('Fórmulas Cotización'!$B34,'Tarifas Complete'!$AC$108:$AH$174,6)))))),0) -> 0 | P34: =IF(B34>0,IF($B$32=1,IF($B34<18,'Tarifas Diamond'!$B$108,VLOOKUP('Fórmulas Cotización'!$B34,'Tarifas Diamond'!$A$108:$F$174,2)), IF($B$32=2,IF($B34<18,'Tarifas Diamond'!$I$108,VLOOKUP('Fórmulas Cotización'!$B34,'Tarifas Diamond'!$H$108:$M$174,2)), IF($B$32=3,IF($B34<18,'Tarifas Diamond'!$P$108,VLOOKUP('Fórmulas Cotización'!$B34,'Tarifas Diamond'!$O$108:$T$174,2)), IF($B$32=4,IF($B34<18,'Tarifas Diamond'!$W$108,VLOOKUP('Fórmulas Cotización'!$B34,'Tarifas Diamond'!$V$108:$AA$174,2)), IF($B34<18,'Tarifas Diamond'!$AD$108,VLOOKUP('Fórmulas Cotización'!$B34,'Tarifas Diamond'!$AC$108:$AH$174,2)))))),0) -> 0 | Q34: =IF(B34>0,IF($B$32=1,IF($B34<18,'Tarifas Diamond'!$B$108,VLOOKUP('Fórmulas Cotización'!$B34,'Tarifas Diamond'!$A$108:$F$174,3)), IF($B$32=2,IF($B34<18,'Tarifas Diamond'!$I$108,VLOOKUP('Fórmulas Cotización'!$B34,'Tarifas Diamond'!$H$108:$M$174,3)), IF($B$32=3,IF($B34<18,'Tarifas Diamond'!$P$108,VLOOKUP('Fórmulas Cotización'!$B34,'Tarifas Diamond'!$O$108:$T$174,3)), IF($B$32=4,IF($B34<18,'Tarifas Diamond'!$W$108,VLOOKUP('Fórmulas Cotización'!$B34,'Tarifas Diamond'!$V$108:$AA$174,3)), IF($B34<18,'Tarifas Diamond'!$AE$108,VLOOKUP('Fórmulas Cotización'!$B34,'Tarifas Diamond'!$AC$108:$AH$174,3)))))),0) -> 0 | R34: =IF(B34>0,IF($B$32=1,IF($B34<18,'Tarifas Diamond'!$B$108,VLOOKUP('Fórmulas Cotización'!$B34,'Tarifas Diamond'!$A$108:$F$174,4)), IF($B$32=2,IF($B34<18,'Tarifas Diamond'!$I$108,VLOOKUP('Fórmulas Cotización'!$B34,'Tarifas Diamond'!$H$108:$M$174,4)), IF($B$32=3,IF($B34<18,'Tarifas Diamond'!$P$108,VLOOKUP('Fórmulas Cotización'!$B34,'Tarifas Diamond'!$O$108:$T$174,4)), IF($B$32=4,IF($B34<18,'Tarifas Diamond'!$W$108,VLOOKUP('Fórmulas Cotización'!$B34,'Tarifas Diamond'!$V$108:$AA$174,4)), IF($B34<18,'Tarifas Diamond'!$AF$108,VLOOKUP('Fórmulas Cotización'!$B34,'Tarifas Diamond'!$AC$108:$AH$174,4)))))),0) -> 0 | S34: =IF(B34>0,IF($B$32=1,IF($B34<18,'Tarifas Diamond'!$B$108,VLOOKUP('Fórmulas Cotización'!$B34,'Tarifas Diamond'!$A$108:$F$174,5)), IF($B$32=2,IF($B34<18,'Tarifas Diamond'!$I$108,VLOOKUP('Fórmulas Cotización'!$B34,'Tarifas Diamond'!$H$108:$M$174,5)), IF($B$32=3,IF($B34<18,'Tarifas Diamond'!$P$108,VLOOKUP('Fórmulas Cotización'!$B34,'Tarifas Diamond'!$O$108:$T$174,5)), IF($B$32=4,IF($B34<18,'Tarifas Diamond'!$W$108,VLOOKUP('Fórmulas Cotización'!$B34,'Tarifas Diamond'!$V$108:$AA$174,5)), IF($B34<18,'Tarifas Diamond'!$AG$108,VLOOKUP('Fórmulas Cotización'!$B34,'Tarifas Diamond'!$AC$108:$AH$174,5)))))),0) -> 0 | T34: =IF(B34>0,IF($B$32=1,IF($B34<18,'Tarifas Diamond'!$B$108,VLOOKUP('Fórmulas Cotización'!$B34,'Tarifas Diamond'!$A$108:$F$174,6)), IF($B$32=2,IF($B34<18,'Tarifas Diamond'!$I$108,VLOOKUP('Fórmulas Cotización'!$B34,'Tarifas Diamond'!$H$108:$M$174,6)), IF($B$32=3,IF($B34<18,'Tarifas Diamond'!$P$108,VLOOKUP('Fórmulas Cotización'!$B34,'Tarifas Diamond'!$O$108:$T$174,6)), IF($B$32=4,IF($B34<18,'Tarifas Diamond'!$W$108,VLOOKUP('Fórmulas Cotización'!$B34,'Tarifas Diamond'!$V$108:$AA$174,6)), IF($B34<18,'Tarifas Diamond'!$AH$108,VLOOKUP('Fórmulas Cotización'!$B34,'Tarifas Diamond'!$AC$108:$AH$174,6)))))),0) -> 0 | V34: =IF(B34>0,IF($B$32=1,IF($B34<18,'Tarifas Essential'!$B$108,VLOOKUP('Fórmulas Cotización'!$B34,'Tarifas Essential'!$A$108:$F$174,2)), IF($B$32=2,IF($B34<18,'Tarifas Essential'!$I$108,VLOOKUP('Fórmulas Cotización'!$B34,'Tarifas Essential'!$H$108:$M$174,2)), IF($B$32=3,IF($B34<18,'Tarifas Essential'!$P$108,VLOOKUP('Fórmulas Cotización'!$B34,'Tarifas Essential'!$O$108:$T$174,2)), IF($B$32=4,IF($B34<18,'Tarifas Essential'!$W$108,VLOOKUP('Fórmulas Cotización'!$B34,'Tarifas Essential'!$V$108:$AA$174,2)), IF($B34<18,'Tarifas Essential'!$AD$108,VLOOKUP('Fórmulas Cotización'!$B34,'Tarifas Essential'!$AC$108:$AH$174,2)))))),0) -> 0 | W34: =IF(B34>0,IF($B$32=1,IF($B34<18,'Tarifas Essential'!$B$108,VLOOKUP('Fórmulas Cotización'!$B34,'Tarifas Essential'!$A$108:$F$174,3)), IF($B$32=2,IF($B34<18,'Tarifas Essential'!$I$108,VLOOKUP('Fórmulas Cotización'!$B34,'Tarifas Essential'!$H$108:$M$174,3)), IF($B$32=3,IF($B34<18,'Tarifas Essential'!$P$108,VLOOKUP('Fórmulas Cotización'!$B34,'Tarifas Essential'!$O$108:$T$174,3)), IF($B$32=4,IF($B34<18,'Tarifas Essential'!$W$108,VLOOKUP('Fórmulas Cotización'!$B34,'Tarifas Essential'!$V$108:$AA$174,3)), IF($B34<18,'Tarifas Essential'!$AE$108,VLOOKUP('Fórmulas Cotización'!$B34,'Tarifas Essential'!$AC$108:$AH$174,3)))))),0) -> 0 | X34: =IF(B34>0,IF($B$32=1,IF($B34<18,'Tarifas Essential'!$B$108,VLOOKUP('Fórmulas Cotización'!$B34,'Tarifas Essential'!$A$108:$F$174,4)), IF($B$32=2,IF($B34<18,'Tarifas Essential'!$I$108,VLOOKUP('Fórmulas Cotización'!$B34,'Tarifas Essential'!$H$108:$M$174,4)), IF($B$32=3,IF($B34<18,'Tarifas Essential'!$P$108,VLOOKUP('Fórmulas Cotización'!$B34,'Tarifas Essential'!$O$108:$T$174,4)), IF($B$32=4,IF($B34<18,'Tarifas Essential'!$W$108,VLOOKUP('Fórmulas Cotización'!$B34,'Tarifas Essential'!$V$108:$AA$174,4)), IF($B34<18,'Tarifas Essential'!$AF$108,VLOOKUP('Fórmulas Cotización'!$B34,'Tarifas Essential'!$AC$108:$AH$174,4)))))),0) -> 0 | Y34: =IF(B34>0,IF($B$32=1,IF($B34<18,'Tarifas Essential'!$B$108,VLOOKUP('Fórmulas Cotización'!$B34,'Tarifas Essential'!$A$108:$F$174,5)), IF($B$32=2,IF($B34<18,'Tarifas Essential'!$I$108,VLOOKUP('Fórmulas Cotización'!$B34,'Tarifas Essential'!$H$108:$M$174,5)), IF($B$32=3,IF($B34<18,'Tarifas Essential'!$P$108,VLOOKUP('Fórmulas Cotización'!$B34,'Tarifas Essential'!$O$108:$T$174,5)), IF($B$32=4,IF($B34<18,'Tarifas Essential'!$W$108,VLOOKUP('Fórmulas Cotización'!$B34,'Tarifas Essential'!$V$108:$AA$174,5)), IF($B34<18,'Tarifas Essential'!$AG$108,VLOOKUP('Fórmulas Cotización'!$B34,'Tarifas Essential'!$AC$108:$AH$174,5)))))),0) -> 0 | Z34: =IF(B34>0,IF($B$32=1,IF($B34<18,'Tarifas Essential'!$B$108,VLOOKUP('Fórmulas Cotización'!$B34,'Tarifas Essential'!$A$108:$F$174,6)), IF($B$32=2,IF($B34<18,'Tarifas Essential'!$I$108,VLOOKUP('Fórmulas Cotización'!$B34,'Tarifas Essential'!$H$108:$M$174,6)), IF($B$32=3,IF($B34<18,'Tarifas Essential'!$P$108,VLOOKUP('Fórmulas Cotización'!$B34,'Tarifas Essential'!$O$108:$T$174,6)), IF($B$32=4,IF($B34<18,'Tarifas Essential'!$W$108,VLOOKUP('Fórmulas Cotización'!$B34,'Tarifas Essential'!$V$108:$AA$174,6)), IF($B34<18,'Tarifas Essential'!$AH$108,VLOOKUP('Fórmulas Cotización'!$B34,'Tarifas Essential'!$AC$108:$AH$174,6)))))),0) -> 0 | AB34: =IF(B34>0,IF($B$32=1,IF($B34<18,'Tarifas Secure'!$B$108,VLOOKUP('Fórmulas Cotización'!$B34,'Tarifas Secure'!$A$108:$F$174,2)), IF($B$32=2,IF($B34<18,'Tarifas Secure'!$I$108,VLOOKUP('Fórmulas Cotización'!$B34,'Tarifas Secure'!$H$108:$M$174,2)), IF($B$32=3,IF($B34<18,'Tarifas Secure'!$P$108,VLOOKUP('Fórmulas Cotización'!$B34,'Tarifas Secure'!$O$108:$T$174,2)), IF($B$32=4,IF($B34<18,'Tarifas Secure'!$W$108,VLOOKUP('Fórmulas Cotización'!$B34,'Tarifas Secure'!$V$108:$AA$174,2)), IF($B34<18,'Tarifas Secure'!$AD$108,VLOOKUP('Fórmulas Cotización'!$B34,'Tarifas Secure'!$AC$108:$AH$174,2)))))),0) -> 0 | AC34: =IF(B34>0,IF($B$32=1,IF($B34<18,'Tarifas Secure'!$B$108,VLOOKUP('Fórmulas Cotización'!$B34,'Tarifas Secure'!$A$108:$F$174,3)), IF($B$32=2,IF($B34<18,'Tarifas Secure'!$I$108,VLOOKUP('Fórmulas Cotización'!$B34,'Tarifas Secure'!$H$108:$M$174,3)), IF($B$32=3,IF($B34<18,'Tarifas Secure'!$P$108,VLOOKUP('Fórmulas Cotización'!$B34,'Tarifas Secure'!$O$108:$T$174,3)), IF($B$32=4,IF($B34<18,'Tarifas Secure'!$W$108,VLOOKUP('Fórmulas Cotización'!$B34,'Tarifas Secure'!$V$108:$AA$174,3)), IF($B34<18,'Tarifas Secure'!$AE$108,VLOOKUP('Fórmulas Cotización'!$B34,'Tarifas Secure'!$AC$108:$AH$174,3)))))),0) -> 0 | AD34: =IF(B34>0,IF($B$32=1,IF($B34<18,'Tarifas Secure'!$B$108,VLOOKUP('Fórmulas Cotización'!$B34,'Tarifas Secure'!$A$108:$F$174,4)), IF($B$32=2,IF($B34<18,'Tarifas Secure'!$I$108,VLOOKUP('Fórmulas Cotización'!$B34,'Tarifas Secure'!$H$108:$M$174,4)), IF($B$32=3,IF($B34<18,'Tarifas Secure'!$P$108,VLOOKUP('Fórmulas Cotización'!$B34,'Tarifas Secure'!$O$108:$T$174,4)), IF($B$32=4,IF($B34<18,'Tarifas Secure'!$W$108,VLOOKUP('Fórmulas Cotización'!$B34,'Tarifas Secure'!$V$108:$AA$174,4)), IF($B34<18,'Tarifas Secure'!$AF$108,VLOOKUP('Fórmulas Cotización'!$B34,'Tarifas Secure'!$AC$108:$AH$174,4)))))),0) -> 0 | AE34: =IF(B34>0,IF($B$32=1,IF($B34<18,'Tarifas Secure'!$B$108,VLOOKUP('Fórmulas Cotización'!$B34,'Tarifas Secure'!$A$108:$F$174,5)), IF($B$32=2,IF($B34<18,'Tarifas Secure'!$I$108,VLOOKUP('Fórmulas Cotización'!$B34,'Tarifas Secure'!$H$108:$M$174,5)), IF($B$32=3,IF($B34<18,'Tarifas Secure'!$P$108,VLOOKUP('Fórmulas Cotización'!$B34,'Tarifas Secure'!$O$108:$T$174,5)), IF($B$32=4,IF($B34<18,'Tarifas Secure'!$W$108,VLOOKUP('Fórmulas Cotización'!$B34,'Tarifas Secure'!$V$108:$AA$174,5)), IF($B34<18,'Tarifas Secure'!$AG$108,VLOOKUP('Fórmulas Cotización'!$B34,'Tarifas Secure'!$AC$108:$AH$174,5)))))),0) -> 0 | AF34: =IF(B34>0,IF($B$32=1,IF($B34<18,'Tarifas Secure'!$B$108,VLOOKUP('Fórmulas Cotización'!$B34,'Tarifas Secure'!$A$108:$F$174,6)), IF($B$32=2,IF($B34<18,'Tarifas Secure'!$I$108,VLOOKUP('Fórmulas Cotización'!$B34,'Tarifas Secure'!$H$108:$M$174,6)), IF($B$32=3,IF($B34<18,'Tarifas Secure'!$P$108,VLOOKUP('Fórmulas Cotización'!$B34,'Tarifas Secure'!$O$108:$T$174,6)), IF($B$32=4,IF($B34<18,'Tarifas Secure'!$W$108,VLOOKUP('Fórmulas Cotización'!$B34,'Tarifas Secure'!$V$108:$AA$174,6)), IF($B34<18,'Tarifas Secure'!$AH$108,VLOOKUP('Fórmulas Cotización'!$B34,'Tarifas Secure'!$AC$108:$AH$174,6)))))),0) -> 0 | AH34: =IF(B34>0,IF($B$32=1,IF($B34<18,'Bupa Total'!$B$108,VLOOKUP('Fórmulas Cotización'!$B34,'Bupa Total'!$A$108:$F$174,2)), IF($B$32=2,IF($B34<18,'Bupa Total'!$I$108,VLOOKUP('Fórmulas Cotización'!$B34,'Bupa Total'!$H$108:$M$174,2)), IF($B$32=3,IF($B34<18,'Bupa Total'!$P$108,VLOOKUP('Fórmulas Cotización'!$B34,'Bupa Total'!$O$108:$T$174,2)), IF($B$32=4,IF($B34<18,'Bupa Total'!$W$108,VLOOKUP('Fórmulas Cotización'!$B34,'Bupa Total'!$V$108:$AA$174,2)), IF($B34<18,'Bupa Total'!$AD$108,VLOOKUP('Fórmulas Cotización'!$B34,'Bupa Total'!$AC$108:$AH$174,2)))))),0) -> 0 | AI34: =IF(B34>0,IF($B$32=1,IF($B34<18,'Bupa Total'!$B$108,VLOOKUP('Fórmulas Cotización'!$B34,'Bupa Total'!$A$108:$F$174,3)), IF($B$32=2,IF($B34<18,'Bupa Total'!$I$108,VLOOKUP('Fórmulas Cotización'!$B34,'Bupa Total'!$H$108:$M$174,3)), IF($B$32=3,IF($B34<18,'Bupa Total'!$P$108,VLOOKUP('Fórmulas Cotización'!$B34,'Bupa Total'!$O$108:$T$174,3)), IF($B$32=4,IF($B34<18,'Bupa Total'!$W$108,VLOOKUP('Fórmulas Cotización'!$B34,'Bupa Total'!$V$108:$AA$174,3)), IF($B34<18,'Bupa Total'!$AE$108,VLOOKUP('Fórmulas Cotización'!$B34,'Bupa Total'!$AC$108:$AH$174,3)))))),0) -> 0 | AJ34: =IF(B34>0,IF($B$32=1,IF($B34<18,'Bupa Total'!$B$108,VLOOKUP('Fórmulas Cotización'!$B34,'Bupa Total'!$A$108:$F$174,4)), IF($B$32=2,IF($B34<18,'Bupa Total'!$I$108,VLOOKUP('Fórmulas Cotización'!$B34,'Bupa Total'!$H$108:$M$174,4)), IF($B$32=3,IF($B34<18,'Bupa Total'!$P$108,VLOOKUP('Fórmulas Cotización'!$B34,'Bupa Total'!$O$108:$T$174,4)), IF($B$32=4,IF($B34<18,'Bupa Total'!$W$108,VLOOKUP('Fórmulas Cotización'!$B34,'Bupa Total'!$V$108:$AA$174,4)), IF($B34<18,'Bupa Total'!$AF$108,VLOOKUP('Fórmulas Cotización'!$B34,'Bupa Total'!$AC$108:$AH$174,4)))))),0) -> 0 | AK34: =IF(B34>0,IF($B$32=1,IF($B34<18,'Bupa Total'!$B$108,VLOOKUP('Fórmulas Cotización'!$B34,'Bupa Total'!$A$108:$F$174,5)), IF($B$32=2,IF($B34<18,'Bupa Total'!$I$108,VLOOKUP('Fórmulas Cotización'!$B34,'Bupa Total'!$H$108:$M$174,5)), IF($B$32=3,IF($B34<18,'Bupa Total'!$P$108,VLOOKUP('Fórmulas Cotización'!$B34,'Bupa Total'!$O$108:$T$174,5)), IF($B$32=4,IF($B34<18,'Bupa Total'!$W$108,VLOOKUP('Fórmulas Cotización'!$B34,'Bupa Total'!$V$108:$AA$174,5)), IF($B34<18,'Bupa Total'!$AG$108,VLOOKUP('Fórmulas Cotización'!$B34,'Bupa Total'!$AC$108:$AH$174,5)))))),0) -> 0 | AL34: =IF(B34>0,IF($B$32=1,IF($B34<18,'Bupa Total'!$B$108,VLOOKUP('Fórmulas Cotización'!$B34,'Bupa Total'!$A$108:$F$174,6)), IF($B$32=2,IF($B34<18,'Bupa Total'!$I$108,VLOOKUP('Fórmulas Cotización'!$B34,'Bupa Total'!$H$108:$M$174,6)), IF($B$32=3,IF($B34<18,'Bupa Total'!$P$108,VLOOKUP('Fórmulas Cotización'!$B34,'Bupa Total'!$O$108:$T$174,6)), IF($B$32=4,IF($B34<18,'Bupa Total'!$W$108,VLOOKUP('Fórmulas Cotización'!$B34,'Bupa Total'!$V$108:$AA$174,6)), IF($B34<18,'Bupa Total'!$AH$108,VLOOKUP('Fórmulas Cotización'!$B34,'Bupa Total'!$AC$108:$AH$174,6)))))),0) -> 0 | AV34: Tabasco | AW34: Zona 5 | AX34: 5 | AY34: 0 | AZ34: 0
A35: 2 | B35: ='BUPA CARE PRODUCTS'!H15 -> 0 | D35: =IF(B35>0,IF($B$32=1,IF($B35<18,'Tarifas Advantage'!$B$108,VLOOKUP('Fórmulas Cotización'!$B35,'Tarifas Advantage'!$A$108:$F$174,2)), IF($B$32=2,IF($B35<18,'Tarifas Advantage'!$I$108,VLOOKUP('Fórmulas Cotización'!$B35,'Tarifas Advantage'!$H$108:$M$174,2)), IF($B$32=3,IF($B35<18,'Tarifas Advantage'!$P$108,VLOOKUP('Fórmulas Cotización'!$B35,'Tarifas Advantage'!$O$108:$T$174,2)), IF($B$32=4,IF($B35<18,'Tarifas Advantage'!$W$108,VLOOKUP('Fórmulas Cotización'!$B35,'Tarifas Advantage'!$V$108:$AA$174,2)), IF($B35<18,'Tarifas Advantage'!$AD$108,VLOOKUP('Fórmulas Cotización'!$B35,'Tarifas Advantage'!$AC$108:$AH$174,2)))))),0) -> 0 | E35: =IF(B35>0,IF($B$32=1,IF($B35<18,'Tarifas Advantage'!$B$108,VLOOKUP('Fórmulas Cotización'!$B35,'Tarifas Advantage'!$A$108:$F$174,3)), IF($B$32=2,IF($B35<18,'Tarifas Advantage'!$I$108,VLOOKUP('Fórmulas Cotización'!$B35,'Tarifas Advantage'!$H$108:$M$174,3)), IF($B$32=3,IF($B35<18,'Tarifas Advantage'!$P$108,VLOOKUP('Fórmulas Cotización'!$B35,'Tarifas Advantage'!$O$108:$T$174,3)), IF($B$32=4,IF($B35<18,'Tarifas Advantage'!$W$108,VLOOKUP('Fórmulas Cotización'!$B35,'Tarifas Advantage'!$V$108:$AA$174,3)), IF($B35<18,'Tarifas Advantage'!$AE$108,VLOOKUP('Fórmulas Cotización'!$B35,'Tarifas Advantage'!$AC$108:$AH$174,3)))))),0) -> 0 | F35: =IF(B35>0,IF($B$32=1,IF($B35<18,'Tarifas Advantage'!$B$108,VLOOKUP('Fórmulas Cotización'!$B35,'Tarifas Advantage'!$A$108:$F$174,4)), IF($B$32=2,IF($B35<18,'Tarifas Advantage'!$I$108,VLOOKUP('Fórmulas Cotización'!$B35,'Tarifas Advantage'!$H$108:$M$174,4)), IF($B$32=3,IF($B35<18,'Tarifas Advantage'!$P$108,VLOOKUP('Fórmulas Cotización'!$B35,'Tarifas Advantage'!$O$108:$T$174,4)), IF($B$32=4,IF($B35<18,'Tarifas Advantage'!$W$108,VLOOKUP('Fórmulas Cotización'!$B35,'Tarifas Advantage'!$V$108:$AA$174,4)), IF($B35<18,'Tarifas Advantage'!$AF$108,VLOOKUP('Fórmulas Cotización'!$B35,'Tarifas Advantage'!$AC$108:$AH$174,4)))))),0) -> 0 | G35: =IF(B35>0,IF($B$32=1,IF($B35<18,'Tarifas Advantage'!$B$108,VLOOKUP('Fórmulas Cotización'!$B35,'Tarifas Advantage'!$A$108:$F$174,5)), IF($B$32=2,IF($B35<18,'Tarifas Advantage'!$I$108,VLOOKUP('Fórmulas Cotización'!$B35,'Tarifas Advantage'!$H$108:$M$174,5)), IF($B$32=3,IF($B35<18,'Tarifas Advantage'!$P$108,VLOOKUP('Fórmulas Cotización'!$B35,'Tarifas Advantage'!$O$108:$T$174,5)), IF($B$32=4,IF($B35<18,'Tarifas Advantage'!$W$108,VLOOKUP('Fórmulas Cotización'!$B35,'Tarifas Advantage'!$V$108:$AA$174,5)), IF($B35<18,'Tarifas Advantage'!$AG$108,VLOOKUP('Fórmulas Cotización'!$B35,'Tarifas Advantage'!$AC$108:$AH$174,5)))))),0) -> 0 | H35: =IF(B35>0,IF($B$32=1,IF($B35<18,'Tarifas Advantage'!$B$108,VLOOKUP('Fórmulas Cotización'!$B35,'Tarifas Advantage'!$A$108:$F$174,6)), IF($B$32=2,IF($B35<18,'Tarifas Advantage'!$I$108,VLOOKUP('Fórmulas Cotización'!$B35,'Tarifas Advantage'!$H$108:$M$174,6)), IF($B$32=3,IF($B35<18,'Tarifas Advantage'!$P$108,VLOOKUP('Fórmulas Cotización'!$B35,'Tarifas Advantage'!$O$108:$T$174,6)), IF($B$32=4,IF($B35<18,'Tarifas Advantage'!$W$108,VLOOKUP('Fórmulas Cotización'!$B35,'Tarifas Advantage'!$V$108:$AA$174,6)), IF($B35<18,'Tarifas Advantage'!$AH$108,VLOOKUP('Fórmulas Cotización'!$B35,'Tarifas Advantage'!$AC$108:$AH$174,6)))))),0) -> 0 | J35: =IF(B35>0,IF($B$32=1,IF($B35<18,'Tarifas Complete'!$B$108,VLOOKUP('Fórmulas Cotización'!$B35,'Tarifas Complete'!$A$108:$F$174,2)), IF($B$32=2,IF($B35<18,'Tarifas Complete'!$I$108,VLOOKUP('Fórmulas Cotización'!$B35,'Tarifas Complete'!$H$108:$M$174,2)), IF($B$32=3,IF($B35<18,'Tarifas Complete'!$P$108,VLOOKUP('Fórmulas Cotización'!$B35,'Tarifas Complete'!$O$108:$T$174,2)), IF($B$32=4,IF($B35<18,'Tarifas Complete'!$W$108,VLOOKUP('Fórmulas Cotización'!$B35,'Tarifas Complete'!$V$108:$AA$174,2)), IF($B35<18,'Tarifas Complete'!$AD$108,VLOOKUP('Fórmulas Cotización'!$B35,'Tarifas Complete'!$AC$108:$AH$174,3)))))),0) -> 0 | K35: =IF(B35>0,IF($B$32=1,IF($B35<18,'Tarifas Complete'!$B$108,VLOOKUP('Fórmulas Cotización'!$B35,'Tarifas Complete'!$A$108:$F$174,3)), IF($B$32=2,IF($B35<18,'Tarifas Complete'!$I$108,VLOOKUP('Fórmulas Cotización'!$B35,'Tarifas Complete'!$H$108:$M$174,3)), IF($B$32=3,IF($B35<18,'Tarifas Complete'!$P$108,VLOOKUP('Fórmulas Cotización'!$B35,'Tarifas Complete'!$O$108:$T$174,3)), IF($B$32=4,IF($B35<18,'Tarifas Complete'!$W$108,VLOOKUP('Fórmulas Cotización'!$B35,'Tarifas Complete'!$V$108:$AA$174,3)), IF($B35<18,'Tarifas Complete'!$AE$108,VLOOKUP('Fórmulas Cotización'!$B35,'Tarifas Complete'!$AC$108:$AH$174,3)))))),0) -> 0 | L35: =IF(B35>0,IF($B$32=1,IF($B35<18,'Tarifas Complete'!$B$108,VLOOKUP('Fórmulas Cotización'!$B35,'Tarifas Complete'!$A$108:$F$174,4)), IF($B$32=2,IF($B35<18,'Tarifas Complete'!$I$108,VLOOKUP('Fórmulas Cotización'!$B35,'Tarifas Complete'!$H$108:$M$174,4)), IF($B$32=3,IF($B35<18,'Tarifas Complete'!$P$108,VLOOKUP('Fórmulas Cotización'!$B35,'Tarifas Complete'!$O$108:$T$174,4)), IF($B$32=4,IF($B35<18,'Tarifas Complete'!$W$108,VLOOKUP('Fórmulas Cotización'!$B35,'Tarifas Complete'!$V$108:$AA$174,4)), IF($B35<18,'Tarifas Complete'!$AF$108,VLOOKUP('Fórmulas Cotización'!$B35,'Tarifas Complete'!$AC$108:$AH$174,4)))))),0) -> 0 | M35: =IF(B35>0,IF($B$32=1,IF($B35<18,'Tarifas Complete'!$B$108,VLOOKUP('Fórmulas Cotización'!$B35,'Tarifas Complete'!$A$108:$F$174,5)), IF($B$32=2,IF($B35<18,'Tarifas Complete'!$I$108,VLOOKUP('Fórmulas Cotización'!$B35,'Tarifas Complete'!$H$108:$M$174,5)), IF($B$32=3,IF($B35<18,'Tarifas Complete'!$P$108,VLOOKUP('Fórmulas Cotización'!$B35,'Tarifas Complete'!$O$108:$T$174,5)), IF($B$32=4,IF($B35<18,'Tarifas Complete'!$W$108,VLOOKUP('Fórmulas Cotización'!$B35,'Tarifas Complete'!$V$108:$AA$174,5)), IF($B35<18,'Tarifas Complete'!$AG$108,VLOOKUP('Fórmulas Cotización'!$B35,'Tarifas Complete'!$AC$108:$AH$174,5)))))),0) -> 0 | N35: =IF(B35>0,IF($B$32=1,IF($B35<18,'Tarifas Complete'!$B$108,VLOOKUP('Fórmulas Cotización'!$B35,'Tarifas Complete'!$A$108:$F$174,6)), IF($B$32=2,IF($B35<18,'Tarifas Complete'!$I$108,VLOOKUP('Fórmulas Cotización'!$B35,'Tarifas Complete'!$H$108:$M$174,6)), IF($B$32=3,IF($B35<18,'Tarifas Complete'!$P$108,VLOOKUP('Fórmulas Cotización'!$B35,'Tarifas Complete'!$O$108:$T$174,6)), IF($B$32=4,IF($B35<18,'Tarifas Complete'!$W$108,VLOOKUP('Fórmulas Cotización'!$B35,'Tarifas Complete'!$V$108:$AA$174,6)), IF($B35<18,'Tarifas Complete'!$AH$108,VLOOKUP('Fórmulas Cotización'!$B35,'Tarifas Complete'!$AC$108:$AH$174,6)))))),0) -> 0 | P35: =IF(B35>0,IF($B$32=1,IF($B35<18,'Tarifas Diamond'!$B$108,VLOOKUP('Fórmulas Cotización'!$B35,'Tarifas Diamond'!$A$108:$F$174,2)), IF($B$32=2,IF($B35<18,'Tarifas Diamond'!$I$108,VLOOKUP('Fórmulas Cotización'!$B35,'Tarifas Diamond'!$H$108:$M$174,2)), IF($B$32=3,IF($B35<18,'Tarifas Diamond'!$P$108,VLOOKUP('Fórmulas Cotización'!$B35,'Tarifas Diamond'!$O$108:$T$174,2)), IF($B$32=4,IF($B35<18,'Tarifas Diamond'!$W$108,VLOOKUP('Fórmulas Cotización'!$B35,'Tarifas Diamond'!$V$108:$AA$174,2)), IF($B35<18,'Tarifas Diamond'!$AD$108,VLOOKUP('Fórmulas Cotización'!$B35,'Tarifas Diamond'!$AC$108:$AH$174,2)))))),0) -> 0 | Q35: =IF(B35>0,IF($B$32=1,IF($B35<18,'Tarifas Diamond'!$B$108,VLOOKUP('Fórmulas Cotización'!$B35,'Tarifas Diamond'!$A$108:$F$174,3)), IF($B$32=2,IF($B35<18,'Tarifas Diamond'!$I$108,VLOOKUP('Fórmulas Cotización'!$B35,'Tarifas Diamond'!$H$108:$M$174,3)), IF($B$32=3,IF($B35<18,'Tarifas Diamond'!$P$108,VLOOKUP('Fórmulas Cotización'!$B35,'Tarifas Diamond'!$O$108:$T$174,3)), IF($B$32=4,IF($B35<18,'Tarifas Diamond'!$W$108,VLOOKUP('Fórmulas Cotización'!$B35,'Tarifas Diamond'!$V$108:$AA$174,3)), IF($B35<18,'Tarifas Diamond'!$AE$108,VLOOKUP('Fórmulas Cotización'!$B35,'Tarifas Diamond'!$AC$108:$AH$174,3)))))),0) -> 0 | R35: =IF(B35>0,IF($B$32=1,IF($B35<18,'Tarifas Diamond'!$B$108,VLOOKUP('Fórmulas Cotización'!$B35,'Tarifas Diamond'!$A$108:$F$174,4)), IF($B$32=2,IF($B35<18,'Tarifas Diamond'!$I$108,VLOOKUP('Fórmulas Cotización'!$B35,'Tarifas Diamond'!$H$108:$M$174,4)), IF($B$32=3,IF($B35<18,'Tarifas Diamond'!$P$108,VLOOKUP('Fórmulas Cotización'!$B35,'Tarifas Diamond'!$O$108:$T$174,4)), IF($B$32=4,IF($B35<18,'Tarifas Diamond'!$W$108,VLOOKUP('Fórmulas Cotización'!$B35,'Tarifas Diamond'!$V$108:$AA$174,4)), IF($B35<18,'Tarifas Diamond'!$AF$108,VLOOKUP('Fórmulas Cotización'!$B35,'Tarifas Diamond'!$AC$108:$AH$174,4)))))),0) -> 0 | S35: =IF(B35>0,IF($B$32=1,IF($B35<18,'Tarifas Diamond'!$B$108,VLOOKUP('Fórmulas Cotización'!$B35,'Tarifas Diamond'!$A$108:$F$174,5)), IF($B$32=2,IF($B35<18,'Tarifas Diamond'!$I$108,VLOOKUP('Fórmulas Cotización'!$B35,'Tarifas Diamond'!$H$108:$M$174,5)), IF($B$32=3,IF($B35<18,'Tarifas Diamond'!$P$108,VLOOKUP('Fórmulas Cotización'!$B35,'Tarifas Diamond'!$O$108:$T$174,5)), IF($B$32=4,IF($B35<18,'Tarifas Diamond'!$W$108,VLOOKUP('Fórmulas Cotización'!$B35,'Tarifas Diamond'!$V$108:$AA$174,5)), IF($B35<18,'Tarifas Diamond'!$AG$108,VLOOKUP('Fórmulas Cotización'!$B35,'Tarifas Diamond'!$AC$108:$AH$174,5)))))),0) -> 0 | T35: =IF(B35>0,IF($B$32=1,IF($B35<18,'Tarifas Diamond'!$B$108,VLOOKUP('Fórmulas Cotización'!$B35,'Tarifas Diamond'!$A$108:$F$174,6)), IF($B$32=2,IF($B35<18,'Tarifas Diamond'!$I$108,VLOOKUP('Fórmulas Cotización'!$B35,'Tarifas Diamond'!$H$108:$M$174,6)), IF($B$32=3,IF($B35<18,'Tarifas Diamond'!$P$108,VLOOKUP('Fórmulas Cotización'!$B35,'Tarifas Diamond'!$O$108:$T$174,6)), IF($B$32=4,IF($B35<18,'Tarifas Diamond'!$W$108,VLOOKUP('Fórmulas Cotización'!$B35,'Tarifas Diamond'!$V$108:$AA$174,6)), IF($B35<18,'Tarifas Diamond'!$AH$108,VLOOKUP('Fórmulas Cotización'!$B35,'Tarifas Diamond'!$AC$108:$AH$174,6)))))),0) -> 0 | V35: =IF(B35>0,IF($B$32=1,IF($B35<18,'Tarifas Essential'!$B$108,VLOOKUP('Fórmulas Cotización'!$B35,'Tarifas Essential'!$A$108:$F$174,2)), IF($B$32=2,IF($B35<18,'Tarifas Essential'!$I$108,VLOOKUP('Fórmulas Cotización'!$B35,'Tarifas Essential'!$H$108:$M$174,2)), IF($B$32=3,IF($B35<18,'Tarifas Essential'!$P$108,VLOOKUP('Fórmulas Cotización'!$B35,'Tarifas Essential'!$O$108:$T$174,2)), IF($B$32=4,IF($B35<18,'Tarifas Essential'!$W$108,VLOOKUP('Fórmulas Cotización'!$B35,'Tarifas Essential'!$V$108:$AA$174,2)), IF($B35<18,'Tarifas Essential'!$AD$108,VLOOKUP('Fórmulas Cotización'!$B35,'Tarifas Essential'!$AC$108:$AH$174,2)))))),0) -> 0 | W35: =IF(B35>0,IF($B$32=1,IF($B35<18,'Tarifas Essential'!$B$108,VLOOKUP('Fórmulas Cotización'!$B35,'Tarifas Essential'!$A$108:$F$174,3)), IF($B$32=2,IF($B35<18,'Tarifas Essential'!$I$108,VLOOKUP('Fórmulas Cotización'!$B35,'Tarifas Essential'!$H$108:$M$174,3)), IF($B$32=3,IF($B35<18,'Tarifas Essential'!$P$108,VLOOKUP('Fórmulas Cotización'!$B35,'Tarifas Essential'!$O$108:$T$174,3)), IF($B$32=4,IF($B35<18,'Tarifas Essential'!$W$108,VLOOKUP('Fórmulas Cotización'!$B35,'Tarifas Essential'!$V$108:$AA$174,3)), IF($B35<18,'Tarifas Essential'!$AE$108,VLOOKUP('Fórmulas Cotización'!$B35,'Tarifas Essential'!$AC$108:$AH$174,3)))))),0) -> 0 | X35: =IF(B35>0,IF($B$32=1,IF($B35<18,'Tarifas Essential'!$B$108,VLOOKUP('Fórmulas Cotización'!$B35,'Tarifas Essential'!$A$108:$F$174,4)), IF($B$32=2,IF($B35<18,'Tarifas Essential'!$I$108,VLOOKUP('Fórmulas Cotización'!$B35,'Tarifas Essential'!$H$108:$M$174,4)), IF($B$32=3,IF($B35<18,'Tarifas Essential'!$P$108,VLOOKUP('Fórmulas Cotización'!$B35,'Tarifas Essential'!$O$108:$T$174,4)), IF($B$32=4,IF($B35<18,'Tarifas Essential'!$W$108,VLOOKUP('Fórmulas Cotización'!$B35,'Tarifas Essential'!$V$108:$AA$174,4)), IF($B35<18,'Tarifas Essential'!$AF$108,VLOOKUP('Fórmulas Cotización'!$B35,'Tarifas Essential'!$AC$108:$AH$174,4)))))),0) -> 0 | Y35: =IF(B35>0,IF($B$32=1,IF($B35<18,'Tarifas Essential'!$B$108,VLOOKUP('Fórmulas Cotización'!$B35,'Tarifas Essential'!$A$108:$F$174,5)), IF($B$32=2,IF($B35<18,'Tarifas Essential'!$I$108,VLOOKUP('Fórmulas Cotización'!$B35,'Tarifas Essential'!$H$108:$M$174,5)), IF($B$32=3,IF($B35<18,'Tarifas Essential'!$P$108,VLOOKUP('Fórmulas Cotización'!$B35,'Tarifas Essential'!$O$108:$T$174,5)), IF($B$32=4,IF($B35<18,'Tarifas Essential'!$W$108,VLOOKUP('Fórmulas Cotización'!$B35,'Tarifas Essential'!$V$108:$AA$174,5)), IF($B35<18,'Tarifas Essential'!$AG$108,VLOOKUP('Fórmulas Cotización'!$B35,'Tarifas Essential'!$AC$108:$AH$174,5)))))),0) -> 0 | Z35: =IF(B35>0,IF($B$32=1,IF($B35<18,'Tarifas Essential'!$B$108,VLOOKUP('Fórmulas Cotización'!$B35,'Tarifas Essential'!$A$108:$F$174,6)), IF($B$32=2,IF($B35<18,'Tarifas Essential'!$I$108,VLOOKUP('Fórmulas Cotización'!$B35,'Tarifas Essential'!$H$108:$M$174,6)), IF($B$32=3,IF($B35<18,'Tarifas Essential'!$P$108,VLOOKUP('Fórmulas Cotización'!$B35,'Tarifas Essential'!$O$108:$T$174,6)), IF($B$32=4,IF($B35<18,'Tarifas Essential'!$W$108,VLOOKUP('Fórmulas Cotización'!$B35,'Tarifas Essential'!$V$108:$AA$174,6)), IF($B35<18,'Tarifas Essential'!$AH$108,VLOOKUP('Fórmulas Cotización'!$B35,'Tarifas Essential'!$AC$108:$AH$174,6)))))),0) -> 0 | AB35: =IF(B35>0,IF($B$32=1,IF($B35<18,'Tarifas Secure'!$B$108,VLOOKUP('Fórmulas Cotización'!$B35,'Tarifas Secure'!$A$108:$F$174,2)), IF($B$32=2,IF($B35<18,'Tarifas Secure'!$I$108,VLOOKUP('Fórmulas Cotización'!$B35,'Tarifas Secure'!$H$108:$M$174,2)), IF($B$32=3,IF($B35<18,'Tarifas Secure'!$P$108,VLOOKUP('Fórmulas Cotización'!$B35,'Tarifas Secure'!$O$108:$T$174,2)), IF($B$32=4,IF($B35<18,'Tarifas Secure'!$W$108,VLOOKUP('Fórmulas Cotización'!$B35,'Tarifas Secure'!$V$108:$AA$174,2)), IF($B35<18,'Tarifas Secure'!$AD$108,VLOOKUP('Fórmulas Cotización'!$B35,'Tarifas Secure'!$AC$108:$AH$174,2)))))),0) -> 0 | AC35: =IF(B35>0,IF($B$32=1,IF($B35<18,'Tarifas Secure'!$B$108,VLOOKUP('Fórmulas Cotización'!$B35,'Tarifas Secure'!$A$108:$F$174,3)), IF($B$32=2,IF($B35<18,'Tarifas Secure'!$I$108,VLOOKUP('Fórmulas Cotización'!$B35,'Tarifas Secure'!$H$108:$M$174,3)), IF($B$32=3,IF($B35<18,'Tarifas Secure'!$P$108,VLOOKUP('Fórmulas Cotización'!$B35,'Tarifas Secure'!$O$108:$T$174,3)), IF($B$32=4,IF($B35<18,'Tarifas Secure'!$W$108,VLOOKUP('Fórmulas Cotización'!$B35,'Tarifas Secure'!$V$108:$AA$174,3)), IF($B35<18,'Tarifas Secure'!$AE$108,VLOOKUP('Fórmulas Cotización'!$B35,'Tarifas Secure'!$AC$108:$AH$174,3)))))),0) -> 0 | AD35: =IF(B35>0,IF($B$32=1,IF($B35<18,'Tarifas Secure'!$B$108,VLOOKUP('Fórmulas Cotización'!$B35,'Tarifas Secure'!$A$108:$F$174,4)), IF($B$32=2,IF($B35<18,'Tarifas Secure'!$I$108,VLOOKUP('Fórmulas Cotización'!$B35,'Tarifas Secure'!$H$108:$M$174,4)), IF($B$32=3,IF($B35<18,'Tarifas Secure'!$P$108,VLOOKUP('Fórmulas Cotización'!$B35,'Tarifas Secure'!$O$108:$T$174,4)), IF($B$32=4,IF($B35<18,'Tarifas Secure'!$W$108,VLOOKUP('Fórmulas Cotización'!$B35,'Tarifas Secure'!$V$108:$AA$174,4)), IF($B35<18,'Tarifas Secure'!$AF$108,VLOOKUP('Fórmulas Cotización'!$B35,'Tarifas Secure'!$AC$108:$AH$174,4)))))),0) -> 0 | AE35: =IF(B35>0,IF($B$32=1,IF($B35<18,'Tarifas Secure'!$B$108,VLOOKUP('Fórmulas Cotización'!$B35,'Tarifas Secure'!$A$108:$F$174,5)), IF($B$32=2,IF($B35<18,'Tarifas Secure'!$I$108,VLOOKUP('Fórmulas Cotización'!$B35,'Tarifas Secure'!$H$108:$M$174,5)), IF($B$32=3,IF($B35<18,'Tarifas Secure'!$P$108,VLOOKUP('Fórmulas Cotización'!$B35,'Tarifas Secure'!$O$108:$T$174,5)), IF($B$32=4,IF($B35<18,'Tarifas Secure'!$W$108,VLOOKUP('Fórmulas Cotización'!$B35,'Tarifas Secure'!$V$108:$AA$174,5)), IF($B35<18,'Tarifas Secure'!$AG$108,VLOOKUP('Fórmulas Cotización'!$B35,'Tarifas Secure'!$AC$108:$AH$174,5)))))),0) -> 0 | AF35: =IF(B35>0,IF($B$32=1,IF($B35<18,'Tarifas Secure'!$B$108,VLOOKUP('Fórmulas Cotización'!$B35,'Tarifas Secure'!$A$108:$F$174,6)), IF($B$32=2,IF($B35<18,'Tarifas Secure'!$I$108,VLOOKUP('Fórmulas Cotización'!$B35,'Tarifas Secure'!$H$108:$M$174,6)), IF($B$32=3,IF($B35<18,'Tarifas Secure'!$P$108,VLOOKUP('Fórmulas Cotización'!$B35,'Tarifas Secure'!$O$108:$T$174,6)), IF($B$32=4,IF($B35<18,'Tarifas Secure'!$W$108,VLOOKUP('Fórmulas Cotización'!$B35,'Tarifas Secure'!$V$108:$AA$174,6)), IF($B35<18,'Tarifas Secure'!$AH$108,VLOOKUP('Fórmulas Cotización'!$B35,'Tarifas Secure'!$AC$108:$AH$174,6)))))),0) -> 0 | AH35: =IF(B35>0,IF($B$32=1,IF($B35<18,'Bupa Total'!$B$108,VLOOKUP('Fórmulas Cotización'!$B35,'Bupa Total'!$A$108:$F$174,2)), IF($B$32=2,IF($B35<18,'Bupa Total'!$I$108,VLOOKUP('Fórmulas Cotización'!$B35,'Bupa Total'!$H$108:$M$174,2)), IF($B$32=3,IF($B35<18,'Bupa Total'!$P$108,VLOOKUP('Fórmulas Cotización'!$B35,'Bupa Total'!$O$108:$T$174,2)), IF($B$32=4,IF($B35<18,'Bupa Total'!$W$108,VLOOKUP('Fórmulas Cotización'!$B35,'Bupa Total'!$V$108:$AA$174,2)), IF($B35<18,'Bupa Total'!$AD$108,VLOOKUP('Fórmulas Cotización'!$B35,'Bupa Total'!$AC$108:$AH$174,2)))))),0) -> 0 | AI35: =IF(B35>0,IF($B$32=1,IF($B35<18,'Bupa Total'!$B$108,VLOOKUP('Fórmulas Cotización'!$B35,'Bupa Total'!$A$108:$F$174,3)), IF($B$32=2,IF($B35<18,'Bupa Total'!$I$108,VLOOKUP('Fórmulas Cotización'!$B35,'Bupa Total'!$H$108:$M$174,3)), IF($B$32=3,IF($B35<18,'Bupa Total'!$P$108,VLOOKUP('Fórmulas Cotización'!$B35,'Bupa Total'!$O$108:$T$174,3)), IF($B$32=4,IF($B35<18,'Bupa Total'!$W$108,VLOOKUP('Fórmulas Cotización'!$B35,'Bupa Total'!$V$108:$AA$174,3)), IF($B35<18,'Bupa Total'!$AE$108,VLOOKUP('Fórmulas Cotización'!$B35,'Bupa Total'!$AC$108:$AH$174,3)))))),0) -> 0 | AJ35: =IF(B35>0,IF($B$32=1,IF($B35<18,'Bupa Total'!$B$108,VLOOKUP('Fórmulas Cotización'!$B35,'Bupa Total'!$A$108:$F$174,4)), IF($B$32=2,IF($B35<18,'Bupa Total'!$I$108,VLOOKUP('Fórmulas Cotización'!$B35,'Bupa Total'!$H$108:$M$174,4)), IF($B$32=3,IF($B35<18,'Bupa Total'!$P$108,VLOOKUP('Fórmulas Cotización'!$B35,'Bupa Total'!$O$108:$T$174,4)), IF($B$32=4,IF($B35<18,'Bupa Total'!$W$108,VLOOKUP('Fórmulas Cotización'!$B35,'Bupa Total'!$V$108:$AA$174,4)), IF($B35<18,'Bupa Total'!$AF$108,VLOOKUP('Fórmulas Cotización'!$B35,'Bupa Total'!$AC$108:$AH$174,4)))))),0) -> 0 | AK35: =IF(B35>0,IF($B$32=1,IF($B35<18,'Bupa Total'!$B$108,VLOOKUP('Fórmulas Cotización'!$B35,'Bupa Total'!$A$108:$F$174,5)), IF($B$32=2,IF($B35<18,'Bupa Total'!$I$108,VLOOKUP('Fórmulas Cotización'!$B35,'Bupa Total'!$H$108:$M$174,5)), IF($B$32=3,IF($B35<18,'Bupa Total'!$P$108,VLOOKUP('Fórmulas Cotización'!$B35,'Bupa Total'!$O$108:$T$174,5)), IF($B$32=4,IF($B35<18,'Bupa Total'!$W$108,VLOOKUP('Fórmulas Cotización'!$B35,'Bupa Total'!$V$108:$AA$174,5)), IF($B35<18,'Bupa Total'!$AG$108,VLOOKUP('Fórmulas Cotización'!$B35,'Bupa Total'!$AC$108:$AH$174,5)))))),0) -> 0 | AL35: =IF(B35>0,IF($B$32=1,IF($B35<18,'Bupa Total'!$B$108,VLOOKUP('Fórmulas Cotización'!$B35,'Bupa Total'!$A$108:$F$174,6)), IF($B$32=2,IF($B35<18,'Bupa Total'!$I$108,VLOOKUP('Fórmulas Cotización'!$B35,'Bupa Total'!$H$108:$M$174,6)), IF($B$32=3,IF($B35<18,'Bupa Total'!$P$108,VLOOKUP('Fórmulas Cotización'!$B35,'Bupa Total'!$O$108:$T$174,6)), IF($B$32=4,IF($B35<18,'Bupa Total'!$W$108,VLOOKUP('Fórmulas Cotización'!$B35,'Bupa Total'!$V$108:$AA$174,6)), IF($B35<18,'Bupa Total'!$AH$108,VLOOKUP('Fórmulas Cotización'!$B35,'Bupa Total'!$AC$108:$AH$174,6)))))),0) -> 0 | AV35: Tamaulipas | AW35: Zona 3 | AX35: 3 | AY35: 0 | AZ35: 0
A36: 3 | B36: ='BUPA CARE PRODUCTS'!H16 -> 0 | D36: =IF(B36>0,IF($B$32=1,IF($B36<18,'Tarifas Advantage'!$B$108,VLOOKUP('Fórmulas Cotización'!$B36,'Tarifas Advantage'!$A$108:$F$174,2)), IF($B$32=2,IF($B36<18,'Tarifas Advantage'!$I$108,VLOOKUP('Fórmulas Cotización'!$B36,'Tarifas Advantage'!$H$108:$M$174,2)), IF($B$32=3,IF($B36<18,'Tarifas Advantage'!$P$108,VLOOKUP('Fórmulas Cotización'!$B36,'Tarifas Advantage'!$O$108:$T$174,2)), IF($B$32=4,IF($B36<18,'Tarifas Advantage'!$W$108,VLOOKUP('Fórmulas Cotización'!$B36,'Tarifas Advantage'!$V$108:$AA$174,2)), IF($B36<18,'Tarifas Advantage'!$AD$108,VLOOKUP('Fórmulas Cotización'!$B36,'Tarifas Advantage'!$AC$108:$AH$174,2)))))),0) -> 0 | E36: =IF(B36>0,IF($B$32=1,IF($B36<18,'Tarifas Advantage'!$B$108,VLOOKUP('Fórmulas Cotización'!$B36,'Tarifas Advantage'!$A$108:$F$174,3)), IF($B$32=2,IF($B36<18,'Tarifas Advantage'!$I$108,VLOOKUP('Fórmulas Cotización'!$B36,'Tarifas Advantage'!$H$108:$M$174,3)), IF($B$32=3,IF($B36<18,'Tarifas Advantage'!$P$108,VLOOKUP('Fórmulas Cotización'!$B36,'Tarifas Advantage'!$O$108:$T$174,3)), IF($B$32=4,IF($B36<18,'Tarifas Advantage'!$W$108,VLOOKUP('Fórmulas Cotización'!$B36,'Tarifas Advantage'!$V$108:$AA$174,3)), IF($B36<18,'Tarifas Advantage'!$AE$108,VLOOKUP('Fórmulas Cotización'!$B36,'Tarifas Advantage'!$AC$108:$AH$174,3)))))),0) -> 0 | F36: =IF(B36>0,IF($B$32=1,IF($B36<18,'Tarifas Advantage'!$B$108,VLOOKUP('Fórmulas Cotización'!$B36,'Tarifas Advantage'!$A$108:$F$174,4)), IF($B$32=2,IF($B36<18,'Tarifas Advantage'!$I$108,VLOOKUP('Fórmulas Cotización'!$B36,'Tarifas Advantage'!$H$108:$M$174,4)), IF($B$32=3,IF($B36<18,'Tarifas Advantage'!$P$108,VLOOKUP('Fórmulas Cotización'!$B36,'Tarifas Advantage'!$O$108:$T$174,4)), IF($B$32=4,IF($B36<18,'Tarifas Advantage'!$W$108,VLOOKUP('Fórmulas Cotización'!$B36,'Tarifas Advantage'!$V$108:$AA$174,4)), IF($B36<18,'Tarifas Advantage'!$AF$108,VLOOKUP('Fórmulas Cotización'!$B36,'Tarifas Advantage'!$AC$108:$AH$174,4)))))),0) -> 0 | G36: =IF(B36>0,IF($B$32=1,IF($B36<18,'Tarifas Advantage'!$B$108,VLOOKUP('Fórmulas Cotización'!$B36,'Tarifas Advantage'!$A$108:$F$174,5)), IF($B$32=2,IF($B36<18,'Tarifas Advantage'!$I$108,VLOOKUP('Fórmulas Cotización'!$B36,'Tarifas Advantage'!$H$108:$M$174,5)), IF($B$32=3,IF($B36<18,'Tarifas Advantage'!$P$108,VLOOKUP('Fórmulas Cotización'!$B36,'Tarifas Advantage'!$O$108:$T$174,5)), IF($B$32=4,IF($B36<18,'Tarifas Advantage'!$W$108,VLOOKUP('Fórmulas Cotización'!$B36,'Tarifas Advantage'!$V$108:$AA$174,5)), IF($B36<18,'Tarifas Advantage'!$AG$108,VLOOKUP('Fórmulas Cotización'!$B36,'Tarifas Advantage'!$AC$108:$AH$174,5)))))),0) -> 0 | H36: =IF(B36>0,IF($B$32=1,IF($B36<18,'Tarifas Advantage'!$B$108,VLOOKUP('Fórmulas Cotización'!$B36,'Tarifas Advantage'!$A$108:$F$174,6)), IF($B$32=2,IF($B36<18,'Tarifas Advantage'!$I$108,VLOOKUP('Fórmulas Cotización'!$B36,'Tarifas Advantage'!$H$108:$M$174,6)), IF($B$32=3,IF($B36<18,'Tarifas Advantage'!$P$108,VLOOKUP('Fórmulas Cotización'!$B36,'Tarifas Advantage'!$O$108:$T$174,6)), IF($B$32=4,IF($B36<18,'Tarifas Advantage'!$W$108,VLOOKUP('Fórmulas Cotización'!$B36,'Tarifas Advantage'!$V$108:$AA$174,6)), IF($B36<18,'Tarifas Advantage'!$AH$108,VLOOKUP('Fórmulas Cotización'!$B36,'Tarifas Advantage'!$AC$108:$AH$174,6)))))),0) -> 0 | J36: =IF(B36>0,IF($B$32=1,IF($B36<18,'Tarifas Complete'!$B$108,VLOOKUP('Fórmulas Cotización'!$B36,'Tarifas Complete'!$A$108:$F$174,2)), IF($B$32=2,IF($B36<18,'Tarifas Complete'!$I$108,VLOOKUP('Fórmulas Cotización'!$B36,'Tarifas Complete'!$H$108:$M$174,2)), IF($B$32=3,IF($B36<18,'Tarifas Complete'!$P$108,VLOOKUP('Fórmulas Cotización'!$B36,'Tarifas Complete'!$O$108:$T$174,2)), IF($B$32=4,IF($B36<18,'Tarifas Complete'!$W$108,VLOOKUP('Fórmulas Cotización'!$B36,'Tarifas Complete'!$V$108:$AA$174,2)), IF($B36<18,'Tarifas Complete'!$AD$108,VLOOKUP('Fórmulas Cotización'!$B36,'Tarifas Complete'!$AC$108:$AH$174,3)))))),0) -> 0 | K36: =IF(B36>0,IF($B$32=1,IF($B36<18,'Tarifas Complete'!$B$108,VLOOKUP('Fórmulas Cotización'!$B36,'Tarifas Complete'!$A$108:$F$174,3)), IF($B$32=2,IF($B36<18,'Tarifas Complete'!$I$108,VLOOKUP('Fórmulas Cotización'!$B36,'Tarifas Complete'!$H$108:$M$174,3)), IF($B$32=3,IF($B36<18,'Tarifas Complete'!$P$108,VLOOKUP('Fórmulas Cotización'!$B36,'Tarifas Complete'!$O$108:$T$174,3)), IF($B$32=4,IF($B36<18,'Tarifas Complete'!$W$108,VLOOKUP('Fórmulas Cotización'!$B36,'Tarifas Complete'!$V$108:$AA$174,3)), IF($B36<18,'Tarifas Complete'!$AE$108,VLOOKUP('Fórmulas Cotización'!$B36,'Tarifas Complete'!$AC$108:$AH$174,3)))))),0) -> 0 | L36: =IF(B36>0,IF($B$32=1,IF($B36<18,'Tarifas Complete'!$B$108,VLOOKUP('Fórmulas Cotización'!$B36,'Tarifas Complete'!$A$108:$F$174,4)), IF($B$32=2,IF($B36<18,'Tarifas Complete'!$I$108,VLOOKUP('Fórmulas Cotización'!$B36,'Tarifas Complete'!$H$108:$M$174,4)), IF($B$32=3,IF($B36<18,'Tarifas Complete'!$P$108,VLOOKUP('Fórmulas Cotización'!$B36,'Tarifas Complete'!$O$108:$T$174,4)), IF($B$32=4,IF($B36<18,'Tarifas Complete'!$W$108,VLOOKUP('Fórmulas Cotización'!$B36,'Tarifas Complete'!$V$108:$AA$174,4)), IF($B36<18,'Tarifas Complete'!$AF$108,VLOOKUP('Fórmulas Cotización'!$B36,'Tarifas Complete'!$AC$108:$AH$174,4)))))),0) -> 0 | M36: =IF(B36>0,IF($B$32=1,IF($B36<18,'Tarifas Complete'!$B$108,VLOOKUP('Fórmulas Cotización'!$B36,'Tarifas Complete'!$A$108:$F$174,5)), IF($B$32=2,IF($B36<18,'Tarifas Complete'!$I$108,VLOOKUP('Fórmulas Cotización'!$B36,'Tarifas Complete'!$H$108:$M$174,5)), IF($B$32=3,IF($B36<18,'Tarifas Complete'!$P$108,VLOOKUP('Fórmulas Cotización'!$B36,'Tarifas Complete'!$O$108:$T$174,5)), IF($B$32=4,IF($B36<18,'Tarifas Complete'!$W$108,VLOOKUP('Fórmulas Cotización'!$B36,'Tarifas Complete'!$V$108:$AA$174,5)), IF($B36<18,'Tarifas Complete'!$AG$108,VLOOKUP('Fórmulas Cotización'!$B36,'Tarifas Complete'!$AC$108:$AH$174,5)))))),0) -> 0 | N36: =IF(B36>0,IF($B$32=1,IF($B36<18,'Tarifas Complete'!$B$108,VLOOKUP('Fórmulas Cotización'!$B36,'Tarifas Complete'!$A$108:$F$174,6)), IF($B$32=2,IF($B36<18,'Tarifas Complete'!$I$108,VLOOKUP('Fórmulas Cotización'!$B36,'Tarifas Complete'!$H$108:$M$174,6)), IF($B$32=3,IF($B36<18,'Tarifas Complete'!$P$108,VLOOKUP('Fórmulas Cotización'!$B36,'Tarifas Complete'!$O$108:$T$174,6)), IF($B$32=4,IF($B36<18,'Tarifas Complete'!$W$108,VLOOKUP('Fórmulas Cotización'!$B36,'Tarifas Complete'!$V$108:$AA$174,6)), IF($B36<18,'Tarifas Complete'!$AH$108,VLOOKUP('Fórmulas Cotización'!$B36,'Tarifas Complete'!$AC$108:$AH$174,6)))))),0) -> 0 | P36: =IF(B36>0,IF($B$32=1,IF($B36<18,'Tarifas Diamond'!$B$108,VLOOKUP('Fórmulas Cotización'!$B36,'Tarifas Diamond'!$A$108:$F$174,2)), IF($B$32=2,IF($B36<18,'Tarifas Diamond'!$I$108,VLOOKUP('Fórmulas Cotización'!$B36,'Tarifas Diamond'!$H$108:$M$174,2)), IF($B$32=3,IF($B36<18,'Tarifas Diamond'!$P$108,VLOOKUP('Fórmulas Cotización'!$B36,'Tarifas Diamond'!$O$108:$T$174,2)), IF($B$32=4,IF($B36<18,'Tarifas Diamond'!$W$108,VLOOKUP('Fórmulas Cotización'!$B36,'Tarifas Diamond'!$V$108:$AA$174,2)), IF($B36<18,'Tarifas Diamond'!$AD$108,VLOOKUP('Fórmulas Cotización'!$B36,'Tarifas Diamond'!$AC$108:$AH$174,2)))))),0) -> 0 | Q36: =IF(B36>0,IF($B$32=1,IF($B36<18,'Tarifas Diamond'!$B$108,VLOOKUP('Fórmulas Cotización'!$B36,'Tarifas Diamond'!$A$108:$F$174,3)), IF($B$32=2,IF($B36<18,'Tarifas Diamond'!$I$108,VLOOKUP('Fórmulas Cotización'!$B36,'Tarifas Diamond'!$H$108:$M$174,3)), IF($B$32=3,IF($B36<18,'Tarifas Diamond'!$P$108,VLOOKUP('Fórmulas Cotización'!$B36,'Tarifas Diamond'!$O$108:$T$174,3)), IF($B$32=4,IF($B36<18,'Tarifas Diamond'!$W$108,VLOOKUP('Fórmulas Cotización'!$B36,'Tarifas Diamond'!$V$108:$AA$174,3)), IF($B36<18,'Tarifas Diamond'!$AE$108,VLOOKUP('Fórmulas Cotización'!$B36,'Tarifas Diamond'!$AC$108:$AH$174,3)))))),0) -> 0 | R36: =IF(B36>0,IF($B$32=1,IF($B36<18,'Tarifas Diamond'!$B$108,VLOOKUP('Fórmulas Cotización'!$B36,'Tarifas Diamond'!$A$108:$F$174,4)), IF($B$32=2,IF($B36<18,'Tarifas Diamond'!$I$108,VLOOKUP('Fórmulas Cotización'!$B36,'Tarifas Diamond'!$H$108:$M$174,4)), IF($B$32=3,IF($B36<18,'Tarifas Diamond'!$P$108,VLOOKUP('Fórmulas Cotización'!$B36,'Tarifas Diamond'!$O$108:$T$174,4)), IF($B$32=4,IF($B36<18,'Tarifas Diamond'!$W$108,VLOOKUP('Fórmulas Cotización'!$B36,'Tarifas Diamond'!$V$108:$AA$174,4)), IF($B36<18,'Tarifas Diamond'!$AF$108,VLOOKUP('Fórmulas Cotización'!$B36,'Tarifas Diamond'!$AC$108:$AH$174,4)))))),0) -> 0 | S36: =IF(B36>0,IF($B$32=1,IF($B36<18,'Tarifas Diamond'!$B$108,VLOOKUP('Fórmulas Cotización'!$B36,'Tarifas Diamond'!$A$108:$F$174,5)), IF($B$32=2,IF($B36<18,'Tarifas Diamond'!$I$108,VLOOKUP('Fórmulas Cotización'!$B36,'Tarifas Diamond'!$H$108:$M$174,5)), IF($B$32=3,IF($B36<18,'Tarifas Diamond'!$P$108,VLOOKUP('Fórmulas Cotización'!$B36,'Tarifas Diamond'!$O$108:$T$174,5)), IF($B$32=4,IF($B36<18,'Tarifas Diamond'!$W$108,VLOOKUP('Fórmulas Cotización'!$B36,'Tarifas Diamond'!$V$108:$AA$174,5)), IF($B36<18,'Tarifas Diamond'!$AG$108,VLOOKUP('Fórmulas Cotización'!$B36,'Tarifas Diamond'!$AC$108:$AH$174,5)))))),0) -> 0 | T36: =IF(B36>0,IF($B$32=1,IF($B36<18,'Tarifas Diamond'!$B$108,VLOOKUP('Fórmulas Cotización'!$B36,'Tarifas Diamond'!$A$108:$F$174,6)), IF($B$32=2,IF($B36<18,'Tarifas Diamond'!$I$108,VLOOKUP('Fórmulas Cotización'!$B36,'Tarifas Diamond'!$H$108:$M$174,6)), IF($B$32=3,IF($B36<18,'Tarifas Diamond'!$P$108,VLOOKUP('Fórmulas Cotización'!$B36,'Tarifas Diamond'!$O$108:$T$174,6)), IF($B$32=4,IF($B36<18,'Tarifas Diamond'!$W$108,VLOOKUP('Fórmulas Cotización'!$B36,'Tarifas Diamond'!$V$108:$AA$174,6)), IF($B36<18,'Tarifas Diamond'!$AH$108,VLOOKUP('Fórmulas Cotización'!$B36,'Tarifas Diamond'!$AC$108:$AH$174,6)))))),0) -> 0 | V36: =IF(B36>0,IF($B$32=1,IF($B36<18,'Tarifas Essential'!$B$108,VLOOKUP('Fórmulas Cotización'!$B36,'Tarifas Essential'!$A$108:$F$174,2)), IF($B$32=2,IF($B36<18,'Tarifas Essential'!$I$108,VLOOKUP('Fórmulas Cotización'!$B36,'Tarifas Essential'!$H$108:$M$174,2)), IF($B$32=3,IF($B36<18,'Tarifas Essential'!$P$108,VLOOKUP('Fórmulas Cotización'!$B36,'Tarifas Essential'!$O$108:$T$174,2)), IF($B$32=4,IF($B36<18,'Tarifas Essential'!$W$108,VLOOKUP('Fórmulas Cotización'!$B36,'Tarifas Essential'!$V$108:$AA$174,2)), IF($B36<18,'Tarifas Essential'!$AD$108,VLOOKUP('Fórmulas Cotización'!$B36,'Tarifas Essential'!$AC$108:$AH$174,2)))))),0) -> 0 | W36: =IF(B36>0,IF($B$32=1,IF($B36<18,'Tarifas Essential'!$B$108,VLOOKUP('Fórmulas Cotización'!$B36,'Tarifas Essential'!$A$108:$F$174,3)), IF($B$32=2,IF($B36<18,'Tarifas Essential'!$I$108,VLOOKUP('Fórmulas Cotización'!$B36,'Tarifas Essential'!$H$108:$M$174,3)), IF($B$32=3,IF($B36<18,'Tarifas Essential'!$P$108,VLOOKUP('Fórmulas Cotización'!$B36,'Tarifas Essential'!$O$108:$T$174,3)), IF($B$32=4,IF($B36<18,'Tarifas Essential'!$W$108,VLOOKUP('Fórmulas Cotización'!$B36,'Tarifas Essential'!$V$108:$AA$174,3)), IF($B36<18,'Tarifas Essential'!$AE$108,VLOOKUP('Fórmulas Cotización'!$B36,'Tarifas Essential'!$AC$108:$AH$174,3)))))),0) -> 0 | X36: =IF(B36>0,IF($B$32=1,IF($B36<18,'Tarifas Essential'!$B$108,VLOOKUP('Fórmulas Cotización'!$B36,'Tarifas Essential'!$A$108:$F$174,4)), IF($B$32=2,IF($B36<18,'Tarifas Essential'!$I$108,VLOOKUP('Fórmulas Cotización'!$B36,'Tarifas Essential'!$H$108:$M$174,4)), IF($B$32=3,IF($B36<18,'Tarifas Essential'!$P$108,VLOOKUP('Fórmulas Cotización'!$B36,'Tarifas Essential'!$O$108:$T$174,4)), IF($B$32=4,IF($B36<18,'Tarifas Essential'!$W$108,VLOOKUP('Fórmulas Cotización'!$B36,'Tarifas Essential'!$V$108:$AA$174,4)), IF($B36<18,'Tarifas Essential'!$AF$108,VLOOKUP('Fórmulas Cotización'!$B36,'Tarifas Essential'!$AC$108:$AH$174,4)))))),0) -> 0 | Y36: =IF(B36>0,IF($B$32=1,IF($B36<18,'Tarifas Essential'!$B$108,VLOOKUP('Fórmulas Cotización'!$B36,'Tarifas Essential'!$A$108:$F$174,5)), IF($B$32=2,IF($B36<18,'Tarifas Essential'!$I$108,VLOOKUP('Fórmulas Cotización'!$B36,'Tarifas Essential'!$H$108:$M$174,5)), IF($B$32=3,IF($B36<18,'Tarifas Essential'!$P$108,VLOOKUP('Fórmulas Cotización'!$B36,'Tarifas Essential'!$O$108:$T$174,5)), IF($B$32=4,IF($B36<18,'Tarifas Essential'!$W$108,VLOOKUP('Fórmulas Cotización'!$B36,'Tarifas Essential'!$V$108:$AA$174,5)), IF($B36<18,'Tarifas Essential'!$AG$108,VLOOKUP('Fórmulas Cotización'!$B36,'Tarifas Essential'!$AC$108:$AH$174,5)))))),0) -> 0 | Z36: =IF(B36>0,IF($B$32=1,IF($B36<18,'Tarifas Essential'!$B$108,VLOOKUP('Fórmulas Cotización'!$B36,'Tarifas Essential'!$A$108:$F$174,6)), IF($B$32=2,IF($B36<18,'Tarifas Essential'!$I$108,VLOOKUP('Fórmulas Cotización'!$B36,'Tarifas Essential'!$H$108:$M$174,6)), IF($B$32=3,IF($B36<18,'Tarifas Essential'!$P$108,VLOOKUP('Fórmulas Cotización'!$B36,'Tarifas Essential'!$O$108:$T$174,6)), IF($B$32=4,IF($B36<18,'Tarifas Essential'!$W$108,VLOOKUP('Fórmulas Cotización'!$B36,'Tarifas Essential'!$V$108:$AA$174,6)), IF($B36<18,'Tarifas Essential'!$AH$108,VLOOKUP('Fórmulas Cotización'!$B36,'Tarifas Essential'!$AC$108:$AH$174,6)))))),0) -> 0 | AB36: =IF(B36>0,IF($B$32=1,IF($B36<18,'Tarifas Secure'!$B$108,VLOOKUP('Fórmulas Cotización'!$B36,'Tarifas Secure'!$A$108:$F$174,2)), IF($B$32=2,IF($B36<18,'Tarifas Secure'!$I$108,VLOOKUP('Fórmulas Cotización'!$B36,'Tarifas Secure'!$H$108:$M$174,2)), IF($B$32=3,IF($B36<18,'Tarifas Secure'!$P$108,VLOOKUP('Fórmulas Cotización'!$B36,'Tarifas Secure'!$O$108:$T$174,2)), IF($B$32=4,IF($B36<18,'Tarifas Secure'!$W$108,VLOOKUP('Fórmulas Cotización'!$B36,'Tarifas Secure'!$V$108:$AA$174,2)), IF($B36<18,'Tarifas Secure'!$AD$108,VLOOKUP('Fórmulas Cotización'!$B36,'Tarifas Secure'!$AC$108:$AH$174,2)))))),0) -> 0 | AC36: =IF(B36>0,IF($B$32=1,IF($B36<18,'Tarifas Secure'!$B$108,VLOOKUP('Fórmulas Cotización'!$B36,'Tarifas Secure'!$A$108:$F$174,3)), IF($B$32=2,IF($B36<18,'Tarifas Secure'!$I$108,VLOOKUP('Fórmulas Cotización'!$B36,'Tarifas Secure'!$H$108:$M$174,3)), IF($B$32=3,IF($B36<18,'Tarifas Secure'!$P$108,VLOOKUP('Fórmulas Cotización'!$B36,'Tarifas Secure'!$O$108:$T$174,3)), IF($B$32=4,IF($B36<18,'Tarifas Secure'!$W$108,VLOOKUP('Fórmulas Cotización'!$B36,'Tarifas Secure'!$V$108:$AA$174,3)), IF($B36<18,'Tarifas Secure'!$AE$108,VLOOKUP('Fórmulas Cotización'!$B36,'Tarifas Secure'!$AC$108:$AH$174,3)))))),0) -> 0 | AD36: =IF(B36>0,IF($B$32=1,IF($B36<18,'Tarifas Secure'!$B$108,VLOOKUP('Fórmulas Cotización'!$B36,'Tarifas Secure'!$A$108:$F$174,4)), IF($B$32=2,IF($B36<18,'Tarifas Secure'!$I$108,VLOOKUP('Fórmulas Cotización'!$B36,'Tarifas Secure'!$H$108:$M$174,4)), IF($B$32=3,IF($B36<18,'Tarifas Secure'!$P$108,VLOOKUP('Fórmulas Cotización'!$B36,'Tarifas Secure'!$O$108:$T$174,4)), IF($B$32=4,IF($B36<18,'Tarifas Secure'!$W$108,VLOOKUP('Fórmulas Cotización'!$B36,'Tarifas Secure'!$V$108:$AA$174,4)), IF($B36<18,'Tarifas Secure'!$AF$108,VLOOKUP('Fórmulas Cotización'!$B36,'Tarifas Secure'!$AC$108:$AH$174,4)))))),0) -> 0 | AE36: =IF(B36>0,IF($B$32=1,IF($B36<18,'Tarifas Secure'!$B$108,VLOOKUP('Fórmulas Cotización'!$B36,'Tarifas Secure'!$A$108:$F$174,5)), IF($B$32=2,IF($B36<18,'Tarifas Secure'!$I$108,VLOOKUP('Fórmulas Cotización'!$B36,'Tarifas Secure'!$H$108:$M$174,5)), IF($B$32=3,IF($B36<18,'Tarifas Secure'!$P$108,VLOOKUP('Fórmulas Cotización'!$B36,'Tarifas Secure'!$O$108:$T$174,5)), IF($B$32=4,IF($B36<18,'Tarifas Secure'!$W$108,VLOOKUP('Fórmulas Cotización'!$B36,'Tarifas Secure'!$V$108:$AA$174,5)), IF($B36<18,'Tarifas Secure'!$AG$108,VLOOKUP('Fórmulas Cotización'!$B36,'Tarifas Secure'!$AC$108:$AH$174,5)))))),0) -> 0 | AF36: =IF(B36>0,IF($B$32=1,IF($B36<18,'Tarifas Secure'!$B$108,VLOOKUP('Fórmulas Cotización'!$B36,'Tarifas Secure'!$A$108:$F$174,6)), IF($B$32=2,IF($B36<18,'Tarifas Secure'!$I$108,VLOOKUP('Fórmulas Cotización'!$B36,'Tarifas Secure'!$H$108:$M$174,6)), IF($B$32=3,IF($B36<18,'Tarifas Secure'!$P$108,VLOOKUP('Fórmulas Cotización'!$B36,'Tarifas Secure'!$O$108:$T$174,6)), IF($B$32=4,IF($B36<18,'Tarifas Secure'!$W$108,VLOOKUP('Fórmulas Cotización'!$B36,'Tarifas Secure'!$V$108:$AA$174,6)), IF($B36<18,'Tarifas Secure'!$AH$108,VLOOKUP('Fórmulas Cotización'!$B36,'Tarifas Secure'!$AC$108:$AH$174,6)))))),0) -> 0 | AH36: =IF(B36>0,IF($B$32=1,IF($B36<18,'Bupa Total'!$B$108,VLOOKUP('Fórmulas Cotización'!$B36,'Bupa Total'!$A$108:$F$174,2)), IF($B$32=2,IF($B36<18,'Bupa Total'!$I$108,VLOOKUP('Fórmulas Cotización'!$B36,'Bupa Total'!$H$108:$M$174,2)), IF($B$32=3,IF($B36<18,'Bupa Total'!$P$108,VLOOKUP('Fórmulas Cotización'!$B36,'Bupa Total'!$O$108:$T$174,2)), IF($B$32=4,IF($B36<18,'Bupa Total'!$W$108,VLOOKUP('Fórmulas Cotización'!$B36,'Bupa Total'!$V$108:$AA$174,2)), IF($B36<18,'Bupa Total'!$AD$108,VLOOKUP('Fórmulas Cotización'!$B36,'Bupa Total'!$AC$108:$AH$174,2)))))),0) -> 0 | AI36: =IF(B36>0,IF($B$32=1,IF($B36<18,'Bupa Total'!$B$108,VLOOKUP('Fórmulas Cotización'!$B36,'Bupa Total'!$A$108:$F$174,3)), IF($B$32=2,IF($B36<18,'Bupa Total'!$I$108,VLOOKUP('Fórmulas Cotización'!$B36,'Bupa Total'!$H$108:$M$174,3)), IF($B$32=3,IF($B36<18,'Bupa Total'!$P$108,VLOOKUP('Fórmulas Cotización'!$B36,'Bupa Total'!$O$108:$T$174,3)), IF($B$32=4,IF($B36<18,'Bupa Total'!$W$108,VLOOKUP('Fórmulas Cotización'!$B36,'Bupa Total'!$V$108:$AA$174,3)), IF($B36<18,'Bupa Total'!$AE$108,VLOOKUP('Fórmulas Cotización'!$B36,'Bupa Total'!$AC$108:$AH$174,3)))))),0) -> 0 | AJ36: =IF(B36>0,IF($B$32=1,IF($B36<18,'Bupa Total'!$B$108,VLOOKUP('Fórmulas Cotización'!$B36,'Bupa Total'!$A$108:$F$174,4)), IF($B$32=2,IF($B36<18,'Bupa Total'!$I$108,VLOOKUP('Fórmulas Cotización'!$B36,'Bupa Total'!$H$108:$M$174,4)), IF($B$32=3,IF($B36<18,'Bupa Total'!$P$108,VLOOKUP('Fórmulas Cotización'!$B36,'Bupa Total'!$O$108:$T$174,4)), IF($B$32=4,IF($B36<18,'Bupa Total'!$W$108,VLOOKUP('Fórmulas Cotización'!$B36,'Bupa Total'!$V$108:$AA$174,4)), IF($B36<18,'Bupa Total'!$AF$108,VLOOKUP('Fórmulas Cotización'!$B36,'Bupa Total'!$AC$108:$AH$174,4)))))),0) -> 0 | AK36: =IF(B36>0,IF($B$32=1,IF($B36<18,'Bupa Total'!$B$108,VLOOKUP('Fórmulas Cotización'!$B36,'Bupa Total'!$A$108:$F$174,5)), IF($B$32=2,IF($B36<18,'Bupa Total'!$I$108,VLOOKUP('Fórmulas Cotización'!$B36,'Bupa Total'!$H$108:$M$174,5)), IF($B$32=3,IF($B36<18,'Bupa Total'!$P$108,VLOOKUP('Fórmulas Cotización'!$B36,'Bupa Total'!$O$108:$T$174,5)), IF($B$32=4,IF($B36<18,'Bupa Total'!$W$108,VLOOKUP('Fórmulas Cotización'!$B36,'Bupa Total'!$V$108:$AA$174,5)), IF($B36<18,'Bupa Total'!$AG$108,VLOOKUP('Fórmulas Cotización'!$B36,'Bupa Total'!$AC$108:$AH$174,5)))))),0) -> 0 | AL36: =IF(B36>0,IF($B$32=1,IF($B36<18,'Bupa Total'!$B$108,VLOOKUP('Fórmulas Cotización'!$B36,'Bupa Total'!$A$108:$F$174,6)), IF($B$32=2,IF($B36<18,'Bupa Total'!$I$108,VLOOKUP('Fórmulas Cotización'!$B36,'Bupa Total'!$H$108:$M$174,6)), IF($B$32=3,IF($B36<18,'Bupa Total'!$P$108,VLOOKUP('Fórmulas Cotización'!$B36,'Bupa Total'!$O$108:$T$174,6)), IF($B$32=4,IF($B36<18,'Bupa Total'!$W$108,VLOOKUP('Fórmulas Cotización'!$B36,'Bupa Total'!$V$108:$AA$174,6)), IF($B36<18,'Bupa Total'!$AH$108,VLOOKUP('Fórmulas Cotización'!$B36,'Bupa Total'!$AC$108:$AH$174,6)))))),0) -> 0 | AV36: Tlaxcala | AW36: Zona 5 | AX36: 5 | AY36: 0 | AZ36: 0
A37: 4 | B37: ='BUPA CARE PRODUCTS'!H17 -> 0 | D37: =IF(B37>0,IF($B$32=1,IF($B37<18,'Tarifas Advantage'!$B$108,VLOOKUP('Fórmulas Cotización'!$B37,'Tarifas Advantage'!$A$108:$F$174,2)), IF($B$32=2,IF($B37<18,'Tarifas Advantage'!$I$108,VLOOKUP('Fórmulas Cotización'!$B37,'Tarifas Advantage'!$H$108:$M$174,2)), IF($B$32=3,IF($B37<18,'Tarifas Advantage'!$P$108,VLOOKUP('Fórmulas Cotización'!$B37,'Tarifas Advantage'!$O$108:$T$174,2)), IF($B$32=4,IF($B37<18,'Tarifas Advantage'!$W$108,VLOOKUP('Fórmulas Cotización'!$B37,'Tarifas Advantage'!$V$108:$AA$174,2)), IF($B37<18,'Tarifas Advantage'!$AD$108,VLOOKUP('Fórmulas Cotización'!$B37,'Tarifas Advantage'!$AC$108:$AH$174,2)))))),0) -> 0 | E37: =IF(B37>0,IF($B$32=1,IF($B37<18,'Tarifas Advantage'!$B$108,VLOOKUP('Fórmulas Cotización'!$B37,'Tarifas Advantage'!$A$108:$F$174,3)), IF($B$32=2,IF($B37<18,'Tarifas Advantage'!$I$108,VLOOKUP('Fórmulas Cotización'!$B37,'Tarifas Advantage'!$H$108:$M$174,3)), IF($B$32=3,IF($B37<18,'Tarifas Advantage'!$P$108,VLOOKUP('Fórmulas Cotización'!$B37,'Tarifas Advantage'!$O$108:$T$174,3)), IF($B$32=4,IF($B37<18,'Tarifas Advantage'!$W$108,VLOOKUP('Fórmulas Cotización'!$B37,'Tarifas Advantage'!$V$108:$AA$174,3)), IF($B37<18,'Tarifas Advantage'!$AE$108,VLOOKUP('Fórmulas Cotización'!$B37,'Tarifas Advantage'!$AC$108:$AH$174,3)))))),0) -> 0 | F37: =IF(B37>0,IF($B$32=1,IF($B37<18,'Tarifas Advantage'!$B$108,VLOOKUP('Fórmulas Cotización'!$B37,'Tarifas Advantage'!$A$108:$F$174,4)), IF($B$32=2,IF($B37<18,'Tarifas Advantage'!$I$108,VLOOKUP('Fórmulas Cotización'!$B37,'Tarifas Advantage'!$H$108:$M$174,4)), IF($B$32=3,IF($B37<18,'Tarifas Advantage'!$P$108,VLOOKUP('Fórmulas Cotización'!$B37,'Tarifas Advantage'!$O$108:$T$174,4)), IF($B$32=4,IF($B37<18,'Tarifas Advantage'!$W$108,VLOOKUP('Fórmulas Cotización'!$B37,'Tarifas Advantage'!$V$108:$AA$174,4)), IF($B37<18,'Tarifas Advantage'!$AF$108,VLOOKUP('Fórmulas Cotización'!$B37,'Tarifas Advantage'!$AC$108:$AH$174,4)))))),0) -> 0 | G37: =IF(B37>0,IF($B$32=1,IF($B37<18,'Tarifas Advantage'!$B$108,VLOOKUP('Fórmulas Cotización'!$B37,'Tarifas Advantage'!$A$108:$F$174,5)), IF($B$32=2,IF($B37<18,'Tarifas Advantage'!$I$108,VLOOKUP('Fórmulas Cotización'!$B37,'Tarifas Advantage'!$H$108:$M$174,5)), IF($B$32=3,IF($B37<18,'Tarifas Advantage'!$P$108,VLOOKUP('Fórmulas Cotización'!$B37,'Tarifas Advantage'!$O$108:$T$174,5)), IF($B$32=4,IF($B37<18,'Tarifas Advantage'!$W$108,VLOOKUP('Fórmulas Cotización'!$B37,'Tarifas Advantage'!$V$108:$AA$174,5)), IF($B37<18,'Tarifas Advantage'!$AG$108,VLOOKUP('Fórmulas Cotización'!$B37,'Tarifas Advantage'!$AC$108:$AH$174,5)))))),0) -> 0 | H37: =IF(B37>0,IF($B$32=1,IF($B37<18,'Tarifas Advantage'!$B$108,VLOOKUP('Fórmulas Cotización'!$B37,'Tarifas Advantage'!$A$108:$F$174,6)), IF($B$32=2,IF($B37<18,'Tarifas Advantage'!$I$108,VLOOKUP('Fórmulas Cotización'!$B37,'Tarifas Advantage'!$H$108:$M$174,6)), IF($B$32=3,IF($B37<18,'Tarifas Advantage'!$P$108,VLOOKUP('Fórmulas Cotización'!$B37,'Tarifas Advantage'!$O$108:$T$174,6)), IF($B$32=4,IF($B37<18,'Tarifas Advantage'!$W$108,VLOOKUP('Fórmulas Cotización'!$B37,'Tarifas Advantage'!$V$108:$AA$174,6)), IF($B37<18,'Tarifas Advantage'!$AH$108,VLOOKUP('Fórmulas Cotización'!$B37,'Tarifas Advantage'!$AC$108:$AH$174,6)))))),0) -> 0 | J37: =IF(B37>0,IF($B$32=1,IF($B37<18,'Tarifas Complete'!$B$108,VLOOKUP('Fórmulas Cotización'!$B37,'Tarifas Complete'!$A$108:$F$174,2)), IF($B$32=2,IF($B37<18,'Tarifas Complete'!$I$108,VLOOKUP('Fórmulas Cotización'!$B37,'Tarifas Complete'!$H$108:$M$174,2)), IF($B$32=3,IF($B37<18,'Tarifas Complete'!$P$108,VLOOKUP('Fórmulas Cotización'!$B37,'Tarifas Complete'!$O$108:$T$174,2)), IF($B$32=4,IF($B37<18,'Tarifas Complete'!$W$108,VLOOKUP('Fórmulas Cotización'!$B37,'Tarifas Complete'!$V$108:$AA$174,2)), IF($B37<18,'Tarifas Complete'!$AD$108,VLOOKUP('Fórmulas Cotización'!$B37,'Tarifas Complete'!$AC$108:$AH$174,3)))))),0) -> 0 | K37: =IF(B37>0,IF($B$32=1,IF($B37<18,'Tarifas Complete'!$B$108,VLOOKUP('Fórmulas Cotización'!$B37,'Tarifas Complete'!$A$108:$F$174,3)), IF($B$32=2,IF($B37<18,'Tarifas Complete'!$I$108,VLOOKUP('Fórmulas Cotización'!$B37,'Tarifas Complete'!$H$108:$M$174,3)), IF($B$32=3,IF($B37<18,'Tarifas Complete'!$P$108,VLOOKUP('Fórmulas Cotización'!$B37,'Tarifas Complete'!$O$108:$T$174,3)), IF($B$32=4,IF($B37<18,'Tarifas Complete'!$W$108,VLOOKUP('Fórmulas Cotización'!$B37,'Tarifas Complete'!$V$108:$AA$174,3)), IF($B37<18,'Tarifas Complete'!$AE$108,VLOOKUP('Fórmulas Cotización'!$B37,'Tarifas Complete'!$AC$108:$AH$174,3)))))),0) -> 0 | L37: =IF(B37>0,IF($B$32=1,IF($B37<18,'Tarifas Complete'!$B$108,VLOOKUP('Fórmulas Cotización'!$B37,'Tarifas Complete'!$A$108:$F$174,4)), IF($B$32=2,IF($B37<18,'Tarifas Complete'!$I$108,VLOOKUP('Fórmulas Cotización'!$B37,'Tarifas Complete'!$H$108:$M$174,4)), IF($B$32=3,IF($B37<18,'Tarifas Complete'!$P$108,VLOOKUP('Fórmulas Cotización'!$B37,'Tarifas Complete'!$O$108:$T$174,4)), IF($B$32=4,IF($B37<18,'Tarifas Complete'!$W$108,VLOOKUP('Fórmulas Cotización'!$B37,'Tarifas Complete'!$V$108:$AA$174,4)), IF($B37<18,'Tarifas Complete'!$AF$108,VLOOKUP('Fórmulas Cotización'!$B37,'Tarifas Complete'!$AC$108:$AH$174,4)))))),0) -> 0 | M37: =IF(B37>0,IF($B$32=1,IF($B37<18,'Tarifas Complete'!$B$108,VLOOKUP('Fórmulas Cotización'!$B37,'Tarifas Complete'!$A$108:$F$174,5)), IF($B$32=2,IF($B37<18,'Tarifas Complete'!$I$108,VLOOKUP('Fórmulas Cotización'!$B37,'Tarifas Complete'!$H$108:$M$174,5)), IF($B$32=3,IF($B37<18,'Tarifas Complete'!$P$108,VLOOKUP('Fórmulas Cotización'!$B37,'Tarifas Complete'!$O$108:$T$174,5)), IF($B$32=4,IF($B37<18,'Tarifas Complete'!$W$108,VLOOKUP('Fórmulas Cotización'!$B37,'Tarifas Complete'!$V$108:$AA$174,5)), IF($B37<18,'Tarifas Complete'!$AG$108,VLOOKUP('Fórmulas Cotización'!$B37,'Tarifas Complete'!$AC$108:$AH$174,5)))))),0) -> 0 | N37: =IF(B37>0,IF($B$32=1,IF($B37<18,'Tarifas Complete'!$B$108,VLOOKUP('Fórmulas Cotización'!$B37,'Tarifas Complete'!$A$108:$F$174,6)), IF($B$32=2,IF($B37<18,'Tarifas Complete'!$I$108,VLOOKUP('Fórmulas Cotización'!$B37,'Tarifas Complete'!$H$108:$M$174,6)), IF($B$32=3,IF($B37<18,'Tarifas Complete'!$P$108,VLOOKUP('Fórmulas Cotización'!$B37,'Tarifas Complete'!$O$108:$T$174,6)), IF($B$32=4,IF($B37<18,'Tarifas Complete'!$W$108,VLOOKUP('Fórmulas Cotización'!$B37,'Tarifas Complete'!$V$108:$AA$174,6)), IF($B37<18,'Tarifas Complete'!$AH$108,VLOOKUP('Fórmulas Cotización'!$B37,'Tarifas Complete'!$AC$108:$AH$174,6)))))),0) -> 0 | P37: =IF(B37>0,IF($B$32=1,IF($B37<18,'Tarifas Diamond'!$B$108,VLOOKUP('Fórmulas Cotización'!$B37,'Tarifas Diamond'!$A$108:$F$174,2)), IF($B$32=2,IF($B37<18,'Tarifas Diamond'!$I$108,VLOOKUP('Fórmulas Cotización'!$B37,'Tarifas Diamond'!$H$108:$M$174,2)), IF($B$32=3,IF($B37<18,'Tarifas Diamond'!$P$108,VLOOKUP('Fórmulas Cotización'!$B37,'Tarifas Diamond'!$O$108:$T$174,2)), IF($B$32=4,IF($B37<18,'Tarifas Diamond'!$W$108,VLOOKUP('Fórmulas Cotización'!$B37,'Tarifas Diamond'!$V$108:$AA$174,2)), IF($B37<18,'Tarifas Diamond'!$AD$108,VLOOKUP('Fórmulas Cotización'!$B37,'Tarifas Diamond'!$AC$108:$AH$174,2)))))),0) -> 0 | Q37: =IF(B37>0,IF($B$32=1,IF($B37<18,'Tarifas Diamond'!$B$108,VLOOKUP('Fórmulas Cotización'!$B37,'Tarifas Diamond'!$A$108:$F$174,3)), IF($B$32=2,IF($B37<18,'Tarifas Diamond'!$I$108,VLOOKUP('Fórmulas Cotización'!$B37,'Tarifas Diamond'!$H$108:$M$174,3)), IF($B$32=3,IF($B37<18,'Tarifas Diamond'!$P$108,VLOOKUP('Fórmulas Cotización'!$B37,'Tarifas Diamond'!$O$108:$T$174,3)), IF($B$32=4,IF($B37<18,'Tarifas Diamond'!$W$108,VLOOKUP('Fórmulas Cotización'!$B37,'Tarifas Diamond'!$V$108:$AA$174,3)), IF($B37<18,'Tarifas Diamond'!$AE$108,VLOOKUP('Fórmulas Cotización'!$B37,'Tarifas Diamond'!$AC$108:$AH$174,3)))))),0) -> 0 | R37: =IF(B37>0,IF($B$32=1,IF($B37<18,'Tarifas Diamond'!$B$108,VLOOKUP('Fórmulas Cotización'!$B37,'Tarifas Diamond'!$A$108:$F$174,4)), IF($B$32=2,IF($B37<18,'Tarifas Diamond'!$I$108,VLOOKUP('Fórmulas Cotización'!$B37,'Tarifas Diamond'!$H$108:$M$174,4)), IF($B$32=3,IF($B37<18,'Tarifas Diamond'!$P$108,VLOOKUP('Fórmulas Cotización'!$B37,'Tarifas Diamond'!$O$108:$T$174,4)), IF($B$32=4,IF($B37<18,'Tarifas Diamond'!$W$108,VLOOKUP('Fórmulas Cotización'!$B37,'Tarifas Diamond'!$V$108:$AA$174,4)), IF($B37<18,'Tarifas Diamond'!$AF$108,VLOOKUP('Fórmulas Cotización'!$B37,'Tarifas Diamond'!$AC$108:$AH$174,4)))))),0) -> 0 | S37: =IF(B37>0,IF($B$32=1,IF($B37<18,'Tarifas Diamond'!$B$108,VLOOKUP('Fórmulas Cotización'!$B37,'Tarifas Diamond'!$A$108:$F$174,5)), IF($B$32=2,IF($B37<18,'Tarifas Diamond'!$I$108,VLOOKUP('Fórmulas Cotización'!$B37,'Tarifas Diamond'!$H$108:$M$174,5)), IF($B$32=3,IF($B37<18,'Tarifas Diamond'!$P$108,VLOOKUP('Fórmulas Cotización'!$B37,'Tarifas Diamond'!$O$108:$T$174,5)), IF($B$32=4,IF($B37<18,'Tarifas Diamond'!$W$108,VLOOKUP('Fórmulas Cotización'!$B37,'Tarifas Diamond'!$V$108:$AA$174,5)), IF($B37<18,'Tarifas Diamond'!$AG$108,VLOOKUP('Fórmulas Cotización'!$B37,'Tarifas Diamond'!$AC$108:$AH$174,5)))))),0) -> 0 | T37: =IF(B37>0,IF($B$32=1,IF($B37<18,'Tarifas Diamond'!$B$108,VLOOKUP('Fórmulas Cotización'!$B37,'Tarifas Diamond'!$A$108:$F$174,6)), IF($B$32=2,IF($B37<18,'Tarifas Diamond'!$I$108,VLOOKUP('Fórmulas Cotización'!$B37,'Tarifas Diamond'!$H$108:$M$174,6)), IF($B$32=3,IF($B37<18,'Tarifas Diamond'!$P$108,VLOOKUP('Fórmulas Cotización'!$B37,'Tarifas Diamond'!$O$108:$T$174,6)), IF($B$32=4,IF($B37<18,'Tarifas Diamond'!$W$108,VLOOKUP('Fórmulas Cotización'!$B37,'Tarifas Diamond'!$V$108:$AA$174,6)), IF($B37<18,'Tarifas Diamond'!$AH$108,VLOOKUP('Fórmulas Cotización'!$B37,'Tarifas Diamond'!$AC$108:$AH$174,6)))))),0) -> 0 | V37: =IF(B37>0,IF($B$32=1,IF($B37<18,'Tarifas Essential'!$B$108,VLOOKUP('Fórmulas Cotización'!$B37,'Tarifas Essential'!$A$108:$F$174,2)), IF($B$32=2,IF($B37<18,'Tarifas Essential'!$I$108,VLOOKUP('Fórmulas Cotización'!$B37,'Tarifas Essential'!$H$108:$M$174,2)), IF($B$32=3,IF($B37<18,'Tarifas Essential'!$P$108,VLOOKUP('Fórmulas Cotización'!$B37,'Tarifas Essential'!$O$108:$T$174,2)), IF($B$32=4,IF($B37<18,'Tarifas Essential'!$W$108,VLOOKUP('Fórmulas Cotización'!$B37,'Tarifas Essential'!$V$108:$AA$174,2)), IF($B37<18,'Tarifas Essential'!$AD$108,VLOOKUP('Fórmulas Cotización'!$B37,'Tarifas Essential'!$AC$108:$AH$174,2)))))),0) -> 0 | W37: =IF(B37>0,IF($B$32=1,IF($B37<18,'Tarifas Essential'!$B$108,VLOOKUP('Fórmulas Cotización'!$B37,'Tarifas Essential'!$A$108:$F$174,3)), IF($B$32=2,IF($B37<18,'Tarifas Essential'!$I$108,VLOOKUP('Fórmulas Cotización'!$B37,'Tarifas Essential'!$H$108:$M$174,3)), IF($B$32=3,IF($B37<18,'Tarifas Essential'!$P$108,VLOOKUP('Fórmulas Cotización'!$B37,'Tarifas Essential'!$O$108:$T$174,3)), IF($B$32=4,IF($B37<18,'Tarifas Essential'!$W$108,VLOOKUP('Fórmulas Cotización'!$B37,'Tarifas Essential'!$V$108:$AA$174,3)), IF($B37<18,'Tarifas Essential'!$AE$108,VLOOKUP('Fórmulas Cotización'!$B37,'Tarifas Essential'!$AC$108:$AH$174,3)))))),0) -> 0 | X37: =IF(B37>0,IF($B$32=1,IF($B37<18,'Tarifas Essential'!$B$108,VLOOKUP('Fórmulas Cotización'!$B37,'Tarifas Essential'!$A$108:$F$174,4)), IF($B$32=2,IF($B37<18,'Tarifas Essential'!$I$108,VLOOKUP('Fórmulas Cotización'!$B37,'Tarifas Essential'!$H$108:$M$174,4)), IF($B$32=3,IF($B37<18,'Tarifas Essential'!$P$108,VLOOKUP('Fórmulas Cotización'!$B37,'Tarifas Essential'!$O$108:$T$174,4)), IF($B$32=4,IF($B37<18,'Tarifas Essential'!$W$108,VLOOKUP('Fórmulas Cotización'!$B37,'Tarifas Essential'!$V$108:$AA$174,4)), IF($B37<18,'Tarifas Essential'!$AF$108,VLOOKUP('Fórmulas Cotización'!$B37,'Tarifas Essential'!$AC$108:$AH$174,4)))))),0) -> 0 | Y37: =IF(B37>0,IF($B$32=1,IF($B37<18,'Tarifas Essential'!$B$108,VLOOKUP('Fórmulas Cotización'!$B37,'Tarifas Essential'!$A$108:$F$174,5)), IF($B$32=2,IF($B37<18,'Tarifas Essential'!$I$108,VLOOKUP('Fórmulas Cotización'!$B37,'Tarifas Essential'!$H$108:$M$174,5)), IF($B$32=3,IF($B37<18,'Tarifas Essential'!$P$108,VLOOKUP('Fórmulas Cotización'!$B37,'Tarifas Essential'!$O$108:$T$174,5)), IF($B$32=4,IF($B37<18,'Tarifas Essential'!$W$108,VLOOKUP('Fórmulas Cotización'!$B37,'Tarifas Essential'!$V$108:$AA$174,5)), IF($B37<18,'Tarifas Essential'!$AG$108,VLOOKUP('Fórmulas Cotización'!$B37,'Tarifas Essential'!$AC$108:$AH$174,5)))))),0) -> 0 | Z37: =IF(B37>0,IF($B$32=1,IF($B37<18,'Tarifas Essential'!$B$108,VLOOKUP('Fórmulas Cotización'!$B37,'Tarifas Essential'!$A$108:$F$174,6)), IF($B$32=2,IF($B37<18,'Tarifas Essential'!$I$108,VLOOKUP('Fórmulas Cotización'!$B37,'Tarifas Essential'!$H$108:$M$174,6)), IF($B$32=3,IF($B37<18,'Tarifas Essential'!$P$108,VLOOKUP('Fórmulas Cotización'!$B37,'Tarifas Essential'!$O$108:$T$174,6)), IF($B$32=4,IF($B37<18,'Tarifas Essential'!$W$108,VLOOKUP('Fórmulas Cotización'!$B37,'Tarifas Essential'!$V$108:$AA$174,6)), IF($B37<18,'Tarifas Essential'!$AH$108,VLOOKUP('Fórmulas Cotización'!$B37,'Tarifas Essential'!$AC$108:$AH$174,6)))))),0) -> 0 | AB37: =IF(B37>0,IF($B$32=1,IF($B37<18,'Tarifas Secure'!$B$108,VLOOKUP('Fórmulas Cotización'!$B37,'Tarifas Secure'!$A$108:$F$174,2)), IF($B$32=2,IF($B37<18,'Tarifas Secure'!$I$108,VLOOKUP('Fórmulas Cotización'!$B37,'Tarifas Secure'!$H$108:$M$174,2)), IF($B$32=3,IF($B37<18,'Tarifas Secure'!$P$108,VLOOKUP('Fórmulas Cotización'!$B37,'Tarifas Secure'!$O$108:$T$174,2)), IF($B$32=4,IF($B37<18,'Tarifas Secure'!$W$108,VLOOKUP('Fórmulas Cotización'!$B37,'Tarifas Secure'!$V$108:$AA$174,2)), IF($B37<18,'Tarifas Secure'!$AD$108,VLOOKUP('Fórmulas Cotización'!$B37,'Tarifas Secure'!$AC$108:$AH$174,2)))))),0) -> 0 | AC37: =IF(B37>0,IF($B$32=1,IF($B37<18,'Tarifas Secure'!$B$108,VLOOKUP('Fórmulas Cotización'!$B37,'Tarifas Secure'!$A$108:$F$174,3)), IF($B$32=2,IF($B37<18,'Tarifas Secure'!$I$108,VLOOKUP('Fórmulas Cotización'!$B37,'Tarifas Secure'!$H$108:$M$174,3)), IF($B$32=3,IF($B37<18,'Tarifas Secure'!$P$108,VLOOKUP('Fórmulas Cotización'!$B37,'Tarifas Secure'!$O$108:$T$174,3)), IF($B$32=4,IF($B37<18,'Tarifas Secure'!$W$108,VLOOKUP('Fórmulas Cotización'!$B37,'Tarifas Secure'!$V$108:$AA$174,3)), IF($B37<18,'Tarifas Secure'!$AE$108,VLOOKUP('Fórmulas Cotización'!$B37,'Tarifas Secure'!$AC$108:$AH$174,3)))))),0) -> 0 | AD37: =IF(B37>0,IF($B$32=1,IF($B37<18,'Tarifas Secure'!$B$108,VLOOKUP('Fórmulas Cotización'!$B37,'Tarifas Secure'!$A$108:$F$174,4)), IF($B$32=2,IF($B37<18,'Tarifas Secure'!$I$108,VLOOKUP('Fórmulas Cotización'!$B37,'Tarifas Secure'!$H$108:$M$174,4)), IF($B$32=3,IF($B37<18,'Tarifas Secure'!$P$108,VLOOKUP('Fórmulas Cotización'!$B37,'Tarifas Secure'!$O$108:$T$174,4)), IF($B$32=4,IF($B37<18,'Tarifas Secure'!$W$108,VLOOKUP('Fórmulas Cotización'!$B37,'Tarifas Secure'!$V$108:$AA$174,4)), IF($B37<18,'Tarifas Secure'!$AF$108,VLOOKUP('Fórmulas Cotización'!$B37,'Tarifas Secure'!$AC$108:$AH$174,4)))))),0) -> 0 | AE37: =IF(B37>0,IF($B$32=1,IF($B37<18,'Tarifas Secure'!$B$108,VLOOKUP('Fórmulas Cotización'!$B37,'Tarifas Secure'!$A$108:$F$174,5)), IF($B$32=2,IF($B37<18,'Tarifas Secure'!$I$108,VLOOKUP('Fórmulas Cotización'!$B37,'Tarifas Secure'!$H$108:$M$174,5)), IF($B$32=3,IF($B37<18,'Tarifas Secure'!$P$108,VLOOKUP('Fórmulas Cotización'!$B37,'Tarifas Secure'!$O$108:$T$174,5)), IF($B$32=4,IF($B37<18,'Tarifas Secure'!$W$108,VLOOKUP('Fórmulas Cotización'!$B37,'Tarifas Secure'!$V$108:$AA$174,5)), IF($B37<18,'Tarifas Secure'!$AG$108,VLOOKUP('Fórmulas Cotización'!$B37,'Tarifas Secure'!$AC$108:$AH$174,5)))))),0) -> 0 | AF37: =IF(B37>0,IF($B$32=1,IF($B37<18,'Tarifas Secure'!$B$108,VLOOKUP('Fórmulas Cotización'!$B37,'Tarifas Secure'!$A$108:$F$174,6)), IF($B$32=2,IF($B37<18,'Tarifas Secure'!$I$108,VLOOKUP('Fórmulas Cotización'!$B37,'Tarifas Secure'!$H$108:$M$174,6)), IF($B$32=3,IF($B37<18,'Tarifas Secure'!$P$108,VLOOKUP('Fórmulas Cotización'!$B37,'Tarifas Secure'!$O$108:$T$174,6)), IF($B$32=4,IF($B37<18,'Tarifas Secure'!$W$108,VLOOKUP('Fórmulas Cotización'!$B37,'Tarifas Secure'!$V$108:$AA$174,6)), IF($B37<18,'Tarifas Secure'!$AH$108,VLOOKUP('Fórmulas Cotización'!$B37,'Tarifas Secure'!$AC$108:$AH$174,6)))))),0) -> 0 | AH37: =IF(B37>0,IF($B$32=1,IF($B37<18,'Bupa Total'!$B$108,VLOOKUP('Fórmulas Cotización'!$B37,'Bupa Total'!$A$108:$F$174,2)), IF($B$32=2,IF($B37<18,'Bupa Total'!$I$108,VLOOKUP('Fórmulas Cotización'!$B37,'Bupa Total'!$H$108:$M$174,2)), IF($B$32=3,IF($B37<18,'Bupa Total'!$P$108,VLOOKUP('Fórmulas Cotización'!$B37,'Bupa Total'!$O$108:$T$174,2)), IF($B$32=4,IF($B37<18,'Bupa Total'!$W$108,VLOOKUP('Fórmulas Cotización'!$B37,'Bupa Total'!$V$108:$AA$174,2)), IF($B37<18,'Bupa Total'!$AD$108,VLOOKUP('Fórmulas Cotización'!$B37,'Bupa Total'!$AC$108:$AH$174,2)))))),0) -> 0 | AI37: =IF(B37>0,IF($B$32=1,IF($B37<18,'Bupa Total'!$B$108,VLOOKUP('Fórmulas Cotización'!$B37,'Bupa Total'!$A$108:$F$174,3)), IF($B$32=2,IF($B37<18,'Bupa Total'!$I$108,VLOOKUP('Fórmulas Cotización'!$B37,'Bupa Total'!$H$108:$M$174,3)), IF($B$32=3,IF($B37<18,'Bupa Total'!$P$108,VLOOKUP('Fórmulas Cotización'!$B37,'Bupa Total'!$O$108:$T$174,3)), IF($B$32=4,IF($B37<18,'Bupa Total'!$W$108,VLOOKUP('Fórmulas Cotización'!$B37,'Bupa Total'!$V$108:$AA$174,3)), IF($B37<18,'Bupa Total'!$AE$108,VLOOKUP('Fórmulas Cotización'!$B37,'Bupa Total'!$AC$108:$AH$174,3)))))),0) -> 0 | AJ37: =IF(B37>0,IF($B$32=1,IF($B37<18,'Bupa Total'!$B$108,VLOOKUP('Fórmulas Cotización'!$B37,'Bupa Total'!$A$108:$F$174,4)), IF($B$32=2,IF($B37<18,'Bupa Total'!$I$108,VLOOKUP('Fórmulas Cotización'!$B37,'Bupa Total'!$H$108:$M$174,4)), IF($B$32=3,IF($B37<18,'Bupa Total'!$P$108,VLOOKUP('Fórmulas Cotización'!$B37,'Bupa Total'!$O$108:$T$174,4)), IF($B$32=4,IF($B37<18,'Bupa Total'!$W$108,VLOOKUP('Fórmulas Cotización'!$B37,'Bupa Total'!$V$108:$AA$174,4)), IF($B37<18,'Bupa Total'!$AF$108,VLOOKUP('Fórmulas Cotización'!$B37,'Bupa Total'!$AC$108:$AH$174,4)))))),0) -> 0 | AK37: =IF(B37>0,IF($B$32=1,IF($B37<18,'Bupa Total'!$B$108,VLOOKUP('Fórmulas Cotización'!$B37,'Bupa Total'!$A$108:$F$174,5)), IF($B$32=2,IF($B37<18,'Bupa Total'!$I$108,VLOOKUP('Fórmulas Cotización'!$B37,'Bupa Total'!$H$108:$M$174,5)), IF($B$32=3,IF($B37<18,'Bupa Total'!$P$108,VLOOKUP('Fórmulas Cotización'!$B37,'Bupa Total'!$O$108:$T$174,5)), IF($B$32=4,IF($B37<18,'Bupa Total'!$W$108,VLOOKUP('Fórmulas Cotización'!$B37,'Bupa Total'!$V$108:$AA$174,5)), IF($B37<18,'Bupa Total'!$AG$108,VLOOKUP('Fórmulas Cotización'!$B37,'Bupa Total'!$AC$108:$AH$174,5)))))),0) -> 0 | AL37: =IF(B37>0,IF($B$32=1,IF($B37<18,'Bupa Total'!$B$108,VLOOKUP('Fórmulas Cotización'!$B37,'Bupa Total'!$A$108:$F$174,6)), IF($B$32=2,IF($B37<18,'Bupa Total'!$I$108,VLOOKUP('Fórmulas Cotización'!$B37,'Bupa Total'!$H$108:$M$174,6)), IF($B$32=3,IF($B37<18,'Bupa Total'!$P$108,VLOOKUP('Fórmulas Cotización'!$B37,'Bupa Total'!$O$108:$T$174,6)), IF($B$32=4,IF($B37<18,'Bupa Total'!$W$108,VLOOKUP('Fórmulas Cotización'!$B37,'Bupa Total'!$V$108:$AA$174,6)), IF($B37<18,'Bupa Total'!$AH$108,VLOOKUP('Fórmulas Cotización'!$B37,'Bupa Total'!$AC$108:$AH$174,6)))))),0) -> 0 | AV37: Veracruz | AW37: Zona 5 | AX37: 5 | AY37: 0 | AZ37: 0
A38: 5 | B38: ='BUPA CARE PRODUCTS'!H18 -> 0 | D38: =IF(B38>0,IF($B$32=1,IF($B38<18,'Tarifas Advantage'!$B$108,VLOOKUP('Fórmulas Cotización'!$B38,'Tarifas Advantage'!$A$108:$F$174,2)), IF($B$32=2,IF($B38<18,'Tarifas Advantage'!$I$108,VLOOKUP('Fórmulas Cotización'!$B38,'Tarifas Advantage'!$H$108:$M$174,2)), IF($B$32=3,IF($B38<18,'Tarifas Advantage'!$P$108,VLOOKUP('Fórmulas Cotización'!$B38,'Tarifas Advantage'!$O$108:$T$174,2)), IF($B$32=4,IF($B38<18,'Tarifas Advantage'!$W$108,VLOOKUP('Fórmulas Cotización'!$B38,'Tarifas Advantage'!$V$108:$AA$174,2)), IF($B38<18,'Tarifas Advantage'!$AD$108,VLOOKUP('Fórmulas Cotización'!$B38,'Tarifas Advantage'!$AC$108:$AH$174,2)))))),0) -> 0 | E38: =IF(B38>0,IF($B$32=1,IF($B38<18,'Tarifas Advantage'!$B$108,VLOOKUP('Fórmulas Cotización'!$B38,'Tarifas Advantage'!$A$108:$F$174,3)), IF($B$32=2,IF($B38<18,'Tarifas Advantage'!$I$108,VLOOKUP('Fórmulas Cotización'!$B38,'Tarifas Advantage'!$H$108:$M$174,3)), IF($B$32=3,IF($B38<18,'Tarifas Advantage'!$P$108,VLOOKUP('Fórmulas Cotización'!$B38,'Tarifas Advantage'!$O$108:$T$174,3)), IF($B$32=4,IF($B38<18,'Tarifas Advantage'!$W$108,VLOOKUP('Fórmulas Cotización'!$B38,'Tarifas Advantage'!$V$108:$AA$174,3)), IF($B38<18,'Tarifas Advantage'!$AE$108,VLOOKUP('Fórmulas Cotización'!$B38,'Tarifas Advantage'!$AC$108:$AH$174,3)))))),0) -> 0 | F38: =IF(B38>0,IF($B$32=1,IF($B38<18,'Tarifas Advantage'!$B$108,VLOOKUP('Fórmulas Cotización'!$B38,'Tarifas Advantage'!$A$108:$F$174,4)), IF($B$32=2,IF($B38<18,'Tarifas Advantage'!$I$108,VLOOKUP('Fórmulas Cotización'!$B38,'Tarifas Advantage'!$H$108:$M$174,4)), IF($B$32=3,IF($B38<18,'Tarifas Advantage'!$P$108,VLOOKUP('Fórmulas Cotización'!$B38,'Tarifas Advantage'!$O$108:$T$174,4)), IF($B$32=4,IF($B38<18,'Tarifas Advantage'!$W$108,VLOOKUP('Fórmulas Cotización'!$B38,'Tarifas Advantage'!$V$108:$AA$174,4)), IF($B38<18,'Tarifas Advantage'!$AF$108,VLOOKUP('Fórmulas Cotización'!$B38,'Tarifas Advantage'!$AC$108:$AH$174,4)))))),0) -> 0 | G38: =IF(B38>0,IF($B$32=1,IF($B38<18,'Tarifas Advantage'!$B$108,VLOOKUP('Fórmulas Cotización'!$B38,'Tarifas Advantage'!$A$108:$F$174,5)), IF($B$32=2,IF($B38<18,'Tarifas Advantage'!$I$108,VLOOKUP('Fórmulas Cotización'!$B38,'Tarifas Advantage'!$H$108:$M$174,5)), IF($B$32=3,IF($B38<18,'Tarifas Advantage'!$P$108,VLOOKUP('Fórmulas Cotización'!$B38,'Tarifas Advantage'!$O$108:$T$174,5)), IF($B$32=4,IF($B38<18,'Tarifas Advantage'!$W$108,VLOOKUP('Fórmulas Cotización'!$B38,'Tarifas Advantage'!$V$108:$AA$174,5)), IF($B38<18,'Tarifas Advantage'!$AG$108,VLOOKUP('Fórmulas Cotización'!$B38,'Tarifas Advantage'!$AC$108:$AH$174,5)))))),0) -> 0 | H38: =IF(B38>0,IF($B$32=1,IF($B38<18,'Tarifas Advantage'!$B$108,VLOOKUP('Fórmulas Cotización'!$B38,'Tarifas Advantage'!$A$108:$F$174,6)), IF($B$32=2,IF($B38<18,'Tarifas Advantage'!$I$108,VLOOKUP('Fórmulas Cotización'!$B38,'Tarifas Advantage'!$H$108:$M$174,6)), IF($B$32=3,IF($B38<18,'Tarifas Advantage'!$P$108,VLOOKUP('Fórmulas Cotización'!$B38,'Tarifas Advantage'!$O$108:$T$174,6)), IF($B$32=4,IF($B38<18,'Tarifas Advantage'!$W$108,VLOOKUP('Fórmulas Cotización'!$B38,'Tarifas Advantage'!$V$108:$AA$174,6)), IF($B38<18,'Tarifas Advantage'!$AH$108,VLOOKUP('Fórmulas Cotización'!$B38,'Tarifas Advantage'!$AC$108:$AH$174,6)))))),0) -> 0 | J38: =IF(B38>0,IF($B$32=1,IF($B38<18,'Tarifas Complete'!$B$108,VLOOKUP('Fórmulas Cotización'!$B38,'Tarifas Complete'!$A$108:$F$174,2)), IF($B$32=2,IF($B38<18,'Tarifas Complete'!$I$108,VLOOKUP('Fórmulas Cotización'!$B38,'Tarifas Complete'!$H$108:$M$174,2)), IF($B$32=3,IF($B38<18,'Tarifas Complete'!$P$108,VLOOKUP('Fórmulas Cotización'!$B38,'Tarifas Complete'!$O$108:$T$174,2)), IF($B$32=4,IF($B38<18,'Tarifas Complete'!$W$108,VLOOKUP('Fórmulas Cotización'!$B38,'Tarifas Complete'!$V$108:$AA$174,2)), IF($B38<18,'Tarifas Complete'!$AD$108,VLOOKUP('Fórmulas Cotización'!$B38,'Tarifas Complete'!$AC$108:$AH$174,3)))))),0) -> 0 | K38: =IF(B38>0,IF($B$32=1,IF($B38<18,'Tarifas Complete'!$B$108,VLOOKUP('Fórmulas Cotización'!$B38,'Tarifas Complete'!$A$108:$F$174,3)), IF($B$32=2,IF($B38<18,'Tarifas Complete'!$I$108,VLOOKUP('Fórmulas Cotización'!$B38,'Tarifas Complete'!$H$108:$M$174,3)), IF($B$32=3,IF($B38<18,'Tarifas Complete'!$P$108,VLOOKUP('Fórmulas Cotización'!$B38,'Tarifas Complete'!$O$108:$T$174,3)), IF($B$32=4,IF($B38<18,'Tarifas Complete'!$W$108,VLOOKUP('Fórmulas Cotización'!$B38,'Tarifas Complete'!$V$108:$AA$174,3)), IF($B38<18,'Tarifas Complete'!$AE$108,VLOOKUP('Fórmulas Cotización'!$B38,'Tarifas Complete'!$AC$108:$AH$174,3)))))),0) -> 0 | L38: =IF(B38>0,IF($B$32=1,IF($B38<18,'Tarifas Complete'!$B$108,VLOOKUP('Fórmulas Cotización'!$B38,'Tarifas Complete'!$A$108:$F$174,4)), IF($B$32=2,IF($B38<18,'Tarifas Complete'!$I$108,VLOOKUP('Fórmulas Cotización'!$B38,'Tarifas Complete'!$H$108:$M$174,4)), IF($B$32=3,IF($B38<18,'Tarifas Complete'!$P$108,VLOOKUP('Fórmulas Cotización'!$B38,'Tarifas Complete'!$O$108:$T$174,4)), IF($B$32=4,IF($B38<18,'Tarifas Complete'!$W$108,VLOOKUP('Fórmulas Cotización'!$B38,'Tarifas Complete'!$V$108:$AA$174,4)), IF($B38<18,'Tarifas Complete'!$AF$108,VLOOKUP('Fórmulas Cotización'!$B38,'Tarifas Complete'!$AC$108:$AH$174,4)))))),0) -> 0 | M38: =IF(B38>0,IF($B$32=1,IF($B38<18,'Tarifas Complete'!$B$108,VLOOKUP('Fórmulas Cotización'!$B38,'Tarifas Complete'!$A$108:$F$174,5)), IF($B$32=2,IF($B38<18,'Tarifas Complete'!$I$108,VLOOKUP('Fórmulas Cotización'!$B38,'Tarifas Complete'!$H$108:$M$174,5)), IF($B$32=3,IF($B38<18,'Tarifas Complete'!$P$108,VLOOKUP('Fórmulas Cotización'!$B38,'Tarifas Complete'!$O$108:$T$174,5)), IF($B$32=4,IF($B38<18,'Tarifas Complete'!$W$108,VLOOKUP('Fórmulas Cotización'!$B38,'Tarifas Complete'!$V$108:$AA$174,5)), IF($B38<18,'Tarifas Complete'!$AG$108,VLOOKUP('Fórmulas Cotización'!$B38,'Tarifas Complete'!$AC$108:$AH$174,5)))))),0) -> 0 | N38: =IF(B38>0,IF($B$32=1,IF($B38<18,'Tarifas Complete'!$B$108,VLOOKUP('Fórmulas Cotización'!$B38,'Tarifas Complete'!$A$108:$F$174,6)), IF($B$32=2,IF($B38<18,'Tarifas Complete'!$I$108,VLOOKUP('Fórmulas Cotización'!$B38,'Tarifas Complete'!$H$108:$M$174,6)), IF($B$32=3,IF($B38<18,'Tarifas Complete'!$P$108,VLOOKUP('Fórmulas Cotización'!$B38,'Tarifas Complete'!$O$108:$T$174,6)), IF($B$32=4,IF($B38<18,'Tarifas Complete'!$W$108,VLOOKUP('Fórmulas Cotización'!$B38,'Tarifas Complete'!$V$108:$AA$174,6)), IF($B38<18,'Tarifas Complete'!$AH$108,VLOOKUP('Fórmulas Cotización'!$B38,'Tarifas Complete'!$AC$108:$AH$174,6)))))),0) -> 0 | P38: =IF(B38>0,IF($B$32=1,IF($B38<18,'Tarifas Diamond'!$B$108,VLOOKUP('Fórmulas Cotización'!$B38,'Tarifas Diamond'!$A$108:$F$174,2)), IF($B$32=2,IF($B38<18,'Tarifas Diamond'!$I$108,VLOOKUP('Fórmulas Cotización'!$B38,'Tarifas Diamond'!$H$108:$M$174,2)), IF($B$32=3,IF($B38<18,'Tarifas Diamond'!$P$108,VLOOKUP('Fórmulas Cotización'!$B38,'Tarifas Diamond'!$O$108:$T$174,2)), IF($B$32=4,IF($B38<18,'Tarifas Diamond'!$W$108,VLOOKUP('Fórmulas Cotización'!$B38,'Tarifas Diamond'!$V$108:$AA$174,2)), IF($B38<18,'Tarifas Diamond'!$AD$108,VLOOKUP('Fórmulas Cotización'!$B38,'Tarifas Diamond'!$AC$108:$AH$174,2)))))),0) -> 0 | Q38: =IF(B38>0,IF($B$32=1,IF($B38<18,'Tarifas Diamond'!$B$108,VLOOKUP('Fórmulas Cotización'!$B38,'Tarifas Diamond'!$A$108:$F$174,3)), IF($B$32=2,IF($B38<18,'Tarifas Diamond'!$I$108,VLOOKUP('Fórmulas Cotización'!$B38,'Tarifas Diamond'!$H$108:$M$174,3)), IF($B$32=3,IF($B38<18,'Tarifas Diamond'!$P$108,VLOOKUP('Fórmulas Cotización'!$B38,'Tarifas Diamond'!$O$108:$T$174,3)), IF($B$32=4,IF($B38<18,'Tarifas Diamond'!$W$108,VLOOKUP('Fórmulas Cotización'!$B38,'Tarifas Diamond'!$V$108:$AA$174,3)), IF($B38<18,'Tarifas Diamond'!$AE$108,VLOOKUP('Fórmulas Cotización'!$B38,'Tarifas Diamond'!$AC$108:$AH$174,3)))))),0) -> 0 | R38: =IF(B38>0,IF($B$32=1,IF($B38<18,'Tarifas Diamond'!$B$108,VLOOKUP('Fórmulas Cotización'!$B38,'Tarifas Diamond'!$A$108:$F$174,4)), IF($B$32=2,IF($B38<18,'Tarifas Diamond'!$I$108,VLOOKUP('Fórmulas Cotización'!$B38,'Tarifas Diamond'!$H$108:$M$174,4)), IF($B$32=3,IF($B38<18,'Tarifas Diamond'!$P$108,VLOOKUP('Fórmulas Cotización'!$B38,'Tarifas Diamond'!$O$108:$T$174,4)), IF($B$32=4,IF($B38<18,'Tarifas Diamond'!$W$108,VLOOKUP('Fórmulas Cotización'!$B38,'Tarifas Diamond'!$V$108:$AA$174,4)), IF($B38<18,'Tarifas Diamond'!$AF$108,VLOOKUP('Fórmulas Cotización'!$B38,'Tarifas Diamond'!$AC$108:$AH$174,4)))))),0) -> 0 | S38: =IF(B38>0,IF($B$32=1,IF($B38<18,'Tarifas Diamond'!$B$108,VLOOKUP('Fórmulas Cotización'!$B38,'Tarifas Diamond'!$A$108:$F$174,5)), IF($B$32=2,IF($B38<18,'Tarifas Diamond'!$I$108,VLOOKUP('Fórmulas Cotización'!$B38,'Tarifas Diamond'!$H$108:$M$174,5)), IF($B$32=3,IF($B38<18,'Tarifas Diamond'!$P$108,VLOOKUP('Fórmulas Cotización'!$B38,'Tarifas Diamond'!$O$108:$T$174,5)), IF($B$32=4,IF($B38<18,'Tarifas Diamond'!$W$108,VLOOKUP('Fórmulas Cotización'!$B38,'Tarifas Diamond'!$V$108:$AA$174,5)), IF($B38<18,'Tarifas Diamond'!$AG$108,VLOOKUP('Fórmulas Cotización'!$B38,'Tarifas Diamond'!$AC$108:$AH$174,5)))))),0) -> 0 | T38: =IF(B38>0,IF($B$32=1,IF($B38<18,'Tarifas Diamond'!$B$108,VLOOKUP('Fórmulas Cotización'!$B38,'Tarifas Diamond'!$A$108:$F$174,6)), IF($B$32=2,IF($B38<18,'Tarifas Diamond'!$I$108,VLOOKUP('Fórmulas Cotización'!$B38,'Tarifas Diamond'!$H$108:$M$174,6)), IF($B$32=3,IF($B38<18,'Tarifas Diamond'!$P$108,VLOOKUP('Fórmulas Cotización'!$B38,'Tarifas Diamond'!$O$108:$T$174,6)), IF($B$32=4,IF($B38<18,'Tarifas Diamond'!$W$108,VLOOKUP('Fórmulas Cotización'!$B38,'Tarifas Diamond'!$V$108:$AA$174,6)), IF($B38<18,'Tarifas Diamond'!$AH$108,VLOOKUP('Fórmulas Cotización'!$B38,'Tarifas Diamond'!$AC$108:$AH$174,6)))))),0) -> 0 | V38: =IF(B38>0,IF($B$32=1,IF($B38<18,'Tarifas Essential'!$B$108,VLOOKUP('Fórmulas Cotización'!$B38,'Tarifas Essential'!$A$108:$F$174,2)), IF($B$32=2,IF($B38<18,'Tarifas Essential'!$I$108,VLOOKUP('Fórmulas Cotización'!$B38,'Tarifas Essential'!$H$108:$M$174,2)), IF($B$32=3,IF($B38<18,'Tarifas Essential'!$P$108,VLOOKUP('Fórmulas Cotización'!$B38,'Tarifas Essential'!$O$108:$T$174,2)), IF($B$32=4,IF($B38<18,'Tarifas Essential'!$W$108,VLOOKUP('Fórmulas Cotización'!$B38,'Tarifas Essential'!$V$108:$AA$174,2)), IF($B38<18,'Tarifas Essential'!$AD$108,VLOOKUP('Fórmulas Cotización'!$B38,'Tarifas Essential'!$AC$108:$AH$174,2)))))),0) -> 0 | W38: =IF(B38>0,IF($B$32=1,IF($B38<18,'Tarifas Essential'!$B$108,VLOOKUP('Fórmulas Cotización'!$B38,'Tarifas Essential'!$A$108:$F$174,3)), IF($B$32=2,IF($B38<18,'Tarifas Essential'!$I$108,VLOOKUP('Fórmulas Cotización'!$B38,'Tarifas Essential'!$H$108:$M$174,3)), IF($B$32=3,IF($B38<18,'Tarifas Essential'!$P$108,VLOOKUP('Fórmulas Cotización'!$B38,'Tarifas Essential'!$O$108:$T$174,3)), IF($B$32=4,IF($B38<18,'Tarifas Essential'!$W$108,VLOOKUP('Fórmulas Cotización'!$B38,'Tarifas Essential'!$V$108:$AA$174,3)), IF($B38<18,'Tarifas Essential'!$AE$108,VLOOKUP('Fórmulas Cotización'!$B38,'Tarifas Essential'!$AC$108:$AH$174,3)))))),0) -> 0 | X38: =IF(B38>0,IF($B$32=1,IF($B38<18,'Tarifas Essential'!$B$108,VLOOKUP('Fórmulas Cotización'!$B38,'Tarifas Essential'!$A$108:$F$174,4)), IF($B$32=2,IF($B38<18,'Tarifas Essential'!$I$108,VLOOKUP('Fórmulas Cotización'!$B38,'Tarifas Essential'!$H$108:$M$174,4)), IF($B$32=3,IF($B38<18,'Tarifas Essential'!$P$108,VLOOKUP('Fórmulas Cotización'!$B38,'Tarifas Essential'!$O$108:$T$174,4)), IF($B$32=4,IF($B38<18,'Tarifas Essential'!$W$108,VLOOKUP('Fórmulas Cotización'!$B38,'Tarifas Essential'!$V$108:$AA$174,4)), IF($B38<18,'Tarifas Essential'!$AF$108,VLOOKUP('Fórmulas Cotización'!$B38,'Tarifas Essential'!$AC$108:$AH$174,4)))))),0) -> 0 | Y38: =IF(B38>0,IF($B$32=1,IF($B38<18,'Tarifas Essential'!$B$108,VLOOKUP('Fórmulas Cotización'!$B38,'Tarifas Essential'!$A$108:$F$174,5)), IF($B$32=2,IF($B38<18,'Tarifas Essential'!$I$108,VLOOKUP('Fórmulas Cotización'!$B38,'Tarifas Essential'!$H$108:$M$174,5)), IF($B$32=3,IF($B38<18,'Tarifas Essential'!$P$108,VLOOKUP('Fórmulas Cotización'!$B38,'Tarifas Essential'!$O$108:$T$174,5)), IF($B$32=4,IF($B38<18,'Tarifas Essential'!$W$108,VLOOKUP('Fórmulas Cotización'!$B38,'Tarifas Essential'!$V$108:$AA$174,5)), IF($B38<18,'Tarifas Essential'!$AG$108,VLOOKUP('Fórmulas Cotización'!$B38,'Tarifas Essential'!$AC$108:$AH$174,5)))))),0) -> 0 | Z38: =IF(B38>0,IF($B$32=1,IF($B38<18,'Tarifas Essential'!$B$108,VLOOKUP('Fórmulas Cotización'!$B38,'Tarifas Essential'!$A$108:$F$174,6)), IF($B$32=2,IF($B38<18,'Tarifas Essential'!$I$108,VLOOKUP('Fórmulas Cotización'!$B38,'Tarifas Essential'!$H$108:$M$174,6)), IF($B$32=3,IF($B38<18,'Tarifas Essential'!$P$108,VLOOKUP('Fórmulas Cotización'!$B38,'Tarifas Essential'!$O$108:$T$174,6)), IF($B$32=4,IF($B38<18,'Tarifas Essential'!$W$108,VLOOKUP('Fórmulas Cotización'!$B38,'Tarifas Essential'!$V$108:$AA$174,6)), IF($B38<18,'Tarifas Essential'!$AH$108,VLOOKUP('Fórmulas Cotización'!$B38,'Tarifas Essential'!$AC$108:$AH$174,6)))))),0) -> 0 | AB38: =IF(B38>0,IF($B$32=1,IF($B38<18,'Tarifas Secure'!$B$108,VLOOKUP('Fórmulas Cotización'!$B38,'Tarifas Secure'!$A$108:$F$174,2)), IF($B$32=2,IF($B38<18,'Tarifas Secure'!$I$108,VLOOKUP('Fórmulas Cotización'!$B38,'Tarifas Secure'!$H$108:$M$174,2)), IF($B$32=3,IF($B38<18,'Tarifas Secure'!$P$108,VLOOKUP('Fórmulas Cotización'!$B38,'Tarifas Secure'!$O$108:$T$174,2)), IF($B$32=4,IF($B38<18,'Tarifas Secure'!$W$108,VLOOKUP('Fórmulas Cotización'!$B38,'Tarifas Secure'!$V$108:$AA$174,2)), IF($B38<18,'Tarifas Secure'!$AD$108,VLOOKUP('Fórmulas Cotización'!$B38,'Tarifas Secure'!$AC$108:$AH$174,2)))))),0) -> 0 | AC38: =IF(B38>0,IF($B$32=1,IF($B38<18,'Tarifas Secure'!$B$108,VLOOKUP('Fórmulas Cotización'!$B38,'Tarifas Secure'!$A$108:$F$174,3)), IF($B$32=2,IF($B38<18,'Tarifas Secure'!$I$108,VLOOKUP('Fórmulas Cotización'!$B38,'Tarifas Secure'!$H$108:$M$174,3)), IF($B$32=3,IF($B38<18,'Tarifas Secure'!$P$108,VLOOKUP('Fórmulas Cotización'!$B38,'Tarifas Secure'!$O$108:$T$174,3)), IF($B$32=4,IF($B38<18,'Tarifas Secure'!$W$108,VLOOKUP('Fórmulas Cotización'!$B38,'Tarifas Secure'!$V$108:$AA$174,3)), IF($B38<18,'Tarifas Secure'!$AE$108,VLOOKUP('Fórmulas Cotización'!$B38,'Tarifas Secure'!$AC$108:$AH$174,3)))))),0) -> 0 | AD38: =IF(B38>0,IF($B$32=1,IF($B38<18,'Tarifas Secure'!$B$108,VLOOKUP('Fórmulas Cotización'!$B38,'Tarifas Secure'!$A$108:$F$174,4)), IF($B$32=2,IF($B38<18,'Tarifas Secure'!$I$108,VLOOKUP('Fórmulas Cotización'!$B38,'Tarifas Secure'!$H$108:$M$174,4)), IF($B$32=3,IF($B38<18,'Tarifas Secure'!$P$108,VLOOKUP('Fórmulas Cotización'!$B38,'Tarifas Secure'!$O$108:$T$174,4)), IF($B$32=4,IF($B38<18,'Tarifas Secure'!$W$108,VLOOKUP('Fórmulas Cotización'!$B38,'Tarifas Secure'!$V$108:$AA$174,4)), IF($B38<18,'Tarifas Secure'!$AF$108,VLOOKUP('Fórmulas Cotización'!$B38,'Tarifas Secure'!$AC$108:$AH$174,4)))))),0) -> 0 | AE38: =IF(B38>0,IF($B$32=1,IF($B38<18,'Tarifas Secure'!$B$108,VLOOKUP('Fórmulas Cotización'!$B38,'Tarifas Secure'!$A$108:$F$174,5)), IF($B$32=2,IF($B38<18,'Tarifas Secure'!$I$108,VLOOKUP('Fórmulas Cotización'!$B38,'Tarifas Secure'!$H$108:$M$174,5)), IF($B$32=3,IF($B38<18,'Tarifas Secure'!$P$108,VLOOKUP('Fórmulas Cotización'!$B38,'Tarifas Secure'!$O$108:$T$174,5)), IF($B$32=4,IF($B38<18,'Tarifas Secure'!$W$108,VLOOKUP('Fórmulas Cotización'!$B38,'Tarifas Secure'!$V$108:$AA$174,5)), IF($B38<18,'Tarifas Secure'!$AG$108,VLOOKUP('Fórmulas Cotización'!$B38,'Tarifas Secure'!$AC$108:$AH$174,5)))))),0) -> 0 | AF38: =IF(B38>0,IF($B$32=1,IF($B38<18,'Tarifas Secure'!$B$108,VLOOKUP('Fórmulas Cotización'!$B38,'Tarifas Secure'!$A$108:$F$174,6)), IF($B$32=2,IF($B38<18,'Tarifas Secure'!$I$108,VLOOKUP('Fórmulas Cotización'!$B38,'Tarifas Secure'!$H$108:$M$174,6)), IF($B$32=3,IF($B38<18,'Tarifas Secure'!$P$108,VLOOKUP('Fórmulas Cotización'!$B38,'Tarifas Secure'!$O$108:$T$174,6)), IF($B$32=4,IF($B38<18,'Tarifas Secure'!$W$108,VLOOKUP('Fórmulas Cotización'!$B38,'Tarifas Secure'!$V$108:$AA$174,6)), IF($B38<18,'Tarifas Secure'!$AH$108,VLOOKUP('Fórmulas Cotización'!$B38,'Tarifas Secure'!$AC$108:$AH$174,6)))))),0) -> 0 | AH38: =IF(B38>0,IF($B$32=1,IF($B38<18,'Bupa Total'!$B$108,VLOOKUP('Fórmulas Cotización'!$B38,'Bupa Total'!$A$108:$F$174,2)), IF($B$32=2,IF($B38<18,'Bupa Total'!$I$108,VLOOKUP('Fórmulas Cotización'!$B38,'Bupa Total'!$H$108:$M$174,2)), IF($B$32=3,IF($B38<18,'Bupa Total'!$P$108,VLOOKUP('Fórmulas Cotización'!$B38,'Bupa Total'!$O$108:$T$174,2)), IF($B$32=4,IF($B38<18,'Bupa Total'!$W$108,VLOOKUP('Fórmulas Cotización'!$B38,'Bupa Total'!$V$108:$AA$174,2)), IF($B38<18,'Bupa Total'!$AD$108,VLOOKUP('Fórmulas Cotización'!$B38,'Bupa Total'!$AC$108:$AH$174,2)))))),0) -> 0 | AI38: =IF(B38>0,IF($B$32=1,IF($B38<18,'Bupa Total'!$B$108,VLOOKUP('Fórmulas Cotización'!$B38,'Bupa Total'!$A$108:$F$174,3)), IF($B$32=2,IF($B38<18,'Bupa Total'!$I$108,VLOOKUP('Fórmulas Cotización'!$B38,'Bupa Total'!$H$108:$M$174,3)), IF($B$32=3,IF($B38<18,'Bupa Total'!$P$108,VLOOKUP('Fórmulas Cotización'!$B38,'Bupa Total'!$O$108:$T$174,3)), IF($B$32=4,IF($B38<18,'Bupa Total'!$W$108,VLOOKUP('Fórmulas Cotización'!$B38,'Bupa Total'!$V$108:$AA$174,3)), IF($B38<18,'Bupa Total'!$AE$108,VLOOKUP('Fórmulas Cotización'!$B38,'Bupa Total'!$AC$108:$AH$174,3)))))),0) -> 0 | AJ38: =IF(B38>0,IF($B$32=1,IF($B38<18,'Bupa Total'!$B$108,VLOOKUP('Fórmulas Cotización'!$B38,'Bupa Total'!$A$108:$F$174,4)), IF($B$32=2,IF($B38<18,'Bupa Total'!$I$108,VLOOKUP('Fórmulas Cotización'!$B38,'Bupa Total'!$H$108:$M$174,4)), IF($B$32=3,IF($B38<18,'Bupa Total'!$P$108,VLOOKUP('Fórmulas Cotización'!$B38,'Bupa Total'!$O$108:$T$174,4)), IF($B$32=4,IF($B38<18,'Bupa Total'!$W$108,VLOOKUP('Fórmulas Cotización'!$B38,'Bupa Total'!$V$108:$AA$174,4)), IF($B38<18,'Bupa Total'!$AF$108,VLOOKUP('Fórmulas Cotización'!$B38,'Bupa Total'!$AC$108:$AH$174,4)))))),0) -> 0 | AK38: =IF(B38>0,IF($B$32=1,IF($B38<18,'Bupa Total'!$B$108,VLOOKUP('Fórmulas Cotización'!$B38,'Bupa Total'!$A$108:$F$174,5)), IF($B$32=2,IF($B38<18,'Bupa Total'!$I$108,VLOOKUP('Fórmulas Cotización'!$B38,'Bupa Total'!$H$108:$M$174,5)), IF($B$32=3,IF($B38<18,'Bupa Total'!$P$108,VLOOKUP('Fórmulas Cotización'!$B38,'Bupa Total'!$O$108:$T$174,5)), IF($B$32=4,IF($B38<18,'Bupa Total'!$W$108,VLOOKUP('Fórmulas Cotización'!$B38,'Bupa Total'!$V$108:$AA$174,5)), IF($B38<18,'Bupa Total'!$AG$108,VLOOKUP('Fórmulas Cotización'!$B38,'Bupa Total'!$AC$108:$AH$174,5)))))),0) -> 0 | AL38: =IF(B38>0,IF($B$32=1,IF($B38<18,'Bupa Total'!$B$108,VLOOKUP('Fórmulas Cotización'!$B38,'Bupa Total'!$A$108:$F$174,6)), IF($B$32=2,IF($B38<18,'Bupa Total'!$I$108,VLOOKUP('Fórmulas Cotización'!$B38,'Bupa Total'!$H$108:$M$174,6)), IF($B$32=3,IF($B38<18,'Bupa Total'!$P$108,VLOOKUP('Fórmulas Cotización'!$B38,'Bupa Total'!$O$108:$T$174,6)), IF($B$32=4,IF($B38<18,'Bupa Total'!$W$108,VLOOKUP('Fórmulas Cotización'!$B38,'Bupa Total'!$V$108:$AA$174,6)), IF($B38<18,'Bupa Total'!$AH$108,VLOOKUP('Fórmulas Cotización'!$B38,'Bupa Total'!$AC$108:$AH$174,6)))))),0) -> 0 | AV38: Yucatán | AW38: Zona 5 | AX38: 5 | AY38: 0 | AZ38: 0
D39: =SUM(D34:D38) -> 0 | E39: =SUM(E34:E38) -> 0 | F39: 0 | G39: 0 | H39: 0 | J39: =SUM(J34:J38) -> 0 | K39: =SUM(K34:K38) -> 0 | L39: 0 | M39: 0 | N39: 0 | P39: =SUM(P34:P38) -> 0 | Q39: =SUM(Q34:Q38) -> 0 | R39: 0 | S39: 0 | T39: 0 | V39: =SUM(V34:V38) -> 0 | W39: =SUM(W34:W38) -> 0 | X39: 0 | Y39: 0 | Z39: 0 | AB39: =SUM(AB34:AB38) -> 0 | AC39: =SUM(AC34:AC38) -> 0 | AD39: 0 | AE39: 0 | AF39: 0 | AH39: =SUM(AH34:AH38) -> 0 | AI39: =SUM(AI34:AI38) -> 0 | AJ39: 0 | AK39: 0 | AL39: 0 | AV39: Zacatecas | AW39: Zona 5 | AX39: 5 | AY39: 0 | AZ39: 0
AV41: Estados con IVA Franja Fronteriza
AV42: Baja California Norte
AV43: Baja California Sur
AV44: Campeche
AV45: Cancún
AV46: Chiapas
AV47: Chihuahua
AV48: Coahuila
AV49: Franja Fronteriza Norte
AV50: Oaxaca
AV51: Quintana Roo
AV52: Sonora
AV53: Tamaulipas

Sheet Tarifas Advantage (hidden)
A1: Zona 1: Ciudad de México (D.F. y área metropolitana) y franja fronteriza norte | H1: Zona 2: Nuevo León, Sonora, Coahuila, Chihuahua, Tamaulipas, Baja California Norte y Baja California Sur | O1: Zona 3: Jalisco, Puebla, Morelos, Estado de México (excepto Área Metropolitana), Quintana Roo, Guerrero (Acapulco y Zihuatanejo), Hidalgo y Querétaro | V1: Zona 4: Sinaloa, Guanajuato, San Luis Potosí, Durango, Aguascalientes, Nayarit, Michoacán, Colima, Zacatecas | AC1: Zona 5: Guerrero (excepto Acapulco y Zihuatanejo), Veracruz, Chiapas, Tabasco, Campeche, Oaxaca, Tlaxcala, Yucatán
A2: Primas de riesgo expresadas en pesos mexicanos | H2: Primas de riesgo expresadas en pesos mexicanos | O2: Primas de riesgo expresadas en pesos mexicanos | V2: Primas de riesgo expresadas en pesos mexicanos | AC2: Primas de riesgo expresadas en pesos mexicanos
A3: Edad | B3: AW21 | C3: AW31 | D3: AW41 | E3: AW51 | F3: AW61 | H3: Edad | I3: AW22 | J3: AW32 | K3: AW42 | L3: AW52 | M3: AW62 | O3: Edad | P3: AW23 | Q3: AW33 | R3: AW43 | S3: AW53 | T3: AW63 | V3: Edad | W3: AW24 | X3: AW34 | Y3: AW44 | Z3: AW54 | AA3: AW64 | AC3: Edad | AD3: AW25 | AE3: AW35 | AF3: AW45 | AG3: AW55 | AH3: AW65
A4: 1 menor | B4: =B105*0.6 -> 41887.5 | C4: =C105*0.6 -> 33667.5 | D4: =D105*0.6 -> 25230 | E4: =E105*0.6 -> 19560 | F4: =F105*0.6 -> 15480 | H4: 1 menor | I4: =I105*0.6 -> 36862.5 | J4: =J105*0.6 -> 29632.5 | K4: =K105*0.6 -> 22200 | L4: =L105*0.6 -> 17220 | M4: =M105*0.6 -> 13620 | O4: 1 menor | P4: =P105*0.6 -> 33090 | Q4: =Q105*0.6 -> 26602.5 | R4: =R105*0.6 -> 19927.5 | S4: =S105*0.6 -> 15457.5 | T4: =T105*0.6 -> 12225 | V4: 1 menor | W4: =W105*0.6 -> 30577.5 | X4: =X105*0.6 -> 24577.5 | Y4: =Y105*0.6 -> 18420 | Z4: =Z105*0.6 -> 14280 | AA4: =AA105*0.6 -> 11295 | AC4: 1 menor | AD4: =AD105*0.6 -> 28485 | AE4: =AE105*0.6 -> 22897.5 | AF4: =AF105*0.6 -> 17152.5 | AG4: =AG105*0.6 -> 13305 | AH4: =AH105*0.6 -> 10522.5
A5: 2 menor | B5: =B106*0.6 -> 65992.5 | C5: =C106*0.6 -> 53047.5 | D5: 39750 | E5: 30825 | F5: 24390 | H5: 2 menores | I5: =I106*0.6 -> 58072.5 | J5: 46687.5 | K5: 34980 | L5: 27127.5 | M5: 21457.5 | O5: 2 menores | P5: =P106*0.6 -> 52140 | Q5: 41910 | R5: 31402.5 | S5: 24352.5 | T5: 19267.5 | V5: 2 menores | W5: =W106*0.6 -> 48180 | X5: 38730 | Y5: 29017.5 | Z5: 22500 | AA5: 17805 | AC5: 2 menores | AD5: =AD106*0.6 -> 44880 | AE5: 36075 | AF5: 27030 | AG5: 20962.5 | AH5: 16582.5
A6: 3 menor | B6: =B107*0.6 -> 96292.5 | C6: 77407.5 | D6: 57997.5 | E6: 44977.5 | F6: 35580 | H6: 3 ó más menores | I6: 84735 | J6: 68115 | K6: 51037.5 | L6: 39577.5 | M6: 31312.5 | O6: 3 ó más menores | P6: 76072.5 | Q6: 61147.5 | R6: 45817.5 | S6: 35527.5 | T6: 28110 | V6: 3 ó más menores | W6: 70290 | X6: 56505 | Y6: 42337.5 | Z6: 32835 | AA6: 25972.5 | AC6: 3 ó más menores | AD6: 65475 | AE6: 52635 | AF6: 39435 | AG6: 30585 | AH6: 24195
A7: 18 | B7: =B108*0.6 -> 96615 | C7: 77670 | D7: 58192.5 | E7: 45127.5 | F7: 35700 | H7: 18 | I7: 85020 | J7: 68347.5 | K7: 51210 | L7: 39712.5 | M7: 31417.5 | O7: 18 | P7: 76327.5 | Q7: 61357.5 | R7: 45975 | S7: 35647.5 | T7: 28207.5 | V7: 18 | W7: 70530 | X7: 56700 | Y7: 42480 | Z7: 32940 | AA7: 26062.5 | AC7: 18 | AD7: 65700 | AE7: 52815 | AF7: 39570 | AG7: 30690 | AH7: 24277.5
A8: 19 | B8: =B109*0.6 -> 97020 | C8: 77992.5 | D8: 58440 | E8: 45315 | F8: 35850 | H8: 19 | I8: 85380 | J8: 68632.5 | K8: 51427.5 | L8: 39877.5 | M8: 31552.5 | O8: 19 | P8: 76650 | Q8: 61612.5 | R8: 46162.5 | S8: 35797.5 | T8: 28320 | V8: 19 | W8: 70822.5 | X8: 56932.5 | Y8: 42660 | Z8: 33082.5 | AA8: 26175 | AC8: 19 | AD8: 65977.5 | AE8: 53032.5 | AF8: 39735 | AG8: 30817.5 | AH8: 24382.5
A9: 20 | B9: =B110*0.6 -> 100087.5 | C9: 80452.5 | D9: 60285 | E9: 46747.5 | F9: 36982.5 | H9: 20 | I9: 88072.5 | J9: 70800 | K9: 53047.5 | L9: 41137.5 | M9: 32542.5 | O9: 20 | P9: 79065 | Q9: 63555 | R9: 47625 | S9: 36930 | T9: 29220 | V9: 20 | W9: 73065 | X9: 58732.5 | Y9: 44010 | Z9: 34125 | AA9: 27000 | AC9: 20 | AD9: 68055 | AE9: 54705 | AF9: 40995 | AG9: 31785 | AH9: 25147.5
A10: 21 | B10: 103245 | C10: 82995 | D10: 62182.5 | E10: 48225 | F10: 38152.5 | H10: 21 | I10: 90855 | J10: 73035 | K10: 54727.5 | L10: 42435 | M10: 33570 | O10: 21 | P10: 81562.5 | Q10: 65565 | R10: 49125 | S10: 38092.5 | T10: 30142.5 | V10: 21 | W10: 75367.5 | X10: 60585 | Y10: 45397.5 | Z10: 35205 | AA10: 27847.5 | AC10: 21 | AD10: 70207.5 | AE10: 56437.5 | AF10: 42285 | AG10: 32790 | AH10: 25942.5
A11: 22 | B11: 106507.5 | C11: 85612.5 | D11: 64147.5 | E11: 49747.5 | F11: 39352.5 | H11: 22 | I11: 93727.5 | J11: 75337.5 | K11: 56452.5 | L11: 43777.5 | M11: 34635 | O11: 22 | P11: 84135 | Q11: 67635 | R11: 50677.5 | S11: 39300 | T11: 31087.5 | V11: 22 | W11: 77745 | X11: 62497.5 | Y11: 46830 | Z11: 36315 | AA11: 28732.5 | AC11: 22 | AD11: 72420 | AE11: 58215 | AF11: 43620 | AG11: 33825 | AH11: 26760
A12: 23 | B12: 109867.5 | C12: 88320 | D12: 66172.5 | E12: 51315 | F12: 40597.5 | H12: 23 | I12: 96682.5 | J12: 77715 | K12: 58230 | L12: 45157.5 | M12: 35722.5 | O12: 23 | P12: 86797.5 | Q12: 69772.5 | R12: 52275 | S12: 40537.5 | T12: 32070 | V12: 23 | W12: 80205 | X12: 64470 | Y12: 48307.5 | Z12: 37462.5 | AA12: 29640 | AC12: 23 | AD12: 74707.5 | AE12: 60052.5 | AF12: 45000 | AG12: 34897.5 | AH12: 27607.5
A13: 24 | B13: 113332.5 | C13: 91102.5 | D13: 68265 | E13: 52935 | F13: 41880 | H13: 24 | I13: 99735 | J13: 80175 | K13: 60075 | L13: 46582.5 | M13: 36855 | O13: 24 | P13: 89535 | Q13: 71970 | R13: 53925 | S13: 41820 | T13: 33082.5 | V13: 24 | W13: 82732.5 | X13: 66510 | Y13: 49830 | Z13: 38640 | AA13: 30570 | AC13: 24 | AD13: 77070 | AE13: 61950 | AF13: 46417.5 | AG13: 36000 | AH13: 28477.5
A14: 25 | B14: 116910 | C14: 93982.5 | D14: 70417.5 | E14: 54607.5 | F14: 43200 | H14: 25 | I14: 102885 | J14: 82702.5 | K14: 61965 | L14: 48052.5 | M14: 38017.5 | O14: 25 | P14: 92362.5 | Q14: 74242.5 | R14: 55627.5 | S14: 43140 | T14: 34132.5 | V14: 25 | W14: 85350 | X14: 68602.5 | Y14: 51405 | Z14: 39862.5 | AA14: 31537.5 | AC14: 25 | AD14: 79500 | AE14: 63907.5 | AF14: 47887.5 | AG14: 37132.5 | AH14: 29377.5
A15: 26 | B15: 120607.5 | C15: 96945 | D15: 72645 | E15: 56332.5 | F15: 44565 | H15: 26 | I15: 106132.5 | J15: 85312.5 | K15: 63922.5 | L15: 49575 | M15: 39217.5 | O15: 26 | P15: 95280 | Q15: 76590 | R15: 57390 | S15: 44505 | T15: 35205 | V15: 26 | W15: 88042.5 | X15: 70770 | Y15: 53025 | Z15: 41122.5 | AA15: 32535 | AC15: 26 | AD15: 82012.5 | AE15: 65925 | AF15: 49395 | AG15: 38302.5 | AH15: 30307.5
A16: 27 | B16: 124410 | C16: 100005 | D16: 74932.5 | E16: 58110 | F16: 45975 | H16: 27 | I16: 109485 | J16: 88005 | K16: 65940 | L16: 51135 | M16: 40455 | O16: 27 | P16: 98287.5 | Q16: 79005 | R16: 59197.5 | S16: 45907.5 | T16: 36315 | V16: 27 | W16: 90817.5 | X16: 73005 | Y16: 54705 | Z16: 42420 | AA16: 33562.5 | AC16: 27 | AD16: 84600 | AE16: 68002.5 | AF16: 50955 | AG16: 39517.5 | AH16: 31260
A17: 28 | B17: 128340 | C17: 103162.5 | D17: 77302.5 | E17: 59940 | F17: 47422.5 | H17: 28 | I17: 112935 | J17: 90787.5 | K17: 68025 | L17: 52747.5 | M17: 41730 | O17: 28 | P17: 101385 | Q17: 81502.5 | R17: 61065 | S17: 47355 | T17: 37462.5 | V17: 28 | W17: 93690 | X17: 75315 | Y17: 56430 | Z17: 43762.5 | AA17: 34620 | AC17: 28 | AD17: 87270 | AE17: 70155 | AF17: 52567.5 | AG17: 40762.5 | AH17: 32250
A18: 29 | B18: 132390 | C18: 106425 | D18: 79740 | E18: 61837.5 | F18: 48922.5 | H18: 29 | I18: 116505 | J18: 93652.5 | K18: 70170 | L18: 54412.5 | M18: 43050 | O18: 29 | P18: 104587.5 | Q18: 84075 | R18: 62992.5 | S18: 48847.5 | T18: 38647.5 | V18: 29 | W18: 96645 | X18: 77685 | Y18: 58215 | Z18: 45142.5 | AA18: 35715 | AC18: 29 | AD18: 90022.5 | AE18: 72367.5 | AF18: 54225 | AG18: 42045 | AH18: 33262.5
A19: 30 | B19: 136575 | C19: 109785 | D19: 82260 | E19: 63787.5 | F19: 50467.5 | H19: 30 | I19: 120180 | J19: 96607.5 | K19: 72390 | L19: 56130 | M19: 44407.5 | O19: 30 | P19: 107887.5 | Q19: 86730 | R19: 64987.5 | S19: 50392.5 | T19: 39870 | V19: 30 | W19: 99697.5 | X19: 80145 | Y19: 60045 | Z19: 46567.5 | AA19: 36840 | AC19: 30 | AD19: 92865 | AE19: 74655 | AF19: 55935 | AG19: 43372.5 | AH19: 34320
A20: 31 | B20: 140880 | C20: 113250 | D20: 84855 | E20: 65805 | F20: 52057.5 | H20: 31 | I20: 123975 | J20: 99660 | K20: 74670 | L20: 57907.5 | M20: 45810 | O20: 31 | P20: 111300 | Q20: 89467.5 | R20: 67035 | S20: 51982.5 | T20: 41130 | V20: 31 | W20: 102847.5 | X20: 82672.5 | Y20: 61942.5 | Z20: 48037.5 | AA20: 38002.5 | AC20: 31 | AD20: 95797.5 | AE20: 77010 | AF20: 57705 | AG20: 44745 | AH20: 35400
A21: 32 | B21: =B122*0.6 -> 145327.5 | C21: 116827.5 | D21: 87532.5 | E21: 67882.5 | F21: 53700 | H21: 32 | I21: =I122*0.6 -> 127890 | J21: 102802.5 | K21: 77032.5 | L21: 59737.5 | M21: 47257.5 | O21: 32 | P21: =P122*0.6 -> 114810 | Q21: 92295 | R21: 69150 | S21: 53625 | T21: 42427.5 | V21: 32 | W21: =W122*0.6 -> 106087.5 | X21: 85282.5 | Y21: 63900 | Z21: 49552.5 | AA21: 39202.5 | AC21: 32 | AD21: =AD122*0.6 -> 98827.5 | AE21: 79440 | AF21: 59520 | AG21: 46155 | AH21: 36517.5
A22: 33 | B22: 149917.5 | C22: 120510 | D22: 90300 | E22: 70020 | F22: 55395 | H22: 33 | I22: 131925 | J22: 106050 | K22: 79462.5 | L22: 61620 | M22: 48750 | O22: 33 | P22: 118432.5 | Q22: 95205 | R22: 71332.5 | S22: 55320 | T22: 43762.5 | V22: 33 | W22: 109440 | X22: 87975 | Y22: 65917.5 | Z22: 51120 | AA22: 40440 | AC22: 33 | AD22: 101947.5 | AE22: 81945 | AF22: 61402.5 | AG22: 47617.5 | AH22: 37672.5
A23: 34 | B23: 154650 | C23: 124320 | D23: 93150 | E23: 72232.5 | F23: 57150 | H23: 34 | I23: 136095 | J23: 109395 | K23: 81975 | L23: 63562.5 | M23: 50287.5 | O23: 34 | P23: 122175 | Q23: 98212.5 | R23: 73590 | S23: 57067.5 | T23: 45142.5 | V23: 34 | W23: 112897.5 | X23: 90750 | Y23: 67995 | Z23: 52732.5 | AA23: 41715 | AC23: 34 | AD23: 105165 | AE23: 84532.5 | AF23: 63345 | AG23: 49117.5 | AH23: 38857.5
A24: 35 | B24: 159532.5 | C24: 128242.5 | D24: 96090 | E24: 74512.5 | F24: 58950 | H24: 35 | I24: 140392.5 | J24: 112852.5 | K24: 84562.5 | L24: 65572.5 | M24: 51877.5 | O24: 35 | P24: 126030 | Q24: 101310 | R24: 75907.5 | S24: 58867.5 | T24: 46567.5 | V24: 35 | W24: 116460 | X24: 93615 | Y24: 70147.5 | Z24: 54397.5 | AA24: 43035 | AC24: 35 | AD24: 108480 | AE24: 87202.5 | AF24: 65340 | AG24: 50670 | AH24: 40087.5
A25: 36 | B25: 159007.5 | C25: 127822.5 | D25: 95775 | E25: 74272.5 | F25: 58755 | H25: 36 | I25: 139927.5 | J25: 112485 | K25: 84285 | L25: 65355 | M25: 51705 | O25: 36 | P25: 125617.5 | Q25: 100980 | R25: 75660 | S25: 58672.5 | T25: 46417.5 | V25: 36 | W25: 116077.5 | X25: 93307.5 | Y25: 69915 | Z25: 54217.5 | AA25: 42892.5 | AC25: 36 | AD25: 108127.5 | AE25: 86917.5 | AF25: 65130 | AG25: 50505 | AH25: 39952.5
A26: 37 | B26: 162645 | C26: 130747.5 | D26: 97965 | E26: 75967.5 | F26: 60105 | H26: 37 | I26: 143130 | J26: 115057.5 | K26: 86212.5 | L26: 66855 | M26: 52890 | O26: 37 | P26: 128490 | Q26: 103290 | R26: 77392.5 | S26: 60015 | T26: 47482.5 | V26: 37 | W26: 118732.5 | X26: 95445 | Y26: 71512.5 | Z26: 55455 | AA26: 43875 | AC26: 37 | AD26: 110602.5 | AE26: 88905 | AF26: 66615 | AG26: 51660 | AH26: 40867.5
A27: 38 | B27: 166372.5 | C27: 133740 | D27: 100207.5 | E27: 77707.5 | F27: 61477.5 | H27: 38 | I27: 146407.5 | J27: 117690 | K27: 88185 | L27: 68385 | M27: 54097.5 | O27: 38 | P27: 131430 | Q27: 105652.5 | R27: 79162.5 | S27: 61387.5 | T27: 48570 | V27: 38 | W27: 121447.5 | X27: 97627.5 | Y27: 73155 | Z27: 56730 | AA27: 44880 | AC27: 38 | AD27: 113130 | AE27: 90945 | AF27: 68137.5 | AG27: 52837.5 | AH27: 41805
A28: 39 | B28: 170175 | C28: 136800 | D28: 102502.5 | E28: 79485 | F28: 62887.5 | H28: 39 | I28: 149760 | J28: 120382.5 | K28: 90202.5 | L28: 69945 | M28: 55335 | O28: 39 | P28: 134437.5 | Q28: 108067.5 | R28: 80977.5 | S28: 62790 | T28: 49680 | V28: 39 | W28: 124230 | X28: 99862.5 | Y28: 74827.5 | Z28: 58027.5 | AA28: 45907.5 | AC28: 39 | AD28: 115725 | AE28: 93022.5 | AF28: 69697.5 | AG28: 54052.5 | AH28: 42757.5
A29: 40 | B29: 174075 | C29: 139927.5 | D29: 104850 | E29: 81307.5 | F29: 64320 | H29: 40 | I29: 153180 | J29: 123135 | K29: 92265 | L29: 71550 | M29: 56602.5 | O29: 40 | P29: 137520 | Q29: 110542.5 | R29: 82830 | S29: 64230 | T29: 50812.5 | V29: 40 | W29: 127072.5 | X29: 102150 | Y29: 76537.5 | Z29: 59355 | AA29: 46957.5 | AC29: 40 | AD29: 118372.5 | AE29: 95152.5 | AF29: 71295 | AG29: 55290 | AH29: 43740
A30: 41 | B30: 178057.5 | C30: 143130 | D30: 107242.5 | E30: 83167.5 | F30: 65797.5 | H30: 41 | I30: 156690 | J30: 125955 | K30: 94372.5 | L30: 73185 | M30: 57900 | O30: 41 | P30: 140662.5 | Q30: 113070 | R30: 84727.5 | S30: 65700 | T30: 51975 | V30: 41 | W30: 129982.5 | X30: 104482.5 | Y30: 78292.5 | Z30: 60712.5 | AA30: 48030 | AC30: 41 | AD30: 121080 | AE30: 97327.5 | AF30: 72930 | AG30: 56550 | AH30: 44737.5
A31: 42 | B31: 182130 | C31: 146407.5 | D31: 109702.5 | E31: 85065 | F31: 67297.5 | H31: 42 | I31: 160275 | J31: 128835 | K31: 96532.5 | L31: 74857.5 | M31: 59227.5 | O31: 42 | P31: 143880 | Q31: 115657.5 | R31: 86662.5 | S31: 67200 | T31: 53167.5 | V31: 42 | W31: 132952.5 | X31: 106875 | Y31: 80085 | Z31: 62100 | AA31: 49132.5 | AC31: 42 | AD31: 123847.5 | AE31: 99555 | AF31: 74595 | AG31: 57847.5 | AH31: 45765
A32: 43 | B32: 186300 | C32: 149752.5 | D32: 112207.5 | E32: 87015 | F32: 68842.5 | H32: 43 | I32: 163942.5 | J32: 131782.5 | K32: 98745 | L32: 76575 | M32: 60577.5 | O32: 43 | P32: 147172.5 | Q32: 118305 | R32: 88642.5 | S32: 68745 | T32: 54382.5 | V32: 43 | W32: 135997.5 | X32: 109320 | Y32: 81915 | Z32: 63517.5 | AA32: 50250 | AC32: 43 | AD32: 126682.5 | AE32: 101835 | AF32: 76305 | AG32: 59167.5 | AH32: 46815
A33: 44 | B33: 190560 | C33: 153180 | D33: 114780 | E33: 89002.5 | F33: 70417.5 | H33: 44 | I33: 167692.5 | J33: 134797.5 | K33: 101002.5 | L33: 78322.5 | M33: 61965 | O33: 44 | P33: 150540 | Q33: 121012.5 | R33: 90675 | S33: 70312.5 | T33: 55627.5 | V33: 44 | W33: 139110 | X33: 111825 | Y33: 83790 | Z33: 64972.5 | AA33: 51405 | AC33: 44 | AD33: 129585 | AE33: 104160 | AF33: 78052.5 | AG33: 60525 | AH33: 47880
A34: 45 | B34: 194925 | C34: 156690 | D34: 117405 | E34: 91042.5 | F34: 72030 | H34: 45 | I34: 171532.5 | J34: 137887.5 | K34: 103312.5 | L34: 80115 | M34: 63382.5 | O34: 45 | P34: 153990 | Q34: 123780 | R34: 92752.5 | S34: 71925 | T34: 56902.5 | V34: 45 | W34: 142290 | X34: 114382.5 | Y34: 85702.5 | Z34: 66465 | AA34: 52582.5 | AC34: 45 | AD34: 132547.5 | AE34: 106545 | AF34: 79837.5 | AG34: 61905 | AH34: 48975
A35: 46 | B35: 199380 | C35: 160275 | D35: 120090 | E35: 93127.5 | F35: 73672.5 | H35: 46 | I35: 175455 | J35: 141037.5 | K35: 105682.5 | L35: 81952.5 | M35: 64837.5 | O35: 46 | P35: 157515 | Q35: 126615 | R35: 94875 | S35: 73567.5 | T35: 58200 | V35: 46 | W35: 145552.5 | X35: 117000 | Y35: 87667.5 | Z35: 67980 | AA35: 53782.5 | AC35: 46 | AD35: 135577.5 | AE35: 108982.5 | AF35: 81660 | AG35: 63322.5 | AH35: 50100
A36: 47 | B36: 203947.5 | C36: 163942.5 | D36: 122842.5 | E36: 95257.5 | F36: 75360 | H36: 47 | I36: 179475 | J36: 144270 | K36: 108097.5 | L36: 83827.5 | M36: 66315 | O36: 47 | P36: 161115 | Q36: 129510 | R36: 97042.5 | S36: 75255 | T36: 59535 | V36: 47 | W36: 148882.5 | X36: 119677.5 | Y36: 89670 | Z36: 69540 | AA36: 55012.5 | AC36: 47 | AD36: 138682.5 | AE36: 111480 | AF36: 83527.5 | AG36: 64777.5 | AH36: 51247.5
A37: 48 | B37: =B138*0.6 -> 208612.5 | C37: 167692.5 | D37: 125647.5 | E37: 97440 | F37: 77085 | H37: 48 | I37: =I138*0.6 -> 183577.5 | J37: 147570 | K37: 110572.5 | L37: 85747.5 | M37: 67837.5 | O37: 48 | P37: =P138*0.6 -> 164805 | Q37: 132480 | R37: 99262.5 | S37: 76972.5 | T37: 60900 | V37: 48 | W37: =W138*0.6 -> 152287.5 | X37: 122415 | Y37: 91725 | Z37: 71130 | AA37: 56272.5 | AC37: 48 | AD37: =AD138*0.6 -> 141855 | AE37: 114030 | AF37: 85440 | AG37: 66255 | AH37: 52417.5
A38: 49 | B38: 213382.5 | C38: 171532.5 | D38: 128527.5 | E38: 99667.5 | F38: 78847.5 | H38: 49 | I38: 187777.5 | J38: 150945 | K38: 113100 | L38: 87705 | M38: 69390 | O38: 49 | P38: 168577.5 | Q38: 135510 | R38: 101535 | S38: 78735 | T38: 62295 | V38: 49 | W38: 155775 | X38: 125220 | Y38: 93825 | Z38: 72757.5 | AA38: 57562.5 | AC38: 49 | AD38: 145102.5 | AE38: 116640 | AF38: 87397.5 | AG38: 67770 | AH38: 53617.5
A39: 50 | B39: 218265 | C39: 175455 | D39: 131467.5 | E39: 101947.5 | F39: 80655 | H39: 50 | I39: 192075 | J39: 154402.5 | K39: 115687.5 | L39: 89715 | M39: 70972.5 | O39: 50 | P39: 172432.5 | Q39: 138607.5 | R39: 103860 | S39: 80535 | T39: 63720 | V39: 50 | W39: 159337.5 | X39: 128085 | Y39: 95970 | Z39: 74422.5 | AA39: 58875 | AC39: 50 | AD39: 148425 | AE39: 119310 | AF39: 89400 | AG39: 69322.5 | AH39: 54847.5
A40: 51 | B40: 223260 | C40: 179467.5 | D40: 134475 | E40: 104280 | F40: 82500 | H40: 51 | I40: 196470 | J40: 157935 | K40: 118335 | L40: 91770 | M40: 72600 | O40: 51 | P40: 176377.5 | Q40: 141780 | R40: 106237.5 | S40: 82380 | T40: 65175 | V40: 51 | W40: 162982.5 | X40: 131010 | Y40: 98167.5 | Z40: 76125 | AA40: 60225 | AC40: 51 | AD40: 151815 | AE40: 122040 | AF40: 91440 | AG40: 70912.5 | AH40: 56100
A41: 52 | B41: 228375 | C41: 183577.5 | D41: 137550 | E41: 106665 | F41: 84390 | H41: 52 | I41: 200970 | J41: 161550 | K41: 121042.5 | L41: 93870 | M41: 74265 | O41: 52 | P41: 180412.5 | Q41: 145027.5 | R41: 108667.5 | S41: 84270 | T41: 66667.5 | V41: 52 | W41: 166710 | X41: 134010 | Y41: 100410 | Z41: 77865 | AA41: 61605 | AC41: 52 | AD41: 155295 | AE41: 124830 | AF41: 93532.5 | AG41: 72532.5 | AH41: 57382.5
A42: 53 | B42: 233595 | C42: 187777.5 | D42: 140700 | E42: 109110 | F42: 86317.5 | H42: 53 | I42: 205567.5 | J42: 165247.5 | K42: 123817.5 | L42: 96015 | M42: 75960 | O42: 53 | P42: 184545 | Q42: 148342.5 | R42: 111150 | S42: 86197.5 | T42: 68190 | V42: 53 | W42: 170527.5 | X42: 137077.5 | Y42: 102712.5 | Z42: 79650 | AA42: 63015 | AC42: 53 | AD42: 158850 | AE42: 127687.5 | AF42: 95677.5 | AG42: 74190 | AH42: 58695
A43: 54 | B43: 244110 | C43: 196230 | D43: 147030 | E43: 114015 | F43: 90202.5 | H43: 54 | I43: 214815 | J43: 172680 | K43: 129390 | L43: 100335 | M43: 79380 | O43: 54 | P43: 192847.5 | Q43: 155017.5 | R43: 116152.5 | S43: 90075 | T43: 71257.5 | V43: 54 | W43: 178200 | X43: 143250 | Y43: 107332.5 | Z43: 83235 | AA43: 65850 | AC43: 54 | AD43: 165997.5 | AE43: 133432.5 | AF43: 99982.5 | AG43: 77535 | AH43: 61335
A44: 55 | B44: 255097.5 | C44: 205057.5 | D44: 153645 | E44: 119145 | F44: 94260 | H44: 55 | I44: 224482.5 | J44: 180450 | K44: 135210 | L44: 104850 | M44: 82950 | O44: 55 | P44: 201525 | Q44: 161992.5 | R44: 121380 | S44: 94125 | T44: 74467.5 | V44: 55 | W44: 186217.5 | X44: 149692.5 | Y44: 112162.5 | Z44: 86977.5 | AA44: 68812.5 | AC44: 55 | AD44: 173467.5 | AE44: 139440 | AF44: 104482.5 | AG44: 81022.5 | AH44: 64095
A45: 56 | B45: 266572.5 | C45: 214282.5 | D45: 160560 | E45: 124507.5 | F45: 98505 | H45: 56 | I45: 234585 | J45: 188572.5 | K45: 141292.5 | L45: 109567.5 | M45: 86685 | O45: 56 | P45: 210592.5 | Q45: 169282.5 | R45: 126847.5 | S45: 98362.5 | T45: 77820 | V45: 56 | W45: 194602.5 | X45: 156427.5 | Y45: 117210 | Z45: 90892.5 | AA45: 71910 | AC45: 56 | AD45: 181267.5 | AE45: 145717.5 | AF45: 109185 | AG45: 84667.5 | AH45: 66982.5
A46: 57 | B46: 278572.5 | C46: 223927.5 | D46: 167790 | E46: 130110 | F46: 102937.5 | H46: 57 | I46: 245145 | J46: 197055 | K46: 147652.5 | L46: 114495 | M46: 90585 | O46: 57 | P46: 220072.5 | Q46: 176902.5 | R46: 132555 | S46: 102787.5 | T46: 81322.5 | V46: 57 | W46: 203355 | X46: 163470 | Y46: 122482.5 | Z46: 94980 | AA46: 75142.5 | AC46: 57 | AD46: 189427.5 | AE46: 152272.5 | AF46: 114097.5 | AG46: 88477.5 | AH46: 69997.5
A47: 58 | B47: 291105 | C47: 234007.5 | D47: 175335 | E47: 135967.5 | F47: 107565 | H47: 58 | I47: 256170 | J47: 205927.5 | K47: 154297.5 | L47: 119655 | M47: 94657.5 | O47: 58 | P47: 229972.5 | Q47: 184867.5 | R47: 138517.5 | S47: 107415 | T47: 84982.5 | V47: 58 | W47: 212505 | X47: 170820 | Y47: 127995 | Z47: 99255 | AA47: 78525 | AC47: 58 | AD47: 197955 | AE47: 159120 | AF47: 119227.5 | AG47: 92460 | AH47: 73147.5
A48: 59 | B48: 307117.5 | C48: 246877.5 | D48: 184980 | E48: 143445 | F48: 113482.5 | H48: 59 | I48: 270262.5 | J48: 217252.5 | K48: 162780 | L48: 126232.5 | M48: 99870 | O48: 59 | P48: 242625 | Q48: 195030 | R48: 146137.5 | S48: 113325 | T48: 89655 | V48: 59 | W48: 224197.5 | X48: 180217.5 | Y48: 135037.5 | Z48: 104715 | AA48: 82845 | AC48: 59 | AD48: 208837.5 | AE48: 167872.5 | AF48: 125790 | AG48: 97545 | AH48: 77167.5
A49: 60 | B49: 324007.5 | C49: 260452.5 | D49: 195157.5 | E49: 151335 | F49: 119730 | H49: 60 | I49: 285127.5 | J49: 229200 | K49: 171735 | L49: 133177.5 | M49: 105360 | O49: 60 | P49: 255967.5 | Q49: 205755 | R49: 154170 | S49: 119557.5 | T49: 94582.5 | V49: 60 | W49: 236527.5 | X49: 190132.5 | Y49: 142462.5 | Z49: 110475 | AA49: 87397.5 | AC49: 60 | AD49: 220327.5 | AE49: 177105 | AF49: 132705 | AG49: 102907.5 | AH49: 81412.5
A50: 61 | B50: 341827.5 | C50: 274777.5 | D50: 205890 | E50: 159660 | F50: 126315 | H50: 61 | I50: 300810 | J50: 241807.5 | K50: 181185 | L50: 140497.5 | M50: 111157.5 | O50: 61 | P50: 270045 | Q50: 217072.5 | R50: 162652.5 | S50: 126127.5 | T50: 99787.5 | V50: 61 | W50: 249532.5 | X50: 200587.5 | Y50: 150300 | Z50: 116550 | AA50: 92205 | AC50: 61 | AD50: 232440 | AE50: 186847.5 | AF50: 140002.5 | AG50: 108570 | AH50: 85890
A51: 62 | B51: 360630 | C51: 289890 | D51: 217215 | E51: 168442.5 | F51: 133260 | H51: 62 | I51: 317355 | J51: 255105 | K51: 191145 | L51: 148230 | M51: 117270 | O51: 62 | P51: 284895 | Q51: 229012.5 | R51: 171600 | S51: 133065 | T51: 105277.5 | V51: 62 | W51: 263257.5 | X51: 211620 | Y51: 158565 | Z51: 122962.5 | AA51: 97275 | AC51: 62 | AD51: 245227.5 | AE51: 197130 | AF51: 147705 | AG51: 114540 | AH51: 90615
A52: 63 | B52: 380460 | C52: 305835 | D52: 229162.5 | E52: 177705 | F52: 140587.5 | H52: 63 | I52: 334807.5 | J52: 269137.5 | K52: 201660 | L52: 156382.5 | M52: 123720 | O52: 63 | P52: 300562.5 | Q52: 241612.5 | R52: 181035 | S52: 140385 | T52: 111067.5 | V52: 63 | W52: 277740 | X52: 223260 | Y52: 167287.5 | Z52: 129720 | AA52: 102630 | AC52: 63 | AD52: 258712.5 | AE52: 207967.5 | AF52: 155827.5 | AG52: 120840 | AH52: 95602.5
A53: 64 | B53: =B154*0.6 -> 401385 | C53: 322657.5 | D53: 241762.5 | E53: 187477.5 | F53: 148320 | H53: 64 | I53: =I154*0.6 -> 353220 | J53: 283935 | K53: 212752.5 | L53: 164977.5 | M53: 130522.5 | O53: 64 | P53: =P154*0.6 -> 317100 | Q53: 254895 | R53: 190995 | S53: 148110 | T53: 117172.5 | V53: 64 | W53: =W154*0.6 -> 293010 | X53: 235537.5 | Y53: 176490 | Z53: 136860 | AA53: 108277.5 | AC53: 64 | AD53: =AD154*0.6 -> 272947.5 | AE53: 219405 | AF53: 164400 | AG53: 127485 | AH53: 100860
A54: 65 | B54: 425475 | C54: 342015 | D54: 256267.5 | E54: 198727.5 | F54: 157222.5 | H54: 65 | I54: 374415 | J54: 300975 | K54: 225517.5 | L54: 174877.5 | M54: 138352.5 | O54: 65 | P54: 336120 | Q54: 270195 | R54: 202455 | S54: 156990 | T54: 124200 | V54: 65 | W54: 310597.5 | X54: 249675 | Y54: 187080 | Z54: 145072.5 | AA54: 114772.5 | AC54: 65 | AD54: 289320 | AE54: 232567.5 | AF54: 174262.5 | AG54: 135135 | AH54: 106912.5
A55: 66 | B55: 450997.5 | C55: 362535 | D55: 271642.5 | E55: 210652.5 | F55: 166650 | H55: 66 | I55: 396877.5 | J55: 319035 | K55: 239047.5 | L55: 185370 | M55: 146655 | O55: 66 | P55: 356287.5 | Q55: 286402.5 | R55: 214597.5 | S55: 166410 | T55: 131655 | V55: 66 | W55: 329227.5 | X55: 264652.5 | Y55: 198300 | Z55: 153772.5 | AA55: 121657.5 | AC55: 66 | AD55: 306682.5 | AE55: 246525 | AF55: 184717.5 | AG55: 143242.5 | AH55: 113325
A56: 67 | B56: 478057.5 | C56: 384292.5 | D56: 287940 | E56: 223290 | F56: 176655 | H56: 67 | I56: 420690 | J56: 338175 | K56: 253387.5 | L56: 196492.5 | M56: 155452.5 | O56: 67 | P56: 377670 | Q56: 303585 | R56: 227475 | S56: 176400 | T56: 139552.5 | V56: 67 | W56: 348982.5 | X56: 280530 | Y56: 210195 | Z56: 162997.5 | AA56: 128955 | AC56: 67 | AD56: 325080 | AE56: 261315 | AF56: 195802.5 | AG56: 151837.5 | AH56: 120120
A57: 68 | B57: 506745 | C57: 407347.5 | D57: 305220 | E57: 236685 | F57: 187252.5 | H57: 68 | I57: 445935 | J57: 358462.5 | K57: 268590 | L57: 208282.5 | M57: 164782.5 | O57: 68 | P57: 400327.5 | Q57: 321802.5 | R57: 241125 | S57: 186982.5 | T57: 147930 | V57: 68 | W57: 369922.5 | X57: 297360 | Y57: 222810 | Z57: 172777.5 | AA57: 136695 | AC57: 68 | AD57: 344587.5 | AE57: 276997.5 | AF57: 207547.5 | AG57: 160950 | AH57: 127335
A58: 69 | B58: 537150 | C58: 431790 | D58: 323535 | E58: 250890 | F58: 198487.5 | H58: 69 | I58: 472687.5 | J58: 379972.5 | K58: 284707.5 | L58: 220777.5 | M58: 174667.5 | O58: 69 | P58: 424350 | Q58: 341115 | R58: 255592.5 | S58: 198202.5 | T58: 156802.5 | V58: 69 | W58: 392115 | X58: 315202.5 | Y58: 236182.5 | Z58: 183150 | AA58: 144892.5 | AC58: 69 | AD58: 365265 | AE58: 293617.5 | AF58: 220005 | AG58: 170602.5 | AH58: 134970
A59: 70 | B59: 569377.5 | C59: 457695 | D59: 342945 | E59: 265942.5 | F59: 210397.5 | H59: 70 | I59: 501052.5 | J59: 402772.5 | K59: 301792.5 | L59: 234030 | M59: 185145 | O59: 70 | P59: 449805 | Q59: 361575 | R59: 270930 | S59: 210090 | T59: 166215 | V59: 70 | W59: 415642.5 | X59: 334117.5 | Y59: 250350 | Z59: 194137.5 | AA59: 153585 | AC59: 70 | AD59: 387180 | AE59: 311235 | AF59: 233205 | AG59: 180840 | AH59: 143070
A60: 71 | B60: 603540 | C60: 485160 | D60: 363525 | E60: 281895 | F60: 223020 | H60: 71 | I60: 531112.5 | J60: 426937.5 | K60: 319897.5 | L60: 248070 | M60: 196260 | O60: 71 | P60: 476797.5 | Q60: 383272.5 | R60: 287182.5 | S60: 222697.5 | T60: 176182.5 | V60: 71 | W60: 440587.5 | X60: 354165 | Y60: 265372.5 | Z60: 205785 | AA60: 162802.5 | AC60: 71 | AD60: 410407.5 | AE60: 329910 | AF60: 247192.5 | AG60: 191692.5 | AH60: 151650
A61: 72 | B61: 639750 | C61: 514267.5 | D61: 385335 | E61: 298807.5 | F61: 236400 | H61: 72 | I61: 562980 | J61: 452550 | K61: 339090 | L61: 262950 | M61: 208035 | O61: 72 | P61: 505402.5 | Q61: 406267.5 | R61: 304410 | S61: 236062.5 | T61: 186757.5 | V61: 72 | W61: 467017.5 | X61: 375412.5 | Y61: 281295 | Z61: 218130 | AA61: 172575 | AC61: 72 | AD61: 435030 | AE61: 349702.5 | AF61: 262027.5 | AG61: 203190 | AH61: 160755
A62: 73 | B62: 678135 | C62: 545122.5 | D62: 408450 | E62: 316740 | F62: 250582.5 | H62: 73 | I62: 596760 | J62: 479707.5 | K62: 359437.5 | L62: 278730 | M62: 220515 | O62: 73 | P62: 535725 | Q62: 430642.5 | R62: 322680 | S62: 250222.5 | T62: 197962.5 | V62: 73 | W62: 495037.5 | X62: 397935 | Y62: 298170 | Z62: 231217.5 | AA62: 182925 | AC62: 73 | AD62: 461130 | AE62: 370680 | AF62: 277747.5 | AG62: 215385 | AH62: 170400
A63: 74 | B63: 718822.5 | C63: 577830 | D63: 432960 | E63: 335745 | F63: 265620 | H63: 74 | I63: 632565 | J63: 508492.5 | K63: 381007.5 | L63: 295455 | M63: 233745 | O63: 74 | P63: 567870 | Q63: 456487.5 | R63: 342037.5 | S63: 265237.5 | T63: 209842.5 | V63: 74 | W63: 524745 | X63: 421815 | Y63: 316057.5 | Z63: 245092.5 | AA63: 193905 | AC63: 74 | AD63: 488805 | AE63: 392925 | AF63: 294412.5 | AG63: 228307.5 | AH63: 180622.5
A64: 75 | B64: 761955 | C64: 612495 | D64: 458940 | E64: 355890 | F64: 281557.5 | H64: 75 | I64: 670522.5 | J64: 539002.5 | K64: 403867.5 | L64: 313185 | M64: 247770 | O64: 75 | P64: 601942.5 | Q64: 483870 | R64: 362565 | S64: 281152.5 | T64: 222427.5 | V64: 75 | W64: 556230 | X64: 447120 | Y64: 335025 | Z64: 259800 | AA64: 205537.5 | AC64: 75 | AD64: 518130 | AE64: 416497.5 | AF64: 312075 | AG64: 242002.5 | AH64: 191460
A65: 76 | B65: 807675 | C65: 649245 | D65: 486472.5 | E65: 377242.5 | F65: 298447.5 | H65: 76 | I65: 710752.5 | J65: 571342.5 | K65: 428100 | L65: 331972.5 | M65: 262635 | O65: 76 | P65: 638062.5 | Q65: 512910 | R65: 384315 | S65: 298020 | T65: 235777.5 | V65: 76 | W65: 589605 | X65: 473955 | Y65: 355125 | Z65: 275385 | AA65: 217867.5 | AC65: 76 | AD65: 549217.5 | AE65: 441487.5 | AF65: 330802.5 | AG65: 256522.5 | AH65: 202942.5
A66: 77 | B66: 856132.5 | C66: 688200 | D66: 515662.5 | E66: 399877.5 | F66: 316357.5 | H66: 77 | I66: 753397.5 | J66: 605617.5 | K66: 453780 | L66: 351892.5 | M66: 278392.5 | O66: 77 | P66: 676342.5 | Q66: 543682.5 | R66: 407370 | S66: 315900 | T66: 249922.5 | V66: 77 | W66: 624975 | X66: 502387.5 | Y66: 376432.5 | Z66: 291907.5 | AA66: 230940 | AC66: 77 | AD66: 582172.5 | AE66: 467977.5 | AF66: 350647.5 | AG66: 271912.5 | AH66: 215122.5
A67: 78 | B67: 907500 | C67: 729495 | D67: 546600 | E67: 423870 | F67: 335340 | H67: 78 | I67: 798600 | J67: 641955 | K67: 481012.5 | L67: 373005 | M67: 295095 | O67: 78 | P67: 716925 | Q67: 576300 | R67: 431812.5 | S67: 334860 | T67: 264915 | V67: 78 | W67: 662475 | X67: 532530 | Y67: 399022.5 | Z67: 309427.5 | AA67: 244800 | AC67: 78 | AD67: 617100 | AE67: 496057.5 | AF67: 371692.5 | AG67: 288232.5 | AH67: 228030
A68: 79 | B68: 961950 | C68: 773265 | D68: 579397.5 | E68: 449302.5 | F68: 355455 | H68: 79 | I68: 846517.5 | J68: 680475 | K68: 509872.5 | L68: 395385 | M68: 312802.5 | O68: 79 | P68: 759945 | Q68: 610882.5 | R68: 457725 | S68: 354945 | T68: 280815 | V68: 79 | W68: 702225 | X68: 564480 | Y68: 422962.5 | Z68: 327990 | AA68: 259485 | AC68: 79 | AD68: 654127.5 | AE68: 525817.5 | AF68: 393990 | AG68: 305527.5 | AH68: 241710
A69: 80 | B69: =B170*0.6 -> 1014855 | C69: 815797.5 | D69: 611265 | E69: 474015 | F69: 375007.5 | H69: 80 | I69: =I170*0.6 -> 893077.5 | J69: 717900 | K69: 537915 | L69: 417135 | M69: 330007.5 | O69: 80 | P69: =P170*0.6 -> 801735 | Q69: 644475 | R69: 482902.5 | S69: 374467.5 | T69: 296257.5 | V69: 80 | W69: =W170*0.6 -> 740850 | X69: 595530 | Y69: 446227.5 | Z69: 346027.5 | AA69: 273757.5 | AC69: 80 | AD69: =AD170*0.6 -> 690105 | AE69: 554737.5 | AF69: 415657.5 | AG69: 322327.5 | AH69: 255007.5
A70: 81 | B70: 1070677.5 | C70: 860662.5 | D70: 644887.5 | E70: 500085 | F70: 395632.5 | H70: 81 | I70: 942195 | J70: 757380 | K70: 567502.5 | L70: 440070 | M70: 348157.5 | O70: 81 | P70: 845835 | Q70: 679927.5 | R70: 509460 | S70: 395070 | T70: 312555 | V70: 81 | W70: 781590 | X70: 628282.5 | Y70: 470767.5 | Z70: 365062.5 | AA70: 288810 | AC70: 81 | AD70: 728062.5 | AE70: 585247.5 | AF70: 438525 | AG70: 340057.5 | AH70: 269032.5
A71: 82 | B71: 1129560 | C71: 908002.5 | D71: 680355 | E71: 527587.5 | F71: 417397.5 | H71: 82 | I71: 994012.5 | J71: 799042.5 | K71: 598710 | L71: 464280 | M71: 367305 | O71: 82 | P71: 892357.5 | Q71: 717322.5 | R71: 537480 | S71: 416797.5 | T71: 329745 | V71: 82 | W71: 824580 | X71: 662842.5 | Y71: 496657.5 | Z71: 385140 | AA71: 304695 | AC71: 82 | AD71: 768105 | AE71: 617437.5 | AF71: 462637.5 | AG71: 358762.5 | AH71: 283830
A72: 83 | B72: 1191690 | C72: 957937.5 | D72: 717772.5 | E72: 556605 | F72: 440355 | H72: 83 | I72: 1048687.5 | J72: 842985 | K72: 631642.5 | L72: 489810 | M72: 387510 | O72: 83 | P72: 941437.5 | Q72: 756772.5 | R72: 567037.5 | S72: 439717.5 | T72: 347880 | V72: 83 | W72: 869932.5 | X72: 699300 | Y72: 523972.5 | Z72: 406320 | AA72: 321457.5 | AC72: 83 | AD72: 810345 | AE72: 651397.5 | AF72: 488085 | AG72: 378495 | AH72: 299437.5
A73: 84 | B73: 1257232.5 | C73: 1010625 | D73: 757252.5 | E73: 587220 | F73: 464572.5 | H73: 84 | I73: 1106362.5 | J73: 889350 | K73: 666382.5 | L73: 516750 | M73: 408825 | O73: 84 | P73: 993210 | Q73: 798397.5 | R73: 598230 | S73: 463905 | T73: 367012.5 | V73: 84 | W73: 917775 | X73: 737760 | Y73: 552795 | Z73: 428670 | AA73: 339135 | AC73: 84 | AD73: 854917.5 | AE73: 687225 | AF73: 514927.5 | AG73: 399307.5 | AH73: 315907.5
A98: Annual Rates
A99: Copy Annual Rates from here
A102: Zona 1: Ciudad de México (D.F. y área metropolitana) y franja fronteriza | H102: Zona 2: Nuevo León, Sonora, Coahuila, Chihuahua, Tamaulipas, Baja California Norte y Baja California Sur | O102: Zona 3: Jalisco, Puebla, Morelos, Estado de México (excepto Área Metropolitana), Quintana Roo, Guerrero (Acapulco y Zihuatanejo), Hidalgo y Querétaro | V102: Zona 4: Sinaloa, Guanajuato, San Luis Potosí, Durango, Aguascalientes, Nayarit, Michoacán, Colima, Zacatecas | AC102: Zona 5: Guerrero (excepto Acapulco y Zihuatanejo), Veracruz, Chiapas, Tabasco, Campeche, Oaxaca, Tlaxcala, Yucatán
A103: Primas de tarifa expresadas en pesos mexicanos | H103: Primas de tarifa expresadas en pesos mexicanos | O103: Primas de tarifa expresadas en pesos mexicanos | V103: Primas de tarifa expresadas en pesos mexicanos | AC103: Primas de tarifa expresadas en pesos mexicanos
A104: Edad | B104: AW21 | C104: AW31 | D104: AW41 | E104: AW51 | F104: AW61 | H104: Edad | I104: AW22 | J104: AW32 | K104: AW42 | L104: AW52 | M104: AW62 | O104: Edad | P104: AW23 | Q104: AW33 | R104: AW43 | S104: AW53 | T104: AW63 | V104: Edad | W104: AW24 | X104: AW34 | Y104: AW44 | Z104: AW54 | AA104: AW64 | AC104: Edad | AD104: AW25 | AE104: AW35 | AF104: AW45 | AG104: AW55 | AH104: AW65
A105: 1 menor | B105: 69812.5 | C105: 56112.5 | D105: 42050 | E105: 32600 | F105: 25800 | H105: 1 menor | I105: 61437.5 | J105: 49387.5 | K105: 37000 | L105: 28700 | M105: 22700 | O105: 1 menor | P105: 55150 | Q105: 44337.5 | R105: 33212.5 | S105: 25762.5 | T105: 20375 | V105: 1 menor | W105: 50962.5 | X105: 40962.5 | Y105: 30700 | Z105: 23800 | AA105: 18825 | AC105: 1 menor | AD105: 47475 | AE105: 38162.5 | AF105: 28587.5 | AG105: 22175 | AH105: 17537.5
A106: 2 menor | B106: 109987.5 | C106: 88412.5 | D106: 66250 | E106: 51375 | F106: 40650 | H106: 2 menores | I106: 96787.5 | J106: 77812.5 | K106: 58300 | L106: 45212.5 | M106: 35762.5 | O106: 2 menores | P106: 86900 | Q106: 69850 | R106: 52337.5 | S106: 40587.5 | T106: 32112.5 | V106: 2 menores | W106: 80300 | X106: 64550 | Y106: 48362.5 | Z106: 37500 | AA106: 29675 | AC106: 2 menores | AD106: 74800 | AE106: 60125 | AF106: 45050 | AG106: 34937.5 | AH106: 27637.5
A107: 3 menor | B107: 160487.5 | C107: 129012.5 | D107: 96662.5 | E107: 74962.5 | F107: 59300 | H107: 3 ó más menores | I107: 141225 | J107: 113525 | K107: 85062.5 | L107: 65962.5 | M107: 52187.5 | O107: 3 ó más menores | P107: 126787.5 | Q107: 101912.5 | R107: 76362.5 | S107: 59212.5 | T107: 46850 | V107: 3 ó más menores | W107: 117150 | X107: 94175 | Y107: 70562.5 | Z107: 54725 | AA107: 43287.5 | AC107: 3 ó más menores | AD107: 109125 | AE107: 87725 | AF107: 65725 | AG107: 50975 | AH107: 40325
A108: 18 | B108: 161025 | C108: 129450 | D108: 96987.5 | E108: 75212.5 | F108: 59500 | H108: 18 | I108: 141700 | J108: 113912.5 | K108: 85350 | L108: 66187.5 | M108: 52362.5 | O108: 18 | P108: 127212.5 | Q108: 102262.5 | R108: 76625 | S108: 59412.5 | T108: 47012.5 | V108: 18 | W108: 117550 | X108: 94500 | Y108: 70800 | Z108: 54900 | AA108: 43437.5 | AC108: 18 | AD108: 109500 | AE108: 88025 | AF108: 65950 | AG108: 51150 | AH108: 40462.5
A109: 19 | B109: 161700 | C109: 129987.5 | D109: 97400 | E109: 75525 | F109: 59750 | H109: 19 | I109: 142300 | J109: 114387.5 | K109: 85712.5 | L109: 66462.5 | M109: 52587.5 | O109: 19 | P109: 127750 | Q109: 102687.5 | R109: 76937.5 | S109: 59662.5 | T109: 47200 | V109: 19 | W109: 118037.5 | X109: 94887.5 | Y109: 71100 | Z109: 55137.5 | AA109: 43625 | AC109: 19 | AD109: 109962.5 | AE109: 88387.5 | AF109: 66225 | AG109: 51362.5 | AH109: 40637.5
A110: 20 | B110: 166812.5 | C110: 134087.5 | D110: 100475 | E110: 77912.5 | F110: 61637.5 | H110: 20 | I110: 146787.5 | J110: 118000 | K110: 88412.5 | L110: 68562.5 | M110: 54237.5 | O110: 20 | P110: 131775 | Q110: 105925 | R110: 79375 | S110: 61550 | T110: 48700 | V110: 20 | W110: 121775 | X110: 97887.5 | Y110: 73350 | Z110: 56875 | AA110: 45000 | AC110: 20 | AD110: 113425 | AE110: 91175 | AF110: 68325 | AG110: 52975 | AH110: 41912.5
A111: 21 | B111: 172075 | C111: 138325 | D111: 103637.5 | E111: 80375 | F111: 63587.5 | H111: 21 | I111: 151425 | J111: 121725 | K111: 91212.5 | L111: 70725 | M111: 55950 | O111: 21 | P111: 135937.5 | Q111: 109275 | R111: 81875 | S111: 63487.5 | T111: 50237.5 | V111: 21 | W111: 125612.5 | X111: 100975 | Y111: 75662.5 | Z111: 58675 | AA111: 46412.5 | AC111: 21 | AD111: 117012.5 | AE111: 94062.5 | AF111: 70475 | AG111: 54650 | AH111: 43237.5
A112: 22 | B112: 177512.5 | C112: 142687.5 | D112: 106912.5 | E112: 82912.5 | F112: 65587.5 | H112: 22 | I112: 156212.5 | J112: 125562.5 | K112: 94087.5 | L112: 72962.5 | M112: 57725 | O112: 22 | P112: 140225 | Q112: 112725 | R112: 84462.5 | S112: 65500 | T112: 51812.5 | V112: 22 | W112: 129575 | X112: 104162.5 | Y112: 78050 | Z112: 60525 | AA112: 47887.5 | AC112: 22 | AD112: 120700 | AE112: 97025 | AF112: 72700 | AG112: 56375 | AH112: 44600
A113: 23 | B113: 183112.5 | C113: 147200 | D113: 110287.5 | E113: 85525 | F113: 67662.5 | H113: 23 | I113: 161137.5 | J113: 129525 | K113: 97050 | L113: 75262.5 | M113: 59537.5 | O113: 23 | P113: 144662.5 | Q113: 116287.5 | R113: 87125 | S113: 67562.5 | T113: 53450 | V113: 23 | W113: 133675 | X113: 107450 | Y113: 80512.5 | Z113: 62437.5 | AA113: 49400 | AC113: 23 | AD113: 124512.5 | AE113: 100087.5 | AF113: 75000 | AG113: 58162.5 | AH113: 46012.5
A114: 24 | B114: 188887.5 | C114: 151837.5 | D114: 113775 | E114: 88225 | F114: 69800 | H114: 24 | I114: 166225 | J114: 133625 | K114: 100125 | L114: 77637.5 | M114: 61425 | O114: 24 | P114: 149225 | Q114: 119950 | R114: 89875 | S114: 69700 | T114: 55137.5 | V114: 24 | W114: 137887.5 | X114: 110850 | Y114: 83050 | Z114: 64400 | AA114: 50950 | AC114: 24 | AD114: 128450 | AE114: 103250 | AF114: 77362.5 | AG114: 60000 | AH114: 47462.5
A115: 25 | B115: 194850 | C115: 156637.5 | D115: 117362.5 | E115: 91012.5 | F115: 72000 | H115: 25 | I115: 171475 | J115: 137837.5 | K115: 103275 | L115: 80087.5 | M115: 63362.5 | O115: 25 | P115: 153937.5 | Q115: 123737.5 | R115: 92712.5 | S115: 71900 | T115: 56887.5 | V115: 25 | W115: 142250 | X115: 114337.5 | Y115: 85675 | Z115: 66437.5 | AA115: 52562.5 | AC115: 25 | AD115: 132500 | AE115: 106512.5 | AF115: 79812.5 | AG115: 61887.5 | AH115: 48962.5
A116: 26 | B116: 201012.5 | C116: 161575 | D116: 121075 | E116: 93887.5 | F116: 74275 | H116: 26 | I116: 176887.5 | J116: 142187.5 | K116: 106537.5 | L116: 82625 | M116: 65362.5 | O116: 26 | P116: 158800 | Q116: 127650 | R116: 95650 | S116: 74175 | T116: 58675 | V116: 26 | W116: 146737.5 | X116: 117950 | Y116: 88375 | Z116: 68537.5 | AA116: 54225 | AC116: 26 | AD116: 136687.5 | AE116: 109875 | AF116: 82325 | AG116: 63837.5 | AH116: 50512.5
A117: 27 | B117: 207350 | C117: 166675 | D117: 124887.5 | E117: 96850 | F117: 76625 | H117: 27 | I117: 182475 | J117: 146675 | K117: 109900 | L117: 85225 | M117: 67425 | O117: 27 | P117: 163812.5 | Q117: 131675 | R117: 98662.5 | S117: 76512.5 | T117: 60525 | V117: 27 | W117: 151362.5 | X117: 121675 | Y117: 91175 | Z117: 70700 | AA117: 55937.5 | AC117: 27 | AD117: 141000 | AE117: 113337.5 | AF117: 84925 | AG117: 65862.5 | AH117: 52100
A118: 28 | B118: 213900 | C118: 171937.5 | D118: 128837.5 | E118: 99900 | F118: 79037.5 | H118: 28 | I118: 188225 | J118: 151312.5 | K118: 113375 | L118: 87912.5 | M118: 69550 | O118: 28 | P118: 168975 | Q118: 135837.5 | R118: 101775 | S118: 78925 | T118: 62437.5 | V118: 28 | W118: 156150 | X118: 125525 | Y118: 94050 | Z118: 72937.5 | AA118: 57700 | AC118: 28 | AD118: 145450 | AE118: 116925 | AF118: 87612.5 | AG118: 67937.5 | AH118: 53750
A119: 29 | B119: 220650 | C119: 177375 | D119: 132900 | E119: 103062.5 | F119: 81537.5 | H119: 29 | I119: 194175 | J119: 156087.5 | K119: 116950 | L119: 90687.5 | M119: 71750 | O119: 29 | P119: 174312.5 | Q119: 140125 | R119: 104987.5 | S119: 81412.5 | T119: 64412.5 | V119: 29 | W119: 161075 | X119: 129475 | Y119: 97025 | Z119: 75237.5 | AA119: 59525 | AC119: 29 | AD119: 150037.5 | AE119: 120612.5 | AF119: 90375 | AG119: 70075 | AH119: 55437.5
A120: 30 | B120: 227625 | C120: 182975 | D120: 137100 | E120: 106312.5 | F120: 84112.5 | H120: 30 | I120: 200300 | J120: 161012.5 | K120: 120650 | L120: 93550 | M120: 74012.5 | O120: 30 | P120: 179812.5 | Q120: 144550 | R120: 108312.5 | S120: 83987.5 | T120: 66450 | V120: 30 | W120: 166162.5 | X120: 133575 | Y120: 100075 | Z120: 77612.5 | AA120: 61400 | AC120: 30 | AD120: 154775 | AE120: 124425 | AF120: 93225 | AG120: 72287.5 | AH120: 57200
A121: 31 | B121: 234800 | C121: 188750 | D121: 141425 | E121: 109675 | F121: 86762.5 | H121: 31 | I121: 206625 | J121: 166100 | K121: 124450 | L121: 96512.5 | M121: 76350 | O121: 31 | P121: 185500 | Q121: 149112.5 | R121: 111725 | S121: 86637.5 | T121: 68550 | V121: 31 | W121: 171412.5 | X121: 137787.5 | Y121: 103237.5 | Z121: 80062.5 | AA121: 63337.5 | AC121: 31 | AD121: 159662.5 | AE121: 128350 | AF121: 96175 | AG121: 74575 | AH121: 59000
A122: 32 | B122: 242212.5 | C122: 194712.5 | D122: 145887.5 | E122: 113137.5 | F122: 89500 | H122: 32 | I122: 213150 | J122: 171337.5 | K122: 128387.5 | L122: 99562.5 | M122: 78762.5 | O122: 32 | P122: 191350 | Q122: 153825 | R122: 115250 | S122: 89375 | T122: 70712.5 | V122: 32 | W122: 176812.5 | X122: 142137.5 | Y122: 106500 | Z122: 82587.5 | AA122: 65337.5 | AC122: 32 | AD122: 164712.5 | AE122: 132400 | AF122: 99200 | AG122: 76925 | AH122: 60862.5
A123: 33 | B123: 249862.5 | C123: 200850 | D123: 150500 | E123: 116700 | F123: 92325 | H123: 33 | I123: 219875 | J123: 176750 | K123: 132437.5 | L123: 102700 | M123: 81250 | O123: 33 | P123: 197387.5 | Q123: 158675 | R123: 118887.5 | S123: 92200 | T123: 72937.5 | V123: 33 | W123: 182400 | X123: 146625 | Y123: 109862.5 | Z123: 85200 | AA123: 67400 | AC123: 33 | AD123: 169912.5 | AE123: 136575 | AF123: 102337.5 | AG123: 79362.5 | AH123: 62787.5
A124: 34 | B124: 257750 | C124: 207200 | D124: 155250 | E124: 120387.5 | F124: 95250 | H124: 34 | I124: 226825 | J124: 182325 | K124: 136625 | L124: 105937.5 | M124: 83812.5 | O124: 34 | P124: 203625 | Q124: 163687.5 | R124: 122650 | S124: 95112.5 | T124: 75237.5 | V124: 34 | W124: 188162.5 | X124: 151250 | Y124: 113325 | Z124: 87887.5 | AA124: 69525 | AC124: 34 | AD124: 175275 | AE124: 140887.5 | AF124: 105575 | AG124: 81862.5 | AH124: 64762.5
A125: 35 | B125: 265887.5 | C125: 213737.5 | D125: 160150 | E125: 124187.5 | F125: 98250 | H125: 35 | I125: 233987.5 | J125: 188087.5 | K125: 140937.5 | L125: 109287.5 | M125: 86462.5 | O125: 35 | P125: 210050 | Q125: 168850 | R125: 126512.5 | S125: 98112.5 | T125: 77612.5 | V125: 35 | W125: 194100 | X125: 156025 | Y125: 116912.5 | Z125: 90662.5 | AA125: 71725 | AC125: 35 | AD125: 180800 | AE125: 145337.5 | AF125: 108900 | AG125: 84450 | AH125: 66812.5
A126: 36 | B126: 265012.5 | C126: 213037.5 | D126: 159625 | E126: 123787.5 | F126: 97925 | H126: 36 | I126: 233212.5 | J126: 187475 | K126: 140475 | L126: 108925 | M126: 86175 | O126: 36 | P126: 209362.5 | Q126: 168300 | R126: 126100 | S126: 97787.5 | T126: 77362.5 | V126: 36 | W126: 193462.5 | X126: 155512.5 | Y126: 116525 | Z126: 90362.5 | AA126: 71487.5 | AC126: 36 | AD126: 180212.5 | AE126: 144862.5 | AF126: 108550 | AG126: 84175 | AH126: 66587.5
A127: 37 | B127: 271075 | C127: 217912.5 | D127: 163275 | E127: 126612.5 | F127: 100175 | H127: 37 | I127: 238550 | J127: 191762.5 | K127: 143687.5 | L127: 111425 | M127: 88150 | O127: 37 | P127: 214150 | Q127: 172150 | R127: 128987.5 | S127: 100025 | T127: 79137.5 | V127: 37 | W127: 197887.5 | X127: 159075 | Y127: 119187.5 | Z127: 92425 | AA127: 73125 | AC127: 37 | AD127: 184337.5 | AE127: 148175 | AF127: 111025 | AG127: 86100 | AH127: 68112.5
A128: 38 | B128: 277287.5 | C128: 222900 | D128: 167012.5 | E128: 129512.5 | F128: 102462.5 | H128: 38 | I128: 244012.5 | J128: 196150 | K128: 146975 | L128: 113975 | M128: 90162.5 | O128: 38 | P128: 219050 | Q128: 176087.5 | R128: 131937.5 | S128: 102312.5 | T128: 80950 | V128: 38 | W128: 202412.5 | X128: 162712.5 | Y128: 121925 | Z128: 94550 | AA128: 74800 | AC128: 38 | AD128: 188550 | AE128: 151575 | AF128: 113562.5 | AG128: 88062.5 | AH128: 69675
A129: 39 | B129: 283625 | C129: 228000 | D129: 170837.5 | E129: 132475 | F129: 104812.5 | H129: 39 | I129: 249600 | J129: 200637.5 | K129: 150337.5 | L129: 116575 | M129: 92225 | O129: 39 | P129: 224062.5 | Q129: 180112.5 | R129: 134962.5 | S129: 104650 | T129: 82800 | V129: 39 | W129: 207050 | X129: 166437.5 | Y129: 124712.5 | Z129: 96712.5 | AA129: 76512.5 | AC129: 39 | AD129: 192875 | AE129: 155037.5 | AF129: 116162.5 | AG129: 90087.5 | AH129: 71262.5
A130: 40 | B130: 290125 | C130: 233212.5 | D130: 174750 | E130: 135512.5 | F130: 107200 | H130: 40 | I130: 255300 | J130: 205225 | K130: 153775 | L130: 119250 | M130: 94337.5 | O130: 40 | P130: 229200 | Q130: 184237.5 | R130: 138050 | S130: 107050 | T130: 84687.5 | V130: 40 | W130: 211787.5 | X130: 170250 | Y130: 127562.5 | Z130: 98925 | AA130: 78262.5 | AC130: 40 | AD130: 197287.5 | AE130: 158587.5 | AF130: 118825 | AG130: 92150 | AH130: 72900
A131: 41 | B131: 296762.5 | C131: 238550 | D131: 178737.5 | E131: 138612.5 | F131: 109662.5 | H131: 41 | I131: 261150 | J131: 209925 | K131: 157287.5 | L131: 121975 | M131: 96500 | O131: 41 | P131: 234437.5 | Q131: 188450 | R131: 141212.5 | S131: 109500 | T131: 86625 | V131: 41 | W131: 216637.5 | X131: 174137.5 | Y131: 130487.5 | Z131: 101187.5 | AA131: 80050 | AC131: 41 | AD131: 201800 | AE131: 162212.5 | AF131: 121550 | AG131: 94250 | AH131: 74562.5
A132: 42 | B132: 303550 | C132: 244012.5 | D132: 182837.5 | E132: 141775 | F132: 112162.5 | H132: 42 | I132: 267125 | J132: 214725 | K132: 160887.5 | L132: 124762.5 | M132: 98712.5 | O132: 42 | P132: 239800 | Q132: 192762.5 | R132: 144437.5 | S132: 112000 | T132: 88612.5 | V132: 42 | W132: 221587.5 | X132: 178125 | Y132: 133475 | Z132: 103500 | AA132: 81887.5 | AC132: 42 | AD132: 206412.5 | AE132: 165925 | AF132: 124325 | AG132: 96412.5 | AH132: 76275
A133: 43 | B133: 310500 | C133: 249587.5 | D133: 187012.5 | E133: 145025 | F133: 114737.5 | H133: 43 | I133: 273237.5 | J133: 219637.5 | K133: 164575 | L133: 127625 | M133: 100962.5 | O133: 43 | P133: 245287.5 | Q133: 197175 | R133: 147737.5 | S133: 114575 | T133: 90637.5 | V133: 43 | W133: 226662.5 | X133: 182200 | Y133: 136525 | Z133: 105862.5 | AA133: 83750 | AC133: 43 | AD133: 211137.5 | AE133: 169725 | AF133: 127175 | AG133: 98612.5 | AH133: 78025
A134: 44 | B134: 317600 | C134: 255300 | D134: 191300 | E134: 148337.5 | F134: 117362.5 | H134: 44 | I134: 279487.5 | J134: 224662.5 | K134: 168337.5 | L134: 130537.5 | M134: 103275 | O134: 44 | P134: 250900 | Q134: 201687.5 | R134: 151125 | S134: 117187.5 | T134: 92712.5 | V134: 44 | W134: 231850 | X134: 186375 | Y134: 139650 | Z134: 108287.5 | AA134: 85675 | AC134: 44 | AD134: 215975 | AE134: 173600 | AF134: 130087.5 | AG134: 100875 | AH134: 79800
A135: 45 | B135: 324875 | C135: 261150 | D135: 195675 | E135: 151737.5 | F135: 120050 | H135: 45 | I135: 285887.5 | J135: 229812.5 | K135: 172187.5 | L135: 133525 | M135: 105637.5 | O135: 45 | P135: 256650 | Q135: 206300 | R135: 154587.5 | S135: 119875 | T135: 94837.5 | V135: 45 | W135: 237150 | X135: 190637.5 | Y135: 142837.5 | Z135: 110775 | AA135: 87637.5 | AC135: 45 | AD135: 220912.5 | AE135: 177575 | AF135: 133062.5 | AG135: 103175 | AH135: 81625
A136: 46 | B136: 332300 | C136: 267125 | D136: 200150 | E136: 155212.5 | F136: 122787.5 | H136: 46 | I136: 292425 | J136: 235062.5 | K136: 176137.5 | L136: 136587.5 | M136: 108062.5 | O136: 46 | P136: 262525 | Q136: 211025 | R136: 158125 | S136: 122612.5 | T136: 97000 | V136: 46 | W136: 242587.5 | X136: 195000 | Y136: 146112.5 | Z136: 113300 | AA136: 89637.5 | AC136: 46 | AD136: 225962.5 | AE136: 181637.5 | AF136: 136100 | AG136: 105537.5 | AH136: 83500
A137: 47 | B137: 339912.5 | C137: 273237.5 | D137: 204737.5 | E137: 158762.5 | F137: 125600 | H137: 47 | I137: 299125 | J137: 240450 | K137: 180162.5 | L137: 139712.5 | M137: 110525 | O137: 47 | P137: 268525 | Q137: 215850 | R137: 161737.5 | S137: 125425 | T137: 99225 | V137: 47 | W137: 248137.5 | X137: 199462.5 | Y137: 149450 | Z137: 115900 | AA137: 91687.5 | AC137: 47 | AD137: 231137.5 | AE137: 185800 | AF137: 139212.5 | AG137: 107962.5 | AH137: 85412.5
A138: 48 | B138: 347687.5 | C138: 279487.5 | D138: 209412.5 | E138: 162400 | F138: 128475 | H138: 48 | I138: 305962.5 | J138: 245950 | K138: 184287.5 | L138: 142912.5 | M138: 113062.5 | O138: 48 | P138: 274675 | Q138: 220800 | R138: 165437.5 | S138: 128287.5 | T138: 101500 | V138: 48 | W138: 253812.5 | X138: 204025 | Y138: 152875 | Z138: 118550 | AA138: 93787.5 | AC138: 48 | AD138: 236425 | AE138: 190050 | AF138: 142400 | AG138: 110425 | AH138: 87362.5
A139: 49 | B139: 355637.5 | C139: 285887.5 | D139: 214212.5 | E139: 166112.5 | F139: 131412.5 | H139: 49 | I139: 312962.5 | J139: 251575 | K139: 188500 | L139: 146175 | M139: 115650 | O139: 49 | P139: 280962.5 | Q139: 225850 | R139: 169225 | S139: 131225 | T139: 103825 | V139: 49 | W139: 259625 | X139: 208700 | Y139: 156375 | Z139: 121262.5 | AA139: 95937.5 | AC139: 49 | AD139: 241837.5 | AE139: 194400 | AF139: 145662.5 | AG139: 112950 | AH139: 89362.5
A140: 50 | B140: 363775 | C140: 292425 | D140: 219112.5 | E140: 169912.5 | F140: 134425 | H140: 50 | I140: 320125 | J140: 257337.5 | K140: 192812.5 | L140: 149525 | M140: 118287.5 | O140: 50 | P140: 287387.5 | Q140: 231012.5 | R140: 173100 | S140: 134225 | T140: 106200 | V140: 50 | W140: 265562.5 | X140: 213475 | Y140: 159950 | Z140: 124037.5 | AA140: 98125 | AC140: 50 | AD140: 247375 | AE140: 198850 | AF140: 149000 | AG140: 115537.5 | AH140: 91412.5
A141: 51 | B141: 372100 | C141: 299112.5 | D141: 224125 | E141: 173800 | F141: 137500 | H141: 51 | I141: 327450 | J141: 263225 | K141: 197225 | L141: 152950 | M141: 121000 | O141: 51 | P141: 293962.5 | Q141: 236300 | R141: 177062.5 | S141: 137300 | T141: 108625 | V141: 51 | W141: 271637.5 | X141: 218350 | Y141: 163612.5 | Z141: 126875 | AA141: 100375 | AC141: 51 | AD141: 253025 | AE141: 203400 | AF141: 152400 | AG141: 118187.5 | AH141: 93500
A142: 52 | B142: 380625 | C142: 305962.5 | D142: 229250 | E142: 177775 | F142: 140650 | H142: 52 | I142: 334950 | J142: 269250 | K142: 201737.5 | L142: 156450 | M142: 123775 | O142: 52 | P142: 300687.5 | Q142: 241712.5 | R142: 181112.5 | S142: 140450 | T142: 111112.5 | V142: 52 | W142: 277850 | X142: 223350 | Y142: 167350 | Z142: 129775 | AA142: 102675 | AC142: 52 | AD142: 258825 | AE142: 208050 | AF142: 155887.5 | AG142: 120887.5 | AH142: 95637.5
A143: 53 | B143: 389325 | C143: 312962.5 | D143: 234500 | E143: 181850 | F143: 143862.5 | H143: 53 | I143: 342612.5 | J143: 275412.5 | K143: 206362.5 | L143: 160025 | M143: 126600 | O143: 53 | P143: 307575 | Q143: 247237.5 | R143: 185250 | S143: 143662.5 | T143: 113650 | V143: 53 | W143: 284212.5 | X143: 228462.5 | Y143: 171187.5 | Z143: 132750 | AA143: 105025 | AC143: 53 | AD143: 264750 | AE143: 212812.5 | AF143: 159462.5 | AG143: 123650 | AH143: 97825
A144: 54 | B144: 406850 | C144: 327050 | D144: 245050 | E144: 190025 | F144: 150337.5 | H144: 54 | I144: 358025 | J144: 287800 | K144: 215650 | L144: 167225 | M144: 132300 | O144: 54 | P144: 321412.5 | Q144: 258362.5 | R144: 193587.5 | S144: 150125 | T144: 118762.5 | V144: 54 | W144: 297000 | X144: 238750 | Y144: 178887.5 | Z144: 138725 | AA144: 109750 | AC144: 54 | AD144: 276662.5 | AE144: 222387.5 | AF144: 166637.5 | AG144: 129225 | AH144: 102225
A145: 55 | B145: 425162.5 | C145: 341762.5 | D145: 256075 | E145: 198575 | F145: 157100 | H145: 55 | I145: 374137.5 | J145: 300750 | K145: 225350 | L145: 174750 | M145: 138250 | O145: 55 | P145: 335875 | Q145: 269987.5 | R145: 202300 | S145: 156875 | T145: 124112.5 | V145: 55 | W145: 310362.5 | X145: 249487.5 | Y145: 186937.5 | Z145: 144962.5 | AA145: 114687.5 | AC145: 55 | AD145: 289112.5 | AE145: 232400 | AF145: 174137.5 | AG145: 135037.5 | AH145: 106825
A146: 56 | B146: 444287.5 | C146: 357137.5 | D146: 267600 | E146: 207512.5 | F146: 164175 | H146: 56 | I146: 390975 | J146: 314287.5 | K146: 235487.5 | L146: 182612.5 | M146: 144475 | O146: 56 | P146: 350987.5 | Q146: 282137.5 | R146: 211412.5 | S146: 163937.5 | T146: 129700 | V146: 56 | W146: 324337.5 | X146: 260712.5 | Y146: 195350 | Z146: 151487.5 | AA146: 119850 | AC146: 56 | AD146: 302112.5 | AE146: 242862.5 | AF146: 181975 | AG146: 141112.5 | AH146: 111637.5
A147: 57 | B147: 464287.5 | C147: 373212.5 | D147: 279650 | E147: 216850 | F147: 171562.5 | H147: 57 | I147: 408575 | J147: 328425 | K147: 246087.5 | L147: 190825 | M147: 150975 | O147: 57 | P147: 366787.5 | Q147: 294837.5 | R147: 220925 | S147: 171312.5 | T147: 135537.5 | V147: 57 | W147: 338925 | X147: 272450 | Y147: 204137.5 | Z147: 158300 | AA147: 125237.5 | AC147: 57 | AD147: 315712.5 | AE147: 253787.5 | AF147: 190162.5 | AG147: 147462.5 | AH147: 116662.5
A148: 58 | B148: 485175 | C148: 390012.5 | D148: 292225 | E148: 226612.5 | F148: 179275 | H148: 58 | I148: 426950 | J148: 343212.5 | K148: 257162.5 | L148: 199425 | M148: 157762.5 | O148: 58 | P148: 383287.5 | Q148: 308112.5 | R148: 230862.5 | S148: 179025 | T148: 141637.5 | V148: 58 | W148: 354175 | X148: 284700 | Y148: 213325 | Z148: 165425 | AA148: 130875 | AC148: 58 | AD148: 329925 | AE148: 265200 | AF148: 198712.5 | AG148: 154100 | AH148: 121912.5
A149: 59 | B149: 511862.5 | C149: 411462.5 | D149: 308300 | E149: 239075 | F149: 189137.5 | H149: 59 | I149: 450437.5 | J149: 362087.5 | K149: 271300 | L149: 210387.5 | M149: 166450 | O149: 59 | P149: 404375 | Q149: 325050 | R149: 243562.5 | S149: 188875 | T149: 149425 | V149: 59 | W149: 373662.5 | X149: 300362.5 | Y149: 225062.5 | Z149: 174525 | AA149: 138075 | AC149: 59 | AD149: 348062.5 | AE149: 279787.5 | AF149: 209650 | AG149: 162575 | AH149: 128612.5
A150: 60 | B150: 540012.5 | C150: 434087.5 | D150: 325262.5 | E150: 252225 | F150: 199550 | H150: 60 | I150: 475212.5 | J150: 382000 | K150: 286225 | L150: 221962.5 | M150: 175600 | O150: 60 | P150: 426612.5 | Q150: 342925 | R150: 256950 | S150: 199262.5 | T150: 157637.5 | V150: 60 | W150: 394212.5 | X150: 316887.5 | Y150: 237437.5 | Z150: 184125 | AA150: 145662.5 | AC150: 60 | AD150: 367212.5 | AE150: 295175 | AF150: 221175 | AG150: 171512.5 | AH150: 135687.5
A151: 61 | B151: 569712.5 | C151: 457962.5 | D151: 343150 | E151: 266100 | F151: 210525 | H151: 61 | I151: 501350 | J151: 403012.5 | K151: 301975 | L151: 234162.5 | M151: 185262.5 | O151: 61 | P151: 450075 | Q151: 361787.5 | R151: 271087.5 | S151: 210212.5 | T151: 166312.5 | V151: 61 | W151: 415887.5 | X151: 334312.5 | Y151: 250500 | Z151: 194250 | AA151: 153675 | AC151: 61 | AD151: 387400 | AE151: 311412.5 | AF151: 233337.5 | AG151: 180950 | AH151: 143150
A152: 62 | B152: 601050 | C152: 483150 | D152: 362025 | E152: 280737.5 | F152: 222100 | H152: 62 | I152: 528925 | J152: 425175 | K152: 318575 | L152: 247050 | M152: 195450 | O152: 62 | P152: 474825 | Q152: 381687.5 | R152: 286000 | S152: 221775 | T152: 175462.5 | V152: 62 | W152: 438762.5 | X152: 352700 | Y152: 264275 | Z152: 204937.5 | AA152: 162125 | AC152: 62 | AD152: 408712.5 | AE152: 328550 | AF152: 246175 | AG152: 190900 | AH152: 151025
A153: 63 | B153: 634100 | C153: 509725 | D153: 381937.5 | E153: 296175 | F153: 234312.5 | H153: 63 | I153: 558012.5 | J153: 448562.5 | K153: 336100 | L153: 260637.5 | M153: 206200 | O153: 63 | P153: 500937.5 | Q153: 402687.5 | R153: 301725 | S153: 233975 | T153: 185112.5 | V153: 63 | W153: 462900 | X153: 372100 | Y153: 278812.5 | Z153: 216200 | AA153: 171050 | AC153: 63 | AD153: 431187.5 | AE153: 346612.5 | AF153: 259712.5 | AG153: 201400 | AH153: 159337.5
A154: 64 | B154: 668975 | C154: 537762.5 | D154: 402937.5 | E154: 312462.5 | F154: 247200 | H154: 64 | I154: 588700 | J154: 473225 | K154: 354587.5 | L154: 274962.5 | M154: 217537.5 | O154: 64 | P154: 528500 | Q154: 424825 | R154: 318325 | S154: 246850 | T154: 195287.5 | V154: 64 | W154: 488350 | X154: 392562.5 | Y154: 294150 | Z154: 228100 | AA154: 180462.5 | AC154: 64 | AD154: 454912.5 | AE154: 365675 | AF154: 274000 | AG154: 212475 | AH154: 168100
A155: 65 | B155: 709125 | C155: 570025 | D155: 427112.5 | E155: 331212.5 | F155: 262037.5 | H155: 65 | I155: 624025 | J155: 501625 | K155: 375862.5 | L155: 291462.5 | M155: 230587.5 | O155: 65 | P155: 560200 | Q155: 450325 | R155: 337425 | S155: 261650 | T155: 207000 | V155: 65 | W155: 517662.5 | X155: 416125 | Y155: 311800 | Z155: 241787.5 | AA155: 191287.5 | AC155: 65 | AD155: 482200 | AE155: 387612.5 | AF155: 290437.5 | AG155: 225225 | AH155: 178187.5
A156: 66 | B156: 751662.5 | C156: 604225 | D156: 452737.5 | E156: 351087.5 | F156: 277750 | H156: 66 | I156: 661462.5 | J156: 531725 | K156: 398412.5 | L156: 308950 | M156: 244425 | O156: 66 | P156: 593812.5 | Q156: 477337.5 | R156: 357662.5 | S156: 277350 | T156: 219425 | V156: 66 | W156: 548712.5 | X156: 441087.5 | Y156: 330500 | Z156: 256287.5 | AA156: 202762.5 | AC156: 66 | AD156: 511137.5 | AE156: 410875 | AF156: 307862.5 | AG156: 238737.5 | AH156: 188875
A157: 67 | B157: 796762.5 | C157: 640487.5 | D157: 479900 | E157: 372150 | F157: 294425 | H157: 67 | I157: 701150 | J157: 563625 | K157: 422312.5 | L157: 327487.5 | M157: 259087.5 | O157: 67 | P157: 629450 | Q157: 505975 | R157: 379125 | S157: 294000 | T157: 232587.5 | V157: 67 | W157: 581637.5 | X157: 467550 | Y157: 350325 | Z157: 271662.5 | AA157: 214925 | AC157: 67 | AD157: 541800 | AE157: 435525 | AF157: 326337.5 | AG157: 253062.5 | AH157: 200200
A158: 68 | B158: 844575 | C158: 678912.5 | D158: 508700 | E158: 394475 | F158: 312087.5 | H158: 68 | I158: 743225 | J158: 597437.5 | K158: 447650 | L158: 347137.5 | M158: 274637.5 | O158: 68 | P158: 667212.5 | Q158: 536337.5 | R158: 401875 | S158: 311637.5 | T158: 246550 | V158: 68 | W158: 616537.5 | X158: 495600 | Y158: 371350 | Z158: 287962.5 | AA158: 227825 | AC158: 68 | AD158: 574312.5 | AE158: 461662.5 | AF158: 345912.5 | AG158: 268250 | AH158: 212225
A159: 69 | B159: 895250 | C159: 719650 | D159: 539225 | E159: 418150 | F159: 330812.5 | H159: 69 | I159: 787812.5 | J159: 633287.5 | K159: 474512.5 | L159: 367962.5 | M159: 291112.5 | O159: 69 | P159: 707250 | Q159: 568525 | R159: 425987.5 | S159: 330337.5 | T159: 261337.5 | V159: 69 | W159: 653525 | X159: 525337.5 | Y159: 393637.5 | Z159: 305250 | AA159: 241487.5 | AC159: 69 | AD159: 608775 | AE159: 489362.5 | AF159: 366675 | AG159: 284337.5 | AH159: 224950
A160: 70 | B160: 948962.5 | C160: 762825 | D160: 571575 | E160: 443237.5 | F160: 350662.5 | H160: 70 | I160: 835087.5 | J160: 671287.5 | K160: 502987.5 | L160: 390050 | M160: 308575 | O160: 70 | P160: 749675 | Q160: 602625 | R160: 451550 | S160: 350150 | T160: 277025 | V160: 70 | W160: 692737.5 | X160: 556862.5 | Y160: 417250 | Z160: 323562.5 | AA160: 255975 | AC160: 70 | AD160: 645300 | AE160: 518725 | AF160: 388675 | AG160: 301400 | AH160: 238450
A161: 71 | B161: 1005900 | C161: 808600 | D161: 605875 | E161: 469825 | F161: 371700 | H161: 71 | I161: 885187.5 | J161: 711562.5 | K161: 533162.5 | L161: 413450 | M161: 327100 | O161: 71 | P161: 794662.5 | Q161: 638787.5 | R161: 478637.5 | S161: 371162.5 | T161: 293637.5 | V161: 71 | W161: 734312.5 | X161: 590275 | Y161: 442287.5 | Z161: 342975 | AA161: 271337.5 | AC161: 71 | AD161: 684012.5 | AE161: 549850 | AF161: 411987.5 | AG161: 319487.5 | AH161: 252750
A162: 72 | B162: 1066250 | C162: 857112.5 | D162: 642225 | E162: 498012.5 | F162: 394000 | H162: 72 | I162: 938300 | J162: 754250 | K162: 565150 | L162: 438250 | M162: 346725 | O162: 72 | P162: 842337.5 | Q162: 677112.5 | R162: 507350 | S162: 393437.5 | T162: 311262.5 | V162: 72 | W162: 778362.5 | X162: 625687.5 | Y162: 468825 | Z162: 363550 | AA162: 287625 | AC162: 72 | AD162: 725050 | AE162: 582837.5 | AF162: 436712.5 | AG162: 338650 | AH162: 267925
A163: 73 | B163: 1130225 | C163: 908537.5 | D163: 680750 | E163: 527900 | F163: 417637.5 | H163: 73 | I163: 994600 | J163: 799512.5 | K163: 599062.5 | L163: 464550 | M163: 367525 | O163: 73 | P163: 892875 | Q163: 717737.5 | R163: 537800 | S163: 417037.5 | T163: 329937.5 | V163: 73 | W163: 825062.5 | X163: 663225 | Y163: 496950 | Z163: 385362.5 | AA163: 304875 | AC163: 73 | AD163: 768550 | AE163: 617800 | AF163: 462912.5 | AG163: 358975 | AH163: 284000
A164: 74 | B164: 1198037.5 | C164: 963050 | D164: 721600 | E164: 559575 | F164: 442700 | H164: 74 | I164: 1054275 | J164: 847487.5 | K164: 635012.5 | L164: 492425 | M164: 389575 | O164: 74 | P164: 946450 | Q164: 760812.5 | R164: 570062.5 | S164: 442062.5 | T164: 349737.5 | V164: 74 | W164: 874575 | X164: 703025 | Y164: 526762.5 | Z164: 408487.5 | AA164: 323175 | AC164: 74 | AD164: 814675 | AE164: 654875 | AF164: 490687.5 | AG164: 380512.5 | AH164: 301037.5
A165: 75 | B165: 1269925 | C165: 1020825 | D165: 764900 | E165: 593150 | F165: 469262.5 | H165: 75 | I165: 1117537.5 | J165: 898337.5 | K165: 673112.5 | L165: 521975 | M165: 412950 | O165: 75 | P165: 1003237.5 | Q165: 806450 | R165: 604275 | S165: 468587.5 | T165: 370712.5 | V165: 75 | W165: 927050 | X165: 745200 | Y165: 558375 | Z165: 433000 | AA165: 342562.5 | AC165: 75 | AD165: 863550 | AE165: 694162.5 | AF165: 520125 | AG165: 403337.5 | AH165: 319100
A166: 76 | B166: 1346125 | C166: 1082075 | D166: 810787.5 | E166: 628737.5 | F166: 497412.5 | H166: 76 | I166: 1184587.5 | J166: 952237.5 | K166: 713500 | L166: 553287.5 | M166: 437725 | O166: 76 | P166: 1063437.5 | Q166: 854850 | R166: 640525 | S166: 496700 | T166: 392962.5 | V166: 76 | W166: 982675 | X166: 789925 | Y166: 591875 | Z166: 458975 | AA166: 363112.5 | AC166: 76 | AD166: 915362.5 | AE166: 735812.5 | AF166: 551337.5 | AG166: 427537.5 | AH166: 338237.5
A167: 77 | B167: 1426887.5 | C167: 1147000 | D167: 859437.5 | E167: 666462.5 | F167: 527262.5 | H167: 77 | I167: 1255662.5 | J167: 1009362.5 | K167: 756300 | L167: 586487.5 | M167: 463987.5 | O167: 77 | P167: 1127237.5 | Q167: 906137.5 | R167: 678950 | S167: 526500 | T167: 416537.5 | V167: 77 | W167: 1041625 | X167: 837312.5 | Y167: 627387.5 | Z167: 486512.5 | AA167: 384900 | AC167: 77 | AD167: 970287.5 | AE167: 779962.5 | AF167: 584412.5 | AG167: 453187.5 | AH167: 358537.5
A168: 78 | B168: 1512500 | C168: 1215825 | D168: 911000 | E168: 706450 | F168: 558900 | H168: 78 | I168: 1331000 | J168: 1069925 | K168: 801687.5 | L168: 621675 | M168: 491825 | O168: 78 | P168: 1194875 | Q168: 960500 | R168: 719687.5 | S168: 558100 | T168: 441525 | V168: 78 | W168: 1104125 | X168: 887550 | Y168: 665037.5 | Z168: 515712.5 | AA168: 408000 | AC168: 78 | AD168: 1028500 | AE168: 826762.5 | AF168: 619487.5 | AG168: 480387.5 | AH168: 380050
A169: 79 | B169: 1603250 | C169: 1288775 | D169: 965662.5 | E169: 748837.5 | F169: 592425 | H169: 79 | I169: 1410862.5 | J169: 1134125 | K169: 849787.5 | L169: 658975 | M169: 521337.5 | O169: 79 | P169: 1266575 | Q169: 1018137.5 | R169: 762875 | S169: 591575 | T169: 468025 | V169: 79 | W169: 1170375 | X169: 940800 | Y169: 704937.5 | Z169: 546650 | AA169: 432475 | AC169: 79 | AD169: 1090212.5 | AE169: 876362.5 | AF169: 656650 | AG169: 509212.5 | AH169: 402850
A170: 80 | B170: 1691425 | C170: 1359662.5 | D170: 1018775 | E170: 790025 | F170: 625012.5 | H170: 80 | I170: 1488462.5 | J170: 1196500 | K170: 896525 | L170: 695225 | M170: 550012.5 | O170: 80 | P170: 1336225 | Q170: 1074125 | R170: 804837.5 | S170: 624112.5 | T170: 493762.5 | V170: 80 | W170: 1234750 | X170: 992550 | Y170: 743712.5 | Z170: 576712.5 | AA170: 456262.5 | AC170: 80 | AD170: 1150175 | AE170: 924562.5 | AF170: 692762.5 | AG170: 537212.5 | AH170: 425012.5
A171: 81 | B171: 1784462.5 | C171: 1434437.5 | D171: 1074812.5 | E171: 833475 | F171: 659387.5 | H171: 81 | I171: 1570325 | J171: 1262300 | K171: 945837.5 | L171: 733450 | M171: 580262.5 | O171: 81 | P171: 1409725 | Q171: 1133212.5 | R171: 849100 | S171: 658450 | T171: 520925 | V171: 81 | W171: 1302650 | X171: 1047137.5 | Y171: 784612.5 | Z171: 608437.5 | AA171: 481350 | AC171: 81 | AD171: 1213437.5 | AE171: 975412.5 | AF171: 730875 | AG171: 566762.5 | AH171: 448387.5
A172: 82 | B172: 1882600 | C172: 1513337.5 | D172: 1133925 | E172: 879312.5 | F172: 695662.5 | H172: 82 | I172: 1656687.5 | J172: 1331737.5 | K172: 997850 | L172: 773800 | M172: 612175 | O172: 82 | P172: 1487262.5 | Q172: 1195537.5 | R172: 895800 | S172: 694662.5 | T172: 549575 | V172: 82 | W172: 1374300 | X172: 1104737.5 | Y172: 827762.5 | Z172: 641900 | AA172: 507825 | AC172: 82 | AD172: 1280175 | AE172: 1029062.5 | AF172: 771062.5 | AG172: 597937.5 | AH172: 473050
A173: 83 | B173: 1986150 | C173: 1596562.5 | D173: 1196287.5 | E173: 927675 | F173: 733925 | H173: 83 | I173: 1747812.5 | J173: 1404975 | K173: 1052737.5 | L173: 816350 | M173: 645850 | O173: 83 | P173: 1569062.5 | Q173: 1261287.5 | R173: 945062.5 | S173: 732862.5 | T173: 579800 | V173: 83 | W173: 1449887.5 | X173: 1165500 | Y173: 873287.5 | Z173: 677200 | AA173: 535762.5 | AC173: 83 | AD173: 1350575 | AE173: 1085662.5 | AF173: 813475 | AG173: 630825 | AH173: 499062.5
A174: 84 | B174: 2095387.5 | C174: 1684375 | D174: 1262087.5 | E174: 978700 | F174: 774287.5 | H174: 84 | I174: 1843937.5 | J174: 1482250 | K174: 1110637.5 | L174: 861250 | M174: 681375 | O174: 84 | P174: 1655350 | Q174: 1330662.5 | R174: 997050 | S174: 773175 | T174: 611687.5 | V174: 84 | W174: 1529625 | X174: 1229600 | Y174: 921325 | Z174: 714450 | AA174: 565225 | AC174: 84 | AD174: 1424862.5 | AE174: 1145375 | AF174: 858212.5 | AG174: 665512.5 | AH174: 526512.5

Sheet Tarifas Complete (hidden)
A1: Zona 1: Ciudad de México (D.F. y área metropolitana) y franja fronteriza norte | H1: Zona 2: Nuevo León, Sonora, Coahuila, Chihuahua, Tamaulipas, Baja California Norte y Baja California Sur | O1: Zona 3: Jalisco, Puebla, Morelos, Estado de México (excepto Área Metropolitana), Guerrero (Acapulco y Zihuatanejo), Hidalgo y Querétaro | V1: Zona 4: Sinaloa, Guanajuato, San Luis Potosí, Durango, Aguascalientes, Nayarit, Michoacán, Colima, Quintana Roo, Zacatecas | AC1: Zona 5: Guerrero (excepto Acapulco y Zihuatanejo), Veracruz, Chiapas, Tabasco, Campeche, Oaxaca, Tlaxcala, Yucatán
A2: Primas de riesgo expresadas en pesos mexicanos | H2: Primas de riesgo expresadas en pesos mexicanos | O2: Primas de riesgo expresadas en pesos mexicanos | V2: Primas de riesgo expresadas en pesos mexicanos | AC2: Primas de riesgo expresadas en pesos mexicanos
A3: Edad | B3: CW11 | C3: CW21 | D3: CW31 | E3: CW41 | F3: CW51 | H3: Edad | I3: CW12 | J3: CW22 | K3: CW32 | L3: CW42 | M3: CW52 | O3: Edad | P3: CW13 | Q3: CW23 | R3: CW33 | S3: CW43 | T3: CW53 | V3: Edad | W3: CW14 | X3: CW24 | Y3: CW34 | Z3: CW44 | AA3: CW54 | AC3: Edad | AD3: CW15 | AE3: CW25 | AF3: CW35 | AG3: CW45 | AH3: CW55
A4: 1 menor | B4: =B105*0.6 -> 52260 | C4: =C105*0.5 -> 33906.25 | D4: 24356.25 | E4: 18968.75 | F4: 14768.75 | H4: 1 menor | I4: =I105*0.6 -> 46042.5 | J4: =J105*0.5 -> 29875 | K4: =K105*0.5 -> 21462.5 | L4: =L105*0.5 -> 16712.5 | M4: =M105*0.5 -> 13012.5 | O4: 1 menor | P4: =P105*0.6 -> 40935 | Q4: =Q105*0.6 -> 31867.5 | R4: =R105*0.6 -> 22897.5 | S4: =S105*0.6 -> 17827.5 | T4: =T105*0.6 -> 13882.5 | V4: 1 menor | W4: =W105*0.6 -> 37965 | X4: =X105*0.6 -> 29557.5 | Y4: =Y105*0.6 -> 21232.5 | Z4: =Z105*0.6 -> 16537.5 | AA4: =AA105*0.6 -> 12877.5 | AC4: 1 menor | AD4: =AD105*0.6 -> 34995 | AE4: =AE105*0.6 -> 27247.5 | AF4: =AF105*0.6 -> 19575 | AG4: =AG105*0.6 -> 15240 | AH4: =AH105*0.6 -> 11865
A5: 2 menor | B5: 68618.75 | C5: 53425 | D5: 38381.25 | E5: 29881.25 | F5: 23268.75 | H5: 2 menores | I5: =I106*0.5 -> 60450 | J5: 47068.75 | K5: 33812.5 | L5: 26325 | M5: 20500 | O5: 2 menores | P5: =P106*0.5 -> 53743.75 | Q5: =Q106*0.6 -> 50212.5 | R5: 36075 | S5: 28087.5 | T5: 21870 | V5: 2 menores | W5: =W106*0.6 -> 59820 | X5: 46575 | Y5: 33457.5 | Z5: 26055 | AA5: 20287.5 | AC5: 2 menores | AD5: =AD106*0.6 -> 55140 | AE5: 42937.5 | AF5: 30840 | AG5: 24015 | AH5: 18697.5
A6: 3 menor | B6: 100118.75 | C6: 77950 | D6: 56000 | E6: 43600 | F6: 33950 | H6: 3 ó más menores | I6: 88206.25 | J6: 68675 | K6: 49337.5 | L6: 38412.5 | M6: 29912.5 | O6: 3 ó más menores | P6: 78412.5 | Q6: 73267.5 | R6: 52635 | S6: 40980 | T6: 31905 | V6: 3 ó más menores | W6: 87277.5 | X6: 67957.5 | Y6: 48817.5 | Z6: 38010 | AA6: 29595 | AC6: 3 ó más menores | AD6: 80460 | AE6: 62647.5 | AF6: 45000 | AG6: 35040 | AH6: 27285
A7: 18 | B7: 96087.5 | C7: 74818.75 | D7: 53743.75 | E7: 41850 | F7: 32581.25 | H7: 18 | I7: 84656.25 | J7: 65912.5 | K7: 47350 | L7: 36868.75 | M7: 28706.25 | O7: 18 | P7: 75262.5 | Q7: 70320 | R7: 50512.5 | S7: 39330 | T7: 30622.5 | V7: 18 | W7: 83767.5 | X7: 65220 | Y7: 46852.5 | Z7: 36480 | AA7: 28402.5 | AC7: 18 | AD7: 77220 | AE7: 60127.5 | AF7: 43192.5 | AG7: 33630 | AH7: 26182.5
A8: 19 | B8: 99118.75 | C8: 77175 | D8: 55443.75 | E8: 43168.75 | F8: 33612.5 | H8: 19 | I8: 87325 | J8: 67993.75 | K8: 48843.75 | L8: 38031.25 | M8: 29612.5 | O8: 19 | P8: 77637.5 | Q8: 72540 | R8: 52110 | S8: 40575 | T8: 31590 | V8: 19 | W8: 86415 | X8: 67282.5 | Y8: 48330 | Z8: 37635 | AA8: 29302.5 | AC8: 19 | AD8: 79657.5 | AE8: 62025 | AF8: 44557.5 | AG8: 34695 | AH8: 27015
A9: 20 | B9: 102250 | C9: 79612.5 | D9: 57193.75 | E9: 44531.25 | F9: 34675 | H9: 20 | I9: 90087.5 | J9: 70143.75 | K9: 50387.5 | L9: 39231.25 | M9: 30550 | O9: 20 | P9: 80087.5 | Q9: 74827.5 | R9: 53752.5 | S9: 41857.5 | T9: 32587.5 | V9: 20 | W9: 89137.5 | X9: 69405 | Y9: 49860 | Z9: 38820 | AA9: 30225 | AC9: 20 | AD9: 82170 | AE9: 63982.5 | AF9: 45960 | AG9: 35790 | AH9: 27862.5
A10: 21 | B10: 105481.25 | C10: 82131.25 | D10: 59000 | E10: 45937.5 | F10: 35768.75 | H10: 21 | I10: 92931.25 | J10: 72356.25 | K10: 51981.25 | L10: 40475 | M10: 31512.5 | O10: 21 | P10: 82612.5 | Q10: 77190 | R10: 55455 | S10: 43177.5 | T10: 33615 | V10: 21 | W10: 91957.5 | X10: 71595 | Y10: 51435 | Z10: 40050 | AA10: 31185 | AC10: 21 | AD10: 84765 | AE10: 66000 | AF10: 47415 | AG10: 36915 | AH10: 28747.5
A11: 22 | B11: 108806.25 | C11: 84718.75 | D11: 60862.5 | E11: 47387.5 | F11: 36900 | H11: 22 | I11: 95862.5 | J11: 74643.75 | K11: 53618.75 | L11: 41750 | M11: 32506.25 | O11: 22 | P11: 85225 | Q11: 79627.5 | R11: 57202.5 | S11: 44535 | T11: 34680 | V11: 22 | W11: 94860 | X11: 73860 | Y11: 53055 | Z11: 41310 | AA11: 32167.5 | AC11: 22 | AD11: 87442.5 | AE11: 68085 | AF11: 48907.5 | AG11: 38085 | AH11: 29655
A12: 23 | B12: 112243.75 | C12: 87393.75 | D12: 62781.25 | E12: 48881.25 | F12: 38062.5 | H12: 23 | I12: 98887.5 | J12: 77000 | K12: 55312.5 | L12: 43068.75 | M12: 33531.25 | O12: 23 | P12: 87912.5 | Q12: 82140 | R12: 59010 | S12: 45945 | T12: 35775 | V12: 23 | W12: 97852.5 | X12: 76192.5 | Y12: 54735 | Z12: 42615 | AA12: 33180 | AC12: 23 | AD12: 90202.5 | AE12: 70237.5 | AF12: 50452.5 | AG12: 39285 | AH12: 30585
A13: 24 | B13: 115787.5 | C13: 90156.25 | D13: 64762.5 | E13: 50425 | F13: 39262.5 | H13: 24 | I13: 102012.5 | J13: 79431.25 | K13: 57056.25 | L13: 44425 | M13: 34593.75 | O13: 24 | P13: 90687.5 | Q13: 84735 | R13: 60870 | S13: 47392.5 | T13: 36900 | V13: 24 | W13: 100942.5 | X13: 78592.5 | Y13: 56460 | Z13: 43965 | AA13: 34230 | AC13: 24 | AD13: 93052.5 | AE13: 72450 | AF13: 52050 | AG13: 40522.5 | AH13: 31552.5
A14: 25 | B14: 119443.75 | C14: 93000 | D14: 66806.25 | E14: 52018.75 | F14: 40500 | H14: 25 | I14: 105231.25 | J14: 81937.5 | K14: 58862.5 | L14: 45831.25 | M14: 35681.25 | O14: 25 | P14: 93550 | Q14: 87412.5 | R14: 62790 | S14: 48892.5 | T14: 38070 | V14: 25 | W14: 104130 | X14: 81075 | Y14: 58245 | Z14: 45352.5 | AA14: 35310 | AC14: 25 | AD14: 95992.5 | AE14: 74737.5 | AF14: 53692.5 | AG14: 41805 | AH14: 32550
A15: 26 | B15: 123212.5 | C15: 95937.5 | D15: 68918.75 | E15: 53662.5 | F15: 41781.25 | H15: 26 | I15: 108556.25 | J15: 84525 | K15: 60718.75 | L15: 47275 | M15: 36812.5 | O15: 26 | P15: 96506.25 | Q15: 90172.5 | R15: 64777.5 | S15: 50437.5 | T15: 39270 | V15: 26 | W15: 107415 | X15: 83640 | Y15: 60082.5 | Z15: 46777.5 | AA15: 36427.5 | AC15: 26 | AD15: 99022.5 | AE15: 77100 | AF15: 55387.5 | AG15: 43125 | AH15: 33577.5
A16: 27 | B16: 127106.25 | C16: 98968.75 | D16: 71093.75 | E16: 55356.25 | F16: 43100 | H16: 27 | I16: 111981.25 | J16: 87193.75 | K16: 62637.5 | L16: 48768.75 | M16: 37975 | O16: 27 | P16: 99550 | Q16: 93015 | R16: 66817.5 | S16: 52027.5 | T16: 40507.5 | V16: 27 | W16: 110805 | X16: 86280 | Y16: 61980 | Z16: 48255 | AA16: 37575 | AC16: 27 | AD16: 102142.5 | AE16: 79530 | AF16: 57135 | AG16: 44482.5 | AH16: 34635
A17: 28 | B17: 131118.75 | C17: 102087.5 | D17: 73337.5 | E17: 57100 | F17: 44462.5 | H17: 28 | I17: 115518.75 | J17: 89943.75 | K17: 64612.5 | L17: 50306.25 | M17: 39168.75 | O17: 28 | P17: 102693.75 | Q17: 95955 | R17: 68932.5 | S17: 53670 | T17: 41790 | V17: 28 | W17: 114307.5 | X17: 89002.5 | Y17: 63937.5 | Z17: 49785 | AA17: 38760 | AC17: 28 | AD17: 105367.5 | AE17: 82042.5 | AF17: 58935 | AG17: 45892.5 | AH17: 35730
A18: 29 | B18: 135256.25 | C18: 105312.5 | D18: 75656.25 | E18: 58906.25 | F18: 45862.5 | H18: 29 | I18: 119162.5 | J18: 92781.25 | K18: 66650 | L18: 51900 | M18: 40406.25 | O18: 29 | P18: 105937.5 | Q18: 98985 | R18: 71107.5 | S18: 55365 | T18: 43110 | V18: 29 | W18: 117915 | X18: 91807.5 | Y18: 65955 | Z18: 51352.5 | AA18: 39982.5 | AC18: 29 | AD18: 108697.5 | AE18: 84637.5 | AF18: 60795 | AG18: 47340 | AH18: 36862.5
A19: 30 | B19: 139525 | C19: 108637.5 | D19: 78043.75 | E19: 60762.5 | F19: 47312.5 | H19: 30 | I19: 122925 | J19: 95712.5 | K19: 68756.25 | L19: 53537.5 | M19: 41681.25 | O19: 30 | P19: 109281.25 | Q19: 102105 | R19: 73350 | S19: 57112.5 | T19: 44467.5 | V19: 30 | W19: 121635 | X19: 94710 | Y19: 68032.5 | Z19: 52972.5 | AA19: 41250 | AC19: 30 | AD19: 112125 | AE19: 87307.5 | AF19: 62715 | AG19: 48832.5 | AH19: 38025
A20: 31 | B20: =B121*0.5 -> 143931.25 | C20: 112068.75 | D20: 80506.25 | E20: 62681.25 | F20: 48806.25 | H20: 31 | I20: 126806.25 | J20: 98737.5 | K20: 70925 | L20: 55225 | M20: 43000 | O20: 31 | P20: 112731.25 | Q20: 105330 | R20: 75667.5 | S20: 58912.5 | T20: 45870 | V20: 31 | W20: 125475 | X20: 97702.5 | Y20: 70185 | Z20: 54645 | AA20: 42547.5 | AC20: 31 | AD20: 115672.5 | AE20: 90060 | AF20: 64695 | AG20: 50377.5 | AH20: 39225
A21: 32 | B21: 148475 | C21: 115606.25 | D21: 83050 | E21: 64662.5 | F21: 50350 | H21: 32 | I21: =I122*0.5 -> 130812.5 | J21: 101850 | K21: 73168.75 | L21: 56968.75 | M21: 44356.25 | O21: 32 | P21: 116287.5 | Q21: =Q122*0.6 -> 108652.5 | R21: 78052.5 | S21: 60772.5 | T21: 47317.5 | V21: 32 | W21: =W122*0.6 -> 129435 | X21: 100785 | Y21: 72397.5 | Z21: 56370 | AA21: 43890 | AC21: 32 | AD21: =AD122*0.6 -> 119317.5 | AE21: 92902.5 | AF21: 66742.5 | AG21: 51967.5 | AH21: 40462.5
A22: 33 | B22: 153162.5 | C22: 119256.25 | D22: 85668.75 | E22: 66706.25 | F22: 51937.5 | H22: 33 | I22: 134937.5 | J22: 105068.75 | K22: 75475 | L22: 58768.75 | M22: 45756.25 | O22: 33 | P22: 119962.5 | Q22: 112087.5 | R22: 80520 | S22: 62692.5 | T22: 48817.5 | V22: 33 | W22: 133522.5 | X22: 103965 | Y22: 74685 | Z22: 58155 | AA22: 45277.5 | AC22: 33 | AD22: 123090 | AE22: 95835 | AF22: 68850 | AG22: 53602.5 | AH22: 41737.5
A23: 34 | B23: 158000 | C23: 123018.75 | D23: 88375 | E23: 68812.5 | F23: 53575 | H23: 34 | I23: 139200 | J23: 108381.25 | K23: 77856.25 | L23: 60625 | M23: 47200 | O23: 34 | P23: 123750 | Q23: 115627.5 | R23: 83062.5 | S23: 64672.5 | T23: 50355 | V23: 34 | W23: 137737.5 | X23: 107250 | Y23: 77040 | Z23: 59985 | AA23: 46710 | AC23: 34 | AD23: 126975 | AE23: 98865 | AF23: 71017.5 | AG23: 55297.5 | AH23: 43057.5
A24: 35 | B24: 158818.75 | C24: 123656.25 | D24: 88831.25 | E24: 69168.75 | F24: 53856.25 | H24: 35 | I24: 139918.75 | J24: 108943.75 | K24: 78262.5 | L24: 60937.5 | M24: 47450 | O24: 35 | P24: 124393.75 | Q24: 116227.5 | R24: 83490 | S24: 65010 | T24: 50617.5 | V24: 35 | W24: 138450 | X24: 107805 | Y24: 77445 | Z24: 60300 | AA24: 46950 | AC24: 35 | AD24: 127635 | AE24: 99375 | AF24: 71392.5 | AG24: 55582.5 | AH24: 43282.5
A25: 36 | B25: 162450 | C25: 126487.5 | D25: 90862.5 | E25: 70750 | F25: 55087.5 | H25: 36 | I25: 143125 | J25: 111437.5 | K25: 80050 | L25: 62331.25 | M25: 48531.25 | O25: 36 | P25: 127237.5 | Q25: 118882.5 | R25: 85402.5 | S25: 66495 | T25: 51772.5 | V25: 36 | W25: 141622.5 | X25: 110272.5 | Y25: 79215 | Z25: 61680 | AA25: 48022.5 | AC25: 36 | AD25: 130552.5 | AE25: 101655 | AF25: 73020 | AG25: 56857.5 | AH25: 44272.5
A26: 37 | B26: 166168.75 | C26: 129381.25 | D26: 92943.75 | E26: 72368.75 | F26: 56350 | H26: 37 | I26: 146400 | J26: 113987.5 | K26: 81887.5 | L26: 63756.25 | M26: 49643.75 | O26: 37 | P26: 130150 | Q26: 121605 | R26: 87352.5 | S26: 68017.5 | T26: 52957.5 | V26: 37 | W26: 144862.5 | X26: 112792.5 | Y26: 81030 | Z26: 63090 | AA26: 49125 | AC26: 37 | AD26: 133537.5 | AE26: 103980 | AF26: 74692.5 | AG26: 58155 | AH26: 45285
A27: 38 | B27: 169968.75 | C27: 132343.75 | D27: 95068.75 | E27: 74025 | F27: 57637.5 | H27: 38 | I27: 149750 | J27: 116593.75 | K27: 83756.25 | L27: 65218.75 | M27: 50781.25 | O27: 38 | P27: 133125 | Q27: 124387.5 | R27: 89355 | S27: 69577.5 | T27: 54172.5 | V27: 38 | W27: 148177.5 | X27: 115372.5 | Y27: 82882.5 | Z27: 64530 | AA27: 50250 | AC27: 38 | AD27: 136597.5 | AE27: 106357.5 | AF27: 76402.5 | AG27: 59490 | AH27: 46320
A28: 39 | B28: 173862.5 | C28: 135375 | D28: 97243.75 | E28: 75718.75 | F28: 58956.25 | H28: 39 | I28: 153175 | J28: 119262.5 | K28: 85675 | L28: 66706.25 | M28: 51943.75 | O28: 39 | P28: 136175 | Q28: 127230 | R28: 91402.5 | S28: 71167.5 | T28: 55410 | V28: 39 | W28: 151567.5 | X28: 118012.5 | Y28: 84780 | Z28: 66007.5 | AA28: 51397.5 | AC28: 39 | AD28: 139725 | AE28: 108787.5 | AF28: 78150 | AG28: 60847.5 | AH28: 47377.5
A29: 40 | B29: 177837.5 | C29: 138468.75 | D29: 99468.75 | E29: 77450 | F29: 60306.25 | H29: 40 | I29: 156681.25 | J29: 121993.75 | K29: 87637.5 | L29: 68237.5 | M29: 53131.25 | O29: 40 | P29: 139287.5 | Q29: 130147.5 | R29: 93487.5 | S29: 72795 | T29: 56677.5 | V29: 40 | W29: 155040 | X29: 120712.5 | Y29: 86715 | Z29: 67522.5 | AA29: 52575 | AC29: 40 | AD29: 142920 | AE29: 111277.5 | AF29: 79942.5 | AG29: 62242.5 | AH29: 48465
A30: 41 | B30: 181906.25 | C30: 141637.5 | D30: 101750 | E30: 79225 | F30: 61687.5 | H30: 41 | I30: 160262.5 | J30: 124787.5 | K30: 89643.75 | L30: 69800 | M30: 54343.75 | O30: 41 | P30: 142475 | Q30: 133125 | R30: 95632.5 | S30: 74460 | T30: 57975 | V30: 41 | W30: 158587.5 | X30: 123480 | Y30: 88702.5 | Z30: 69067.5 | AA30: 53775 | AC30: 41 | AD30: 146190 | AE30: 113827.5 | AF30: 81765 | AG30: 63667.5 | AH30: 49575
A31: 42 | B31: 186068.75 | C31: 144881.25 | D31: 104075 | E31: 81037.5 | F31: 63093.75 | H31: 42 | I31: 163931.25 | J31: 127643.75 | K31: 91693.75 | L31: 71393.75 | M31: 55587.5 | O31: 42 | P31: 145737.5 | Q31: 136170 | R31: 97822.5 | S31: 76162.5 | T31: 59302.5 | V31: 42 | W31: 162210 | X31: 126300 | Y31: 90735 | Z31: 70642.5 | AA31: 55005 | AC31: 42 | AD31: 149535 | AE31: 116430 | AF31: 83640 | AG31: 65122.5 | AH31: 50707.5
A32: 43 | B32: 190331.25 | C32: 148193.75 | D32: 106456.25 | E32: 82887.5 | F32: 64543.75 | H32: 43 | I32: 167681.25 | J32: 130562.5 | K32: 93793.75 | L32: 73025 | M32: 56862.5 | O32: 43 | P32: 149075 | Q32: 139282.5 | R32: 100057.5 | S32: 77910 | T32: 60660 | V32: 43 | W32: 165922.5 | X32: 129195 | Y32: 92805 | Z32: 72262.5 | AA32: 56265 | AC32: 43 | AD32: 152955 | AE32: 119092.5 | AF32: 85552.5 | AG32: 66615 | AH32: 51870
A33: 44 | B33: 194687.5 | C33: 151587.5 | D33: 108893.75 | E33: 84787.5 | F33: 66018.75 | H33: 44 | I33: 171518.75 | J33: 133550 | K33: 95937.5 | L33: 74700 | M33: 58162.5 | O33: 44 | P33: 152481.25 | Q33: 142470 | R33: 102345 | S33: 79687.5 | T33: 62047.5 | V33: 44 | W33: 169725 | X33: 132150 | Y33: 94935 | Z33: 73912.5 | AA33: 57555 | AC33: 44 | AD33: 156457.5 | AE33: 121822.5 | AF33: 87510 | AG33: 68137.5 | AH33: 53055
A34: 45 | B34: 199137.5 | C34: 155056.25 | D34: 111387.5 | E34: 86725 | F34: 67531.25 | H34: 45 | I34: 175443.75 | J34: 136606.25 | K34: 98131.25 | L34: 76406.25 | M34: 59493.75 | O34: 45 | P34: 155975 | Q34: 145732.5 | R34: 104692.5 | S34: 81510 | T34: 63465 | V34: 45 | W34: 173610 | X34: 135172.5 | Y34: 97102.5 | Z34: 75607.5 | AA34: 58867.5 | AC34: 45 | AD34: 160035 | AE34: 124605 | AF34: 89512.5 | AG34: 69697.5 | AH34: 54270
A35: 46 | B35: 203693.75 | C35: 158600 | D35: 113937.5 | E35: 88712.5 | F35: 69075 | H35: 46 | I35: 179462.5 | J35: 139731.25 | K35: 100381.25 | L35: 78156.25 | M35: 60856.25 | O35: 46 | P35: 159543.75 | Q35: 149070 | R35: 107085 | S35: 83377.5 | T35: 64920 | V35: 46 | W35: 177577.5 | X35: 138270 | Y35: 99322.5 | Z35: 77340 | AA35: 60217.5 | AC35: 46 | AD35: 163695 | AE35: 127462.5 | AF35: 91560 | AG35: 71295 | AH35: 55507.5
A36: 47 | B36: =B137*0.5 -> 208356.25 | C36: 162231.25 | D36: 116543.75 | E36: 90743.75 | F36: 70656.25 | H36: 47 | I36: 183568.75 | J36: 142931.25 | K36: 102675 | L36: 79943.75 | M36: 62250 | O36: 47 | P36: 163193.75 | Q36: 152482.5 | R36: 109537.5 | S36: 85290 | T36: 66405 | V36: 47 | W36: 181642.5 | X36: 141435 | Y36: 101602.5 | Z36: 79110 | AA36: 61597.5 | AC36: 47 | AD36: 167445 | AE36: 130380 | AF36: 93660 | AG36: 72922.5 | AH36: 56782.5
A37: 48 | B37: 213125 | C37: 165943.75 | D37: 119206.25 | E37: 92818.75 | F37: 72268.75 | H37: 48 | I37: =I138*0.5 -> 187768.75 | J37: 146200 | K37: 105025 | L37: 81775 | M37: 63675 | O37: 48 | P37: 166925 | Q37: =Q138*0.6 -> 155970 | R37: 112042.5 | S37: 87240 | T37: 67927.5 | V37: 48 | W37: =W138*0.6 -> 185797.5 | X37: 144667.5 | Y37: 103927.5 | Z37: 80917.5 | AA37: 63007.5 | AC37: 48 | AD37: =AD138*0.6 -> 171277.5 | AE37: 133357.5 | AF37: 95797.5 | AG37: 74595 | AH37: 58080
A38: 49 | B38: 218000 | C38: 169743.75 | D38: 121937.5 | E38: 94943.75 | F38: 73925 | H38: 49 | I38: 192062.5 | J38: 149543.75 | K38: 107425 | L38: 83643.75 | M38: 65131.25 | O38: 49 | P38: 170750 | Q38: 159540 | R38: 114607.5 | S38: 89235 | T38: 69480 | V38: 49 | W38: 190050 | X38: 147975 | Y38: 106305 | Z38: 82770 | AA38: 64447.5 | AC38: 49 | AD38: 175192.5 | AE38: 136410 | AF38: 97995 | AG38: 76297.5 | AH38: 59407.5
A39: 50 | B39: 222993.75 | C39: 173625 | D39: 124725 | E39: 97112.5 | F39: 75618.75 | H39: 50 | I39: 196462.5 | J39: 152968.75 | K39: 109887.5 | L39: 85562.5 | M39: 66618.75 | O39: 50 | P39: 174656.25 | Q39: 163185 | R39: 117225 | S39: 91275 | T39: 71070 | V39: 50 | W39: 194400 | X39: 151365 | Y39: 108735 | Z39: 84660 | AA39: 65925 | AC39: 50 | AD39: 179205 | AE39: 139530 | AF39: 100237.5 | AG39: 78045 | AH39: 60765
A40: 51 | B40: 228093.75 | C40: 177600 | D40: 127581.25 | E40: 99337.5 | F40: 77350 | H40: 51 | I40: 200956.25 | J40: 156468.75 | K40: 112400 | L40: 87518.75 | M40: 68143.75 | O40: 51 | P40: 178650 | Q40: 166920 | R40: 119910 | S40: 93367.5 | T40: 72697.5 | V40: 51 | W40: 198847.5 | X40: 154830 | Y40: 111225 | Z40: 86602.5 | AA40: 67432.5 | AC40: 51 | AD40: 183307.5 | AE40: 142725 | AF40: 102532.5 | AG40: 79830 | AH40: 62160
A41: 52 | B41: 233312.5 | C41: 181662.5 | D41: 130500 | E41: 101612.5 | F41: 79118.75 | H41: 52 | I41: 205556.25 | J41: 160050 | K41: 114975 | L41: 89518.75 | M41: 69700 | O41: 52 | P41: 182737.5 | Q41: 170745 | R41: 122655 | S41: 95505 | T41: 74362.5 | V41: 52 | W41: 203400 | X41: 158370 | Y41: 113767.5 | Z41: 88582.5 | AA41: 68970 | AC41: 52 | AD41: 187500 | AE41: 145995 | AF41: 104872.5 | AG41: 81660 | AH41: 63585
A42: 53 | B42: 238650 | C42: 185818.75 | D42: 133487.5 | E42: 103937.5 | F42: 80925 | H42: 53 | I42: 210256.25 | J42: 163712.5 | K42: 117606.25 | L42: 91568.75 | M42: 71300 | O42: 53 | P42: 186918.75 | Q42: 174652.5 | R42: 125460 | S42: 97687.5 | T42: 76065 | V42: 53 | W42: 208050 | X42: 161992.5 | Y42: 116370 | Z42: 90607.5 | AA42: 70552.5 | AC42: 53 | AD42: 191790 | AE42: 149332.5 | AF42: 107272.5 | AG42: 83527.5 | AH42: 65040
A43: 54 | B43: 251056.25 | C43: 195481.25 | D43: 140425 | E43: 109337.5 | F43: 85131.25 | H43: 54 | I43: 221187.5 | J43: 172218.75 | K43: 123718.75 | L43: 96331.25 | M43: 75006.25 | O43: 54 | P43: 196637.5 | Q43: 183727.5 | R43: 131985 | S43: 102765 | T43: 80017.5 | V43: 54 | W43: 218865 | X43: 170415 | Y43: 122422.5 | Z43: 95317.5 | AA43: 74220 | AC43: 54 | AD43: 201757.5 | AE43: 157095 | AF43: 112852.5 | AG43: 87870 | AH43: 68415
A44: 55 | B44: 266000 | C44: 207112.5 | D44: 148781.25 | E44: 115843.75 | F44: 90200 | H44: 55 | I44: 234350 | J44: 182468.75 | K44: 131081.25 | L44: 102062.5 | M44: 79468.75 | O44: 55 | P44: 208337.5 | Q44: 194662.5 | R44: 139837.5 | S44: 108877.5 | T44: 84780 | V44: 55 | W44: 231892.5 | X44: 180555 | Y44: 129705 | Z44: 100995 | AA44: 78637.5 | AC44: 55 | AD44: 213765 | AE44: 166447.5 | AF44: 119565 | AG44: 93097.5 | AH44: 72487.5
A45: 56 | B45: 281831.25 | C45: 219437.5 | D45: 157637.5 | E45: 122737.5 | F45: 95568.75 | H45: 56 | I45: 248293.75 | J45: 193331.25 | K45: 138881.25 | L45: 108137.5 | M45: 84200 | O45: 56 | P45: 220737.5 | Q45: 206250 | R45: 148162.5 | S45: 115357.5 | T45: 89820 | V45: 56 | W45: 245692.5 | X45: 191302.5 | Y45: 137422.5 | Z45: 107002.5 | AA45: 83317.5 | AC45: 56 | AD45: 226492.5 | AE45: 176347.5 | AF45: 126682.5 | AG45: 98640 | AH45: 76800
A46: 57 | B46: 298600 | C46: 232500 | D46: 167018.75 | E46: 130043.75 | F46: 101256.25 | H46: 57 | I46: 263075 | J46: 204837.5 | K46: 147143.75 | L46: 114575 | M46: 89206.25 | O46: 57 | P46: 233875 | Q46: 218520 | R46: 156975 | S46: 122227.5 | T46: 95167.5 | V46: 57 | W46: 260317.5 | X46: 202687.5 | Y46: 145605 | Z46: 113370 | AA46: 88275 | AC46: 57 | AD46: 239970 | AE46: 186847.5 | AF46: 134220 | AG46: 104512.5 | AH46: 81375
A47: 58 | B47: 316375 | C47: 246337.5 | D47: 176956.25 | E47: 137787.5 | F47: 107281.25 | H47: 58 | I47: 278731.25 | J47: 217025 | K47: 155906.25 | L47: 121393.75 | M47: 94518.75 | O47: 58 | P47: 247793.75 | Q47: 231525 | R47: 166320 | S47: 129502.5 | T47: 100830 | V47: 58 | W47: 275812.5 | X47: 214755 | Y47: 154267.5 | Z47: 120120 | AA47: 93525 | AC47: 58 | AD47: 254250 | AE47: 197970 | AF47: 142215 | AG47: 110730 | AH47: 86220
A48: 59 | B48: 335206.25 | C48: 261000 | D48: 187493.75 | E48: 145987.5 | F48: 113668.75 | H48: 59 | I48: 295318.75 | J48: 229943.75 | K48: 165181.25 | L48: 128618.75 | M48: 100143.75 | O48: 59 | P48: 262543.75 | Q48: 245310 | R48: 176220 | S48: 137205 | T48: 106837.5 | V48: 59 | W48: 292222.5 | X48: 227535 | Y48: 163455 | Z48: 127267.5 | AA48: 99090 | AC48: 59 | AD48: 269385 | AE48: 209745 | AF48: 150675 | AG48: 117322.5 | AH48: 91350
A49: 60 | B49: 355156.25 | C49: 276531.25 | D49: 198650 | E49: 154675 | F49: 120431.25 | H49: 60 | I49: 312900 | J49: 243631.25 | K49: 175012.5 | L49: 136268.75 | M49: 106106.25 | O49: 60 | P49: 278168.75 | Q49: 259905 | R49: 186705 | S49: 145372.5 | T49: 113190 | V49: 60 | W49: 309615 | X49: 241072.5 | Y49: 173182.5 | Z49: 134842.5 | AA49: 104992.5 | AC49: 60 | AD49: 285412.5 | AE49: 222232.5 | AF49: 159645 | AG49: 124305 | AH49: 96787.5
A50: 61 | B50: 376293.75 | C50: 292987.5 | D50: 210475 | E50: 163881.25 | F50: 127600 | H50: 61 | I50: 331518.75 | J50: 258131.25 | K50: 185431.25 | L50: 144381.25 | M50: 112418.75 | O50: 61 | P50: 294725 | Q50: 275377.5 | R50: 197820 | S50: 154027.5 | T50: 119932.5 | V50: 61 | W50: 328042.5 | X50: 255427.5 | Y50: 183487.5 | Z50: 142867.5 | AA50: 111240 | AC50: 61 | AD50: 302400 | AE50: 235455 | AF50: 169147.5 | AG50: 131700 | AH50: 102547.5
A51: 62 | B51: 398687.5 | C51: 310425 | D51: 223000 | E51: 173631.25 | F51: 135193.75 | H51: 62 | I51: 351250 | J51: 273493.75 | K51: 196468.75 | L51: 152975 | M51: 119106.25 | O51: 62 | P51: 312262.5 | Q51: 291765 | R51: 209595 | S51: 163192.5 | T51: 127065 | V51: 62 | W51: 347565 | X51: 270622.5 | Y51: 194407.5 | Z51: 151372.5 | AA51: 117862.5 | AC51: 62 | AD51: 320400 | AE51: 249472.5 | AF51: 179212.5 | AG51: 139537.5 | AH51: 108645
A52: 63 | B52: =B153*0.5 -> 422418.75 | C52: 328906.25 | D52: 236275 | E52: 183968.75 | F52: 143243.75 | H52: 63 | I52: 372156.25 | J52: 289768.75 | K52: 208162.5 | L52: 162081.25 | M52: 126200 | O52: 63 | P52: 330850 | Q52: 309127.5 | R52: 222067.5 | S52: 172905 | T52: 134632.5 | V52: 63 | W52: 368257.5 | X52: 286732.5 | Y52: 205980 | Z52: 160380 | AA52: 124875 | AC52: 63 | AD52: 339472.5 | AE52: 264322.5 | AF52: 189877.5 | AG52: 147840 | AH52: 115117.5
A53: 64 | B53: 447556.25 | C53: 348481.25 | D53: 250331.25 | E53: 194918.75 | F53: 151768.75 | H53: 64 | I53: =I154*0.5 -> 394306.25 | J53: 307012.5 | K53: 220550 | L53: 171725 | M53: 133706.25 | O53: 64 | P53: 350543.75 | Q53: =Q154*0.6 -> 327525 | R53: 235282.5 | S53: 183195 | T53: 142642.5 | V53: 64 | W53: =W154*0.6 -> 390172.5 | X53: 303795 | Y53: 218235 | Z53: 169927.5 | AA53: 132307.5 | AC53: 64 | AD53: =AD154*0.6 -> 359670 | AE53: 280050 | AF53: 201180 | AG53: 156645 | AH53: 121965
A54: 65 | B54: 474193.75 | C54: 369218.75 | D54: 265231.25 | E54: 206518.75 | F54: 160800 | H54: 65 | I54: 417775 | J54: 325287.5 | K54: 233675 | L54: 181943.75 | M54: 141668.75 | O54: 65 | P54: 371406.25 | Q54: 347017.5 | R54: 249285 | S54: 194100 | T54: 151132.5 | V54: 65 | W54: 413392.5 | X54: 321877.5 | Y54: 231225 | Z54: 180037.5 | AA54: 140182.5 | AC54: 65 | AD54: 381082.5 | AE54: 296715 | AF54: 213150 | AG54: 165967.5 | AH54: 129225
A55: 66 | B55: 502412.5 | C55: 391193.75 | D55: 281018.75 | E55: 218806.25 | F55: 170368.75 | H55: 66 | I55: 442637.5 | J55: 344650 | K55: 247581.25 | L55: 192775 | M55: 150100 | O55: 66 | P55: 393506.25 | Q55: 367672.5 | R55: 264120 | S55: 205650 | T55: 160125 | V55: 66 | W55: 438000 | X55: 341032.5 | Y55: 244987.5 | Z55: 190755 | AA55: 148522.5 | AC55: 66 | AD55: 403762.5 | AE55: 314377.5 | AF55: 225840 | AG55: 175845 | AH55: 136912.5
A56: 67 | B56: 532318.75 | C56: 414475 | D56: 297743.75 | E56: 231831.25 | F56: 180506.25 | H56: 67 | I56: 468981.25 | J56: 365162.5 | K56: 262318.75 | L56: 204250 | M56: 159031.25 | O56: 67 | P56: 416931.25 | Q56: 389557.5 | R56: 279840 | S56: 217890 | T56: 169657.5 | V56: 67 | W56: 464062.5 | X56: 361335 | Y56: 259567.5 | Z56: 202102.5 | AA56: 157365 | AC56: 67 | AD56: 427792.5 | AE56: 333090 | AF56: 239280 | AG56: 186307.5 | AH56: 145065
A57: 68 | B57: 564000 | C57: 439143.75 | D57: 315462.5 | E57: 245631.25 | F57: 191250 | H57: 68 | I57: 496893.75 | J57: 386893.75 | K57: 277931.25 | L57: 216400 | M57: 168493.75 | O57: 68 | P57: 441743.75 | Q57: 412740 | R57: 296497.5 | S57: 230857.5 | T57: 179752.5 | V57: 68 | W57: 491685 | X57: 382837.5 | Y57: 275017.5 | Z57: 214132.5 | AA57: 166732.5 | AC57: 68 | AD57: 453255 | AE57: 352912.5 | AF57: 253522.5 | AG57: 197400 | AH57: 153697.5
A58: 69 | B58: 597568.75 | C58: 465281.25 | D58: 334237.5 | E58: 260250 | F58: 202637.5 | H58: 69 | I58: 526468.75 | J58: 409918.75 | K58: 294468.75 | L58: 229281.25 | M58: 178525 | O58: 69 | P58: 468031.25 | Q58: 437310 | R58: 314145 | S58: 244605 | T58: 190455 | V58: 69 | W58: 520950 | X58: 405622.5 | Y58: 291382.5 | Z58: 226882.5 | AA58: 176655 | AC58: 69 | AD58: 480225 | AE58: 373920 | AF58: 268605 | AG58: 209145 | AH58: 162847.5
A59: 70 | B59: 633131.25 | C59: 492975 | D59: 354131.25 | E59: 275737.5 | F59: 214693.75 | H59: 70 | I59: 557800 | J59: 434318.75 | K59: 312000 | L59: 242931.25 | M59: 189150 | O59: 70 | P59: 495887.5 | Q59: 463335 | R59: 332842.5 | S59: 259162.5 | T59: 201787.5 | V59: 70 | W59: 551955 | X59: 429765 | Y59: 308730 | Z59: 240382.5 | AA59: 187170 | AC59: 70 | AD59: 508807.5 | AE59: 396172.5 | AF59: 284595 | AG59: 221595 | AH59: 172537.5
A60: 71 | B60: 670812.5 | C60: 522312.5 | D60: 375212.5 | E60: 292150 | F60: 227475 | H60: 71 | I60: 591000 | J60: 460168.75 | K60: 330568.75 | L60: 257387.5 | M60: 200406.25 | O60: 71 | P60: 525400 | Q60: 490912.5 | R60: 352650 | S60: 274582.5 | T60: 213795 | V60: 71 | W60: 584805 | X60: 455340 | Y60: 327097.5 | Z60: 254685 | AA60: 198307.5 | AC60: 71 | AD60: 539092.5 | AE60: 419752.5 | AF60: 301530 | AG60: 234780 | AH60: 182805
A61: 72 | B61: 710737.5 | C61: 553400 | D61: 397537.5 | E61: 309537.5 | F61: 241012.5 | H61: 72 | I61: 626175 | J61: 487550 | K61: 350237.5 | L61: 272706.25 | M61: 212337.5 | O61: 72 | P61: 556675 | Q61: 520125 | R61: 373642.5 | S61: 290925 | T61: 226522.5 | V61: 72 | W61: 619605 | X61: 482445 | Y61: 346567.5 | Z61: 269850 | AA61: 210112.5 | AC61: 72 | AD61: 571177.5 | AE61: 444735 | AF61: 319477.5 | AG61: 248752.5 | AH61: 193687.5
A62: 73 | B62: 753037.5 | C62: 586331.25 | D62: 421200 | E62: 327956.25 | F62: 255356.25 | H62: 73 | I62: 663437.5 | J62: 516568.75 | K62: 371087.5 | L62: 288937.5 | M62: 224975 | O62: 73 | P62: 589806.25 | Q62: 551085 | R62: 395880 | S62: 308242.5 | T62: 240000 | V62: 73 | W62: 656490 | X62: 511155 | Y62: 367192.5 | Z62: 285907.5 | AA62: 222615 | AC62: 73 | AD62: 605175 | AE62: 471202.5 | AF62: 338490 | AG62: 263557.5 | AH62: 205215
A63: 74 | B63: 797856.25 | C63: 621231.25 | D63: 446268.75 | E63: 347475 | F63: 270556.25 | H63: 74 | I63: 702925 | J63: 547312.5 | K63: 393168.75 | L63: 306131.25 | M63: 238362.5 | O63: 74 | P63: 624906.25 | Q63: 583882.5 | R63: 419437.5 | S63: 326587.5 | T63: 254287.5 | V63: 74 | W63: 695557.5 | X63: 541575 | Y63: 389047.5 | Z63: 302925 | AA63: 235860 | AC63: 74 | AD63: 641190 | AE63: 499245 | AF63: 358642.5 | AG63: 279247.5 | AH63: 217425
A64: 75 | B64: 861868.75 | C64: 671068.75 | D64: 482068.75 | E64: 375350 | F64: 292256.25 | H64: 75 | I64: 759318.75 | J64: 591225 | K64: 424712.5 | L64: 330693.75 | M64: 257487.5 | O64: 75 | P64: 675043.75 | Q64: 630727.5 | R64: 453090 | S64: 352785 | T64: 274687.5 | V64: 75 | W64: 751357.5 | X64: 585030 | Y64: 420262.5 | Z64: 327225 | AA64: 254790 | AC64: 75 | AD64: 692632.5 | AE64: 539295 | AF64: 387412.5 | AG64: 301650 | AH64: 234870
A65: 76 | B65: 903056.25 | C65: 703143.75 | D65: 505112.5 | E65: 393293.75 | F65: 306225 | H65: 76 | I65: 795612.5 | J65: 619481.25 | K65: 445012.5 | L65: 346500 | M65: 269793.75 | O65: 76 | P65: 707306.25 | Q65: 660870 | R65: 474742.5 | S65: 369645 | T65: 287820 | V65: 76 | W65: 787267.5 | X65: 612990 | Y65: 440347.5 | Z65: 342862.5 | AA65: 266962.5 | AC65: 76 | AD65: 725730 | AE65: 565072.5 | AF65: 405930 | AG65: 316065 | AH65: 246097.5
A66: 77 | B66: 946218.75 | C66: 736750 | D66: 529256.25 | E66: 412087.5 | F66: 320862.5 | H66: 77 | I66: 833637.5 | J66: 649087.5 | K66: 466281.25 | L66: 363056.25 | M66: 282687.5 | O66: 77 | P66: 741112.5 | Q66: 692460 | R66: 497437.5 | S66: 387315 | T66: 301575 | V66: 77 | W66: 824895 | X66: 642285 | Y66: 461392.5 | Z66: 359250 | AA66: 279720 | AC66: 77 | AD66: 760417.5 | AE66: 592080 | AF66: 425332.5 | AG66: 331170 | AH66: 257857.5
A67: 78 | B67: 991443.75 | C67: 771962.5 | D67: 554550 | E67: 431787.5 | F67: 336200 | H67: 78 | I67: 873481.25 | J67: 680112.5 | K67: 488568.75 | L67: 380412.5 | M67: 296200 | O67: 78 | P67: 776531.25 | Q67: 725550 | R67: 521212.5 | S67: 405825 | T67: 315990 | V67: 78 | W67: 864322.5 | X67: 672982.5 | Y67: 483442.5 | Z67: 376425 | AA67: 293092.5 | AC67: 78 | AD67: 796762.5 | AE67: 620377.5 | AF67: 445657.5 | AG67: 347002.5 | AH67: 270180
A68: 79 | B68: =B169*0.5 -> 1038831.25 | C68: 808856.25 | D68: 581056.25 | E68: 452425 | F68: 352268.75 | H68: 79 | I68: 915225 | J68: 712618.75 | K68: 511918.75 | L68: 398593.75 | M68: 310356.25 | O68: 79 | P68: 813643.75 | Q68: 760230 | R68: 546120 | S68: 425220 | T68: 331087.5 | V68: 79 | W68: 905632.5 | X68: 705150 | Y68: 506550 | Z68: 394417.5 | AA68: 307102.5 | AC68: 79 | AD68: 834847.5 | AE68: 650032.5 | AF68: 466957.5 | AG68: 363585 | AH68: 283095
A69: 80 | B69: 1088481.25 | C69: 847518.75 | D69: 608825 | E69: 474043.75 | F69: 369106.25 | H69: 80 | I69: =I170*0.5 -> 958968.75 | J69: 746675 | K69: 536387.5 | L69: 417643.75 | M69: 325187.5 | O69: 80 | P69: =P170*0.5 -> 852531.25 | Q69: =Q170*0.6 -> 796567.5 | R69: 572220 | S69: 445545 | T69: 346912.5 | V69: 80 | W69: =W170*0.6 -> 948915 | X69: 738847.5 | Y69: 530760 | Z69: 413265 | AA69: 321780 | AC69: 80 | AD69: =AD170*0.6 -> 874747.5 | AE69: 681097.5 | AF69: 489277.5 | AG69: 380962.5 | AH69: 296625
A70: 81 | B70: 1140500 | C70: 888025 | D70: 637925 | E70: 496700 | F70: 386743.75 | H70: 81 | I70: 1004800 | J70: 782362.5 | K70: 562018.75 | L70: 437606.25 | M70: 340731.25 | O70: 81 | P70: 893281.25 | Q70: 834637.5 | R70: 599572.5 | S70: 466837.5 | T70: 363495 | V70: 81 | W70: 994267.5 | X70: 774165 | Y70: 556132.5 | Z70: 433020 | AA70: 337155 | AC70: 81 | AD70: 916552.5 | AE70: 713647.5 | AF70: 512662.5 | AG70: 399172.5 | AH70: 310800
A71: 82 | B71: 1195012.5 | C71: 930468.75 | D71: 668412.5 | E71: 520443.75 | F71: 405231.25 | H71: 82 | I71: 1052825 | J71: 819756.25 | K71: 588881.25 | L71: 458518.75 | M71: 357012.5 | O71: 82 | P71: 935975 | Q71: 874530 | R71: 628230 | S71: 489150 | T71: 380865 | V71: 82 | W71: 1041795 | X71: 811162.5 | Y71: 582712.5 | Z71: 453712.5 | AA71: 353272.5 | AC71: 82 | AD71: 960360 | AE71: 747757.5 | AF71: 537165 | AG71: 418245 | AH71: 325657.5
A72: 83 | B72: 1252131.25 | C72: 974937.5 | D72: 700356.25 | E72: 545318.75 | F72: 424600 | H72: 83 | I72: 1103143.75 | J72: 858937.5 | K72: 617025 | L72: 480431.25 | M72: 374075 | O72: 83 | P72: 980706.25 | Q72: 916320 | R72: 658252.5 | S72: 512535 | T72: 399067.5 | V72: 83 | W72: 1091580 | X72: 849937.5 | Y72: 610560 | Z72: 475395 | AA72: 370155 | AC72: 83 | AD72: 1006260 | AE72: 783495 | AF72: 562837.5 | AG72: 438240 | AH72: 341220
A73: 84 | B73: 1311975 | C73: 1021537.5 | D73: 733831.25 | E73: 571381.25 | F73: 444887.5 | H73: 84 | I73: 1155868.75 | J73: 899987.5 | K73: 646518.75 | L73: 503393.75 | M73: 391956.25 | O73: 84 | P73: 1027581.25 | Q73: 960120 | R73: 689715 | S73: 537030 | T73: 418140 | V73: 84 | W73: 1143757.5 | X73: 890557.5 | Y73: 639742.5 | Z73: 498120 | AA73: 387847.5 | AC73: 84 | AD73: 1054350 | AE73: 820942.5 | AF73: 589732.5 | AG73: 459180 | AH73: 357532.5
A95: ANNUAL RATES - START FROM HERE
A102: Zona 1: Ciudad de México (D.F. y área metropolitana) y franja fronteriza norte | H102: Zona 2: Nuevo León, Sonora, Coahuila, Chihuahua, Tamaulipas, Baja California Norte y Baja California Sur | O102: Zona 3: Jalisco, Puebla, Morelos, Estado de México (excepto Área Metropolitana), Guerrero (Acapulco y Zihuatanejo), Hidalgo y Querétaro | V102: Zona 4: Sinaloa, Guanajuato, San Luis Potosí, Durango, Aguascalientes, Nayarit, Michoacán, Colima, Quintana Roo, Zacatecas | AC102: Zona 5: Guerrero (excepto Acapulco y Zihuatanejo), Veracruz, Chiapas, Tabasco, Campeche, Oaxaca, Tlaxcala, Yucatán
A103: Primas de tarifa expresadas en pesos mexicanos | H103: Primas de tarifa expresadas en pesos mexicanos | O103: Primas de tarifa expresadas en pesos mexicanos | V103: Primas de tarifa expresadas en pesos mexicanos | AC103: Primas de tarifa expresadas en pesos mexicanos
A104: Edad | B104: CW21 | C104: CW31 | D104: CW41 | E104: CW51 | F104: CW61 | H104: Edad | I104: CW22 | J104: CW32 | K104: CW42 | L104: CW52 | M104: CW62 | O104: Edad | P104: CW23 | Q104: CW33 | R104: CW43 | S104: CW53 | T104: CW63 | V104: Edad | W104: CW24 | X104: CW34 | Y104: CW44 | Z104: CW54 | AA104: CW64 | AC104: Edad | AD104: CW25 | AE104: CW35 | AF104: CW45 | AG104: CW55 | AH104: CW65
A105: 1 menor | B105: 87100 | C105: 67812.5 | D105: 48712.5 | E105: 37937.5 | F105: 29537.5 | H105: 1 menor | I105: 76737.5 | J105: 59750 | K105: 42925 | L105: 33425 | M105: 26025 | O105: 1 menor | P105: 68225 | Q105: 53112.5 | R105: 38162.5 | S105: 29712.5 | T105: 23137.5 | V105: 1 menor | W105: 63275 | X105: 49262.5 | Y105: 35387.5 | Z105: 27562.5 | AA105: 21462.5 | AC105: 1 menor | AD105: 58325 | AE105: 45412.5 | AF105: 32625 | AG105: 25400 | AH105: 19775
A106: 2 menor | B106: 137237.5 | C106: 106850 | D106: 76762.5 | E106: 59762.5 | F106: 46537.5 | H106: 2 menores | I106: 120900 | J106: 94137.5 | K106: 67625 | L106: 52650 | M106: 41000 | O106: 2 menores | P106: 107487.5 | Q106: 83687.5 | R106: 60125 | S106: 46812.5 | T106: 36450 | V106: 2 menores | W106: 99700 | X106: 77625 | Y106: 55762.5 | Z106: 43425 | AA106: 33812.5 | AC106: 2 menores | AD106: 91900 | AE106: 71562.5 | AF106: 51400 | AG106: 40025 | AH106: 31162.5
A107: 3 menor | B107: 200237.5 | C107: 155900 | D107: 112000 | E107: 87200 | F107: 67900 | H107: 3 ó más menores | I107: 176412.5 | J107: 137350 | K107: 98675 | L107: 76825 | M107: 59825 | O107: 3 ó más menores | P107: 156825 | Q107: 122112.5 | R107: 87725 | S107: 68300 | T107: 53175 | V107: 3 ó más menores | W107: 145462.5 | X107: 113262.5 | Y107: 81362.5 | Z107: 63350 | AA107: 49325 | AC107: 3 ó más menores | AD107: 134100 | AE107: 104412.5 | AF107: 75000 | AG107: 58400 | AH107: 45475
A108: 18 | B108: 192175 | C108: 149637.5 | D108: 107487.5 | E108: 83700 | F108: 65162.5 | H108: 18 | I108: 169312.5 | J108: 131825 | K108: 94700 | L108: 73737.5 | M108: 57412.5 | O108: 18 | P108: 150525 | Q108: 117200 | R108: 84187.5 | S108: 65550 | T108: 51037.5 | V108: 18 | W108: 139612.5 | X108: 108700 | Y108: 78087.5 | Z108: 60800 | AA108: 47337.5 | AC108: 18 | AD108: 128700 | AE108: 100212.5 | AF108: 71987.5 | AG108: 56050 | AH108: 43637.5
A109: 19 | B109: 198237.5 | C109: 154350 | D109: 110887.5 | E109: 86337.5 | F109: 67225 | H109: 19 | I109: 174650 | J109: 135987.5 | K109: 97687.5 | L109: 76062.5 | M109: 59225 | O109: 19 | P109: 155275 | Q109: 120900 | R109: 86850 | S109: 67625 | T109: 52650 | V109: 19 | W109: 144025 | X109: 112137.5 | Y109: 80550 | Z109: 62725 | AA109: 48837.5 | AC109: 19 | AD109: 132762.5 | AE109: 103375 | AF109: 74262.5 | AG109: 57825 | AH109: 45025
A110: 20 | B110: 204500 | C110: 159225 | D110: 114387.5 | E110: 89062.5 | F110: 69350 | H110: 20 | I110: 180175 | J110: 140287.5 | K110: 100775 | L110: 78462.5 | M110: 61100 | O110: 20 | P110: 160175 | Q110: 124712.5 | R110: 89587.5 | S110: 69762.5 | T110: 54312.5 | V110: 20 | W110: 148562.5 | X110: 115675 | Y110: 83100 | Z110: 64700 | AA110: 50375 | AC110: 20 | AD110: 136950 | AE110: 106637.5 | AF110: 76600 | AG110: 59650 | AH110: 46437.5
A111: 21 | B111: 210962.5 | C111: 164262.5 | D111: 118000 | E111: 91875 | F111: 71537.5 | H111: 21 | I111: 185862.5 | J111: 144712.5 | K111: 103962.5 | L111: 80950 | M111: 63025 | O111: 21 | P111: 165225 | Q111: 128650 | R111: 92425 | S111: 71962.5 | T111: 56025 | V111: 21 | W111: 153262.5 | X111: 119325 | Y111: 85725 | Z111: 66750 | AA111: 51975 | AC111: 21 | AD111: 141275 | AE111: 110000 | AF111: 79025 | AG111: 61525 | AH111: 47912.5
A112: 22 | B112: 217612.5 | C112: 169437.5 | D112: 121725 | E112: 94775 | F112: 73800 | H112: 22 | I112: 191725 | J112: 149287.5 | K112: 107237.5 | L112: 83500 | M112: 65012.5 | O112: 22 | P112: 170450 | Q112: 132712.5 | R112: 95337.5 | S112: 74225 | T112: 57800 | V112: 22 | W112: 158100 | X112: 123100 | Y112: 88425 | Z112: 68850 | AA112: 53612.5 | AC112: 22 | AD112: 145737.5 | AE112: 113475 | AF112: 81512.5 | AG112: 63475 | AH112: 49425
A113: 23 | B113: 224487.5 | C113: 174787.5 | D113: 125562.5 | E113: 97762.5 | F113: 76125 | H113: 23 | I113: 197775 | J113: 154000 | K113: 110625 | L113: 86137.5 | M113: 67062.5 | O113: 23 | P113: 175825 | Q113: 136900 | R113: 98350 | S113: 76575 | T113: 59625 | V113: 23 | W113: 163087.5 | X113: 126987.5 | Y113: 91225 | Z113: 71025 | AA113: 55300 | AC113: 23 | AD113: 150337.5 | AE113: 117062.5 | AF113: 84087.5 | AG113: 65475 | AH113: 50975
A114: 24 | B114: 231575 | C114: 180312.5 | D114: 129525 | E114: 100850 | F114: 78525 | H114: 24 | I114: 204025 | J114: 158862.5 | K114: 114112.5 | L114: 88850 | M114: 69187.5 | O114: 24 | P114: 181375 | Q114: 141225 | R114: 101450 | S114: 78987.5 | T114: 61500 | V114: 24 | W114: 168237.5 | X114: 130987.5 | Y114: 94100 | Z114: 73275 | AA114: 57050 | AC114: 24 | AD114: 155087.5 | AE114: 120750 | AF114: 86750 | AG114: 67537.5 | AH114: 52587.5
A115: 25 | B115: 238887.5 | C115: 186000 | D115: 133612.5 | E115: 104037.5 | F115: 81000 | H115: 25 | I115: 210462.5 | J115: 163875 | K115: 117725 | L115: 91662.5 | M115: 71362.5 | O115: 25 | P115: 187100 | Q115: 145687.5 | R115: 104650 | S115: 81487.5 | T115: 63450 | V115: 25 | W115: 173550 | X115: 135125 | Y115: 97075 | Z115: 75587.5 | AA115: 58850 | AC115: 25 | AD115: 159987.5 | AE115: 124562.5 | AF115: 89487.5 | AG115: 69675 | AH115: 54250
A116: 26 | B116: 246425 | C116: 191875 | D116: 137837.5 | E116: 107325 | F116: 83562.5 | H116: 26 | I116: 217112.5 | J116: 169050 | K116: 121437.5 | L116: 94550 | M116: 73625 | O116: 26 | P116: 193012.5 | Q116: 150287.5 | R116: 107962.5 | S116: 84062.5 | T116: 65450 | V116: 26 | W116: 179025 | X116: 139400 | Y116: 100137.5 | Z116: 77962.5 | AA116: 60712.5 | AC116: 26 | AD116: 165037.5 | AE116: 128500 | AF116: 92312.5 | AG116: 71875 | AH116: 55962.5
A117: 27 | B117: 254212.5 | C117: 197937.5 | D117: 142187.5 | E117: 110712.5 | F117: 86200 | H117: 27 | I117: 223962.5 | J117: 174387.5 | K117: 125275 | L117: 97537.5 | M117: 75950 | O117: 27 | P117: 199100 | Q117: 155025 | R117: 111362.5 | S117: 86712.5 | T117: 67512.5 | V117: 27 | W117: 184675 | X117: 143800 | Y117: 103300 | Z117: 80425 | AA117: 62625 | AC117: 27 | AD117: 170237.5 | AE117: 132550 | AF117: 95225 | AG117: 74137.5 | AH117: 57725
A118: 28 | B118: 262237.5 | C118: 204175 | D118: 146675 | E118: 114200 | F118: 88925 | H118: 28 | I118: 231037.5 | J118: 179887.5 | K118: 129225 | L118: 100612.5 | M118: 78337.5 | O118: 28 | P118: 205387.5 | Q118: 159925 | R118: 114887.5 | S118: 89450 | T118: 69650 | V118: 28 | W118: 190512.5 | X118: 148337.5 | Y118: 106562.5 | Z118: 82975 | AA118: 64600 | AC118: 28 | AD118: 175612.5 | AE118: 136737.5 | AF118: 98225 | AG118: 76487.5 | AH118: 59550
A119: 29 | B119: 270512.5 | C119: 210625 | D119: 151312.5 | E119: 117812.5 | F119: 91725 | H119: 29 | I119: 238325 | J119: 185562.5 | K119: 133300 | L119: 103800 | M119: 80812.5 | O119: 29 | P119: 211875 | Q119: 164975 | R119: 118512.5 | S119: 92275 | T119: 71850 | V119: 29 | W119: 196525 | X119: 153012.5 | Y119: 109925 | Z119: 85587.5 | AA119: 66637.5 | AC119: 29 | AD119: 181162.5 | AE119: 141062.5 | AF119: 101325 | AG119: 78900 | AH119: 61437.5
A120: 30 | B120: 279050 | C120: 217275 | D120: 156087.5 | E120: 121525 | F120: 94625 | H120: 30 | I120: 245850 | J120: 191425 | K120: 137512.5 | L120: 107075 | M120: 83362.5 | O120: 30 | P120: 218562.5 | Q120: 170175 | R120: 122250 | S120: 95187.5 | T120: 74112.5 | V120: 30 | W120: 202725 | X120: 157850 | Y120: 113387.5 | Z120: 88287.5 | AA120: 68750 | AC120: 30 | AD120: 186875 | AE120: 145512.5 | AF120: 104525 | AG120: 81387.5 | AH120: 63375
A121: 31 | B121: 287862.5 | C121: 224137.5 | D121: 161012.5 | E121: 125362.5 | F121: 97612.5 | H121: 31 | I121: 253612.5 | J121: 197475 | K121: 141850 | L121: 110450 | M121: 86000 | O121: 31 | P121: 225462.5 | Q121: 175550 | R121: 126112.5 | S121: 98187.5 | T121: 76450 | V121: 31 | W121: 209125 | X121: 162837.5 | Y121: 116975 | Z121: 91075 | AA121: 70912.5 | AC121: 31 | AD121: 192787.5 | AE121: 150100 | AF121: 107825 | AG121: 83962.5 | AH121: 65375
A122: 32 | B122: 296950 | C122: 231212.5 | D122: 166100 | E122: 129325 | F122: 100700 | H122: 32 | I122: 261625 | J122: 203700 | K122: 146337.5 | L122: 113937.5 | M122: 88712.5 | O122: 32 | P122: 232575 | Q122: 181087.5 | R122: 130087.5 | S122: 101287.5 | T122: 78862.5 | V122: 32 | W122: 215725 | X122: 167975 | Y122: 120662.5 | Z122: 93950 | AA122: 73150 | AC122: 32 | AD122: 198862.5 | AE122: 154837.5 | AF122: 111237.5 | AG122: 86612.5 | AH122: 67437.5
A123: 33 | B123: 306325 | C123: 238512.5 | D123: 171337.5 | E123: 133412.5 | F123: 103875 | H123: 33 | I123: 269875 | J123: 210137.5 | K123: 150950 | L123: 117537.5 | M123: 91512.5 | O123: 33 | P123: 239925 | Q123: 186812.5 | R123: 134200 | S123: 104487.5 | T123: 81362.5 | V123: 33 | W123: 222537.5 | X123: 173275 | Y123: 124475 | Z123: 96925 | AA123: 75462.5 | AC123: 33 | AD123: 205150 | AE123: 159725 | AF123: 114750 | AG123: 89337.5 | AH123: 69562.5
A124: 34 | B124: 316000 | C124: 246037.5 | D124: 176750 | E124: 137625 | F124: 107150 | H124: 34 | I124: 278400 | J124: 216762.5 | K124: 155712.5 | L124: 121250 | M124: 94400 | O124: 34 | P124: 247500 | Q124: 192712.5 | R124: 138437.5 | S124: 107787.5 | T124: 83925 | V124: 34 | W124: 229562.5 | X124: 178750 | Y124: 128400 | Z124: 99975 | AA124: 77850 | AC124: 34 | AD124: 211625 | AE124: 164775 | AF124: 118362.5 | AG124: 92162.5 | AH124: 71762.5
A125: 35 | B125: 317637.5 | C125: 247312.5 | D125: 177662.5 | E125: 138337.5 | F125: 107712.5 | H125: 35 | I125: 279837.5 | J125: 217887.5 | K125: 156525 | L125: 121875 | M125: 94900 | O125: 35 | P125: 248787.5 | Q125: 193712.5 | R125: 139150 | S125: 108350 | T125: 84362.5 | V125: 35 | W125: 230750 | X125: 179675 | Y125: 129075 | Z125: 100500 | AA125: 78250 | AC125: 35 | AD125: 212725 | AE125: 165625 | AF125: 118987.5 | AG125: 92637.5 | AH125: 72137.5
A126: 36 | B126: 324900 | C126: 252975 | D126: 181725 | E126: 141500 | F126: 110175 | H126: 36 | I126: 286250 | J126: 222875 | K126: 160100 | L126: 124662.5 | M126: 97062.5 | O126: 36 | P126: 254475 | Q126: 198137.5 | R126: 142337.5 | S126: 110825 | T126: 86287.5 | V126: 36 | W126: 236037.5 | X126: 183787.5 | Y126: 132025 | Z126: 102800 | AA126: 80037.5 | AC126: 36 | AD126: 217587.5 | AE126: 169425 | AF126: 121700 | AG126: 94762.5 | AH126: 73787.5
A127: 37 | B127: 332337.5 | C127: 258762.5 | D127: 185887.5 | E127: 144737.5 | F127: 112700 | H127: 37 | I127: 292800 | J127: 227975 | K127: 163775 | L127: 127512.5 | M127: 99287.5 | O127: 37 | P127: 260300 | Q127: 202675 | R127: 145587.5 | S127: 113362.5 | T127: 88262.5 | V127: 37 | W127: 241437.5 | X127: 187987.5 | Y127: 135050 | Z127: 105150 | AA127: 81875 | AC127: 37 | AD127: 222562.5 | AE127: 173300 | AF127: 124487.5 | AG127: 96925 | AH127: 75475
A128: 38 | B128: 339937.5 | C128: 264687.5 | D128: 190137.5 | E128: 148050 | F128: 115275 | H128: 38 | I128: 299500 | J128: 233187.5 | K128: 167512.5 | L128: 130437.5 | M128: 101562.5 | O128: 38 | P128: 266250 | Q128: 207312.5 | R128: 148925 | S128: 115962.5 | T128: 90287.5 | V128: 38 | W128: 246962.5 | X128: 192287.5 | Y128: 138137.5 | Z128: 107550 | AA128: 83750 | AC128: 38 | AD128: 227662.5 | AE128: 177262.5 | AF128: 127337.5 | AG128: 99150 | AH128: 77200
A129: 39 | B129: 347725 | C129: 270750 | D129: 194487.5 | E129: 151437.5 | F129: 117912.5 | H129: 39 | I129: 306350 | J129: 238525 | K129: 171350 | L129: 133412.5 | M129: 103887.5 | O129: 39 | P129: 272350 | Q129: 212050 | R129: 152337.5 | S129: 118612.5 | T129: 92350 | V129: 39 | W129: 252612.5 | X129: 196687.5 | Y129: 141300 | Z129: 110012.5 | AA129: 85662.5 | AC129: 39 | AD129: 232875 | AE129: 181312.5 | AF129: 130250 | AG129: 101412.5 | AH129: 78962.5
A130: 40 | B130: 355675 | C130: 276937.5 | D130: 198937.5 | E130: 154900 | F130: 120612.5 | H130: 40 | I130: 313362.5 | J130: 243987.5 | K130: 175275 | L130: 136475 | M130: 106262.5 | O130: 40 | P130: 278575 | Q130: 216912.5 | R130: 155812.5 | S130: 121325 | T130: 94462.5 | V130: 40 | W130: 258400 | X130: 201187.5 | Y130: 144525 | Z130: 112537.5 | AA130: 87625 | AC130: 40 | AD130: 238200 | AE130: 185462.5 | AF130: 133237.5 | AG130: 103737.5 | AH130: 80775
A131: 41 | B131: 363812.5 | C131: 283275 | D131: 203500 | E131: 158450 | F131: 123375 | H131: 41 | I131: 320525 | J131: 249575 | K131: 179287.5 | L131: 139600 | M131: 108687.5 | O131: 41 | P131: 284950 | Q131: 221875 | R131: 159387.5 | S131: 124100 | T131: 96625 | V131: 41 | W131: 264312.5 | X131: 205800 | Y131: 147837.5 | Z131: 115112.5 | AA131: 89625 | AC131: 41 | AD131: 243650 | AE131: 189712.5 | AF131: 136275 | AG131: 106112.5 | AH131: 82625
A132: 42 | B132: 372137.5 | C132: 289762.5 | D132: 208150 | E132: 162075 | F132: 126187.5 | H132: 42 | I132: 327862.5 | J132: 255287.5 | K132: 183387.5 | L132: 142787.5 | M132: 111175 | O132: 42 | P132: 291475 | Q132: 226950 | R132: 163037.5 | S132: 126937.5 | T132: 98837.5 | V132: 42 | W132: 270350 | X132: 210500 | Y132: 151225 | Z132: 117737.5 | AA132: 91675 | AC132: 42 | AD132: 249225 | AE132: 194050 | AF132: 139400 | AG132: 108537.5 | AH132: 84512.5
A133: 43 | B133: 380662.5 | C133: 296387.5 | D133: 212912.5 | E133: 165775 | F133: 129087.5 | H133: 43 | I133: 335362.5 | J133: 261125 | K133: 187587.5 | L133: 146050 | M133: 113725 | O133: 43 | P133: 298150 | Q133: 232137.5 | R133: 166762.5 | S133: 129850 | T133: 101100 | V133: 43 | W133: 276537.5 | X133: 215325 | Y133: 154675 | Z133: 120437.5 | AA133: 93775 | AC133: 43 | AD133: 254925 | AE133: 198487.5 | AF133: 142587.5 | AG133: 111025 | AH133: 86450
